Workbook

Sheet DEPAN
C6: NAMA LEMBAGA | D6: MI | E6: Nurul Islam Labruk Kidul | Y6: =IF(LEMBAGA="MI","Madrasah Ibtidaiyah","Sekolah Dasar") -> Madrasah Ibtidaiyah | AA6: =E6 -> Nurul Islam Labruk Kidul
Y7: =LEMBAGA&" "&E6 -> MI Nurul Islam Labruk Kidul
C8: NAMA KEPALA SEKOLAH | D8: Sahroni,S.Pd.I
C10: NIP KS | D10: -
C12: KECAMATAN | D12: SUMBERSUKO
C14: KABUPATEN | D14: LUMAJANG | Y14: =C14&" "&D14 -> KABUPATEN LUMAJANG
C16: TAHUN PELAJARAN | D16: 2019/2020 | Y16: =C16&" "&D16 -> TAHUN PELAJARAN 2019/2020

Sheet SISWA
A5: NO | B5: No Induk | C5: NISN | D5: Nomor Peserta | E5: Nama Peserta | F5: Tempat Lahir | G5: Tanggal Lahir | H5: Nama Orang Tua | I5: KELAMIN | J5: NO | K5: MATA PELAJARAN | P5: HASIL | Q5: YANG HARUS DI ISI | S5: HASIL
L6: SKM | P6: TANGGAL LAHIR TEXT | Q6: NO URUT SURAT | R6: ISI NOMOR SURAT
P7: =F8&", "&TEXT(G8,"[$-id-ID]dd mmmm yyyy") -> Lumajang, 09 November 2007 | Q7: 051 | R7: /MINI.L-Kid/30.02.02/S.1-2/VI/2020 | S7: =Q7&R7 -> 051/MINI.L-Kid/30.02.02/S.1-2/VI/2020 | T7: /Mi.13.05.162/PP.01.1/06/2018
A8: 1 | B8: 4331 | C8: 0078140536 | D8: 1-18-05-80-162-001-8 | E8: ACHMAD FATHIR IZUDDIN | F8: Lumajang | G8: 2007-11-09 | H8: NURUDDIN | I8: L | J8: 1 | K8: Pendidikan Agama | P8: =F9&", "&TEXT(G9,"[$-id-ID]dd mmmm yyyy") -> Lumajang, 12 Februari 2008 | Q8: 052 | R8: /MINI.L-Kid/30.02.02/S.1-2/VI/2020 | S8: =Q8&R8 -> 052/MINI.L-Kid/30.02.02/S.1-2/VI/2020
A9: 2 | B9: 4333 | C9: 0084691896 | D9: 1-18-05-80-162-002-7 | E9: AININ NAFISA FEBRIYANTI | F9: Lumajang | G9: 2008-02-12 | H9: SUBOWO | I9: P | J9: 2 | K9: Pendidikan Kewarganegaraan | L9: 65 | P9: Lumajang, 30 September 2007 | Q9: 053 | R9: /MINI.L-Kid/30.02.02/S.1-2/VI/2020 | S9: 053/MINI.L-Kid/30.02.02/S.1-2/VI/2020
A10: 3 | B10: 4334 | C10: 0075488897 | D10: 1-18-05-80-162-003-6 | E10: AISYAH DWI ANDINI | F10: Lumajang | G10: 2007-09-30 | H10: SAIFUL ANAM | I10: P | J10: 3 | K10: Bahasa Indonesia | L10: 65 | P10: Hanau, 31 Juli 2007 | Q10: 054 | R10: /MINI.L-Kid/30.02.02/S.1-2/VI/2020 | S10: 054/MINI.L-Kid/30.02.02/S.1-2/VI/2020
A11: 4 | B11: 4335 | C11: 0077554289 | D11: 1-18-05-80-162-004-5 | E11: AJENG AGUSTINA KIRANA PUTRI | F11: Hanau | G11: 2007-07-31 | H11: SUKIRNO | I11: P | J11: 4 | K11: Matematika | L11: 65 | P11: Lumajang, 20 Mei 2007 | Q11: 055 | R11: /MINI.L-Kid/30.02.02/S.1-2/VI/2020 | S11: 055/MINI.L-Kid/30.02.02/S.1-2/VI/2020
A12: 5 | B12: 4336 | C12: 0078831956 | D12: 1-18-05-80-162-005-4 | E12: ALVIAN FAIZULHAQQI | F12: Lumajang | G12: 2007-05-20 | H12: MUKHAMAD FAUZI | I12: L | J12: 5 | K12: Ilmu Pengetahuan Alam | L12: 65 | P12: Lumajang, 31 Mei 2007 | Q12: 056 | R12: /MINI.L-Kid/30.02.02/S.1-2/VI/2020 | S12: 056/MINI.L-Kid/30.02.02/S.1-2/VI/2020
A13: 6 | B13: 4337 | C13: 0073667130 | D13: 1-18-05-80-162-006-3 | E13: ANGGITA RIZKY YUGA MEISYA | F13: Lumajang | G13: 2007-05-31 | H13: GALIH DWI APRIYANTO | I13: P | J13: 6 | K13: Ilmu Pengetahuan Sosial | L13: 65 | P13: Lumajang, 18 Mei 2007 | Q13: 057 | R13: /MINI.L-Kid/30.02.02/S.1-2/VI/2020 | S13: 057/MINI.L-Kid/30.02.02/S.1-2/VI/2020
A14: 7 | B14: 4338 | C14: 0074492973 | D14: 1-18-05-80-162-007-2 | E14: AURA SALSABILA WULAN SARI | F14: Lumajang | G14: 2007-05-18 | H14: SAIFUL | I14: P | J14: 7 | K14: Seni Budaya dan Keterampilan | L14: 70 | P14: Lumajang, 16 Oktober 2007 | Q14: 058 | R14: /MINI.L-Kid/30.02.02/S.1-2/VI/2020 | S14: 058/MINI.L-Kid/30.02.02/S.1-2/VI/2020
A15: 8 | B15: 4366 | C15: 0078989673 | D15: 1-18-05-80-162-008-9 | E15: BALQIS NAILA AUDIA | F15: Lumajang | G15: 2007-10-16 | H15: SAMSUL HUDA | I15: P | J15: 8 | K15: Pendidikan Jasmani Olahraga dan Kesehatan | L15: 70 | P15: Blitar, 04 Februari 2008 | Q15: 059 | R15: /MINI.L-Kid/30.02.02/S.1-2/VI/2020 | S15: 059/MINI.L-Kid/30.02.02/S.1-2/VI/2020
A16: 9 | B16: 4440 | C16: 0082763386 | D16: 1-18-05-80-162-009-8 | E16: BIMA ARYO SUSILO | F16: Blitar | G16: 2008-02-04 | H16: SISWOKO | I16: L | J16: 9 | K16: Bahasa Daerah | L16: 65 | P16: Lumajang, 18 Oktober 2007 | Q16: 060 | R16: /MINI.L-Kid/30.02.02/S.1-2/VI/2020 | S16: 060/MINI.L-Kid/30.02.02/S.1-2/VI/2020
A17: 10 | B17: 4367 | C17: 0078400392 | D17: 1-18-05-80-162-010-7 | E17: BIMA SATRIA DIRGANTARA | F17: Lumajang | G17: 2007-10-18 | H17: JOKO SAMBANG | I17: L | J17: 10 | K17: Bahasa Inggris | L17: 65 | P17: Lumajang, 28 Januari 2008 | Q17: 061 | R17: /MINI.L-Kid/30.02.02/S.1-2/VI/2020 | S17: 061/MINI.L-Kid/30.02.02/S.1-2/VI/2020
A18: 11 | B18: 4339 | C18: 0086652599 | D18: 1-18-05-80-162-011-6 | E18: DEVI KARUNIA RATNA PUTRI | F18: Lumajang | G18: 2008-01-28 | H18: MUKHAMMAD KHOZIN AS'ARI | I18: P | J18: 11 | K18: Aqidah Akhlaq | L18: 65 | P18: Lumajang, 17 Februari 2008 | Q18: 062 | R18: /MINI.L-Kid/30.02.02/S.1-2/VI/2020 | S18: 062/MINI.L-Kid/30.02.02/S.1-2/VI/2020
A19: 12 | B19: 4340 | C19: 0089906682 | D19: 1-18-05-80-162-012-5 | E19: DEVITA FEBRIANI PUTRI | F19: Lumajang | G19: 2008-02-17 | H19: BINADI | I19: P | J19: 12 | K19: Al Qur'an Hadits | L19: 65 | P19: Lumajang, 04 Mei 2007 | Q19: 063 | R19: /MINI.L-Kid/30.02.02/S.1-2/VI/2020 | S19: 063/MINI.L-Kid/30.02.02/S.1-2/VI/2020
A20: 13 | B20: 4370 | C20: 0074514146 | D20: 1-18-05-80-162-013-4 | E20: FAKHIS GABRIL LIA | F20: Lumajang | G20: 2007-05-04 | H20: DONI HARIADI | I20: P | J20: 13 | K20: Fiqih | L20: 65 | P20: Lumajang, 27 Februari 2008 | Q20: 064 | R20: /MINI.L-Kid/30.02.02/S.1-2/VI/2020 | S20: 064/MINI.L-Kid/30.02.02/S.1-2/VI/2020
A21: 14 | B21: 4342 | C21: 0081081672 | D21: 1-18-05-80-162-014-3 | E21: FARAH NAILATUL ALYAH | F21: Lumajang | G21: 2008-02-27 | H21: HASAN SANUSI | I21: P | J21: 14 | K21: Sejarah Kebudayaan Islam | L21: 65 | P21: Lumajang, 12 Juli 2007 | Q21: 065 | R21: /MINI.L-Kid/30.02.02/S.1-2/VI/2020 | S21: 065/MINI.L-Kid/30.02.02/S.1-2/VI/2020
A22: 15 | B22: 4345 | C22: 0073420487 | D22: 1-18-05-80-162-015-2 | E22: GALANG MARDHOTILLAH SATOTO | F22: Lumajang | G22: 2007-07-12 | H22: AGUNG SUJUD SATOTO | I22: L | J22: 15 | K22: Bahasa Arab | L22: 65 | P22: Lumajang, 03 Juli 2007 | Q22: 066 | R22: /MINI.L-Kid/30.02.02/S.1-2/VI/2020 | S22: 066/MINI.L-Kid/30.02.02/S.1-2/VI/2020
A23: 16 | B23: 4371 | C23: 0079870082 | D23: 1-18-05-80-162-016-9 | E23: GALIH FAREL PRASTYO | F23: Lumajang | G23: 2007-07-03 | H23: MOHAMAD ARIFIN | I23: L | P23: Bondowoso, 05 Mei 2008 | Q23: 067 | R23: /MINI.L-Kid/30.02.02/S.1-2/VI/2020 | S23: 067/MINI.L-Kid/30.02.02/S.1-2/VI/2020
A24: 17 | B24: 4466 | C24: 0081629504 | D24: 1-18-05-80-162-017-8 | E24: HIBATULLAH MUSTAGHFIRY RUSLI | F24: Bondowoso | G24: 2008-05-05 | H24: HAJI AMIR RUSLI | I24: L | P24: Lumajang, 19 Agustus 2007 | Q24: 068 | R24: /MINI.L-Kid/30.02.02/S.1-2/VI/2020 | S24: 068/MINI.L-Kid/30.02.02/S.1-2/VI/2020
A25: 18 | B25: 4346 | C25: 0073608418 | D25: 1-18-05-80-162-018-7 | E25: IKA KURNIA WATI AGUSTINA | F25: Lumajang | G25: 2007-08-19 | H25: SUPANDI ARIS SUMARGIONO | I25: P | P25: Lumajang, 25 Mei 2007 | Q25: 069 | R25: /MINI.L-Kid/30.02.02/S.1-2/VI/2020 | S25: 069/MINI.L-Kid/30.02.02/S.1-2/VI/2020
A26: 19 | B26: 4350 | C26: 0072658586 | D26: 1-18-05-80-162-019-6 | E26: MAYLUNA EKA PRATIWI | F26: Lumajang | G26: 2007-05-25 | H26: MOCHAMAD SYAMSUL HUDA | I26: P | P26: Lumajang, 14 Mei 2007 | Q26: 070 | R26: /MINI.L-Kid/30.02.02/S.1-2/VI/2020 | S26: 070/MINI.L-Kid/30.02.02/S.1-2/VI/2020
A27: 20 | B27: 4353 | C27: 0075464137 | D27: 1-18-05-80-162-020-5 | E27: MOHAMAD DWIMAS FIRDAUS | F27: Lumajang | G27: 2007-05-14 | H27: MOHAMAD UMAR | I27: L | P27: Lumajang, 06 November 2007 | Q27: 071 | R27: /MINI.L-Kid/30.02.02/S.1-2/VI/2020 | S27: 071/MINI.L-Kid/30.02.02/S.1-2/VI/2020
A28: 21 | B28: 4375 | C28: 0075096831 | D28: 1-18-05-80-162-021-4 | E28: MUHAMMAD AFFAN ABI SYAHPUTRA | F28: Lumajang | G28: 2007-11-06 | H28: EDI SANTOSO | I28: L | P28: Lumajang, 13 Agustus 2007 | Q28: 072 | R28: /MINI.L-Kid/30.02.02/S.1-2/VI/2020 | S28: 072/MINI.L-Kid/30.02.02/S.1-2/VI/2020
A29: 22 | B29: 4354 | C29: 0075055640 | D29: 1-18-05-80-162-022-3 | E29: MUHAMMAD ALVIN RIDHO | F29: Lumajang | G29: 2007-08-13 | H29: MACHMUD ALI RIDHO | I29: L | P29: Lumajang, 06 Juli 2007 | Q29: 073 | R29: /MINI.L-Kid/30.02.02/S.1-2/VI/2020 | S29: 073/MINI.L-Kid/30.02.02/S.1-2/VI/2020
A30: 23 | B30: 4378 | C30: 0074268893 | D30: 1-18-05-80-162-023-2 | E30: MUKHAMAD DAVID ARIF FIRDAUS | F30: Lumajang | G30: 2007-07-06 | H30: SAMSUL ARIFIN | I30: L | P30: Lumajang, 08 Desember 2007 | Q30: 074 | R30: /MINI.L-Kid/30.02.02/S.1-2/VI/2020 | S30: 074/MINI.L-Kid/30.02.02/S.1-2/VI/2020
A31: 24 | B31: 4379 | C31: 0072757203 | D31: 1-18-05-80-162-024-9 | E31: NAORA ISQI AINAYYA | F31: Lumajang | G31: 2007-12-08 | H31: MASYHURI AYATULLOH | I31: P | P31: Jombang, 08 Mei 2007 | Q31: 075 | R31: /MINI.L-Kid/30.02.02/S.1-2/VI/2020 | S31: 075/MINI.L-Kid/30.02.02/S.1-2/VI/2020
A32: 25 | B32: 4380 | C32: 0079026285 | D32: 1-18-05-80-162-025-8 | E32: NAZRA ISLAMAY PASHA | F32: Jombang | G32: 2007-05-08 | H32: ABDUL QOSIM | I32: P | P32: Lumajang, 02 September 2007 | Q32: 076 | R32: /MINI.L-Kid/30.02.02/S.1-2/VI/2020 | S32: 076/MINI.L-Kid/30.02.02/S.1-2/VI/2020
A33: 26 | B33: 4382 | C33: 0079872151 | D33: 1-18-05-80-162-026-7 | E33: NUR ALYA NABILA | F33: Lumajang | G33: 2007-09-02 | H33: MASHURI | I33: P | P33: Lumajang, 10 Februari 2008 | Q33: 077 | R33: /MINI.L-Kid/30.02.02/S.1-2/VI/2020 | S33: 077/MINI.L-Kid/30.02.02/S.1-2/VI/2020
A34: 27 | B34: 4358 | C34: 0087558837 | D34: 1-18-05-80-162-027-6 | E34: PUTRI SHOLIKHAH | F34: Lumajang | G34: 2008-02-10 | H34: MULYONO | I34: P | P34: Lumajang, 22 Oktober 2007 | Q34: 078 | R34: /MINI.L-Kid/30.02.02/S.1-2/VI/2020 | S34: 078/MINI.L-Kid/30.02.02/S.1-2/VI/2020
A35: 28 | B35: 4384 | C35: 0071234523 | D35: 1-18-05-80-162-028-5 | E35: RESTI FITRIANTI DWI OCTAVIANI | F35: Lumajang | G35: 2007-10-22 | H35: MUHAMMAD BASHORI | I35: P | P35: Lumajang, 07 September 2007 | Q35: 079 | R35: /MINI.L-Kid/30.02.02/S.1-2/VI/2020 | S35: 079/MINI.L-Kid/30.02.02/S.1-2/VI/2020
A36: 29 | B36: 4359 | C36: 0073122181 | D36: 1-18-05-80-162-029-4 | E36: ROUDHOTUS SA'DIYAH | F36: Lumajang | G36: 2007-09-07 | H36: ABDUL BASIT | I36: P | P36: Lumajang, 20 Juni 2007 | Q36: 080 | R36: /MINI.L-Kid/30.02.02/S.1-2/VI/2020 | S36: 080/MINI.L-Kid/30.02.02/S.1-2/VI/2020
A37: 30 | B37: 4386 | C37: 0075344352 | D37: 1-18-05-80-162-030-3 | E37: TIERSYA BETA RAMANUZAN | F37: Lumajang | G37: 2007-06-20 | H37: KOMAI RIZAL MALIK AFDILLAH | I37: P | P37: Lumajang, 09 November 2007 | Q37: 081 | R37: /MINI.L-Kid/30.02.02/S.1-2/VI/2020 | S37: 081/MINI.L-Kid/30.02.02/S.1-2/VI/2020
A38: 31 | B38: 4388 | C38: 0077423646 | D38: 1-18-05-80-162-031-2 | E38: VERA MUSTIKA | F38: Lumajang | G38: 2007-11-09 | H38: MOCH. YASIN EFENDI | I38: P | P38: Lumajang, 29 Juli 2007 | Q38: 082 | R38: /MINI.L-Kid/30.02.02/S.1-2/VI/2020 | S38: 082/MINI.L-Kid/30.02.02/S.1-2/VI/2020
A39: 32 | B39: 4360 | C39: 0077290990 | D39: 1-18-05-80-162-032-9 | E39: ZIDNY ILMA NABILA | F39: Lumajang | G39: 2007-07-29 | H39: SUDARMAN | I39: P | P39: Lumajang, 10 September 2007 | Q39: 083 | R39: /MINI.L-Kid/30.02.02/S.1-2/VI/2020 | S39: 083/MINI.L-Kid/30.02.02/S.1-2/VI/2020
A40: 33 | B40: 4390 | C40: 0077722307 | D40: 1-18-05-80-162-033-8 | E40: ZITNATUL AULIA ILLA | F40: Lumajang | G40: 2007-09-10 | H40: SISWANDONO | I40: P | P40: Lumajang, 01 Agustus 2008 | Q40: 084 | R40: /MINI.L-Kid/30.02.02/S.1-2/VI/2020 | S40: 084/MINI.L-Kid/30.02.02/S.1-2/VI/2020
A41: 34 | B41: 4330 | C41: 0084736422 | D41: 1-18-05-80-162-034-7 | E41: ACHID ATHIRIL ARDAN | F41: Lumajang | G41: 2008-08-01 | H41: IMAM KHAMBALI | I41: L | P41: Lumajang, 10 September 2007 | Q41: 085 | R41: /MINI.L-Kid/30.02.02/S.1-2/VI/2020 | S41: 085/MINI.L-Kid/30.02.02/S.1-2/VI/2020
A42: 35 | B42: 4361 | C42: 0075656390 | D42: 1-18-05-80-162-035-6 | E42: ACHMAD SEPTIAN HAMDANI | F42: Lumajang | G42: 2007-09-10 | H42: SYAIFUL ARIS | I42: L | P42: Lumajang, 26 Juli 2007 | Q42: 086 | R42: /MINI.L-Kid/30.02.02/S.1-2/VI/2020 | S42: 086/MINI.L-Kid/30.02.02/S.1-2/VI/2020
A43: 36 | B43: 4362 | C43: 0071796138 | D43: 1-18-05-80-162-036-5 | E43: ACHMAD SULAIMAN | F43: Lumajang | G43: 2007-07-26 | H43: AGUS SULAIMAN | I43: L | P43: Lumajang, 17 Desember 2007 | Q43: 087 | R43: /MINI.L-Kid/30.02.02/S.1-2/VI/2020 | S43: 087/MINI.L-Kid/30.02.02/S.1-2/VI/2020
A44: 37 | B44: 4364 | C44: 0079667684 | D44: 1-18-05-80-162-037-4 | E44: AIRLANGGA DWIKA RIZQI | F44: Lumajang | G44: 2007-12-17 | H44: ERIEK ISROFIL | I44: L | P44: Lumajang, 16 Mei 2008 | Q44: 088 | R44: /MINI.L-Kid/30.02.02/S.1-2/VI/2020 | S44: 088/MINI.L-Kid/30.02.02/S.1-2/VI/2020
A45: 38 | B45: 4365 | C45: 0089321127 | D45: 1-18-05-80-162-038-3 | E45: AUFAN AZKAL ABRORI | F45: Lumajang | G45: 2008-05-16 | H45: AHMAD AJMAIN | I45: L | P45: Lumajang, 14 Agustus 2007 | Q45: 089 | R45: /MINI.L-Kid/30.02.02/S.1-2/VI/2020 | S45: 089/MINI.L-Kid/30.02.02/S.1-2/VI/2020
A46: 39 | B46: 4465 | C46: 0071776593 | D46: 1-18-05-80-162-039-2 | E46: AZZA PRISHAL DWI PUTRA | F46: Lumajang | G46: 2007-08-14 | H46: MOHAMMAD SHOLEH | I46: L | P46: Lumajang, 07 Desember 2007 | Q46: 090 | R46: /MINI.L-Kid/30.02.02/S.1-2/VI/2020 | S46: 090/MINI.L-Kid/30.02.02/S.1-2/VI/2020
A47: 40 | B47: 4368 | C47: 0074569410 | D47: 1-18-05-80-162-040-9 | E47: EKA AULIYA` PUTRI | F47: Lumajang | G47: 2007-12-07 | H47: BASHORI ALWI | I47: P | P47: Lumajang, 01 Maret 2008 | Q47: 091 | R47: /MINI.L-Kid/30.02.02/S.1-2/VI/2020 | S47: 091/MINI.L-Kid/30.02.02/S.1-2/VI/2020
A48: 41 | B48: 4341 | C48: 0083684457 | D48: 1-18-05-80-162-041-8 | E48: ERSA PUSPITA EKA ROSA LINDA | F48: Lumajang | G48: 2008-03-01 | H48: SOLIKIN | I48: P | P48: Lumajang, 26 Oktober 2007 | Q48: 092 | R48: /MINI.L-Kid/30.02.02/S.1-2/VI/2020 | S48: 092/MINI.L-Kid/30.02.02/S.1-2/VI/2020
A49: 42 | B49: 4369 | C49: 0078481731 | D49: 1-18-05-80-162-042-7 | E49: FABIYAN TRI BAKTI OKTAFIAN | F49: Lumajang | G49: 2007-10-26 | H49: FADLOLI | I49: L | P49: Lumajang, 24 April 2007 | Q49: 093 | R49: /MINI.L-Kid/30.02.02/S.1-2/VI/2020 | S49: 093/MINI.L-Kid/30.02.02/S.1-2/VI/2020
A50: 43 | B50: 4343 | C50: 3075965396 | D50: 1-18-05-80-162-043-6 | E50: FELISITA APRILIA NUR NIHAYA | F50: Lumajang | G50: 2007-04-24 | H50: EDI SISWANTO | I50: P | P50: Lumajang, 23 November 2007 | Q50: 094 | R50: /MINI.L-Kid/30.02.02/S.1-2/VI/2020 | S50: 094/MINI.L-Kid/30.02.02/S.1-2/VI/2020
A51: 44 | B51: 4344 | C51: 3078948093 | D51: 1-18-05-80-162-044-5 | E51: FIRDA DWI ANDRIANI | F51: Lumajang | G51: 2007-11-23 | H51: MISNATUN | I51: P | P51: Lumajang, 09 Januari 2008 | Q51: 095 | R51: /MINI.L-Kid/30.02.02/S.1-2/VI/2020 | S51: 095/MINI.L-Kid/30.02.02/S.1-2/VI/2020
A52: 45 | B52: 4372 | C52: 0087636520 | D52: 1-18-05-80-162-045-4 | E52: GILANG AKBAR PRASETYO | F52: Lumajang | G52: 2008-01-09 | H52: AINUN AZIZAH | I52: L | P52: Lumajang, 07 April 2008 | Q52: 096 | R52: /MINI.L-Kid/30.02.02/S.1-2/VI/2020 | S52: 096/MINI.L-Kid/30.02.02/S.1-2/VI/2020
A53: 46 | B53: 4373 | C53: 0087373224 | D53: 1-18-05-80-162-046-3 | E53: IFTAH IZZAH EMILIA MAHMUD | F53: Lumajang | G53: 2008-04-07 | H53: AMAR MAKHMUD | I53: P | P53: Lumajang, 04 April 2008 | Q53: 097 | R53: /MINI.L-Kid/30.02.02/S.1-2/VI/2020 | S53: 097/MINI.L-Kid/30.02.02/S.1-2/VI/2020
A54: 47 | B54: 4441 | C54: 0081758949 | D54: 1-18-05-80-162-047-2 | E54: INES ARIFANI MAULINA | F54: Lumajang | G54: 2008-04-04 | H54: MOHAMAD BADRI | I54: P | P54: Lumajang, 10 Agustus 2007 | Q54: 098 | R54: /MINI.L-Kid/30.02.02/S.1-2/VI/2020 | S54: 098/MINI.L-Kid/30.02.02/S.1-2/VI/2020
A55: 48 | B55: 4374 | C55: 0073409469 | D55: 1-18-05-80-162-048-9 | E55: IYAAD AFLAKHA RAMZII | F55: Lumajang | G55: 2007-08-10 | H55: ATHO'ILLAH | I55: L | P55: Lumajang, 11 Juli 2006 | Q55: 099 | R55: /MINI.L-Kid/30.02.02/S.1-2/VI/2020 | S55: 099/MINI.L-Kid/30.02.02/S.1-2/VI/2020
A56: 49 | B56: 4305 | C56: 0068258891 | D56: 1-18-05-80-162-049-8 | E56: JULI ANDRIYANTO | F56: Lumajang | G56: 2006-07-11 | H56: SIAMAN | I56: L | P56: Lumajang, 03 Februari 2007 | Q56: 100 | R56: /MINI.L-Kid/30.02.02/S.1-2/VI/2020 | S56: 100/MINI.L-Kid/30.02.02/S.1-2/VI/2020
A57: 50 | B57: 4347 | C57: 0076367763 | D57: 1-18-05-80-162-050-7 | E57: LIYA FEBRIYANI | F57: Lumajang | G57: 2007-02-03 | H57: MALIK | I57: P | P57: Lumajang, 22 April 2008 | Q57: 101 | R57: /MINI.L-Kid/30.02.02/S.1-2/VI/2020 | S57: 101/MINI.L-Kid/30.02.02/S.1-2/VI/2020
A58: 51 | B58: 4348 | C58: 0083034332 | D58: 1-18-05-80-162-051-6 | E58: LIZATUL CHAIYUNI | F58: Lumajang | G58: 2008-04-22 | H58: MUCHAMAD BAHRUJI | I58: P | P58: Kayu Besar, 17 Maret 2009 | Q58: 102 | R58: /MINI.L-Kid/30.02.02/S.1-2/VI/2020 | S58: 102/MINI.L-Kid/30.02.02/S.1-2/VI/2020
A59: 52 | B59: 4531 | C59: 3099539154 | D59: 1-18-05-80-162-052-5 | E59: M. ALHAFIS | F59: Kayu Besar | G59: 2009-03-17 | H59: RAMLI | I59: L | P59: Lumajang, 25 November 2007 | Q59: 103 | R59: /MINI.L-Kid/30.02.02/S.1-2/VI/2020 | S59: 103/MINI.L-Kid/30.02.02/S.1-2/VI/2020
A60: 53 | B60: 4530 | C60: 0077015789 | D60: 1-18-05-80-162-053-4 | E60: MUHAMMAD RIZKI RIDWAN | F60: Lumajang | G60: 2007-11-25 | H60: MOCH. SYAIKHU RIFA'I | I60: L | P60: Lumajang, 28 Juli 2007 | Q60: 104 | R60: /MINI.L-Kid/30.02.02/S.1-2/VI/2020 | S60: 104/MINI.L-Kid/30.02.02/S.1-2/VI/2020
A61: 54 | B61: 4351 | C61: 0076361559 | D61: 1-18-05-80-162-054-3 | E61: MOCHAMAD RAFLI DIAN SAPUTRA | F61: Lumajang | G61: 2007-07-28 | H61: SAMSUL ARIFIN | I61: L | P61: Lumajang, 10 Oktober 2007 | Q61: 105 | R61: /MINI.L-Kid/30.02.02/S.1-2/VI/2020 | S61: 105/MINI.L-Kid/30.02.02/S.1-2/VI/2020
A62: 55 | B62: 4352 | C62: 0075591405 | D62: 1-18-05-80-162-055-2 | E62: MOCHAMMAD AFAREL PUTRA RAMDHANA | F62: Lumajang | G62: 2007-10-10 | H62: MOCH MISKI | I62: L | P62: Lumajang, 10 Maret 2007 | Q62: 106 | R62: /MINI.L-Kid/30.02.02/S.1-2/VI/2020 | S62: 106/MINI.L-Kid/30.02.02/S.1-2/VI/2020
A63: 56 | B63: 4355 | C63: 0075363258 | D63: 1-18-05-80-162-056-9 | E63: MUHAMAD JEFRI MAULANA | F63: Lumajang | G63: 2007-03-10 | H63: RODEK SUGIANTORO | I63: L | P63: Lumajang, 11 Juli 2007 | Q63: 107 | R63: /MINI.L-Kid/30.02.02/S.1-2/VI/2020 | S63: 107/MINI.L-Kid/30.02.02/S.1-2/VI/2020
A64: 57 | B64: 4376 | C64: 0072066741 | D64: 1-18-05-80-162-057-8 | E64: MUHAMMAD DWI WILDAN BAGUS KURNIAWAN | F64: Lumajang | G64: 2007-07-11 | H64: MOCH SAREH | I64: L | P64: Lumajang, 01 Agustus 2007 | Q64: 108 | S64: 108
A65: 58 | B65: 4377 | C65: 0071459044 | D65: 1-18-05-80-162-058-7 | E65: MUHAMMAD FARIL FIRMANSYA | F65: Lumajang | G65: 2007-08-01 | H65: ANDIK SUHARTONO | I65: L | P65: Lumajang, 05 September 2007 | Q65: 109 | S65: 109
A66: 59 | B66: 4349 | C66: 0074206034 | D66: 1-18-05-80-162-059-6 | E66: MUHAMMAD FARIZ UBAIDILLA | F66: Lumajang | G66: 2007-09-05 | H66: MUHAMMAD HERI PRIBADI | I66: L | P66: Lumajang, 28 November 2007 | Q66: 110 | S66: 110
A67: 60 | B67: 4356 | C67: 0077937892 | D67: 1-18-05-80-162-060-5 | E67: MUHAMMAD MAULANA ZIDANIL ILMI | F67: Lumajang | G67: 2007-11-28 | H67: ABDUL ROZAQ | I67: L | P67: Lumajang, 15 Juli 2007 | Q67: 111 | S67: 111
A68: 61 | B68: 4357 | C68: 0078608527 | D68: 1-18-05-80-162-061-4 | E68: MUHAMMAD SUTRISNO ISMAIL | F68: Lumajang | G68: 2007-07-15 | H68: GATOT ISMAIL | I68: L | P68: Lumajang, 10 November 2007 | Q68: 112 | S68: 112
A69: 62 | B69: 4381 | C69: 0072209435 | D69: 1-18-05-80-162-062-3 | E69: NOVITA ERNIAWAN | F69: Lumajang | G69: 2007-11-10 | H69: SABAR SETIAWAN | I69: P | P69: Lumajang, 07 Agustus 2007 | Q69: 113 | S69: 113
A70: 63 | B70: 4383 | C70: 0077439834 | D70: 1-18-05-80-162-063-2 | E70: PUTRI AULIA DWI AGUSTIN | F70: Lumajang | G70: 2007-08-07 | H70: SAHURI | I70: P | P70: Lumajang, 26 Juli 2007 | Q70: 114 | S70: 114
A71: 64 | B71: 4385 | C71: 0073137310 | D71: 1-18-05-80-162-064-9 | E71: STANY RAFIDAH RAHMANIA | F71: Lumajang | G71: 2007-07-26 | H71: SUNARIADI | I71: P | P71: Lumajang, 17 Juli 2007 | Q71: 115 | S71: 115
A72: 65 | B72: 4387 | C72: 0077336427 | D72: 1-18-05-80-162-065-8 | E72: USWATUN KHASANAH | F72: Lumajang | G72: 2007-07-17 | H72: SATUKAN | I72: P | P72: =F73&", "&TEXT(G73,"[$-id-ID]dd mmmm yyyy") -> Lumajang, 19 April 2007 | Q72: 116 | S72: =Q72&R72 -> 116
A73: 66 | B73: 4389 | C73: 0078407631 | D73: 1-18-05-80-162-066-7 | E73: VIKROUL KHAMILA | F73: Lumajang | G73: 2007-04-19 | H73: AKHMADIYONO | I73: P | P73: , 00 Januari 1900 | Q73: 117 | S73: 117
A74: 67 | P74: , 00 Januari 1900 | Q74: 118 | S74: 118
A75: 68 | P75: , 00 Januari 1900 | Q75: 119 | S75: 119
A76: 69 | P76: , 00 Januari 1900 | Q76: 120 | S76: 120
A77: 70 | P77: , 00 Januari 1900 | Q77: 121 | S77: 121
A78: 71 | P78: , 00 Januari 1900 | Q78: 122 | S78: 122
A79: 72 | P79: , 00 Januari 1900 | Q79: 123 | S79: 123
A80: 73 | P80: , 00 Januari 1900 | Q80: 124 | S80: 124
A81: 74 | P81: , 00 Januari 1900 | Q81: 125 | S81: 125
A82: 75 | P82: , 00 Januari 1900 | Q82: 126 | S82: 126
A83: 76 | P83: , 00 Januari 1900 | Q83: 127 | S83: 127
A84: 77 | P84: , 00 Januari 1900 | Q84: 128 | S84: 128
A85: 78 | P85: , 00 Januari 1900 | Q85: 129 | S85: 129
A86: 79 | P86: , 00 Januari 1900 | Q86: 130 | S86: 130
A87: 80 | P87: , 00 Januari 1900 | Q87: 131 | S87: 131
A88: 81 | P88: , 00 Januari 1900 | Q88: 132 | S88: 132
A89: 82 | P89: , 00 Januari 1900 | Q89: 133 | S89: 133
A90: 83 | P90: , 00 Januari 1900 | Q90: 134 | S90: 134
A91: 84 | P91: , 00 Januari 1900 | Q91: 135 | S91: 135
A92: 85 | P92: , 00 Januari 1900 | Q92: 136 | S92: 136
A93: 86 | P93: , 00 Januari 1900 | Q93: 137 | S93: 137
A94: 87 | P94: , 00 Januari 1900 | Q94: 138 | S94: 138
A95: 88 | P95: , 00 Januari 1900 | Q95: 139 | S95: 139
A96: 89 | P96: , 00 Januari 1900 | Q96: 140 | S96: 140
A97: 90 | P97: , 00 Januari 1900 | Q97: 141 | S97: 141
A98: 91 | P98: , 00 Januari 1900 | Q98: 142 | S98: 142
A99: 92 | P99: , 00 Januari 1900 | Q99: 143 | S99: 143
A100: 93 | P100: , 00 Januari 1900 | Q100: 144 | S100: 144
A101: 94 | P101: , 00 Januari 1900 | Q101: 145 | S101: 145
A102: 95 | P102: , 00 Januari 1900 | Q102: 146 | S102: 146
A103: 96 | P103: , 00 Januari 1900 | Q103: 147 | S103: 147
A104: 97 | P104: , 00 Januari 1900 | Q104: 148 | S104: 148
A105: 98 | P105: , 00 Januari 1900 | Q105: 149 | S105: 149
A106: 99 | P106: , 00 Januari 1900 | Q106: 150 | S106: 150
A107: 100 | P107: , 00 Januari 1900 | Q107: 151 | S107: 151
A108: 101 | P108: , 00 Januari 1900 | Q108: 152 | S108: 152
A109: 102 | P109: , 00 Januari 1900 | Q109: 153 | S109: 153
A110: 103 | P110: , 00 Januari 1900 | Q110: 154 | S110: 154
A111: 104 | P111: , 00 Januari 1900 | Q111: 155 | S111: 155
A112: 105 | P112: , 00 Januari 1900 | Q112: 156 | S112: 156
A113: 106 | P113: , 00 Januari 1900 | Q113: 157 | S113: 157
A114: 107 | P114: , 00 Januari 1900 | Q114: 158 | S114: 158
A115: 108 | P115: , 00 Januari 1900 | Q115: 159 | S115: 159
A116: 109 | P116: , 00 Januari 1900 | Q116: 160 | S116: 160
A117: 110 | P117: , 00 Januari 1900 | Q117: 161 | S117: 161
A118: 111 | P118: , 00 Januari 1900 | Q118: 162 | S118: 162
A119: 112 | P119: , 00 Januari 1900 | Q119: 163 | S119: 163
A120: 113 | P120: , 00 Januari 1900 | Q120: 164 | S120: 164
A121: 114 | P121: , 00 Januari 1900 | Q121: 165 | S121: 165
A122: 115 | P122: , 00 Januari 1900 | Q122: 166 | S122: 166
A123: 116 | P123: , 00 Januari 1900 | Q123: 167 | S123: 167
A124: 117 | P124: , 00 Januari 1900 | Q124: 168 | S124: 168
A125: 118 | P125: , 00 Januari 1900 | Q125: 169 | S125: 169
A126: 119 | P126: , 00 Januari 1900 | Q126: 170 | S126: 170
A127: 120 | P127: , 00 Januari 1900 | Q127: 171 | S127: 171
A128: 121 | P128: , 00 Januari 1900 | Q128: 172 | S128: 172
A129: 122 | P129: , 00 Januari 1900 | Q129: 173 | S129: 173
A130: 123 | P130: , 00 Januari 1900 | Q130: 174 | S130: 174
A131: 124 | P131: , 00 Januari 1900 | Q131: 175 | S131: 175
A132: 125 | P132: , 00 Januari 1900 | Q132: 176 | S132: 176
A133: 126 | P133: , 00 Januari 1900 | Q133: 177 | S133: 177
A134: 127 | P134: , 00 Januari 1900 | Q134: 178 | S134: 178
A135: 128 | P135: , 00 Januari 1900 | Q135: 179 | S135: 179
A136: 129 | P136: =F137&", "&TEXT(G137,"[$-id-ID]dd mmmm yyyy") -> , 00 Januari 1900 | Q136: 180 | S136: =Q136&R136 -> 180
A137: 130 | P137: , 00 Januari 1900 | Q137: 181 | S137: 181
A138: 131 | P138: , 00 Januari 1900 | Q138: 182 | S138: 182
A139: 132 | P139: , 00 Januari 1900 | Q139: 183 | S139: 183
A140: 133 | P140: , 00 Januari 1900 | Q140: 184 | S140: 184
A141: 134 | P141: , 00 Januari 1900 | Q141: 185 | S141: 185
A142: 135 | P142: , 00 Januari 1900 | Q142: 186 | S142: 186
A143: 136 | P143: , 00 Januari 1900 | Q143: 187 | S143: 187
A144: 137 | P144: , 00 Januari 1900 | Q144: 188 | S144: 188
A145: 138 | P145: , 00 Januari 1900 | Q145: 189 | S145: 189
A146: 139 | P146: , 00 Januari 1900 | Q146: 190 | S146: 190
A147: 140 | P147: , 00 Januari 1900 | Q147: 191 | S147: 191
A148: 141 | P148: , 00 Januari 1900 | Q148: 192 | S148: 192
A149: 142 | P149: , 00 Januari 1900 | Q149: 193 | S149: 193
A150: 143 | P150: , 00 Januari 1900 | Q150: 194 | S150: 194
A151: 144 | P151: , 00 Januari 1900 | Q151: 195 | S151: 195
A152: 145 | P152: , 00 Januari 1900 | Q152: 196 | S152: 196
A153: 146 | P153: , 00 Januari 1900 | Q153: 197 | S153: 197
A154: 147 | P154: , 00 Januari 1900 | Q154: 198 | S154: 198
A155: 148 | P155: , 00 Januari 1900 | Q155: 199 | S155: 199
A156: 149 | P156: , 00 Januari 1900 | Q156: 200 | S156: 200
A157: 150 | P157: , 00 Januari 1900 | Q157: 201 | S157: 201
A158: 151 | P158: , 00 Januari 1900 | Q158: 202 | S158: 202
A159: 152 | P159: , 00 Januari 1900 | Q159: 203 | S159: 203
A160: 153 | P160: , 00 Januari 1900 | Q160: 204 | S160: 204
A161: 154 | P161: , 00 Januari 1900 | Q161: 205 | S161: 205
A162: 155 | P162: , 00 Januari 1900 | Q162: 206 | S162: 206
A163: 156 | P163: , 00 Januari 1900 | Q163: 207 | S163: 207
A164: 157 | P164: , 00 Januari 1900 | Q164: 208 | S164: 208
A165: 158 | P165: , 00 Januari 1900 | Q165: 209 | S165: 209
A166: 159 | P166: , 00 Januari 1900 | Q166: 210 | S166: 210
A167: 160 | P167: , 00 Januari 1900 | Q167: 211 | S167: 211
A168: 161 | P168: , 00 Januari 1900 | Q168: 212 | S168: 212
A169: 162 | P169: , 00 Januari 1900 | Q169: 213 | S169: 213
A170: 163 | P170: , 00 Januari 1900 | Q170: 214 | S170: 214
A171: 164 | P171: , 00 Januari 1900 | Q171: 215 | S171: 215
A172: 165 | P172: , 00 Januari 1900 | Q172: 216 | S172: 216
A173: 166 | P173: , 00 Januari 1900 | Q173: 217 | S173: 217
A174: 167 | P174: , 00 Januari 1900 | Q174: 218 | S174: 218
A175: 168 | P175: , 00 Januari 1900 | Q175: 219 | S175: 219
A176: 169 | P176: , 00 Januari 1900 | Q176: 220 | S176: 220
A177: 170 | P177: , 00 Januari 1900 | Q177: 221 | S177: 221
A178: 171 | P178: , 00 Januari 1900 | Q178: 222 | S178: 222
A179: 172 | P179: , 00 Januari 1900 | Q179: 223 | S179: 223
A180: 173 | P180: , 00 Januari 1900 | Q180: 224 | S180: 224
A181: 174 | P181: , 00 Januari 1900 | Q181: 225 | S181: 225
A182: 175 | P182: , 00 Januari 1900 | Q182: 226 | S182: 226
A183: 176 | P183: , 00 Januari 1900 | Q183: 227 | S183: 227
A184: 177 | P184: , 00 Januari 1900 | Q184: 228 | S184: 228
A185: 178 | P185: , 00 Januari 1900 | Q185: 229 | S185: 229
A186: 179 | P186: , 00 Januari 1900 | Q186: 230 | S186: 230
A187: 180 | P187: , 00 Januari 1900 | Q187: 231 | S187: 231
A188: 181 | P188: , 00 Januari 1900 | Q188: 232 | S188: 232
A189: 182 | P189: , 00 Januari 1900 | Q189: 233 | S189: 233
A190: 183 | P190: , 00 Januari 1900 | Q190: 234 | S190: 234
A191: 184 | P191: , 00 Januari 1900 | Q191: 235 | S191: 235
A192: 185 | P192: , 00 Januari 1900 | Q192: 236 | S192: 236
A193: 186 | P193: , 00 Januari 1900 | Q193: 237 | S193: 237
A194: 187 | P194: , 00 Januari 1900 | Q194: 238 | S194: 238
A195: 188 | P195: , 00 Januari 1900 | Q195: 239 | S195: 239
A196: 189 | P196: , 00 Januari 1900 | Q196: 240 | S196: 240
A197: 190 | P197: , 00 Januari 1900 | Q197: 241 | S197: 241
A198: 191 | P198: , 00 Januari 1900 | Q198: 242 | S198: 242
A199: 192 | P199: , 00 Januari 1900 | Q199: 243 | S199: 243
A200: 193 | P200: =F201&", "&TEXT(G201,"[$-id-ID]dd mmmm yyyy") -> , 00 Januari 1900 | Q200: 244 | S200: =Q200&R200 -> 244
A201: 194 | P201: , 00 Januari 1900 | Q201: 245 | S201: 245
A202: 195 | P202: , 00 Januari 1900 | Q202: 246 | S202: 246
A203: 196 | P203: , 00 Januari 1900 | Q203: 247 | S203: 247
A204: 197 | P204: , 00 Januari 1900 | Q204: 248 | S204: 248
... 3 more rows

Sheet AH
A1: DAFTAR NILAI AKHIR SEKOLAH
A2: =AA!A2 -> MADRASAH IBTIDAIYAH NURUL ISLAM LABRUK KIDUL
A3: =AA!A3 -> TAHUN PELAJARAN 2019/2020
A5: NO | B5: No Induk | C5: NISN | D5: Nomor Peserta | E5: Nama Peserta | F5: ALQURAN HADITS | O5: rata-rata UAM & PRAKTEK
F6: Nilai Semester | K6: Rata- 2 | L6: NILAI UAMBD | P6: UAMNU
F7: 7 | G7: 8 | H7: 9 | I7: 10 | J7: 11 | K7: Rapor | L7: TULIS | M7: PRAKTIK | P7: TULIS
A8: 1 | B8: =IF(SISWA!B8=0,"",SISWA!B8) -> 4331 | C8: =IF(SISWA!C8=0,"",SISWA!C8) -> 0078140536 | D8: =IF(SISWA!D8=0,"",SISWA!D8) -> 1-18-05-80-162-001-8 | E8: =IF(SISWA!E8=0,"",SISWA!E8) -> ACHMAD FATHIR IZUDDIN | G8: 85 | H8: 83 | I8: 89 | J8: 83 | K8: =AVERAGE(F8:J8) -> 85 | L8: 80 | M8: =K8 -> 85 | N8: =AVERAGE(L8:M8) -> 82.5 | O8: =AVERAGE(L8:M8) -> 82.5 | P8: 82.5
A9: 2 | B9: =IF(SISWA!B9=0,"",SISWA!B9) -> 4333 | C9: =IF(SISWA!C9=0,"",SISWA!C9) -> 0084691896 | D9: =IF(SISWA!D9=0,"",SISWA!D9) -> 1-18-05-80-162-002-7 | E9: =IF(SISWA!E9=0,"",SISWA!E9) -> AININ NAFISA FEBRIYANTI | G9: 85 | H9: 80 | I9: 90 | J9: 92 | K9: =AVERAGE(F9:J9) -> 86.75 | L9: 82.5 | M9: =K9 -> 86.75 | N9: =AVERAGE(L9:M9) -> 84.625 | O9: =AVERAGE(L9:M9) -> 84.625 | P9: 84.625
A10: 3 | B10: =IF(SISWA!B10=0,"",SISWA!B10) -> 4334 | C10: =IF(SISWA!C10=0,"",SISWA!C10) -> 0075488897 | D10: =IF(SISWA!D10=0,"",SISWA!D10) -> 1-18-05-80-162-003-6 | E10: =IF(SISWA!E10=0,"",SISWA!E10) -> AISYAH DWI ANDINI | G10: 81 | H10: 88 | I10: 91 | J10: 90 | K10: 87.5 | L10: 77.5 | M10: 87.5 | N10: 82.5 | O10: 82.5 | P10: 82.5
A11: 4 | B11: =IF(SISWA!B11=0,"",SISWA!B11) -> 4335 | C11: =IF(SISWA!C11=0,"",SISWA!C11) -> 0077554289 | D11: =IF(SISWA!D11=0,"",SISWA!D11) -> 1-18-05-80-162-004-5 | E11: =IF(SISWA!E11=0,"",SISWA!E11) -> AJENG AGUSTINA KIRANA PUTRI | G11: 85 | H11: 83 | I11: 93 | J11: 90 | K11: 87.75 | L11: 60 | M11: 87.75 | N11: 73.875 | O11: 73.875 | P11: 73.875
A12: 5 | B12: =IF(SISWA!B12=0,"",SISWA!B12) -> 4336 | C12: =IF(SISWA!C12=0,"",SISWA!C12) -> 0078831956 | D12: =IF(SISWA!D12=0,"",SISWA!D12) -> 1-18-05-80-162-005-4 | E12: =IF(SISWA!E12=0,"",SISWA!E12) -> ALVIAN FAIZULHAQQI | G12: 85 | H12: 79 | I12: 89 | J12: 82 | K12: 83.75 | L12: 60 | M12: 83.75 | N12: 71.875 | O12: 71.875 | P12: 71.875
A13: 6 | B13: =IF(SISWA!B13=0,"",SISWA!B13) -> 4337 | C13: =IF(SISWA!C13=0,"",SISWA!C13) -> 0073667130 | D13: =IF(SISWA!D13=0,"",SISWA!D13) -> 1-18-05-80-162-006-3 | E13: =IF(SISWA!E13=0,"",SISWA!E13) -> ANGGITA RIZKY YUGA MEISYA | G13: 80 | H13: 86 | I13: 91 | J13: 88 | K13: 86.25 | L13: 60 | M13: 86.25 | N13: 73.125 | O13: 73.125 | P13: 73.125
A14: 7 | B14: =IF(SISWA!B14=0,"",SISWA!B14) -> 4338 | C14: =IF(SISWA!C14=0,"",SISWA!C14) -> 0074492973 | D14: =IF(SISWA!D14=0,"",SISWA!D14) -> 1-18-05-80-162-007-2 | E14: =IF(SISWA!E14=0,"",SISWA!E14) -> AURA SALSABILA WULAN SARI | G14: 85 | H14: 80 | I14: 89 | J14: 89 | K14: 85.75 | L14: 60 | M14: 85.75 | N14: 72.875 | O14: 72.875 | P14: 72.875
A15: 8 | B15: =IF(SISWA!B15=0,"",SISWA!B15) -> 4366 | C15: =IF(SISWA!C15=0,"",SISWA!C15) -> 0078989673 | D15: =IF(SISWA!D15=0,"",SISWA!D15) -> 1-18-05-80-162-008-9 | E15: =IF(SISWA!E15=0,"",SISWA!E15) -> BALQIS NAILA AUDIA | G15: 85 | H15: 94 | I15: 95 | J15: 92 | K15: 91.5 | L15: 77.5 | M15: 91.5 | N15: 84.5 | O15: 84.5 | P15: 84.5
A16: 9 | B16: =IF(SISWA!B16=0,"",SISWA!B16) -> 4440 | C16: =IF(SISWA!C16=0,"",SISWA!C16) -> 0082763386 | D16: =IF(SISWA!D16=0,"",SISWA!D16) -> 1-18-05-80-162-009-8 | E16: =IF(SISWA!E16=0,"",SISWA!E16) -> BIMA ARYO SUSILO | G16: 80 | H16: 84 | I16: 86 | J16: 96 | K16: 86.5 | L16: 60 | M16: 86.5 | N16: 73.25 | O16: 73.25 | P16: 73.25
A17: 10 | B17: =IF(SISWA!B17=0,"",SISWA!B17) -> 4367 | C17: =IF(SISWA!C17=0,"",SISWA!C17) -> 0078400392 | D17: =IF(SISWA!D17=0,"",SISWA!D17) -> 1-18-05-80-162-010-7 | E17: =IF(SISWA!E17=0,"",SISWA!E17) -> BIMA SATRIA DIRGANTARA | G17: 84 | H17: 79 | I17: 89 | J17: 88 | K17: 85 | L17: 60 | M17: 85 | N17: 72.5 | O17: 72.5 | P17: 72.5
A18: 11 | B18: =IF(SISWA!B18=0,"",SISWA!B18) -> 4339 | C18: =IF(SISWA!C18=0,"",SISWA!C18) -> 0086652599 | D18: =IF(SISWA!D18=0,"",SISWA!D18) -> 1-18-05-80-162-011-6 | E18: =IF(SISWA!E18=0,"",SISWA!E18) -> DEVI KARUNIA RATNA PUTRI | G18: 85 | H18: 82 | I18: 92 | J18: 88 | K18: 86.75 | L18: 72.5 | M18: 86.75 | N18: 79.625 | O18: 79.625 | P18: 79.625
A19: 12 | B19: =IF(SISWA!B19=0,"",SISWA!B19) -> 4340 | C19: =IF(SISWA!C19=0,"",SISWA!C19) -> 0089906682 | D19: =IF(SISWA!D19=0,"",SISWA!D19) -> 1-18-05-80-162-012-5 | E19: =IF(SISWA!E19=0,"",SISWA!E19) -> DEVITA FEBRIANI PUTRI | G19: 80 | H19: 89 | I19: 91 | J19: 90 | K19: 87.5 | L19: 60 | M19: 87.5 | N19: 73.75 | O19: 73.75 | P19: 73.75
A20: 13 | B20: =IF(SISWA!B20=0,"",SISWA!B20) -> 4370 | C20: =IF(SISWA!C20=0,"",SISWA!C20) -> 0074514146 | D20: =IF(SISWA!D20=0,"",SISWA!D20) -> 1-18-05-80-162-013-4 | E20: =IF(SISWA!E20=0,"",SISWA!E20) -> FAKHIS GABRIL LIA | G20: 81 | H20: 89 | I20: 90 | J20: 94 | K20: 88.5 | L20: 72.5 | M20: 88.5 | N20: 80.5 | O20: 80.5 | P20: 80.5
A21: 14 | B21: =IF(SISWA!B21=0,"",SISWA!B21) -> 4342 | C21: =IF(SISWA!C21=0,"",SISWA!C21) -> 0081081672 | D21: =IF(SISWA!D21=0,"",SISWA!D21) -> 1-18-05-80-162-014-3 | E21: =IF(SISWA!E21=0,"",SISWA!E21) -> FARAH NAILATUL ALYAH | G21: 90 | H21: 90 | I21: 94 | J21: 99 | K21: 93.25 | L21: 72.5 | M21: 93.25 | N21: 82.875 | O21: 82.875 | P21: 82.875
A22: 15 | B22: =IF(SISWA!B22=0,"",SISWA!B22) -> 4345 | C22: =IF(SISWA!C22=0,"",SISWA!C22) -> 0073420487 | D22: =IF(SISWA!D22=0,"",SISWA!D22) -> 1-18-05-80-162-015-2 | E22: =IF(SISWA!E22=0,"",SISWA!E22) -> GALANG MARDHOTILLAH SATOTO | G22: 84 | H22: 80 | I22: 84 | J22: 87 | K22: 83.75 | L22: 60 | M22: 83.75 | N22: 71.875 | O22: 71.875 | P22: 71.875
A23: 16 | B23: =IF(SISWA!B23=0,"",SISWA!B23) -> 4371 | C23: =IF(SISWA!C23=0,"",SISWA!C23) -> 0079870082 | D23: =IF(SISWA!D23=0,"",SISWA!D23) -> 1-18-05-80-162-016-9 | E23: =IF(SISWA!E23=0,"",SISWA!E23) -> GALIH FAREL PRASTYO | G23: 85 | H23: 83 | I23: 84 | J23: 94 | K23: 86.5 | L23: 60 | M23: 86.5 | N23: 73.25 | O23: 73.25 | P23: 73.25
A24: 17 | B24: =IF(SISWA!B24=0,"",SISWA!B24) -> 4466 | C24: =IF(SISWA!C24=0,"",SISWA!C24) -> 0081629504 | D24: =IF(SISWA!D24=0,"",SISWA!D24) -> 1-18-05-80-162-017-8 | E24: =IF(SISWA!E24=0,"",SISWA!E24) -> HIBATULLAH MUSTAGHFIRY RUSLI | G24: 83 | H24: 83 | I24: 91 | J24: 82 | K24: 84.75 | L24: 60 | M24: 84.75 | N24: 72.375 | O24: 72.375 | P24: 72.375
A25: 18 | B25: =IF(SISWA!B25=0,"",SISWA!B25) -> 4346 | C25: =IF(SISWA!C25=0,"",SISWA!C25) -> 0073608418 | D25: =IF(SISWA!D25=0,"",SISWA!D25) -> 1-18-05-80-162-018-7 | E25: =IF(SISWA!E25=0,"",SISWA!E25) -> IKA KURNIA WATI AGUSTINA | G25: 81 | H25: 79 | I25: 93 | J25: 88 | K25: 85.25 | L25: 60 | M25: 85.25 | N25: 72.625 | O25: 72.625 | P25: 72.625
A26: 19 | B26: =IF(SISWA!B26=0,"",SISWA!B26) -> 4350 | C26: =IF(SISWA!C26=0,"",SISWA!C26) -> 0072658586 | D26: =IF(SISWA!D26=0,"",SISWA!D26) -> 1-18-05-80-162-019-6 | E26: =IF(SISWA!E26=0,"",SISWA!E26) -> MAYLUNA EKA PRATIWI | G26: 91 | H26: 90 | I26: 93 | J26: 94 | K26: 92 | L26: 60 | M26: 92 | N26: 76 | O26: 76 | P26: 76
A27: 20 | B27: =IF(SISWA!B27=0,"",SISWA!B27) -> 4353 | C27: =IF(SISWA!C27=0,"",SISWA!C27) -> 0075464137 | D27: =IF(SISWA!D27=0,"",SISWA!D27) -> 1-18-05-80-162-020-5 | E27: =IF(SISWA!E27=0,"",SISWA!E27) -> MOHAMAD DWIMAS FIRDAUS | G27: 83 | H27: 87 | I27: 86 | J27: 90 | K27: 86.5 | L27: 60 | M27: 86.5 | N27: 73.25 | O27: 73.25 | P27: 73.25
A28: 21 | B28: =IF(SISWA!B28=0,"",SISWA!B28) -> 4375 | C28: =IF(SISWA!C28=0,"",SISWA!C28) -> 0075096831 | D28: =IF(SISWA!D28=0,"",SISWA!D28) -> 1-18-05-80-162-021-4 | E28: =IF(SISWA!E28=0,"",SISWA!E28) -> MUHAMMAD AFFAN ABI SYAHPUTRA | G28: 81 | H28: 83 | I28: 86 | J28: 88 | K28: 84.5 | L28: 60 | M28: 84.5 | N28: 72.25 | O28: 72.25 | P28: 72.25
A29: 22 | B29: =IF(SISWA!B29=0,"",SISWA!B29) -> 4354 | C29: =IF(SISWA!C29=0,"",SISWA!C29) -> 0075055640 | D29: =IF(SISWA!D29=0,"",SISWA!D29) -> 1-18-05-80-162-022-3 | E29: =IF(SISWA!E29=0,"",SISWA!E29) -> MUHAMMAD ALVIN RIDHO | G29: 74 | H29: 83 | I29: 88 | J29: 88 | K29: 83.25 | L29: 77.5 | M29: 83.25 | N29: 80.375 | O29: 80.375 | P29: 80.375
A30: 23 | B30: =IF(SISWA!B30=0,"",SISWA!B30) -> 4378 | C30: =IF(SISWA!C30=0,"",SISWA!C30) -> 0074268893 | D30: =IF(SISWA!D30=0,"",SISWA!D30) -> 1-18-05-80-162-023-2 | E30: =IF(SISWA!E30=0,"",SISWA!E30) -> MUKHAMAD DAVID ARIF FIRDAUS | G30: 86 | H30: 90 | I30: 90 | J30: 87 | K30: 88.25 | L30: 72.5 | M30: 88.25 | N30: 80.375 | O30: 80.375 | P30: 80.375
A31: 24 | B31: =IF(SISWA!B31=0,"",SISWA!B31) -> 4379 | C31: =IF(SISWA!C31=0,"",SISWA!C31) -> 0072757203 | D31: =IF(SISWA!D31=0,"",SISWA!D31) -> 1-18-05-80-162-024-9 | E31: =IF(SISWA!E31=0,"",SISWA!E31) -> NAORA ISQI AINAYYA | G31: 98 | H31: 91 | I31: 94 | J31: 88 | K31: 92.75 | L31: 85 | M31: 92.75 | N31: 88.875 | O31: 88.875 | P31: 88.875
A32: 25 | B32: =IF(SISWA!B32=0,"",SISWA!B32) -> 4380 | C32: =IF(SISWA!C32=0,"",SISWA!C32) -> 0079026285 | D32: =IF(SISWA!D32=0,"",SISWA!D32) -> 1-18-05-80-162-025-8 | E32: =IF(SISWA!E32=0,"",SISWA!E32) -> NAZRA ISLAMAY PASHA | G32: 83 | H32: 83 | I32: 89 | J32: 96 | K32: 87.75 | L32: 80 | M32: 87.75 | N32: 83.875 | O32: 83.875 | P32: 83.875
A33: 26 | B33: =IF(SISWA!B33=0,"",SISWA!B33) -> 4382 | C33: =IF(SISWA!C33=0,"",SISWA!C33) -> 0079872151 | D33: =IF(SISWA!D33=0,"",SISWA!D33) -> 1-18-05-80-162-026-7 | E33: =IF(SISWA!E33=0,"",SISWA!E33) -> NUR ALYA NABILA | G33: 86 | H33: 81 | I33: 90 | J33: 92 | K33: 87.25 | L33: 72.5 | M33: 87.25 | N33: 79.875 | O33: 79.875 | P33: 79.875
A34: 27 | B34: =IF(SISWA!B34=0,"",SISWA!B34) -> 4358 | C34: =IF(SISWA!C34=0,"",SISWA!C34) -> 0087558837 | D34: =IF(SISWA!D34=0,"",SISWA!D34) -> 1-18-05-80-162-027-6 | E34: =IF(SISWA!E34=0,"",SISWA!E34) -> PUTRI SHOLIKHAH | G34: 85 | H34: 82 | I34: 89 | J34: 88 | K34: 86 | L34: 60 | M34: 86 | N34: 73 | O34: 73 | P34: 73
A35: 28 | B35: =IF(SISWA!B35=0,"",SISWA!B35) -> 4384 | C35: =IF(SISWA!C35=0,"",SISWA!C35) -> 0071234523 | D35: =IF(SISWA!D35=0,"",SISWA!D35) -> 1-18-05-80-162-028-5 | E35: =IF(SISWA!E35=0,"",SISWA!E35) -> RESTI FITRIANTI DWI OCTAVIANI | G35: 82 | H35: 79 | I35: 89 | J35: 87 | K35: 84.25 | L35: 60 | M35: 84.25 | N35: 72.125 | O35: 72.125 | P35: 72.125
A36: 29 | B36: =IF(SISWA!B36=0,"",SISWA!B36) -> 4359 | C36: =IF(SISWA!C36=0,"",SISWA!C36) -> 0073122181 | D36: =IF(SISWA!D36=0,"",SISWA!D36) -> 1-18-05-80-162-029-4 | E36: =IF(SISWA!E36=0,"",SISWA!E36) -> ROUDHOTUS SA'DIYAH | G36: 84 | H36: 83 | I36: 90 | J36: 92 | K36: 87.25 | L36: 60 | M36: 87.25 | N36: 73.625 | O36: 73.625 | P36: 73.625
A37: 30 | B37: =IF(SISWA!B37=0,"",SISWA!B37) -> 4386 | C37: =IF(SISWA!C37=0,"",SISWA!C37) -> 0075344352 | D37: =IF(SISWA!D37=0,"",SISWA!D37) -> 1-18-05-80-162-030-3 | E37: =IF(SISWA!E37=0,"",SISWA!E37) -> TIERSYA BETA RAMANUZAN | G37: 91 | H37: 87 | I37: 90 | J37: 89 | K37: 89.25 | L37: 90 | M37: 89.25 | N37: 89.625 | O37: 89.625 | P37: 89.625
A38: 31 | B38: =IF(SISWA!B38=0,"",SISWA!B38) -> 4388 | C38: =IF(SISWA!C38=0,"",SISWA!C38) -> 0077423646 | D38: =IF(SISWA!D38=0,"",SISWA!D38) -> 1-18-05-80-162-031-2 | E38: =IF(SISWA!E38=0,"",SISWA!E38) -> VERA MUSTIKA | G38: 80 | H38: 82 | I38: 90 | J38: 92 | K38: 86 | L38: 60 | M38: 86 | N38: 73 | O38: 73 | P38: 73
A39: 32 | B39: =IF(SISWA!B39=0,"",SISWA!B39) -> 4360 | C39: =IF(SISWA!C39=0,"",SISWA!C39) -> 0077290990 | D39: =IF(SISWA!D39=0,"",SISWA!D39) -> 1-18-05-80-162-032-9 | E39: =IF(SISWA!E39=0,"",SISWA!E39) -> ZIDNY ILMA NABILA | G39: 94 | H39: 89 | I39: 90 | J39: 99 | K39: 93 | L39: 65 | M39: 93 | N39: 79 | O39: 79 | P39: 79
A40: 33 | B40: =IF(SISWA!B40=0,"",SISWA!B40) -> 4390 | C40: =IF(SISWA!C40=0,"",SISWA!C40) -> 0077722307 | D40: =IF(SISWA!D40=0,"",SISWA!D40) -> 1-18-05-80-162-033-8 | E40: =IF(SISWA!E40=0,"",SISWA!E40) -> ZITNATUL AULIA ILLA | G40: 97 | H40: 90 | I40: 91 | J40: 99 | K40: 94.25 | L40: 80 | M40: 94.25 | N40: 87.125 | O40: 87.125 | P40: 87.125
A41: 34 | B41: =IF(SISWA!B41=0,"",SISWA!B41) -> 4330 | C41: =IF(SISWA!C41=0,"",SISWA!C41) -> 0084736422 | D41: =IF(SISWA!D41=0,"",SISWA!D41) -> 1-18-05-80-162-034-7 | E41: =IF(SISWA!E41=0,"",SISWA!E41) -> ACHID ATHIRIL ARDAN | G41: 72 | H41: 78 | I41: 86 | J41: 86 | K41: 80.5 | L41: 60 | M41: 80.5 | N41: 70.25 | O41: 70.25 | P41: 70.25
A42: 35 | B42: =IF(SISWA!B42=0,"",SISWA!B42) -> 4361 | C42: =IF(SISWA!C42=0,"",SISWA!C42) -> 0075656390 | D42: =IF(SISWA!D42=0,"",SISWA!D42) -> 1-18-05-80-162-035-6 | E42: =IF(SISWA!E42=0,"",SISWA!E42) -> ACHMAD SEPTIAN HAMDANI | G42: 79 | H42: 79 | I42: 89 | J42: 89 | K42: 84 | L42: 60 | M42: 84 | N42: 72 | O42: 72 | P42: 72
A43: 36 | B43: =IF(SISWA!B43=0,"",SISWA!B43) -> 4362 | C43: =IF(SISWA!C43=0,"",SISWA!C43) -> 0071796138 | D43: =IF(SISWA!D43=0,"",SISWA!D43) -> 1-18-05-80-162-036-5 | E43: =IF(SISWA!E43=0,"",SISWA!E43) -> ACHMAD SULAIMAN | G43: 79 | H43: 75 | I43: 81 | J43: 81 | K43: 79 | L43: 60 | M43: 79 | N43: 69.5 | O43: 69.5 | P43: 69.5
A44: 37 | B44: =IF(SISWA!B44=0,"",SISWA!B44) -> 4364 | C44: =IF(SISWA!C44=0,"",SISWA!C44) -> 0079667684 | D44: =IF(SISWA!D44=0,"",SISWA!D44) -> 1-18-05-80-162-037-4 | E44: =IF(SISWA!E44=0,"",SISWA!E44) -> AIRLANGGA DWIKA RIZQI | G44: 63 | H44: 75 | I44: 81 | J44: 81 | K44: 75 | L44: 60 | M44: 75 | N44: 67.5 | O44: 67.5 | P44: 67.5
A45: 38 | B45: =IF(SISWA!B45=0,"",SISWA!B45) -> 4365 | C45: =IF(SISWA!C45=0,"",SISWA!C45) -> 0089321127 | D45: =IF(SISWA!D45=0,"",SISWA!D45) -> 1-18-05-80-162-038-3 | E45: =IF(SISWA!E45=0,"",SISWA!E45) -> AUFAN AZKAL ABRORI | G45: 84 | H45: 77 | I45: 86 | J45: 86 | K45: 83.25 | L45: 60 | M45: 83.25 | N45: 71.625 | O45: 71.625 | P45: 71.625
A46: 39 | B46: =IF(SISWA!B46=0,"",SISWA!B46) -> 4465 | C46: =IF(SISWA!C46=0,"",SISWA!C46) -> 0071776593 | D46: =IF(SISWA!D46=0,"",SISWA!D46) -> 1-18-05-80-162-039-2 | E46: =IF(SISWA!E46=0,"",SISWA!E46) -> AZZA PRISHAL DWI PUTRA | G46: 83 | H46: 75 | I46: 87 | J46: 87 | K46: 83 | L46: 60 | M46: 83 | N46: 71.5 | O46: 71.5 | P46: 71.5
A47: 40 | B47: =IF(SISWA!B47=0,"",SISWA!B47) -> 4368 | C47: =IF(SISWA!C47=0,"",SISWA!C47) -> 0074569410 | D47: =IF(SISWA!D47=0,"",SISWA!D47) -> 1-18-05-80-162-040-9 | E47: =IF(SISWA!E47=0,"",SISWA!E47) -> EKA AULIYA` PUTRI | G47: 85 | H47: 83 | I47: 95 | J47: 95 | K47: 89.5 | L47: 60 | M47: 89.5 | N47: 74.75 | O47: 74.75 | P47: 74.75
A48: 41 | B48: =IF(SISWA!B48=0,"",SISWA!B48) -> 4341 | C48: =IF(SISWA!C48=0,"",SISWA!C48) -> 0083684457 | D48: =IF(SISWA!D48=0,"",SISWA!D48) -> 1-18-05-80-162-041-8 | E48: =IF(SISWA!E48=0,"",SISWA!E48) -> ERSA PUSPITA EKA ROSA LINDA | G48: 85 | H48: 84 | I48: 89 | J48: 89 | K48: 86.75 | L48: 60 | M48: 86.75 | N48: 73.375 | O48: 73.375 | P48: 73.375
A49: 42 | B49: =IF(SISWA!B49=0,"",SISWA!B49) -> 4369 | C49: =IF(SISWA!C49=0,"",SISWA!C49) -> 0078481731 | D49: =IF(SISWA!D49=0,"",SISWA!D49) -> 1-18-05-80-162-042-7 | E49: =IF(SISWA!E49=0,"",SISWA!E49) -> FABIYAN TRI BAKTI OKTAFIAN | G49: 81 | H49: 78 | I49: 89 | J49: 89 | K49: 84.25 | L49: 60 | M49: 84.25 | N49: 72.125 | O49: 72.125 | P49: 72.125
A50: 43 | B50: =IF(SISWA!B50=0,"",SISWA!B50) -> 4343 | C50: =IF(SISWA!C50=0,"",SISWA!C50) -> 3075965396 | D50: =IF(SISWA!D50=0,"",SISWA!D50) -> 1-18-05-80-162-043-6 | E50: =IF(SISWA!E50=0,"",SISWA!E50) -> FELISITA APRILIA NUR NIHAYA | G50: 78 | H50: 83 | I50: 83 | J50: 83 | K50: 81.75 | L50: 60 | M50: 81.75 | N50: 70.875 | O50: 70.875 | P50: 70.875
A51: 44 | B51: =IF(SISWA!B51=0,"",SISWA!B51) -> 4344 | C51: =IF(SISWA!C51=0,"",SISWA!C51) -> 3078948093 | D51: =IF(SISWA!D51=0,"",SISWA!D51) -> 1-18-05-80-162-044-5 | E51: =IF(SISWA!E51=0,"",SISWA!E51) -> FIRDA DWI ANDRIANI | G51: 85 | H51: 83 | I51: 93 | J51: 93 | K51: 88.5 | L51: 60 | M51: 88.5 | N51: 74.25 | O51: 74.25 | P51: 74.25
A52: 45 | B52: =IF(SISWA!B52=0,"",SISWA!B52) -> 4372 | C52: =IF(SISWA!C52=0,"",SISWA!C52) -> 0087636520 | D52: =IF(SISWA!D52=0,"",SISWA!D52) -> 1-18-05-80-162-045-4 | E52: =IF(SISWA!E52=0,"",SISWA!E52) -> GILANG AKBAR PRASETYO | G52: 81 | H52: 75 | I52: 83 | J52: 83 | K52: 80.5 | L52: 60 | M52: 80.5 | N52: 70.25 | O52: 70.25 | P52: 70.25
A53: 46 | B53: =IF(SISWA!B53=0,"",SISWA!B53) -> 4373 | C53: =IF(SISWA!C53=0,"",SISWA!C53) -> 0087373224 | D53: =IF(SISWA!D53=0,"",SISWA!D53) -> 1-18-05-80-162-046-3 | E53: =IF(SISWA!E53=0,"",SISWA!E53) -> IFTAH IZZAH EMILIA MAHMUD | G53: 68 | H53: 76 | I53: 80 | J53: 80 | K53: 76 | L53: 60 | M53: 76 | N53: 68 | O53: 68 | P53: 68
A54: 47 | B54: =IF(SISWA!B54=0,"",SISWA!B54) -> 4441 | C54: =IF(SISWA!C54=0,"",SISWA!C54) -> 0081758949 | D54: =IF(SISWA!D54=0,"",SISWA!D54) -> 1-18-05-80-162-047-2 | E54: =IF(SISWA!E54=0,"",SISWA!E54) -> INES ARIFANI MAULINA | G54: 85 | H54: 83 | I54: 96 | J54: 96 | K54: 90 | L54: 77.5 | M54: 90 | N54: 83.75 | O54: 83.75 | P54: 83.75
A55: 48 | B55: =IF(SISWA!B55=0,"",SISWA!B55) -> 4374 | C55: =IF(SISWA!C55=0,"",SISWA!C55) -> 0073409469 | D55: =IF(SISWA!D55=0,"",SISWA!D55) -> 1-18-05-80-162-048-9 | E55: =IF(SISWA!E55=0,"",SISWA!E55) -> IYAAD AFLAKHA RAMZII | G55: 85 | H55: 84 | I55: 95 | J55: 95 | K55: 89.75 | L55: 60 | M55: 89.75 | N55: 74.875 | O55: 74.875 | P55: 74.875
A56: 49 | B56: =IF(SISWA!B56=0,"",SISWA!B56) -> 4305 | C56: =IF(SISWA!C56=0,"",SISWA!C56) -> 0068258891 | D56: =IF(SISWA!D56=0,"",SISWA!D56) -> 1-18-05-80-162-049-8 | E56: =IF(SISWA!E56=0,"",SISWA!E56) -> JULI ANDRIYANTO | G56: 85 | H56: 80 | I56: 81 | J56: 81 | K56: 81.75 | L56: 60 | M56: 81.75 | N56: 70.875 | O56: 70.875 | P56: 70.875
A57: 50 | B57: =IF(SISWA!B57=0,"",SISWA!B57) -> 4347 | C57: =IF(SISWA!C57=0,"",SISWA!C57) -> 0076367763 | D57: =IF(SISWA!D57=0,"",SISWA!D57) -> 1-18-05-80-162-050-7 | E57: =IF(SISWA!E57=0,"",SISWA!E57) -> LIYA FEBRIYANI | G57: 77 | H57: 92 | I57: 95 | J57: 95 | K57: 89.75 | L57: 60 | M57: 89.75 | N57: 74.875 | O57: 74.875 | P57: 74.875
A58: 51 | B58: =IF(SISWA!B58=0,"",SISWA!B58) -> 4348 | C58: =IF(SISWA!C58=0,"",SISWA!C58) -> 0083034332 | D58: =IF(SISWA!D58=0,"",SISWA!D58) -> 1-18-05-80-162-051-6 | E58: =IF(SISWA!E58=0,"",SISWA!E58) -> LIZATUL CHAIYUNI | G58: 77 | H58: 85 | I58: 87 | J58: 87 | K58: 84 | L58: 60 | M58: 84 | N58: 72 | O58: 72 | P58: 72
A59: 52 | B59: =IF(SISWA!B59=0,"",SISWA!B59) -> 4531 | C59: =IF(SISWA!C59=0,"",SISWA!C59) -> 3099539154 | D59: =IF(SISWA!D59=0,"",SISWA!D59) -> 1-18-05-80-162-052-5 | E59: =IF(SISWA!E59=0,"",SISWA!E59) -> M. ALHAFIS | G59: 72 | H59: 76 | I59: 86 | J59: 86 | K59: 80 | L59: 60 | M59: 80 | N59: 70 | O59: 70 | P59: 70
A60: 53 | B60: =IF(SISWA!B60=0,"",SISWA!B60) -> 4530 | C60: =IF(SISWA!C60=0,"",SISWA!C60) -> 0077015789 | D60: =IF(SISWA!D60=0,"",SISWA!D60) -> 1-18-05-80-162-053-4 | E60: =IF(SISWA!E60=0,"",SISWA!E60) -> MUHAMMAD RIZKI RIDWAN | G60: 78 | H60: 75 | I60: 81 | J60: 81 | K60: 78.75 | L60: 60 | M60: 78.75 | N60: 69.375 | O60: 69.375 | P60: 69.375
A61: 54 | B61: =IF(SISWA!B61=0,"",SISWA!B61) -> 4351 | C61: =IF(SISWA!C61=0,"",SISWA!C61) -> 0076361559 | D61: =IF(SISWA!D61=0,"",SISWA!D61) -> 1-18-05-80-162-054-3 | E61: =IF(SISWA!E61=0,"",SISWA!E61) -> MOCHAMAD RAFLI DIAN SAPUTRA | G61: 68 | H61: 77 | I61: 87 | J61: 87 | K61: 79.75 | L61: 60 | M61: 79.75 | N61: 69.875 | O61: 69.875 | P61: 69.875
A62: 55 | B62: =IF(SISWA!B62=0,"",SISWA!B62) -> 4352 | C62: =IF(SISWA!C62=0,"",SISWA!C62) -> 0075591405 | D62: =IF(SISWA!D62=0,"",SISWA!D62) -> 1-18-05-80-162-055-2 | E62: =IF(SISWA!E62=0,"",SISWA!E62) -> MOCHAMMAD AFAREL PUTRA RAMDHANA | G62: 78 | H62: 83 | I62: 89 | J62: 89 | K62: 84.75 | L62: 60 | M62: 84.75 | N62: 72.375 | O62: 72.375 | P62: 72.375
A63: 56 | B63: =IF(SISWA!B63=0,"",SISWA!B63) -> 4355 | C63: =IF(SISWA!C63=0,"",SISWA!C63) -> 0075363258 | D63: =IF(SISWA!D63=0,"",SISWA!D63) -> 1-18-05-80-162-056-9 | E63: =IF(SISWA!E63=0,"",SISWA!E63) -> MUHAMAD JEFRI MAULANA | G63: 74 | H63: 79 | I63: 83 | J63: 83 | K63: 79.75 | L63: 60 | M63: 79.75 | N63: 69.875 | O63: 69.875 | P63: 69.875
A64: 57 | B64: =IF(SISWA!B64=0,"",SISWA!B64) -> 4376 | C64: =IF(SISWA!C64=0,"",SISWA!C64) -> 0072066741 | D64: =IF(SISWA!D64=0,"",SISWA!D64) -> 1-18-05-80-162-057-8 | E64: =IF(SISWA!E64=0,"",SISWA!E64) -> MUHAMMAD DWI WILDAN BAGUS KURNIAWAN | G64: 68 | H64: 75 | I64: 81 | J64: 81 | K64: 76.25 | L64: 60 | M64: 76.25 | N64: 68.125 | O64: 68.125 | P64: 68.125
A65: 58 | B65: =IF(SISWA!B65=0,"",SISWA!B65) -> 4377 | C65: =IF(SISWA!C65=0,"",SISWA!C65) -> 0071459044 | D65: =IF(SISWA!D65=0,"",SISWA!D65) -> 1-18-05-80-162-058-7 | E65: =IF(SISWA!E65=0,"",SISWA!E65) -> MUHAMMAD FARIL FIRMANSYA | G65: 63 | H65: 75 | I65: 84 | J65: 84 | K65: 76.5 | L65: 60 | M65: 76.5 | N65: 68.25 | O65: 68.25 | P65: 68.25
A66: 59 | B66: =IF(SISWA!B66=0,"",SISWA!B66) -> 4349 | C66: =IF(SISWA!C66=0,"",SISWA!C66) -> 0074206034 | D66: =IF(SISWA!D66=0,"",SISWA!D66) -> 1-18-05-80-162-059-6 | E66: =IF(SISWA!E66=0,"",SISWA!E66) -> MUHAMMAD FARIZ UBAIDILLA | G66: 76 | H66: 83 | I66: 93 | J66: 93 | K66: 86.25 | L66: 60 | M66: 86.25 | N66: 73.125 | O66: 73.125 | P66: 73.125
A67: 60 | B67: =IF(SISWA!B67=0,"",SISWA!B67) -> 4356 | C67: =IF(SISWA!C67=0,"",SISWA!C67) -> 0077937892 | D67: =IF(SISWA!D67=0,"",SISWA!D67) -> 1-18-05-80-162-060-5 | E67: =IF(SISWA!E67=0,"",SISWA!E67) -> MUHAMMAD MAULANA ZIDANIL ILMI | G67: 75 | H67: 86 | I67: 95 | J67: 95 | K67: 87.75 | L67: 60 | M67: 87.75 | N67: 73.875 | O67: 73.875 | P67: 73.875
A68: 61 | B68: =IF(SISWA!B68=0,"",SISWA!B68) -> 4357 | C68: =IF(SISWA!C68=0,"",SISWA!C68) -> 0078608527 | D68: =IF(SISWA!D68=0,"",SISWA!D68) -> 1-18-05-80-162-061-4 | E68: =IF(SISWA!E68=0,"",SISWA!E68) -> MUHAMMAD SUTRISNO ISMAIL | G68: 64 | H68: 75 | I68: 82 | J68: 82 | K68: 75.75 | L68: 80 | M68: 75.75 | N68: 77.875 | O68: 77.875 | P68: 77.875
A69: 62 | B69: =IF(SISWA!B69=0,"",SISWA!B69) -> 4381 | C69: =IF(SISWA!C69=0,"",SISWA!C69) -> 0072209435 | D69: =IF(SISWA!D69=0,"",SISWA!D69) -> 1-18-05-80-162-062-3 | E69: =IF(SISWA!E69=0,"",SISWA!E69) -> NOVITA ERNIAWAN | G69: 78 | H69: 83 | I69: 93 | J69: 93 | K69: 86.75 | L69: 60 | M69: 86.75 | N69: 73.375 | O69: 73.375 | P69: 73.375
A70: 63 | B70: =IF(SISWA!B70=0,"",SISWA!B70) -> 4383 | C70: =IF(SISWA!C70=0,"",SISWA!C70) -> 0077439834 | D70: =IF(SISWA!D70=0,"",SISWA!D70) -> 1-18-05-80-162-063-2 | E70: =IF(SISWA!E70=0,"",SISWA!E70) -> PUTRI AULIA DWI AGUSTIN | G70: 79 | H70: 90 | I70: 95 | J70: 95 | K70: 89.75 | L70: 60 | M70: 89.75 | N70: 74.875 | O70: 74.875 | P70: 74.875
A71: 64 | B71: =IF(SISWA!B71=0,"",SISWA!B71) -> 4385 | C71: =IF(SISWA!C71=0,"",SISWA!C71) -> 0073137310 | D71: =IF(SISWA!D71=0,"",SISWA!D71) -> 1-18-05-80-162-064-9 | E71: =IF(SISWA!E71=0,"",SISWA!E71) -> STANY RAFIDAH RAHMANIA | G71: 69 | H71: 77 | I71: 81 | J71: 81 | K71: 77 | L71: 60 | M71: 77 | N71: 68.5 | O71: 68.5 | P71: 68.5
A72: 65 | B72: =IF(SISWA!B72=0,"",SISWA!B72) -> 4387 | C72: =IF(SISWA!C72=0,"",SISWA!C72) -> 0077336427 | D72: =IF(SISWA!D72=0,"",SISWA!D72) -> 1-18-05-80-162-065-8 | E72: =IF(SISWA!E72=0,"",SISWA!E72) -> USWATUN KHASANAH | G72: 64 | H72: 77 | I72: 84 | J72: 84 | K72: 77.25 | L72: 60 | M72: 77.25 | N72: 68.625 | O72: 68.625 | P72: 68.625
A73: 66 | B73: =IF(SISWA!B73=0,"",SISWA!B73) -> 4389 | C73: =IF(SISWA!C73=0,"",SISWA!C73) -> 0078407631 | D73: =IF(SISWA!D73=0,"",SISWA!D73) -> 1-18-05-80-162-066-7 | E73: =IF(SISWA!E73=0,"",SISWA!E73) -> VIKROUL KHAMILA | G73: 77 | H73: 86 | I73: 86 | J73: 86 | K73: =AVERAGE(F73:J73) -> 83.75 | L73: 60 | M73: =K73 -> 83.75 | N73: =AVERAGE(L73:M73) -> 71.875 | O73: =AVERAGE(L73:M73) -> 71.875 | P73: 71.875
A74: 67 | B74: =IF(SISWA!B74=0,"",SISWA!B74) ->  | C74: =IF(SISWA!C74=0,"",SISWA!C74) ->  | D74: =IF(SISWA!D74=0,"",SISWA!D74) ->  | E74: =IF(SISWA!E74=0,"",SISWA!E74) -> 
A75: 68 | B75: =IF(SISWA!B75=0,"",SISWA!B75) ->  | C75: =IF(SISWA!C75=0,"",SISWA!C75) ->  | D75: =IF(SISWA!D75=0,"",SISWA!D75) ->  | E75: =IF(SISWA!E75=0,"",SISWA!E75) -> 
A76: 69 | B76: =IF(SISWA!B76=0,"",SISWA!B76) ->  | C76: =IF(SISWA!C76=0,"",SISWA!C76) ->  | D76: =IF(SISWA!D76=0,"",SISWA!D76) ->  | E76: =IF(SISWA!E76=0,"",SISWA!E76) -> 
A77: 70 | B77: =IF(SISWA!B77=0,"",SISWA!B77) ->  | C77: =IF(SISWA!C77=0,"",SISWA!C77) ->  | D77: =IF(SISWA!D77=0,"",SISWA!D77) ->  | E77: =IF(SISWA!E77=0,"",SISWA!E77) -> 
A78: 71 | B78: =IF(SISWA!B78=0,"",SISWA!B78) ->  | C78: =IF(SISWA!C78=0,"",SISWA!C78) ->  | D78: =IF(SISWA!D78=0,"",SISWA!D78) ->  | E78: =IF(SISWA!E78=0,"",SISWA!E78) -> 
A79: 72 | B79: =IF(SISWA!B79=0,"",SISWA!B79) ->  | C79: =IF(SISWA!C79=0,"",SISWA!C79) ->  | D79: =IF(SISWA!D79=0,"",SISWA!D79) ->  | E79: =IF(SISWA!E79=0,"",SISWA!E79) -> 
A80: 73 | B80: =IF(SISWA!B80=0,"",SISWA!B80) ->  | C80: =IF(SISWA!C80=0,"",SISWA!C80) ->  | D80: =IF(SISWA!D80=0,"",SISWA!D80) ->  | E80: =IF(SISWA!E80=0,"",SISWA!E80) -> 
A81: 74 | B81: =IF(SISWA!B81=0,"",SISWA!B81) ->  | C81: =IF(SISWA!C81=0,"",SISWA!C81) ->  | D81: =IF(SISWA!D81=0,"",SISWA!D81) ->  | E81: =IF(SISWA!E81=0,"",SISWA!E81) -> 
A82: 75 | B82: =IF(SISWA!B82=0,"",SISWA!B82) ->  | C82: =IF(SISWA!C82=0,"",SISWA!C82) ->  | D82: =IF(SISWA!D82=0,"",SISWA!D82) ->  | E82: =IF(SISWA!E82=0,"",SISWA!E82) -> 
A83: 76 | B83: =IF(SISWA!B83=0,"",SISWA!B83) ->  | C83: =IF(SISWA!C83=0,"",SISWA!C83) ->  | D83: =IF(SISWA!D83=0,"",SISWA!D83) ->  | E83: =IF(SISWA!E83=0,"",SISWA!E83) -> 
A84: 77 | B84: =IF(SISWA!B84=0,"",SISWA!B84) ->  | C84: =IF(SISWA!C84=0,"",SISWA!C84) ->  | D84: =IF(SISWA!D84=0,"",SISWA!D84) ->  | E84: =IF(SISWA!E84=0,"",SISWA!E84) -> 
A85: 78 | B85: =IF(SISWA!B85=0,"",SISWA!B85) ->  | C85: =IF(SISWA!C85=0,"",SISWA!C85) ->  | D85: =IF(SISWA!D85=0,"",SISWA!D85) ->  | E85: =IF(SISWA!E85=0,"",SISWA!E85) -> 
A86: 79 | B86: =IF(SISWA!B86=0,"",SISWA!B86) ->  | C86: =IF(SISWA!C86=0,"",SISWA!C86) ->  | D86: =IF(SISWA!D86=0,"",SISWA!D86) ->  | E86: =IF(SISWA!E86=0,"",SISWA!E86) -> 
A87: 80 | B87: =IF(SISWA!B87=0,"",SISWA!B87) ->  | C87: =IF(SISWA!C87=0,"",SISWA!C87) ->  | D87: =IF(SISWA!D87=0,"",SISWA!D87) ->  | E87: =IF(SISWA!E87=0,"",SISWA!E87) -> 
A88: 81 | B88: =IF(SISWA!B88=0,"",SISWA!B88) ->  | C88: =IF(SISWA!C88=0,"",SISWA!C88) ->  | D88: =IF(SISWA!D88=0,"",SISWA!D88) ->  | E88: =IF(SISWA!E88=0,"",SISWA!E88) -> 
A89: 82 | B89: =IF(SISWA!B89=0,"",SISWA!B89) ->  | C89: =IF(SISWA!C89=0,"",SISWA!C89) ->  | D89: =IF(SISWA!D89=0,"",SISWA!D89) ->  | E89: =IF(SISWA!E89=0,"",SISWA!E89) -> 
A90: 83 | B90: =IF(SISWA!B90=0,"",SISWA!B90) ->  | C90: =IF(SISWA!C90=0,"",SISWA!C90) ->  | D90: =IF(SISWA!D90=0,"",SISWA!D90) ->  | E90: =IF(SISWA!E90=0,"",SISWA!E90) -> 
A91: 84 | B91: =IF(SISWA!B91=0,"",SISWA!B91) ->  | C91: =IF(SISWA!C91=0,"",SISWA!C91) ->  | D91: =IF(SISWA!D91=0,"",SISWA!D91) ->  | E91: =IF(SISWA!E91=0,"",SISWA!E91) -> 
A92: 85 | B92: =IF(SISWA!B92=0,"",SISWA!B92) ->  | C92: =IF(SISWA!C92=0,"",SISWA!C92) ->  | D92: =IF(SISWA!D92=0,"",SISWA!D92) ->  | E92: =IF(SISWA!E92=0,"",SISWA!E92) -> 
A93: 86 | B93: =IF(SISWA!B93=0,"",SISWA!B93) ->  | C93: =IF(SISWA!C93=0,"",SISWA!C93) ->  | D93: =IF(SISWA!D93=0,"",SISWA!D93) ->  | E93: =IF(SISWA!E93=0,"",SISWA!E93) -> 
A94: 87 | B94: =IF(SISWA!B94=0,"",SISWA!B94) ->  | C94: =IF(SISWA!C94=0,"",SISWA!C94) ->  | D94: =IF(SISWA!D94=0,"",SISWA!D94) ->  | E94: =IF(SISWA!E94=0,"",SISWA!E94) -> 
A95: 88 | B95: =IF(SISWA!B95=0,"",SISWA!B95) ->  | C95: =IF(SISWA!C95=0,"",SISWA!C95) ->  | D95: =IF(SISWA!D95=0,"",SISWA!D95) ->  | E95: =IF(SISWA!E95=0,"",SISWA!E95) -> 
A96: 89 | B96: =IF(SISWA!B96=0,"",SISWA!B96) ->  | C96: =IF(SISWA!C96=0,"",SISWA!C96) ->  | D96: =IF(SISWA!D96=0,"",SISWA!D96) ->  | E96: =IF(SISWA!E96=0,"",SISWA!E96) -> 
A97: 90 | B97: =IF(SISWA!B97=0,"",SISWA!B97) ->  | C97: =IF(SISWA!C97=0,"",SISWA!C97) ->  | D97: =IF(SISWA!D97=0,"",SISWA!D97) ->  | E97: =IF(SISWA!E97=0,"",SISWA!E97) -> 
A98: 91 | B98: =IF(SISWA!B98=0,"",SISWA!B98) ->  | C98: =IF(SISWA!C98=0,"",SISWA!C98) ->  | D98: =IF(SISWA!D98=0,"",SISWA!D98) ->  | E98: =IF(SISWA!E98=0,"",SISWA!E98) -> 
A99: 92 | B99: =IF(SISWA!B99=0,"",SISWA!B99) ->  | C99: =IF(SISWA!C99=0,"",SISWA!C99) ->  | D99: =IF(SISWA!D99=0,"",SISWA!D99) ->  | E99: =IF(SISWA!E99=0,"",SISWA!E99) -> 
A100: 93 | B100: =IF(SISWA!B100=0,"",SISWA!B100) ->  | C100: =IF(SISWA!C100=0,"",SISWA!C100) ->  | D100: =IF(SISWA!D100=0,"",SISWA!D100) ->  | E100: =IF(SISWA!E100=0,"",SISWA!E100) -> 
A101: 94 | B101: =IF(SISWA!B101=0,"",SISWA!B101) ->  | C101: =IF(SISWA!C101=0,"",SISWA!C101) ->  | D101: =IF(SISWA!D101=0,"",SISWA!D101) ->  | E101: =IF(SISWA!E101=0,"",SISWA!E101) -> 

Sheet AA
A1: DAFTAR NILAI AKHIR SEKOLAH
A2: =UPPER(DEPAN!Y6)&" "&UPPER(DEPAN!AA6) -> MADRASAH IBTIDAIYAH NURUL ISLAM LABRUK KIDUL
A3: =DEPAN!Y16 -> TAHUN PELAJARAN 2019/2020
A5: NO | B5: No Induk | C5: NISN | D5: Nomor Peserta | E5: Nama Peserta | F5: Akhidah Akhlak | O5: rata-rata UAM & PRAKTEK
F6: Nilai Semester | K6: Rata- 2 | L6: NILAI UAMBD | P6: UAMNU
F7: 7 | G7: 8 | H7: 9 | I7: 10 | J7: 11 | K7: Rapor | L7: TULIS | M7: PRAKTIK | P7: TULIS
A8: 1 | B8: =IF(SISWA!B8=0,"",SISWA!B8) -> 4331 | C8: =IF(SISWA!C8=0,"",SISWA!C8) -> 0078140536 | D8: =IF(SISWA!D8=0,"",SISWA!D8) -> 1-18-05-80-162-001-8 | E8: =IF(SISWA!E8=0,"",SISWA!E8) -> ACHMAD FATHIR IZUDDIN | G8: 76 | H8: 87 | I8: 86 | J8: 89 | K8: =AVERAGE(F8:J8) -> 84.5 | L8: 97.5 | M8: =AVERAGE(H8:L8) -> 88.8 | N8: =AVERAGE(L8:M8) -> 93.15 | O8: =AVERAGE(L8:M8) -> 93.15 | P8: 93.15
A9: 2 | B9: =IF(SISWA!B9=0,"",SISWA!B9) -> 4333 | C9: =IF(SISWA!C9=0,"",SISWA!C9) -> 0084691896 | D9: =IF(SISWA!D9=0,"",SISWA!D9) -> 1-18-05-80-162-002-7 | E9: =IF(SISWA!E9=0,"",SISWA!E9) -> AININ NAFISA FEBRIYANTI | G9: 76 | H9: 91 | I9: 87 | J9: 92 | K9: =AVERAGE(F9:J9) -> 86.5 | L9: 92.5 | M9: 89.8 | N9: =AVERAGE(L9:M9) -> 91.15 | O9: =AVERAGE(L9:M9) -> 91.15 | P9: 91.15
A10: 3 | B10: =IF(SISWA!B10=0,"",SISWA!B10) -> 4334 | C10: =IF(SISWA!C10=0,"",SISWA!C10) -> 0075488897 | D10: =IF(SISWA!D10=0,"",SISWA!D10) -> 1-18-05-80-162-003-6 | E10: =IF(SISWA!E10=0,"",SISWA!E10) -> AISYAH DWI ANDINI | G10: 76 | H10: 92 | I10: 89 | J10: 92 | K10: 87.25 | L10: 90 | M10: 90.05 | N10: 90.025 | O10: 90.025 | P10: 90.025
A11: 4 | B11: =IF(SISWA!B11=0,"",SISWA!B11) -> 4335 | C11: =IF(SISWA!C11=0,"",SISWA!C11) -> 0077554289 | D11: =IF(SISWA!D11=0,"",SISWA!D11) -> 1-18-05-80-162-004-5 | E11: =IF(SISWA!E11=0,"",SISWA!E11) -> AJENG AGUSTINA KIRANA PUTRI | G11: 69 | H11: 89 | I11: 89 | J11: 84 | K11: 82.75 | L11: 60 | M11: 80.95 | N11: 70.475 | O11: 70.475 | P11: 70.475
A12: 5 | B12: =IF(SISWA!B12=0,"",SISWA!B12) -> 4336 | C12: =IF(SISWA!C12=0,"",SISWA!C12) -> 0078831956 | D12: =IF(SISWA!D12=0,"",SISWA!D12) -> 1-18-05-80-162-005-4 | E12: =IF(SISWA!E12=0,"",SISWA!E12) -> ALVIAN FAIZULHAQQI | G12: 69 | H12: 86 | I12: 86 | J12: 92 | K12: 83.25 | L12: 60 | M12: 81.45 | N12: 70.725 | O12: 70.725 | P12: 70.725
A13: 6 | B13: =IF(SISWA!B13=0,"",SISWA!B13) -> 4337 | C13: =IF(SISWA!C13=0,"",SISWA!C13) -> 0073667130 | D13: =IF(SISWA!D13=0,"",SISWA!D13) -> 1-18-05-80-162-006-3 | E13: =IF(SISWA!E13=0,"",SISWA!E13) -> ANGGITA RIZKY YUGA MEISYA | G13: 72 | H13: 97 | I13: 90 | J13: 98 | K13: 89.25 | L13: 93.57142857 | M13: 93.56428571 | N13: 93.56785714 | O13: 93.56785714 | P13: 93.56785714
A14: 7 | B14: =IF(SISWA!B14=0,"",SISWA!B14) -> 4338 | C14: =IF(SISWA!C14=0,"",SISWA!C14) -> 0074492973 | D14: =IF(SISWA!D14=0,"",SISWA!D14) -> 1-18-05-80-162-007-2 | E14: =IF(SISWA!E14=0,"",SISWA!E14) -> AURA SALSABILA WULAN SARI | G14: 72 | H14: 91 | I14: 87 | J14: 86 | K14: 84 | L14: 87.5 | M14: 87.1 | N14: 87.3 | O14: 87.3 | P14: 87.3
A15: 8 | B15: =IF(SISWA!B15=0,"",SISWA!B15) -> 4366 | C15: =IF(SISWA!C15=0,"",SISWA!C15) -> 0078989673 | D15: =IF(SISWA!D15=0,"",SISWA!D15) -> 1-18-05-80-162-008-9 | E15: =IF(SISWA!E15=0,"",SISWA!E15) -> BALQIS NAILA AUDIA | G15: 74 | H15: 99 | I15: 93 | J15: 89 | K15: 88.75 | L15: 87.5 | M15: 91.45 | N15: =AVERAGE(L15:M15) -> 89.475 | O15: =AVERAGE(L15:M15) -> 89.475 | P15: 89.475
A16: 9 | B16: =IF(SISWA!B16=0,"",SISWA!B16) -> 4440 | C16: =IF(SISWA!C16=0,"",SISWA!C16) -> 0082763386 | D16: =IF(SISWA!D16=0,"",SISWA!D16) -> 1-18-05-80-162-009-8 | E16: =IF(SISWA!E16=0,"",SISWA!E16) -> BIMA ARYO SUSILO | G16: 80 | H16: 90 | I16: 88 | J16: 82 | K16: 85 | L16: 70 | M16: 83 | N16: 76.5 | O16: 76.5 | P16: 76.5
A17: 10 | B17: =IF(SISWA!B17=0,"",SISWA!B17) -> 4367 | C17: =IF(SISWA!C17=0,"",SISWA!C17) -> 0078400392 | D17: =IF(SISWA!D17=0,"",SISWA!D17) -> 1-18-05-80-162-010-7 | E17: =IF(SISWA!E17=0,"",SISWA!E17) -> BIMA SATRIA DIRGANTARA | G17: 75 | H17: 92 | I17: 87 | J17: 95 | K17: 87.25 | L17: 60 | M17: 84.25 | N17: 72.125 | O17: 72.125 | P17: 72.125
A18: 11 | B18: =IF(SISWA!B18=0,"",SISWA!B18) -> 4339 | C18: =IF(SISWA!C18=0,"",SISWA!C18) -> 0086652599 | D18: =IF(SISWA!D18=0,"",SISWA!D18) -> 1-18-05-80-162-011-6 | E18: =IF(SISWA!E18=0,"",SISWA!E18) -> DEVI KARUNIA RATNA PUTRI | G18: 73 | H18: 94 | I18: 92 | J18: 92 | K18: 87.75 | L18: 82.5 | M18: 89.65 | N18: 86.075 | O18: 86.075 | P18: 86.075
A19: 12 | B19: =IF(SISWA!B19=0,"",SISWA!B19) -> 4340 | C19: =IF(SISWA!C19=0,"",SISWA!C19) -> 0089906682 | D19: =IF(SISWA!D19=0,"",SISWA!D19) -> 1-18-05-80-162-012-5 | E19: =IF(SISWA!E19=0,"",SISWA!E19) -> DEVITA FEBRIANI PUTRI | G19: 71 | H19: 89 | I19: 90 | J19: 93 | K19: 85.75 | L19: 97.5 | M19: 91.05 | N19: 94.275 | O19: 94.275 | P19: 94.275
A20: 13 | B20: =IF(SISWA!B20=0,"",SISWA!B20) -> 4370 | C20: =IF(SISWA!C20=0,"",SISWA!C20) -> 0074514146 | D20: =IF(SISWA!D20=0,"",SISWA!D20) -> 1-18-05-80-162-013-4 | E20: =IF(SISWA!E20=0,"",SISWA!E20) -> FAKHIS GABRIL LIA | G20: 71 | H20: 88 | I20: 88 | J20: 96 | K20: 85.75 | L20: 98 | M20: 91.15 | N20: 94.575 | O20: 94.575 | P20: 94.575
A21: 14 | B21: =IF(SISWA!B21=0,"",SISWA!B21) -> 4342 | C21: =IF(SISWA!C21=0,"",SISWA!C21) -> 0081081672 | D21: =IF(SISWA!D21=0,"",SISWA!D21) -> 1-18-05-80-162-014-3 | E21: =IF(SISWA!E21=0,"",SISWA!E21) -> FARAH NAILATUL ALYAH | G21: 93 | H21: 86 | I21: 88 | J21: 87 | K21: 88.5 | L21: 90 | M21: 87.9 | N21: 88.95 | O21: 88.95 | P21: 88.95
A22: 15 | B22: =IF(SISWA!B22=0,"",SISWA!B22) -> 4345 | C22: =IF(SISWA!C22=0,"",SISWA!C22) -> 0073420487 | D22: =IF(SISWA!D22=0,"",SISWA!D22) -> 1-18-05-80-162-015-2 | E22: =IF(SISWA!E22=0,"",SISWA!E22) -> GALANG MARDHOTILLAH SATOTO | G22: 66 | H22: 86 | I22: 87 | J22: 84 | K22: 80.75 | L22: 77.5 | M22: 83.05 | N22: 80.275 | O22: 80.275 | P22: 80.275
A23: 16 | B23: =IF(SISWA!B23=0,"",SISWA!B23) -> 4371 | C23: =IF(SISWA!C23=0,"",SISWA!C23) -> 0079870082 | D23: =IF(SISWA!D23=0,"",SISWA!D23) -> 1-18-05-80-162-016-9 | E23: =IF(SISWA!E23=0,"",SISWA!E23) -> GALIH FAREL PRASTYO | G23: 65 | H23: 85 | I23: 85 | J23: 89 | K23: 81 | L23: 60 | M23: 80 | N23: 70 | O23: 70 | P23: 70
A24: 17 | B24: =IF(SISWA!B24=0,"",SISWA!B24) -> 4466 | C24: =IF(SISWA!C24=0,"",SISWA!C24) -> 0081629504 | D24: =IF(SISWA!D24=0,"",SISWA!D24) -> 1-18-05-80-162-017-8 | E24: =IF(SISWA!E24=0,"",SISWA!E24) -> HIBATULLAH MUSTAGHFIRY RUSLI | G24: 84 | H24: 87 | I24: 85 | J24: 83 | K24: 84.75 | L24: 72.5 | M24: 82.45 | N24: 77.475 | O24: 77.475 | P24: 77.475
A25: 18 | B25: =IF(SISWA!B25=0,"",SISWA!B25) -> 4346 | C25: =IF(SISWA!C25=0,"",SISWA!C25) -> 0073608418 | D25: =IF(SISWA!D25=0,"",SISWA!D25) -> 1-18-05-80-162-018-7 | E25: =IF(SISWA!E25=0,"",SISWA!E25) -> IKA KURNIA WATI AGUSTINA | G25: 67 | H25: 93 | I25: 89 | J25: 86 | K25: 83.75 | L25: 90 | M25: 88.35 | N25: 89.175 | O25: 89.175 | P25: 89.175
A26: 19 | B26: =IF(SISWA!B26=0,"",SISWA!B26) -> 4350 | C26: =IF(SISWA!C26=0,"",SISWA!C26) -> 0072658586 | D26: =IF(SISWA!D26=0,"",SISWA!D26) -> 1-18-05-80-162-019-6 | E26: =IF(SISWA!E26=0,"",SISWA!E26) -> MAYLUNA EKA PRATIWI | G26: 95 | H26: 88 | I26: 89 | J26: 93 | K26: 91.25 | L26: 87.5 | M26: 89.75 | N26: 88.625 | O26: 88.625 | P26: 88.625
A27: 20 | B27: =IF(SISWA!B27=0,"",SISWA!B27) -> 4353 | C27: =IF(SISWA!C27=0,"",SISWA!C27) -> 0075464137 | D27: =IF(SISWA!D27=0,"",SISWA!D27) -> 1-18-05-80-162-020-5 | E27: =IF(SISWA!E27=0,"",SISWA!E27) -> MOHAMAD DWIMAS FIRDAUS | G27: 83 | H27: 85 | I27: 86 | J27: 93 | K27: 86.75 | L27: 82.5 | M27: 86.65 | N27: 84.575 | O27: 84.575 | P27: 84.575
A28: 21 | B28: =IF(SISWA!B28=0,"",SISWA!B28) -> 4375 | C28: =IF(SISWA!C28=0,"",SISWA!C28) -> 0075096831 | D28: =IF(SISWA!D28=0,"",SISWA!D28) -> 1-18-05-80-162-021-4 | E28: =IF(SISWA!E28=0,"",SISWA!E28) -> MUHAMMAD AFFAN ABI SYAHPUTRA | G28: 79 | H28: 87 | I28: 86 | J28: 90 | K28: 85.5 | L28: 60 | M28: 81.7 | N28: 70.85 | O28: 70.85 | P28: 70.85
A29: 22 | B29: =IF(SISWA!B29=0,"",SISWA!B29) -> 4354 | C29: =IF(SISWA!C29=0,"",SISWA!C29) -> 0075055640 | D29: =IF(SISWA!D29=0,"",SISWA!D29) -> 1-18-05-80-162-022-3 | E29: =IF(SISWA!E29=0,"",SISWA!E29) -> MUHAMMAD ALVIN RIDHO | G29: 73 | H29: 90 | I29: 87 | J29: 95 | K29: 86.25 | L29: 98 | M29: 91.25 | N29: 94.625 | O29: 94.625 | P29: 94.625
A30: 23 | B30: =IF(SISWA!B30=0,"",SISWA!B30) -> 4378 | C30: =IF(SISWA!C30=0,"",SISWA!C30) -> 0074268893 | D30: =IF(SISWA!D30=0,"",SISWA!D30) -> 1-18-05-80-162-023-2 | E30: =IF(SISWA!E30=0,"",SISWA!E30) -> MUKHAMAD DAVID ARIF FIRDAUS | G30: 91 | H30: 97 | I30: 88 | J30: 98 | K30: 93.5 | L30: 87.5 | M30: 92.8 | N30: 90.15 | O30: 90.15 | P30: 90.15
A31: 24 | B31: =IF(SISWA!B31=0,"",SISWA!B31) -> 4379 | C31: =IF(SISWA!C31=0,"",SISWA!C31) -> 0072757203 | D31: =IF(SISWA!D31=0,"",SISWA!D31) -> 1-18-05-80-162-024-9 | E31: =IF(SISWA!E31=0,"",SISWA!E31) -> NAORA ISQI AINAYYA | G31: 94 | H31: 92 | I31: 93 | J31: 98 | K31: 94.25 | L31: 97.5 | M31: 94.95 | N31: 96.225 | O31: 96.225 | P31: 96.225
A32: 25 | B32: =IF(SISWA!B32=0,"",SISWA!B32) -> 4380 | C32: =IF(SISWA!C32=0,"",SISWA!C32) -> 0079026285 | D32: =IF(SISWA!D32=0,"",SISWA!D32) -> 1-18-05-80-162-025-8 | E32: =IF(SISWA!E32=0,"",SISWA!E32) -> NAZRA ISLAMAY PASHA | G32: 83 | H32: 89 | I32: 89 | J32: 86 | K32: 86.75 | L32: 95 | M32: 89.15 | N32: 92.075 | O32: 92.075 | P32: 92.075
A33: 26 | B33: =IF(SISWA!B33=0,"",SISWA!B33) -> 4382 | C33: =IF(SISWA!C33=0,"",SISWA!C33) -> 0079872151 | D33: =IF(SISWA!D33=0,"",SISWA!D33) -> 1-18-05-80-162-026-7 | E33: =IF(SISWA!E33=0,"",SISWA!E33) -> NUR ALYA NABILA | G33: 88 | H33: 87 | I33: 89 | J33: 93 | K33: 89.25 | L33: 92.5 | M33: 90.15 | N33: 91.325 | O33: 91.325 | P33: 91.325
A34: 27 | B34: =IF(SISWA!B34=0,"",SISWA!B34) -> 4358 | C34: =IF(SISWA!C34=0,"",SISWA!C34) -> 0087558837 | D34: =IF(SISWA!D34=0,"",SISWA!D34) -> 1-18-05-80-162-027-6 | E34: =IF(SISWA!E34=0,"",SISWA!E34) -> PUTRI SHOLIKHAH | G34: 89 | H34: 88 | I34: 86 | J34: 82 | K34: 86.25 | L34: 85 | M34: 85.45 | N34: 85.225 | O34: 85.225 | P34: 85.225
A35: 28 | B35: =IF(SISWA!B35=0,"",SISWA!B35) -> 4384 | C35: =IF(SISWA!C35=0,"",SISWA!C35) -> 0071234523 | D35: =IF(SISWA!D35=0,"",SISWA!D35) -> 1-18-05-80-162-028-5 | E35: =IF(SISWA!E35=0,"",SISWA!E35) -> RESTI FITRIANTI DWI OCTAVIANI | G35: 81 | H35: 93 | I35: 86 | J35: 89 | K35: 87.25 | L35: 92.5 | M35: 89.55 | N35: 91.025 | O35: 91.025 | P35: 91.025
A36: 29 | B36: =IF(SISWA!B36=0,"",SISWA!B36) -> 4359 | C36: =IF(SISWA!C36=0,"",SISWA!C36) -> 0073122181 | D36: =IF(SISWA!D36=0,"",SISWA!D36) -> 1-18-05-80-162-029-4 | E36: =IF(SISWA!E36=0,"",SISWA!E36) -> ROUDHOTUS SA'DIYAH | G36: 88 | H36: 87 | I36: 86 | J36: 89 | K36: 87.5 | L36: 98 | M36: 89.5 | N36: 93.75 | O36: 93.75 | P36: 93.75
A37: 30 | B37: =IF(SISWA!B37=0,"",SISWA!B37) -> 4386 | C37: =IF(SISWA!C37=0,"",SISWA!C37) -> 0075344352 | D37: =IF(SISWA!D37=0,"",SISWA!D37) -> 1-18-05-80-162-030-3 | E37: =IF(SISWA!E37=0,"",SISWA!E37) -> TIERSYA BETA RAMANUZAN | G37: 93 | H37: 94 | I37: 89 | J37: 87 | K37: 90.75 | L37: 98 | M37: 91.75 | N37: 94.875 | O37: 94.875 | P37: 94.875
A38: 31 | B38: =IF(SISWA!B38=0,"",SISWA!B38) -> 4388 | C38: =IF(SISWA!C38=0,"",SISWA!C38) -> 0077423646 | D38: =IF(SISWA!D38=0,"",SISWA!D38) -> 1-18-05-80-162-031-2 | E38: =IF(SISWA!E38=0,"",SISWA!E38) -> VERA MUSTIKA | G38: 87 | H38: 93 | I38: 87 | J38: 86 | K38: 88.25 | L38: 60 | M38: 82.85 | N38: 71.425 | O38: 71.425 | P38: 71.425
A39: 32 | B39: =IF(SISWA!B39=0,"",SISWA!B39) -> 4360 | C39: =IF(SISWA!C39=0,"",SISWA!C39) -> 0077290990 | D39: =IF(SISWA!D39=0,"",SISWA!D39) -> 1-18-05-80-162-032-9 | E39: =IF(SISWA!E39=0,"",SISWA!E39) -> ZIDNY ILMA NABILA | G39: 95 | H39: 92 | I39: 90 | J39: 92 | K39: 92.25 | L39: 97.5 | M39: 92.75 | N39: 95.125 | O39: 95.125 | P39: 95.125
A40: 33 | B40: =IF(SISWA!B40=0,"",SISWA!B40) -> 4390 | C40: =IF(SISWA!C40=0,"",SISWA!C40) -> 0077722307 | D40: =IF(SISWA!D40=0,"",SISWA!D40) -> 1-18-05-80-162-033-8 | E40: =IF(SISWA!E40=0,"",SISWA!E40) -> ZITNATUL AULIA ILLA | G40: 99 | H40: 94 | I40: 89 | J40: 98 | K40: 95 | L40: 97.5 | M40: 94.7 | N40: 96.1 | O40: 96.1 | P40: 96.1
A41: 34 | B41: =IF(SISWA!B41=0,"",SISWA!B41) -> 4330 | C41: =IF(SISWA!C41=0,"",SISWA!C41) -> 0084736422 | D41: =IF(SISWA!D41=0,"",SISWA!D41) -> 1-18-05-80-162-034-7 | E41: =IF(SISWA!E41=0,"",SISWA!E41) -> ACHID ATHIRIL ARDAN | G41: 75 | H41: 78 | I41: 86 | J41: 85 | K41: 81 | L41: 60 | M41: 78 | N41: 69 | O41: 69 | P41: 69
A42: 35 | B42: =IF(SISWA!B42=0,"",SISWA!B42) -> 4361 | C42: =IF(SISWA!C42=0,"",SISWA!C42) -> 0075656390 | D42: =IF(SISWA!D42=0,"",SISWA!D42) -> 1-18-05-80-162-035-6 | E42: =IF(SISWA!E42=0,"",SISWA!E42) -> ACHMAD SEPTIAN HAMDANI | G42: 82 | H42: 79 | I42: 85 | J42: 87 | K42: 83.25 | L42: 67.5 | M42: 80.35 | N42: 73.925 | O42: 73.925 | P42: 73.925
A43: 36 | B43: =IF(SISWA!B43=0,"",SISWA!B43) -> 4362 | C43: =IF(SISWA!C43=0,"",SISWA!C43) -> 0071796138 | D43: =IF(SISWA!D43=0,"",SISWA!D43) -> 1-18-05-80-162-036-5 | E43: =IF(SISWA!E43=0,"",SISWA!E43) -> ACHMAD SULAIMAN | G43: 66 | H43: 75 | I43: 85 | J43: 82 | K43: 77 | L43: 72.5 | M43: 78.3 | N43: 75.4 | O43: 75.4 | P43: 75.4
A44: 37 | B44: =IF(SISWA!B44=0,"",SISWA!B44) -> 4364 | C44: =IF(SISWA!C44=0,"",SISWA!C44) -> 0079667684 | D44: =IF(SISWA!D44=0,"",SISWA!D44) -> 1-18-05-80-162-037-4 | E44: =IF(SISWA!E44=0,"",SISWA!E44) -> AIRLANGGA DWIKA RIZQI | G44: 61 | H44: 75 | I44: 85 | J44: 82 | K44: 75.75 | L44: 60 | M44: 75.55 | N44: 67.775 | O44: 67.775 | P44: 67.775
A45: 38 | B45: =IF(SISWA!B45=0,"",SISWA!B45) -> 4365 | C45: =IF(SISWA!C45=0,"",SISWA!C45) -> 0089321127 | D45: =IF(SISWA!D45=0,"",SISWA!D45) -> 1-18-05-80-162-038-3 | E45: =IF(SISWA!E45=0,"",SISWA!E45) -> AUFAN AZKAL ABRORI | G45: 67 | H45: 77 | I45: 85 | J45: 84 | K45: 78.25 | L45: 60 | M45: 76.85 | N45: 68.425 | O45: 68.425 | P45: 68.425
A46: 39 | B46: =IF(SISWA!B46=0,"",SISWA!B46) -> 4465 | C46: =IF(SISWA!C46=0,"",SISWA!C46) -> 0071776593 | D46: =IF(SISWA!D46=0,"",SISWA!D46) -> 1-18-05-80-162-039-2 | E46: =IF(SISWA!E46=0,"",SISWA!E46) -> AZZA PRISHAL DWI PUTRA | G46: 61 | H46: 75 | I46: 86 | J46: 8 | K46: 57.5 | L46: 60 | M46: 57.3 | N46: 58.65 | O46: 58.65 | P46: 65
A47: 40 | B47: =IF(SISWA!B47=0,"",SISWA!B47) -> 4368 | C47: =IF(SISWA!C47=0,"",SISWA!C47) -> 0074569410 | D47: =IF(SISWA!D47=0,"",SISWA!D47) -> 1-18-05-80-162-040-9 | E47: =IF(SISWA!E47=0,"",SISWA!E47) -> EKA AULIYA` PUTRI | G47: 69 | H47: 83 | I47: 87 | J47: 90 | K47: 82.25 | L47: 90 | M47: 86.45 | N47: 88.225 | O47: 88.225 | P47: 88.225
A48: 41 | B48: =IF(SISWA!B48=0,"",SISWA!B48) -> 4341 | C48: =IF(SISWA!C48=0,"",SISWA!C48) -> 0083684457 | D48: =IF(SISWA!D48=0,"",SISWA!D48) -> 1-18-05-80-162-041-8 | E48: =IF(SISWA!E48=0,"",SISWA!E48) -> ERSA PUSPITA EKA ROSA LINDA | G48: 70 | H48: 84 | I48: 88 | J48: 90 | K48: 83 | L48: 60 | M48: 81 | N48: 70.5 | O48: 70.5 | P48: 70.5
A49: 42 | B49: =IF(SISWA!B49=0,"",SISWA!B49) -> 4369 | C49: =IF(SISWA!C49=0,"",SISWA!C49) -> 0078481731 | D49: =IF(SISWA!D49=0,"",SISWA!D49) -> 1-18-05-80-162-042-7 | E49: =IF(SISWA!E49=0,"",SISWA!E49) -> FABIYAN TRI BAKTI OKTAFIAN | G49: 64 | H49: 78 | I49: 86 | J49: 83 | K49: 77.75 | L49: 60 | M49: 76.95 | N49: 68.475 | O49: 68.475 | P49: 68.475
A50: 43 | B50: =IF(SISWA!B50=0,"",SISWA!B50) -> 4343 | C50: =IF(SISWA!C50=0,"",SISWA!C50) -> 3075965396 | D50: =IF(SISWA!D50=0,"",SISWA!D50) -> 1-18-05-80-162-043-6 | E50: =IF(SISWA!E50=0,"",SISWA!E50) -> FELISITA APRILIA NUR NIHAYA | G50: 69 | H50: 83 | I50: 86 | J50: 84 | K50: =AVERAGE(F50:J50) -> 80.5 | L50: 72.5 | M50: 81.2 | N50: 76.85 | O50: 76.85 | P50: 76.85
A51: 44 | B51: =IF(SISWA!B51=0,"",SISWA!B51) -> 4344 | C51: =IF(SISWA!C51=0,"",SISWA!C51) -> 3078948093 | D51: =IF(SISWA!D51=0,"",SISWA!D51) -> 1-18-05-80-162-044-5 | E51: =IF(SISWA!E51=0,"",SISWA!E51) -> FIRDA DWI ANDRIANI | G51: 64 | H51: 83 | I51: 85 | J51: 94 | K51: 81.5 | L51: 60 | M51: 80.7 | N51: 70.35 | O51: 70.35 | P51: 70.35
A52: 45 | B52: =IF(SISWA!B52=0,"",SISWA!B52) -> 4372 | C52: =IF(SISWA!C52=0,"",SISWA!C52) -> 0087636520 | D52: =IF(SISWA!D52=0,"",SISWA!D52) -> 1-18-05-80-162-045-4 | E52: =IF(SISWA!E52=0,"",SISWA!E52) -> GILANG AKBAR PRASETYO | G52: 62 | H52: 75 | I52: 85 | J52: 84 | K52: 76.5 | L52: 60 | M52: 76.1 | N52: 68.05 | O52: 68.05 | P52: 68.05
A53: 46 | B53: =IF(SISWA!B53=0,"",SISWA!B53) -> 4373 | C53: =IF(SISWA!C53=0,"",SISWA!C53) -> 0087373224 | D53: =IF(SISWA!D53=0,"",SISWA!D53) -> 1-18-05-80-162-046-3 | E53: =IF(SISWA!E53=0,"",SISWA!E53) -> IFTAH IZZAH EMILIA MAHMUD | G53: 70 | H53: 76 | I53: 85 | J53: 80 | K53: 77.75 | L53: 80 | M53: 79.75 | N53: 79.875 | O53: 79.875 | P53: 79.875
A54: 47 | B54: =IF(SISWA!B54=0,"",SISWA!B54) -> 4441 | C54: =IF(SISWA!C54=0,"",SISWA!C54) -> 0081758949 | D54: =IF(SISWA!D54=0,"",SISWA!D54) -> 1-18-05-80-162-047-2 | E54: =IF(SISWA!E54=0,"",SISWA!E54) -> INES ARIFANI MAULINA | G54: 65 | H54: 83 | I54: 86 | J54: 87 | K54: 80.25 | L54: 92.5 | M54: 85.75 | N54: 89.125 | O54: 89.125 | P54: 89.125
A55: 48 | B55: =IF(SISWA!B55=0,"",SISWA!B55) -> 4374 | C55: =IF(SISWA!C55=0,"",SISWA!C55) -> 0073409469 | D55: =IF(SISWA!D55=0,"",SISWA!D55) -> 1-18-05-80-162-048-9 | E55: =IF(SISWA!E55=0,"",SISWA!E55) -> IYAAD AFLAKHA RAMZII | G55: 64 | H55: 84 | I55: 86 | J55: 92 | K55: 81.5 | L55: 67.5 | M55: 82.2 | N55: 74.85 | O55: 74.85 | P55: 74.85
A56: 49 | B56: =IF(SISWA!B56=0,"",SISWA!B56) -> 4305 | C56: =IF(SISWA!C56=0,"",SISWA!C56) -> 0068258891 | D56: =IF(SISWA!D56=0,"",SISWA!D56) -> 1-18-05-80-162-049-8 | E56: =IF(SISWA!E56=0,"",SISWA!E56) -> JULI ANDRIYANTO | G56: 64 | H56: 80 | I56: 85 | J56: 84 | K56: 78.25 | L56: 60 | M56: 77.45 | N56: 68.725 | O56: 68.725 | P56: 68.725
A57: 50 | B57: =IF(SISWA!B57=0,"",SISWA!B57) -> 4347 | C57: =IF(SISWA!C57=0,"",SISWA!C57) -> 0076367763 | D57: =IF(SISWA!D57=0,"",SISWA!D57) -> 1-18-05-80-162-050-7 | E57: =IF(SISWA!E57=0,"",SISWA!E57) -> LIYA FEBRIYANI | G57: 81 | H57: 92 | I57: 87 | J57: 97 | K57: 89.25 | L57: 85 | M57: 90.05 | N57: 87.525 | O57: 87.525 | P57: 87.525
A58: 51 | B58: =IF(SISWA!B58=0,"",SISWA!B58) -> 4348 | C58: =IF(SISWA!C58=0,"",SISWA!C58) -> 0083034332 | D58: =IF(SISWA!D58=0,"",SISWA!D58) -> 1-18-05-80-162-051-6 | E58: =IF(SISWA!E58=0,"",SISWA!E58) -> LIZATUL CHAIYUNI | G58: 77 | H58: 85 | I58: 87 | J58: 87 | K58: 84 | L58: 80 | M58: 84.6 | N58: 82.3 | O58: 82.3 | P58: 82.3
A59: 52 | B59: =IF(SISWA!B59=0,"",SISWA!B59) -> 4531 | C59: =IF(SISWA!C59=0,"",SISWA!C59) -> 3099539154 | D59: =IF(SISWA!D59=0,"",SISWA!D59) -> 1-18-05-80-162-052-5 | E59: =IF(SISWA!E59=0,"",SISWA!E59) -> M. ALHAFIS | G59: 79 | H59: 76 | I59: 86 | J59: 91 | K59: 83 | L59: 60 | M59: 79.2 | N59: 69.6 | O59: 69.6 | P59: 69.6
A60: 53 | B60: =IF(SISWA!B60=0,"",SISWA!B60) -> 4530 | C60: =IF(SISWA!C60=0,"",SISWA!C60) -> 0077015789 | D60: =IF(SISWA!D60=0,"",SISWA!D60) -> 1-18-05-80-162-053-4 | E60: =IF(SISWA!E60=0,"",SISWA!E60) -> MUHAMMAD RIZKI RIDWAN | G60: 64 | H60: 75 | I60: 85 | J60: 84 | K60: 77 | L60: 70 | M60: 78.2 | N60: 74.1 | O60: 74.1 | P60: 74.1
A61: 54 | B61: =IF(SISWA!B61=0,"",SISWA!B61) -> 4351 | C61: =IF(SISWA!C61=0,"",SISWA!C61) -> 0076361559 | D61: =IF(SISWA!D61=0,"",SISWA!D61) -> 1-18-05-80-162-054-3 | E61: =IF(SISWA!E61=0,"",SISWA!E61) -> MOCHAMAD RAFLI DIAN SAPUTRA | G61: 64 | H61: 77 | I61: 86 | J61: 84 | K61: 77.75 | L61: 60 | M61: 76.95 | N61: 68.475 | O61: 68.475 | P61: 68.475
A62: 55 | B62: =IF(SISWA!B62=0,"",SISWA!B62) -> 4352 | C62: =IF(SISWA!C62=0,"",SISWA!C62) -> 0075591405 | D62: =IF(SISWA!D62=0,"",SISWA!D62) -> 1-18-05-80-162-055-2 | E62: =IF(SISWA!E62=0,"",SISWA!E62) -> MOCHAMMAD AFAREL PUTRA RAMDHANA | G62: 81 | H62: 83 | I62: 85 | J62: 85 | K62: 83.5 | L62: 60 | M62: 79.3 | N62: 69.65 | O62: 69.65 | P62: 69.65
A63: 56 | B63: =IF(SISWA!B63=0,"",SISWA!B63) -> 4355 | C63: =IF(SISWA!C63=0,"",SISWA!C63) -> 0075363258 | D63: =IF(SISWA!D63=0,"",SISWA!D63) -> 1-18-05-80-162-056-9 | E63: =IF(SISWA!E63=0,"",SISWA!E63) -> MUHAMAD JEFRI MAULANA | G63: 74 | H63: 79 | I63: 86 | J63: 85 | K63: 81 | L63: 60 | M63: 78.2 | N63: 69.1 | O63: 69.1 | P63: 69.1
A64: 57 | B64: =IF(SISWA!B64=0,"",SISWA!B64) -> 4376 | C64: =IF(SISWA!C64=0,"",SISWA!C64) -> 0072066741 | D64: =IF(SISWA!D64=0,"",SISWA!D64) -> 1-18-05-80-162-057-8 | E64: =IF(SISWA!E64=0,"",SISWA!E64) -> MUHAMMAD DWI WILDAN BAGUS KURNIAWAN | G64: 60 | H64: 75 | I64: 85 | J64: 84 | K64: 76 | L64: 60 | M64: 76 | N64: 68 | O64: 68 | P64: 68
A65: 58 | B65: =IF(SISWA!B65=0,"",SISWA!B65) -> 4377 | C65: =IF(SISWA!C65=0,"",SISWA!C65) -> 0071459044 | D65: =IF(SISWA!D65=0,"",SISWA!D65) -> 1-18-05-80-162-058-7 | E65: =IF(SISWA!E65=0,"",SISWA!E65) -> MUHAMMAD FARIL FIRMANSYA | G65: 64 | H65: 75 | I65: 86 | J65: 85 | K65: 77.5 | L65: 60 | M65: 76.7 | N65: 68.35 | O65: 68.35 | P65: 68.35
A66: 59 | B66: =IF(SISWA!B66=0,"",SISWA!B66) -> 4349 | C66: =IF(SISWA!C66=0,"",SISWA!C66) -> 0074206034 | D66: =IF(SISWA!D66=0,"",SISWA!D66) -> 1-18-05-80-162-059-6 | E66: =IF(SISWA!E66=0,"",SISWA!E66) -> MUHAMMAD FARIZ UBAIDILLA | G66: 80 | H66: 83 | I66: 85 | J66: 89 | K66: 84.25 | L66: 70 | M66: 82.25 | N66: 76.125 | O66: 76.125 | P66: 76.125
A67: 60 | B67: =IF(SISWA!B67=0,"",SISWA!B67) -> 4356 | C67: =IF(SISWA!C67=0,"",SISWA!C67) -> 0077937892 | D67: =IF(SISWA!D67=0,"",SISWA!D67) -> 1-18-05-80-162-060-5 | E67: =IF(SISWA!E67=0,"",SISWA!E67) -> MUHAMMAD MAULANA ZIDANIL ILMI | G67: 79 | H67: 86 | I67: 86 | J67: 97 | K67: 87 | L67: 77.5 | M67: 86.7 | N67: 82.1 | O67: 82.1 | P67: 82.1
A68: 61 | B68: =IF(SISWA!B68=0,"",SISWA!B68) -> 4357 | C68: =IF(SISWA!C68=0,"",SISWA!C68) -> 0078608527 | D68: =IF(SISWA!D68=0,"",SISWA!D68) -> 1-18-05-80-162-061-4 | E68: =IF(SISWA!E68=0,"",SISWA!E68) -> MUHAMMAD SUTRISNO ISMAIL | G68: 68 | H68: 75 | I68: 86 | J68: 91 | K68: 80 | L68: 97 | M68: 85.8 | N68: 91.4 | O68: 91.4 | P68: 91.4
A69: 62 | B69: =IF(SISWA!B69=0,"",SISWA!B69) -> 4381 | C69: =IF(SISWA!C69=0,"",SISWA!C69) -> 0072209435 | D69: =IF(SISWA!D69=0,"",SISWA!D69) -> 1-18-05-80-162-062-3 | E69: =IF(SISWA!E69=0,"",SISWA!E69) -> NOVITA ERNIAWAN | G69: 83 | H69: 83 | I69: 86 | J69: 86 | K69: 84.5 | L69: 65 | M69: 80.9 | N69: 72.95 | O69: 72.95 | P69: 72.95
A70: 63 | B70: =IF(SISWA!B70=0,"",SISWA!B70) -> 4383 | C70: =IF(SISWA!C70=0,"",SISWA!C70) -> 0077439834 | D70: =IF(SISWA!D70=0,"",SISWA!D70) -> 1-18-05-80-162-063-2 | E70: =IF(SISWA!E70=0,"",SISWA!E70) -> PUTRI AULIA DWI AGUSTIN | G70: 76 | H70: 90 | I70: 86 | J70: 88 | K70: 85 | L70: 70 | M70: 83.8 | N70: 76.9 | O70: 76.9 | P70: 76.9
A71: 64 | B71: =IF(SISWA!B71=0,"",SISWA!B71) -> 4385 | C71: =IF(SISWA!C71=0,"",SISWA!C71) -> 0073137310 | D71: =IF(SISWA!D71=0,"",SISWA!D71) -> 1-18-05-80-162-064-9 | E71: =IF(SISWA!E71=0,"",SISWA!E71) -> STANY RAFIDAH RAHMANIA | G71: 64 | H71: 77 | I71: 85 | J71: 85 | K71: 77.75 | L71: 60 | M71: 76.95 | N71: 68.475 | O71: 68.475 | P71: 68.475
A72: 65 | B72: =IF(SISWA!B72=0,"",SISWA!B72) -> 4387 | C72: =IF(SISWA!C72=0,"",SISWA!C72) -> 0077336427 | D72: =IF(SISWA!D72=0,"",SISWA!D72) -> 1-18-05-80-162-065-8 | E72: =IF(SISWA!E72=0,"",SISWA!E72) -> USWATUN KHASANAH | G72: 64 | H72: 77 | I72: 85 | J72: 96 | K72: 80.5 | L72: 65 | M72: 80.7 | N72: 72.85 | O72: 72.85 | P72: 72.85
A73: 66 | B73: =IF(SISWA!B73=0,"",SISWA!B73) -> 4389 | C73: =IF(SISWA!C73=0,"",SISWA!C73) -> 0078407631 | D73: =IF(SISWA!D73=0,"",SISWA!D73) -> 1-18-05-80-162-066-7 | E73: =IF(SISWA!E73=0,"",SISWA!E73) -> VIKROUL KHAMILA | G73: 78 | H73: 86 | I73: 85 | J73: 90 | K73: =AVERAGE(F73:J73) -> 84.75 | L73: 60 | M73: 81.15 | N73: =AVERAGE(L73:M73) -> 70.575 | O73: =AVERAGE(L73:M73) -> 70.575 | P73: 70.575
A74: 67 | B74: =IF(SISWA!B74=0,"",SISWA!B74) ->  | C74: =IF(SISWA!C74=0,"",SISWA!C74) ->  | D74: =IF(SISWA!D74=0,"",SISWA!D74) ->  | E74: =IF(SISWA!E74=0,"",SISWA!E74) -> 
A75: 68 | B75: =IF(SISWA!B75=0,"",SISWA!B75) ->  | C75: =IF(SISWA!C75=0,"",SISWA!C75) ->  | D75: =IF(SISWA!D75=0,"",SISWA!D75) ->  | E75: =IF(SISWA!E75=0,"",SISWA!E75) -> 
A76: 69 | B76: =IF(SISWA!B76=0,"",SISWA!B76) ->  | C76: =IF(SISWA!C76=0,"",SISWA!C76) ->  | D76: =IF(SISWA!D76=0,"",SISWA!D76) ->  | E76: =IF(SISWA!E76=0,"",SISWA!E76) -> 
A77: 70 | B77: =IF(SISWA!B77=0,"",SISWA!B77) ->  | C77: =IF(SISWA!C77=0,"",SISWA!C77) ->  | D77: =IF(SISWA!D77=0,"",SISWA!D77) ->  | E77: =IF(SISWA!E77=0,"",SISWA!E77) -> 
A78: 71 | B78: =IF(SISWA!B78=0,"",SISWA!B78) ->  | C78: =IF(SISWA!C78=0,"",SISWA!C78) ->  | D78: =IF(SISWA!D78=0,"",SISWA!D78) ->  | E78: =IF(SISWA!E78=0,"",SISWA!E78) -> 
A79: 72 | B79: =IF(SISWA!B79=0,"",SISWA!B79) ->  | C79: =IF(SISWA!C79=0,"",SISWA!C79) ->  | D79: =IF(SISWA!D79=0,"",SISWA!D79) ->  | E79: =IF(SISWA!E79=0,"",SISWA!E79) -> 
A80: 73 | B80: =IF(SISWA!B80=0,"",SISWA!B80) ->  | C80: =IF(SISWA!C80=0,"",SISWA!C80) ->  | D80: =IF(SISWA!D80=0,"",SISWA!D80) ->  | E80: =IF(SISWA!E80=0,"",SISWA!E80) -> 
A81: 74 | B81: =IF(SISWA!B81=0,"",SISWA!B81) ->  | C81: =IF(SISWA!C81=0,"",SISWA!C81) ->  | D81: =IF(SISWA!D81=0,"",SISWA!D81) ->  | E81: =IF(SISWA!E81=0,"",SISWA!E81) -> 
A82: 75 | B82: =IF(SISWA!B82=0,"",SISWA!B82) ->  | C82: =IF(SISWA!C82=0,"",SISWA!C82) ->  | D82: =IF(SISWA!D82=0,"",SISWA!D82) ->  | E82: =IF(SISWA!E82=0,"",SISWA!E82) -> 
A83: 76 | B83: =IF(SISWA!B83=0,"",SISWA!B83) ->  | C83: =IF(SISWA!C83=0,"",SISWA!C83) ->  | D83: =IF(SISWA!D83=0,"",SISWA!D83) ->  | E83: =IF(SISWA!E83=0,"",SISWA!E83) -> 
A84: 77 | B84: =IF(SISWA!B84=0,"",SISWA!B84) ->  | C84: =IF(SISWA!C84=0,"",SISWA!C84) ->  | D84: =IF(SISWA!D84=0,"",SISWA!D84) ->  | E84: =IF(SISWA!E84=0,"",SISWA!E84) -> 
A85: 78 | B85: =IF(SISWA!B85=0,"",SISWA!B85) ->  | C85: =IF(SISWA!C85=0,"",SISWA!C85) ->  | D85: =IF(SISWA!D85=0,"",SISWA!D85) ->  | E85: =IF(SISWA!E85=0,"",SISWA!E85) -> 
A86: 79 | B86: =IF(SISWA!B86=0,"",SISWA!B86) ->  | C86: =IF(SISWA!C86=0,"",SISWA!C86) ->  | D86: =IF(SISWA!D86=0,"",SISWA!D86) ->  | E86: =IF(SISWA!E86=0,"",SISWA!E86) -> 
A87: 80 | B87: =IF(SISWA!B87=0,"",SISWA!B87) ->  | C87: =IF(SISWA!C87=0,"",SISWA!C87) ->  | D87: =IF(SISWA!D87=0,"",SISWA!D87) ->  | E87: =IF(SISWA!E87=0,"",SISWA!E87) -> 
A88: 81 | B88: =IF(SISWA!B88=0,"",SISWA!B88) ->  | C88: =IF(SISWA!C88=0,"",SISWA!C88) ->  | D88: =IF(SISWA!D88=0,"",SISWA!D88) ->  | E88: =IF(SISWA!E88=0,"",SISWA!E88) -> 
A89: 82 | B89: =IF(SISWA!B89=0,"",SISWA!B89) ->  | C89: =IF(SISWA!C89=0,"",SISWA!C89) ->  | D89: =IF(SISWA!D89=0,"",SISWA!D89) ->  | E89: =IF(SISWA!E89=0,"",SISWA!E89) -> 
A90: 83 | B90: =IF(SISWA!B90=0,"",SISWA!B90) ->  | C90: =IF(SISWA!C90=0,"",SISWA!C90) ->  | D90: =IF(SISWA!D90=0,"",SISWA!D90) ->  | E90: =IF(SISWA!E90=0,"",SISWA!E90) -> 
A91: 84 | B91: =IF(SISWA!B91=0,"",SISWA!B91) ->  | C91: =IF(SISWA!C91=0,"",SISWA!C91) ->  | D91: =IF(SISWA!D91=0,"",SISWA!D91) ->  | E91: =IF(SISWA!E91=0,"",SISWA!E91) -> 
A92: 85 | B92: =IF(SISWA!B92=0,"",SISWA!B92) ->  | C92: =IF(SISWA!C92=0,"",SISWA!C92) ->  | D92: =IF(SISWA!D92=0,"",SISWA!D92) ->  | E92: =IF(SISWA!E92=0,"",SISWA!E92) -> 
A93: 86 | B93: =IF(SISWA!B93=0,"",SISWA!B93) ->  | C93: =IF(SISWA!C93=0,"",SISWA!C93) ->  | D93: =IF(SISWA!D93=0,"",SISWA!D93) ->  | E93: =IF(SISWA!E93=0,"",SISWA!E93) -> 
A94: 87 | B94: =IF(SISWA!B94=0,"",SISWA!B94) ->  | C94: =IF(SISWA!C94=0,"",SISWA!C94) ->  | D94: =IF(SISWA!D94=0,"",SISWA!D94) ->  | E94: =IF(SISWA!E94=0,"",SISWA!E94) -> 
A95: 88 | B95: =IF(SISWA!B95=0,"",SISWA!B95) ->  | C95: =IF(SISWA!C95=0,"",SISWA!C95) ->  | D95: =IF(SISWA!D95=0,"",SISWA!D95) ->  | E95: =IF(SISWA!E95=0,"",SISWA!E95) -> 
A96: 89 | B96: =IF(SISWA!B96=0,"",SISWA!B96) ->  | C96: =IF(SISWA!C96=0,"",SISWA!C96) ->  | D96: =IF(SISWA!D96=0,"",SISWA!D96) ->  | E96: =IF(SISWA!E96=0,"",SISWA!E96) -> 
A97: 90 | B97: =IF(SISWA!B97=0,"",SISWA!B97) ->  | C97: =IF(SISWA!C97=0,"",SISWA!C97) ->  | D97: =IF(SISWA!D97=0,"",SISWA!D97) ->  | E97: =IF(SISWA!E97=0,"",SISWA!E97) -> 
A98: 91 | B98: =IF(SISWA!B98=0,"",SISWA!B98) ->  | C98: =IF(SISWA!C98=0,"",SISWA!C98) ->  | D98: =IF(SISWA!D98=0,"",SISWA!D98) ->  | E98: =IF(SISWA!E98=0,"",SISWA!E98) -> 
A99: 92 | B99: =IF(SISWA!B99=0,"",SISWA!B99) ->  | C99: =IF(SISWA!C99=0,"",SISWA!C99) ->  | D99: =IF(SISWA!D99=0,"",SISWA!D99) ->  | E99: =IF(SISWA!E99=0,"",SISWA!E99) -> 
A100: 93 | B100: =IF(SISWA!B100=0,"",SISWA!B100) ->  | C100: =IF(SISWA!C100=0,"",SISWA!C100) ->  | D100: =IF(SISWA!D100=0,"",SISWA!D100) ->  | E100: =IF(SISWA!E100=0,"",SISWA!E100) -> 
A101: 94 | B101: =IF(SISWA!B101=0,"",SISWA!B101) ->  | C101: =IF(SISWA!C101=0,"",SISWA!C101) ->  | D101: =IF(SISWA!D101=0,"",SISWA!D101) ->  | E101: =IF(SISWA!E101=0,"",SISWA!E101) -> 

Sheet FQ
A1: DAFTAR NILAI AKHIR SEKOLAH
A2: =AA!A2 -> MADRASAH IBTIDAIYAH NURUL ISLAM LABRUK KIDUL
A3: =AA!A3 -> TAHUN PELAJARAN 2019/2020
A5: NO | B5: No Induk | C5: NISN | D5: Nomor Peserta | E5: Nama Peserta | F5: FIQIH | N5: rata-rata UAM & PRAKTEK
F6: Nilai Semester | K6: Rata- 2 | L6: NILAI UAMBD | P6: UAMNU
F7: 7 | G7: 8 | H7: 9 | I7: 10 | J7: 11 | K7: Rapor | L7: TULIS | M7: PRAKTIK | P7: TULIS
A8: 1 | B8: =IF(SISWA!B8=0,"",SISWA!B8) -> 4331 | C8: =IF(SISWA!C8=0,"",SISWA!C8) -> 0078140536 | D8: =IF(SISWA!D8=0,"",SISWA!D8) -> 1-18-05-80-162-001-8 | E8: =IF(SISWA!E8=0,"",SISWA!E8) -> ACHMAD FATHIR IZUDDIN | G8: 84 | H8: 78 | I8: 81 | J8: 88 | K8: =AVERAGE(F8:J8) -> 82.75 | L8: 82.5 | M8: =AVERAGE(H8:L8) -> 82.45 | N8: =AVERAGE(K8:L8) -> 82.625 | O8: =IF(M8>95,"GANTI","") ->  | P8: 82.625
A9: 2 | B9: =IF(SISWA!B9=0,"",SISWA!B9) -> 4333 | C9: =IF(SISWA!C9=0,"",SISWA!C9) -> 0084691896 | D9: =IF(SISWA!D9=0,"",SISWA!D9) -> 1-18-05-80-162-002-7 | E9: =IF(SISWA!E9=0,"",SISWA!E9) -> AININ NAFISA FEBRIYANTI | G9: 85 | H9: 88 | I9: 85 | J9: 88 | K9: =AVERAGE(F9:J9) -> 86.5 | L9: 72.5 | M9: 84 | N9: =AVERAGE(K9:L9) -> 79.5 | O9: =IF(M9>95,"GANTI","") ->  | P9: 79.5
A10: 3 | B10: =IF(SISWA!B10=0,"",SISWA!B10) -> 4334 | C10: =IF(SISWA!C10=0,"",SISWA!C10) -> 0075488897 | D10: =IF(SISWA!D10=0,"",SISWA!D10) -> 1-18-05-80-162-003-6 | E10: =IF(SISWA!E10=0,"",SISWA!E10) -> AISYAH DWI ANDINI | G10: 85 | H10: 94 | I10: 89 | J10: 94 | K10: 90.5 | L10: 77.5 | M10: 89 | N10: 84 | P10: 84
A11: 4 | B11: =IF(SISWA!B11=0,"",SISWA!B11) -> 4335 | C11: =IF(SISWA!C11=0,"",SISWA!C11) -> 0077554289 | D11: =IF(SISWA!D11=0,"",SISWA!D11) -> 1-18-05-80-162-004-5 | E11: =IF(SISWA!E11=0,"",SISWA!E11) -> AJENG AGUSTINA KIRANA PUTRI | G11: 85 | H11: 87 | I11: 83 | J11: 90 | K11: 86.25 | L11: 60 | M11: 81.25 | N11: 73.125 | P11: 73.125
A12: 5 | B12: =IF(SISWA!B12=0,"",SISWA!B12) -> 4336 | C12: =IF(SISWA!C12=0,"",SISWA!C12) -> 0078831956 | D12: =IF(SISWA!D12=0,"",SISWA!D12) -> 1-18-05-80-162-005-4 | E12: =IF(SISWA!E12=0,"",SISWA!E12) -> ALVIAN FAIZULHAQQI | G12: 85 | H12: 83 | I12: 85 | J12: 92 | K12: 86.25 | L12: 65 | M12: 82.25 | N12: 75.625 | P12: 75.625
A13: 6 | B13: =IF(SISWA!B13=0,"",SISWA!B13) -> 4337 | C13: =IF(SISWA!C13=0,"",SISWA!C13) -> 0073667130 | D13: =IF(SISWA!D13=0,"",SISWA!D13) -> 1-18-05-80-162-006-3 | E13: =IF(SISWA!E13=0,"",SISWA!E13) -> ANGGITA RIZKY YUGA MEISYA | G13: 85 | H13: 91 | I13: 93 | J13: 92 | K13: 90.25 | L13: 76.42857143 | M13: 88.53571429 | N13: 83.33928571 | P13: 83.33928571
A14: 7 | B14: =IF(SISWA!B14=0,"",SISWA!B14) -> 4338 | C14: =IF(SISWA!C14=0,"",SISWA!C14) -> 0074492973 | D14: =IF(SISWA!D14=0,"",SISWA!D14) -> 1-18-05-80-162-007-2 | E14: =IF(SISWA!E14=0,"",SISWA!E14) -> AURA SALSABILA WULAN SARI | G14: 85 | H14: 92 | I14: 92 | J14: 93 | K14: 90.5 | L14: 72.5 | M14: 88 | N14: 81.5 | P14: 81.5
A15: 8 | B15: =IF(SISWA!B15=0,"",SISWA!B15) -> 4366 | C15: =IF(SISWA!C15=0,"",SISWA!C15) -> 0078989673 | D15: =IF(SISWA!D15=0,"",SISWA!D15) -> 1-18-05-80-162-008-9 | E15: =IF(SISWA!E15=0,"",SISWA!E15) -> BALQIS NAILA AUDIA | G15: 85 | H15: 95 | I15: 93 | J15: 88 | K15: 90.25 | L15: 77.5 | M15: 88.75 | N15: 83.875 | P15: 83.875
A16: 9 | B16: =IF(SISWA!B16=0,"",SISWA!B16) -> 4440 | C16: =IF(SISWA!C16=0,"",SISWA!C16) -> 0082763386 | D16: =IF(SISWA!D16=0,"",SISWA!D16) -> 1-18-05-80-162-009-8 | E16: =IF(SISWA!E16=0,"",SISWA!E16) -> BIMA ARYO SUSILO | G16: 80 | H16: 85 | I16: 95 | J16: 86 | K16: 86.5 | L16: 65 | M16: 83.5 | N16: 75.75 | P16: 75.75
A17: 10 | B17: =IF(SISWA!B17=0,"",SISWA!B17) -> 4367 | C17: =IF(SISWA!C17=0,"",SISWA!C17) -> 0078400392 | D17: =IF(SISWA!D17=0,"",SISWA!D17) -> 1-18-05-80-162-010-7 | E17: =IF(SISWA!E17=0,"",SISWA!E17) -> BIMA SATRIA DIRGANTARA | G17: 81 | H17: 87 | I17: 83 | J17: 83 | K17: 83.5 | L17: 60 | M17: 79.3 | N17: 71.75 | P17: 71.75
A18: 11 | B18: =IF(SISWA!B18=0,"",SISWA!B18) -> 4339 | C18: =IF(SISWA!C18=0,"",SISWA!C18) -> 0086652599 | D18: =IF(SISWA!D18=0,"",SISWA!D18) -> 1-18-05-80-162-011-6 | E18: =IF(SISWA!E18=0,"",SISWA!E18) -> DEVI KARUNIA RATNA PUTRI | G18: 83 | H18: 91 | I18: 87 | J18: 91 | K18: 88 | L18: 65 | M18: 84.4 | N18: 76.5 | P18: 76.5
A19: 12 | B19: =IF(SISWA!B19=0,"",SISWA!B19) -> 4340 | C19: =IF(SISWA!C19=0,"",SISWA!C19) -> 0089906682 | D19: =IF(SISWA!D19=0,"",SISWA!D19) -> 1-18-05-80-162-012-5 | E19: =IF(SISWA!E19=0,"",SISWA!E19) -> DEVITA FEBRIANI PUTRI | G19: 81 | H19: 94 | I19: 86 | J19: 94 | K19: 88.75 | L19: 65 | M19: 85.55 | N19: 76.875 | P19: 76.875
A20: 13 | B20: =IF(SISWA!B20=0,"",SISWA!B20) -> 4370 | C20: =IF(SISWA!C20=0,"",SISWA!C20) -> 0074514146 | D20: =IF(SISWA!D20=0,"",SISWA!D20) -> 1-18-05-80-162-013-4 | E20: =IF(SISWA!E20=0,"",SISWA!E20) -> FAKHIS GABRIL LIA | G20: 85 | H20: 88 | I20: 81 | J20: 93 | K20: 86.75 | L20: 80 | M20: 85.75 | N20: 83.375 | P20: 83.375
A21: 14 | B21: =IF(SISWA!B21=0,"",SISWA!B21) -> 4342 | C21: =IF(SISWA!C21=0,"",SISWA!C21) -> 0081081672 | D21: =IF(SISWA!D21=0,"",SISWA!D21) -> 1-18-05-80-162-014-3 | E21: =IF(SISWA!E21=0,"",SISWA!E21) -> FARAH NAILATUL ALYAH | G21: 93 | H21: 85 | I21: 87 | J21: 93 | K21: 89.5 | L21: 75 | M21: 85.9 | N21: 82.25 | P21: 82.25
A22: 15 | B22: =IF(SISWA!B22=0,"",SISWA!B22) -> 4345 | C22: =IF(SISWA!C22=0,"",SISWA!C22) -> 0073420487 | D22: =IF(SISWA!D22=0,"",SISWA!D22) -> 1-18-05-80-162-015-2 | E22: =IF(SISWA!E22=0,"",SISWA!E22) -> GALANG MARDHOTILLAH SATOTO | G22: 80 | H22: 79 | I22: 81 | J22: 87 | K22: 81.75 | L22: 70 | M22: 79.75 | N22: 75.875 | P22: 75.875
A23: 16 | B23: =IF(SISWA!B23=0,"",SISWA!B23) -> 4371 | C23: =IF(SISWA!C23=0,"",SISWA!C23) -> 0079870082 | D23: =IF(SISWA!D23=0,"",SISWA!D23) -> 1-18-05-80-162-016-9 | E23: =IF(SISWA!E23=0,"",SISWA!E23) -> GALIH FAREL PRASTYO | G23: 79 | H23: 79 | I23: 84 | J23: 89 | K23: 82.75 | L23: 60 | M23: 78.95 | N23: 71.375 | P23: 71.375
A24: 17 | B24: =IF(SISWA!B24=0,"",SISWA!B24) -> 4466 | C24: =IF(SISWA!C24=0,"",SISWA!C24) -> 0081629504 | D24: =IF(SISWA!D24=0,"",SISWA!D24) -> 1-18-05-80-162-017-8 | E24: =IF(SISWA!E24=0,"",SISWA!E24) -> HIBATULLAH MUSTAGHFIRY RUSLI | G24: 83 | H24: 83 | I24: 90 | J24: 91 | K24: 86.75 | L24: 67.5 | M24: 83.65 | N24: 77.125 | P24: 77.125
A25: 18 | B25: =IF(SISWA!B25=0,"",SISWA!B25) -> 4346 | C25: =IF(SISWA!C25=0,"",SISWA!C25) -> 0073608418 | D25: =IF(SISWA!D25=0,"",SISWA!D25) -> 1-18-05-80-162-018-7 | E25: =IF(SISWA!E25=0,"",SISWA!E25) -> IKA KURNIA WATI AGUSTINA | G25: 81 | H25: 80 | I25: 83 | J25: 84 | K25: 82 | L25: 60 | M25: 77.8 | N25: 71 | P25: 71
A26: 19 | B26: =IF(SISWA!B26=0,"",SISWA!B26) -> 4350 | C26: =IF(SISWA!C26=0,"",SISWA!C26) -> 0072658586 | D26: =IF(SISWA!D26=0,"",SISWA!D26) -> 1-18-05-80-162-019-6 | E26: =IF(SISWA!E26=0,"",SISWA!E26) -> MAYLUNA EKA PRATIWI | G26: 91 | H26: 97 | I26: 92 | J26: 94 | K26: 93.5 | L26: 82.5 | M26: 91.8 | N26: 88 | P26: 88
A27: 20 | B27: =IF(SISWA!B27=0,"",SISWA!B27) -> 4353 | C27: =IF(SISWA!C27=0,"",SISWA!C27) -> 0075464137 | D27: =IF(SISWA!D27=0,"",SISWA!D27) -> 1-18-05-80-162-020-5 | E27: =IF(SISWA!E27=0,"",SISWA!E27) -> MOHAMAD DWIMAS FIRDAUS | G27: 88 | H27: 84 | I27: 97 | J27: 89 | K27: 89.5 | L27: 60 | M27: 83.9 | N27: 74.75 | P27: 74.75
A28: 21 | B28: =IF(SISWA!B28=0,"",SISWA!B28) -> 4375 | C28: =IF(SISWA!C28=0,"",SISWA!C28) -> 0075096831 | D28: =IF(SISWA!D28=0,"",SISWA!D28) -> 1-18-05-80-162-021-4 | E28: =IF(SISWA!E28=0,"",SISWA!E28) -> MUHAMMAD AFFAN ABI SYAHPUTRA | G28: 84 | H28: 80 | I28: 81 | J28: 86 | K28: 82.75 | L28: 60 | M28: 77.95 | N28: 71.375 | P28: 71.375
A29: 22 | B29: =IF(SISWA!B29=0,"",SISWA!B29) -> 4354 | C29: =IF(SISWA!C29=0,"",SISWA!C29) -> 0075055640 | D29: =IF(SISWA!D29=0,"",SISWA!D29) -> 1-18-05-80-162-022-3 | E29: =IF(SISWA!E29=0,"",SISWA!E29) -> MUHAMMAD ALVIN RIDHO | G29: 76 | H29: 87 | I29: 82 | J29: 91 | K29: 84 | L29: 75 | M29: 83.8 | N29: 79.5 | P29: 79.5
A30: 23 | B30: =IF(SISWA!B30=0,"",SISWA!B30) -> 4378 | C30: =IF(SISWA!C30=0,"",SISWA!C30) -> 0074268893 | D30: =IF(SISWA!D30=0,"",SISWA!D30) -> 1-18-05-80-162-023-2 | E30: =IF(SISWA!E30=0,"",SISWA!E30) -> MUKHAMAD DAVID ARIF FIRDAUS | G30: 90 | H30: 94 | I30: 94 | J30: 92 | K30: 92.5 | L30: 77.5 | M30: 90 | N30: 85 | P30: 85
A31: 24 | B31: =IF(SISWA!B31=0,"",SISWA!B31) -> 4379 | C31: =IF(SISWA!C31=0,"",SISWA!C31) -> 0072757203 | D31: =IF(SISWA!D31=0,"",SISWA!D31) -> 1-18-05-80-162-024-9 | E31: =IF(SISWA!E31=0,"",SISWA!E31) -> NAORA ISQI AINAYYA | G31: 100 | H31: 98 | I31: 97 | J31: 94 | K31: 97.25 | L31: 90 | M31: 95.25 | N31: 93.625 | O31: GANTI | P31: 93.625
A32: 25 | B32: =IF(SISWA!B32=0,"",SISWA!B32) -> 4380 | C32: =IF(SISWA!C32=0,"",SISWA!C32) -> 0079026285 | D32: =IF(SISWA!D32=0,"",SISWA!D32) -> 1-18-05-80-162-025-8 | E32: =IF(SISWA!E32=0,"",SISWA!E32) -> NAZRA ISLAMAY PASHA | G32: 81 | H32: 84 | I32: 93 | J32: 93 | K32: 87.75 | L32: 75 | M32: 86.55 | N32: 81.375 | P32: 81.375
A33: 26 | B33: =IF(SISWA!B33=0,"",SISWA!B33) -> 4382 | C33: =IF(SISWA!C33=0,"",SISWA!C33) -> 0079872151 | D33: =IF(SISWA!D33=0,"",SISWA!D33) -> 1-18-05-80-162-026-7 | E33: =IF(SISWA!E33=0,"",SISWA!E33) -> NUR ALYA NABILA | G33: 87 | H33: 83 | I33: 84 | J33: 89 | K33: 85.75 | L33: 85 | M33: 85.35 | N33: 85.375 | P33: 85.375
A34: 27 | B34: =IF(SISWA!B34=0,"",SISWA!B34) -> 4358 | C34: =IF(SISWA!C34=0,"",SISWA!C34) -> 0087558837 | D34: =IF(SISWA!D34=0,"",SISWA!D34) -> 1-18-05-80-162-027-6 | E34: =IF(SISWA!E34=0,"",SISWA!E34) -> PUTRI SHOLIKHAH | G34: 84 | H34: 83 | I34: 87 | J34: 85 | K34: 84.75 | L34: 60 | M34: 79.95 | N34: 72.375 | P34: 72.375
A35: 28 | B35: =IF(SISWA!B35=0,"",SISWA!B35) -> 4384 | C35: =IF(SISWA!C35=0,"",SISWA!C35) -> 0071234523 | D35: =IF(SISWA!D35=0,"",SISWA!D35) -> 1-18-05-80-162-028-5 | E35: =IF(SISWA!E35=0,"",SISWA!E35) -> RESTI FITRIANTI DWI OCTAVIANI | G35: 86 | H35: 83 | I35: 87 | J35: 91 | K35: 86.75 | L35: 60 | M35: 81.55 | N35: 73.375 | P35: 73.375
A36: 29 | B36: =IF(SISWA!B36=0,"",SISWA!B36) -> 4359 | C36: =IF(SISWA!C36=0,"",SISWA!C36) -> 0073122181 | D36: =IF(SISWA!D36=0,"",SISWA!D36) -> 1-18-05-80-162-029-4 | E36: =IF(SISWA!E36=0,"",SISWA!E36) -> ROUDHOTUS SA'DIYAH | G36: 86 | H36: 83 | I36: 84 | J36: 89 | K36: 85.5 | L36: 87.5 | M36: 85.8 | N36: 86.5 | P36: 86.5
A37: 30 | B37: =IF(SISWA!B37=0,"",SISWA!B37) -> 4386 | C37: =IF(SISWA!C37=0,"",SISWA!C37) -> 0075344352 | D37: =IF(SISWA!D37=0,"",SISWA!D37) -> 1-18-05-80-162-030-3 | E37: =IF(SISWA!E37=0,"",SISWA!E37) -> TIERSYA BETA RAMANUZAN | G37: 89 | H37: 96 | I37: 87 | J37: 91 | K37: 90.75 | L37: 90 | M37: 90.95 | N37: 90.375 | P37: 90.375
A38: 31 | B38: =IF(SISWA!B38=0,"",SISWA!B38) -> 4388 | C38: =IF(SISWA!C38=0,"",SISWA!C38) -> 0077423646 | D38: =IF(SISWA!D38=0,"",SISWA!D38) -> 1-18-05-80-162-031-2 | E38: =IF(SISWA!E38=0,"",SISWA!E38) -> VERA MUSTIKA | G38: 77 | H38: 83 | I38: 94 | J38: 91 | K38: 86.25 | L38: 60 | M38: 82.85 | N38: 73.125 | P38: 73.125
A39: 32 | B39: =IF(SISWA!B39=0,"",SISWA!B39) -> 4360 | C39: =IF(SISWA!C39=0,"",SISWA!C39) -> 0077290990 | D39: =IF(SISWA!D39=0,"",SISWA!D39) -> 1-18-05-80-162-032-9 | E39: =IF(SISWA!E39=0,"",SISWA!E39) -> ZIDNY ILMA NABILA | G39: 92 | H39: 93 | I39: 87 | J39: 94 | K39: 91.5 | L39: 72.5 | M39: 87.6 | N39: 82 | P39: 82
A40: 33 | B40: =IF(SISWA!B40=0,"",SISWA!B40) -> 4390 | C40: =IF(SISWA!C40=0,"",SISWA!C40) -> 0077722307 | D40: =IF(SISWA!D40=0,"",SISWA!D40) -> 1-18-05-80-162-033-8 | E40: =IF(SISWA!E40=0,"",SISWA!E40) -> ZITNATUL AULIA ILLA | G40: 95 | H40: 98 | I40: 93 | J40: 96 | K40: 95.5 | L40: 97.5 | M40: 96 | N40: 96.5 | O40: GANTI | P40: 96.5
A41: 34 | B41: =IF(SISWA!B41=0,"",SISWA!B41) -> 4330 | C41: =IF(SISWA!C41=0,"",SISWA!C41) -> 0084736422 | D41: =IF(SISWA!D41=0,"",SISWA!D41) -> 1-18-05-80-162-034-7 | E41: =IF(SISWA!E41=0,"",SISWA!E41) -> ACHID ATHIRIL ARDAN | G41: 74 | H41: 78 | I41: 84 | J41: 85 | K41: 80.25 | L41: 60 | M41: 77.45 | N41: 70.125 | P41: 69.5
A42: 35 | B42: =IF(SISWA!B42=0,"",SISWA!B42) -> 4361 | C42: =IF(SISWA!C42=0,"",SISWA!C42) -> 0075656390 | D42: =IF(SISWA!D42=0,"",SISWA!D42) -> 1-18-05-80-162-035-6 | E42: =IF(SISWA!E42=0,"",SISWA!E42) -> ACHMAD SEPTIAN HAMDANI | G42: 85 | H42: 80 | I42: 86 | J42: 87 | K42: 84.5 | L42: 60 | M42: 79.5 | N42: 72.25 | P42: 72.75
A43: 36 | B43: =IF(SISWA!B43=0,"",SISWA!B43) -> 4362 | C43: =IF(SISWA!C43=0,"",SISWA!C43) -> 0071796138 | D43: =IF(SISWA!D43=0,"",SISWA!D43) -> 1-18-05-80-162-036-5 | E43: =IF(SISWA!E43=0,"",SISWA!E43) -> ACHMAD SULAIMAN | G43: 81 | H43: 78 | I43: 82 | J43: 82 | K43: 80.75 | L43: 70 | M43: 78.55 | N43: 75.375 | P43: 75.75
A44: 37 | B44: =IF(SISWA!B44=0,"",SISWA!B44) -> 4364 | C44: =IF(SISWA!C44=0,"",SISWA!C44) -> 0079667684 | D44: =IF(SISWA!D44=0,"",SISWA!D44) -> 1-18-05-80-162-037-4 | E44: =IF(SISWA!E44=0,"",SISWA!E44) -> AIRLANGGA DWIKA RIZQI | G44: 67 | H44: 75 | I44: 84 | J44: 82 | K44: 77 | L44: 60 | M44: 75.6 | N44: 68.5 | P44: 67.75
A45: 38 | B45: =IF(SISWA!B45=0,"",SISWA!B45) -> 4365 | C45: =IF(SISWA!C45=0,"",SISWA!C45) -> 0089321127 | D45: =IF(SISWA!D45=0,"",SISWA!D45) -> 1-18-05-80-162-038-3 | E45: =IF(SISWA!E45=0,"",SISWA!E45) -> AUFAN AZKAL ABRORI | G45: 85 | H45: 79 | I45: 86 | J45: 84 | K45: 83.5 | L45: 60 | M45: 78.5 | N45: 71.75 | P45: 72.75
A46: 39 | B46: =IF(SISWA!B46=0,"",SISWA!B46) -> 4465 | C46: =IF(SISWA!C46=0,"",SISWA!C46) -> 0071776593 | D46: =IF(SISWA!D46=0,"",SISWA!D46) -> 1-18-05-80-162-039-2 | E46: =IF(SISWA!E46=0,"",SISWA!E46) -> AZZA PRISHAL DWI PUTRA | G46: 83 | H46: 76 | I46: 82 | J46: 81 | K46: 80.5 | L46: 60 | M46: 75.9 | N46: 70.25 | P46: 71.25
A47: 40 | B47: =IF(SISWA!B47=0,"",SISWA!B47) -> 4368 | C47: =IF(SISWA!C47=0,"",SISWA!C47) -> 0074569410 | D47: =IF(SISWA!D47=0,"",SISWA!D47) -> 1-18-05-80-162-040-9 | E47: =IF(SISWA!E47=0,"",SISWA!E47) -> EKA AULIYA` PUTRI | G47: 75 | H47: 83 | I47: 89 | J47: 90 | K47: 84.25 | L47: 60 | M47: 81.25 | N47: 72.125 | P47: 71
A48: 41 | B48: =IF(SISWA!B48=0,"",SISWA!B48) -> 4341 | C48: =IF(SISWA!C48=0,"",SISWA!C48) -> 0083684457 | D48: =IF(SISWA!D48=0,"",SISWA!D48) -> 1-18-05-80-162-041-8 | E48: =IF(SISWA!E48=0,"",SISWA!E48) -> ERSA PUSPITA EKA ROSA LINDA | G48: 76 | H48: 83 | I48: 84 | J48: 82 | K48: 81.25 | L48: 60 | M48: 78.05 | N48: 70.625 | P48: 70
A49: 42 | B49: =IF(SISWA!B49=0,"",SISWA!B49) -> 4369 | C49: =IF(SISWA!C49=0,"",SISWA!C49) -> 0078481731 | D49: =IF(SISWA!D49=0,"",SISWA!D49) -> 1-18-05-80-162-042-7 | E49: =IF(SISWA!E49=0,"",SISWA!E49) -> FABIYAN TRI BAKTI OKTAFIAN | G49: 83 | H49: 85 | I49: 86 | J49: 86 | K49: 85 | L49: 60 | M49: 80.4 | N49: 72.5 | P49: 72.25
A50: 43 | B50: =IF(SISWA!B50=0,"",SISWA!B50) -> 4343 | C50: =IF(SISWA!C50=0,"",SISWA!C50) -> 3075965396 | D50: =IF(SISWA!D50=0,"",SISWA!D50) -> 1-18-05-80-162-043-6 | E50: =IF(SISWA!E50=0,"",SISWA!E50) -> FELISITA APRILIA NUR NIHAYA | G50: 78 | H50: 84 | I50: 84 | J50: 83 | K50: 82.25 | L50: 60 | M50: 78.65 | N50: 71.125 | P50: 70.5
A51: 44 | B51: =IF(SISWA!B51=0,"",SISWA!B51) -> 4344 | C51: =IF(SISWA!C51=0,"",SISWA!C51) -> 3078948093 | D51: =IF(SISWA!D51=0,"",SISWA!D51) -> 1-18-05-80-162-044-5 | E51: =IF(SISWA!E51=0,"",SISWA!E51) -> FIRDA DWI ANDRIANI | G51: 81 | H51: 88 | I51: 84 | J51: 83 | K51: 84 | L51: 60 | M51: 79.8 | N51: 72 | P51: 71.25
A52: 45 | B52: =IF(SISWA!B52=0,"",SISWA!B52) -> 4372 | C52: =IF(SISWA!C52=0,"",SISWA!C52) -> 0087636520 | D52: =IF(SISWA!D52=0,"",SISWA!D52) -> 1-18-05-80-162-045-4 | E52: =IF(SISWA!E52=0,"",SISWA!E52) -> GILANG AKBAR PRASETYO | G52: 77 | H52: 88 | I52: 83 | J52: 82 | K52: 82.5 | L52: 60 | M52: 79.1 | N52: 71.25 | P52: 70
A53: 46 | B53: =IF(SISWA!B53=0,"",SISWA!B53) -> 4373 | C53: =IF(SISWA!C53=0,"",SISWA!C53) -> 0087373224 | D53: =IF(SISWA!D53=0,"",SISWA!D53) -> 1-18-05-80-162-046-3 | E53: =IF(SISWA!E53=0,"",SISWA!E53) -> IFTAH IZZAH EMILIA MAHMUD | G53: 63 | H53: 85 | I53: 84 | J53: 85 | K53: 79.25 | L53: 65 | M53: 79.65 | N53: 72.125 | P53: 69.25
A54: 47 | B54: =IF(SISWA!B54=0,"",SISWA!B54) -> 4441 | C54: =IF(SISWA!C54=0,"",SISWA!C54) -> 0081758949 | D54: =IF(SISWA!D54=0,"",SISWA!D54) -> 1-18-05-80-162-047-2 | E54: =IF(SISWA!E54=0,"",SISWA!E54) -> INES ARIFANI MAULINA | G54: 75 | H54: 89 | I54: 83 | J54: 88 | K54: 83.75 | L54: 75 | M54: 83.75 | N54: 79.375 | P54: 77
A55: 48 | B55: =IF(SISWA!B55=0,"",SISWA!B55) -> 4374 | C55: =IF(SISWA!C55=0,"",SISWA!C55) -> 0073409469 | D55: =IF(SISWA!D55=0,"",SISWA!D55) -> 1-18-05-80-162-048-9 | E55: =IF(SISWA!E55=0,"",SISWA!E55) -> IYAAD AFLAKHA RAMZII | G55: 84 | H55: 83 | I55: 89 | J55: 82 | K55: 84.5 | L55: 60 | M55: 79.7 | N55: 72.25 | P55: 73.25
A56: 49 | B56: =IF(SISWA!B56=0,"",SISWA!B56) -> 4305 | C56: =IF(SISWA!C56=0,"",SISWA!C56) -> 0068258891 | D56: =IF(SISWA!D56=0,"",SISWA!D56) -> 1-18-05-80-162-049-8 | E56: =IF(SISWA!E56=0,"",SISWA!E56) -> JULI ANDRIYANTO | G56: 75 | H56: 84 | I56: 83 | J56: 98 | K56: 85 | L56: 60 | M56: 82 | N56: 72.5 | P56: 69.5
A57: 50 | B57: =IF(SISWA!B57=0,"",SISWA!B57) -> 4347 | C57: =IF(SISWA!C57=0,"",SISWA!C57) -> 0076367763 | D57: =IF(SISWA!D57=0,"",SISWA!D57) -> 1-18-05-80-162-050-7 | E57: =IF(SISWA!E57=0,"",SISWA!E57) -> LIYA FEBRIYANI | G57: 74 | H57: 92 | I57: 94 | J57: 90 | K57: 87.5 | L57: 70 | M57: 86.7 | N57: 78.75 | P57: 77
A58: 51 | B58: =IF(SISWA!B58=0,"",SISWA!B58) -> 4348 | C58: =IF(SISWA!C58=0,"",SISWA!C58) -> 0083034332 | D58: =IF(SISWA!D58=0,"",SISWA!D58) -> 1-18-05-80-162-051-6 | E58: =IF(SISWA!E58=0,"",SISWA!E58) -> LIZATUL CHAIYUNI | G58: 72 | H58: 87 | I58: 87 | J58: 88 | K58: 83.5 | L58: 70 | M58: 83.1 | N58: 76.75 | P58: 74.75
A59: 52 | B59: =IF(SISWA!B59=0,"",SISWA!B59) -> 4531 | C59: =IF(SISWA!C59=0,"",SISWA!C59) -> 3099539154 | D59: =IF(SISWA!D59=0,"",SISWA!D59) -> 1-18-05-80-162-052-5 | E59: =IF(SISWA!E59=0,"",SISWA!E59) -> M. ALHAFIS | G59: 73 | H59: 78 | I59: 82 | J59: 83 | K59: 79 | L59: 60 | M59: 76.4 | N59: 69.5 | P59: 68.75
A60: 53 | B60: =IF(SISWA!B60=0,"",SISWA!B60) -> 4530 | C60: =IF(SISWA!C60=0,"",SISWA!C60) -> 0077015789 | D60: =IF(SISWA!D60=0,"",SISWA!D60) -> 1-18-05-80-162-053-4 | E60: =IF(SISWA!E60=0,"",SISWA!E60) -> MUHAMMAD RIZKI RIDWAN | G60: 75 | H60: 76 | I60: 82 | J60: 86 | K60: 79.75 | L60: 60 | M60: 76.75 | N60: 69.875 | P60: 69.25
A61: 54 | B61: =IF(SISWA!B61=0,"",SISWA!B61) -> 4351 | C61: =IF(SISWA!C61=0,"",SISWA!C61) -> 0076361559 | D61: =IF(SISWA!D61=0,"",SISWA!D61) -> 1-18-05-80-162-054-3 | E61: =IF(SISWA!E61=0,"",SISWA!E61) -> MOCHAMAD RAFLI DIAN SAPUTRA | G61: 83 | H61: 79 | I61: 82 | J61: 92 | K61: 84 | L61: 60 | M61: 79.4 | N61: 72 | P61: 71.25
A62: 55 | B62: =IF(SISWA!B62=0,"",SISWA!B62) -> 4352 | C62: =IF(SISWA!C62=0,"",SISWA!C62) -> 0075591405 | D62: =IF(SISWA!D62=0,"",SISWA!D62) -> 1-18-05-80-162-055-2 | E62: =IF(SISWA!E62=0,"",SISWA!E62) -> MOCHAMMAD AFAREL PUTRA RAMDHANA | G62: 79 | H62: 83 | I62: 89 | J62: 84 | K62: 83.75 | L62: 60 | M62: 79.95 | N62: 71.875 | P62: 72
A63: 56 | B63: =IF(SISWA!B63=0,"",SISWA!B63) -> 4355 | C63: =IF(SISWA!C63=0,"",SISWA!C63) -> 0075363258 | D63: =IF(SISWA!D63=0,"",SISWA!D63) -> 1-18-05-80-162-056-9 | E63: =IF(SISWA!E63=0,"",SISWA!E63) -> MUHAMAD JEFRI MAULANA | G63: 72 | H63: 79 | I63: 82 | J63: 84 | K63: 79.25 | L63: 60 | M63: 76.85 | N63: 69.625 | P63: 68.5
A64: 57 | B64: =IF(SISWA!B64=0,"",SISWA!B64) -> 4376 | C64: =IF(SISWA!C64=0,"",SISWA!C64) -> 0072066741 | D64: =IF(SISWA!D64=0,"",SISWA!D64) -> 1-18-05-80-162-057-8 | E64: =IF(SISWA!E64=0,"",SISWA!E64) -> MUHAMMAD DWI WILDAN BAGUS KURNIAWAN | G64: 63 | H64: 76 | I64: 82 | J64: 82 | K64: 75.75 | L64: 60 | M64: 75.15 | N64: 67.875 | P64: 66.25
A65: 58 | B65: =IF(SISWA!B65=0,"",SISWA!B65) -> 4377 | C65: =IF(SISWA!C65=0,"",SISWA!C65) -> 0071459044 | D65: =IF(SISWA!D65=0,"",SISWA!D65) -> 1-18-05-80-162-058-7 | E65: =IF(SISWA!E65=0,"",SISWA!E65) -> MUHAMMAD FARIL FIRMANSYA | G65: 70 | H65: 79 | I65: 83 | J65: 82 | K65: 78.5 | L65: 60 | M65: 76.5 | N65: 69.25 | P65: 68.25
A66: 59 | B66: =IF(SISWA!B66=0,"",SISWA!B66) -> 4349 | C66: =IF(SISWA!C66=0,"",SISWA!C66) -> 0074206034 | D66: =IF(SISWA!D66=0,"",SISWA!D66) -> 1-18-05-80-162-059-6 | E66: =IF(SISWA!E66=0,"",SISWA!E66) -> MUHAMMAD FARIZ UBAIDILLA | G66: 77 | H66: 85 | I66: 85 | J66: 93 | K66: 85 | L66: 60 | M66: 81.6 | N66: 72.5 | P66: 70.5
A67: 60 | B67: =IF(SISWA!B67=0,"",SISWA!B67) -> 4356 | C67: =IF(SISWA!C67=0,"",SISWA!C67) -> 0077937892 | D67: =IF(SISWA!D67=0,"",SISWA!D67) -> 1-18-05-80-162-060-5 | E67: =IF(SISWA!E67=0,"",SISWA!E67) -> MUHAMMAD MAULANA ZIDANIL ILMI | G67: 79 | H67: 85 | I67: 85 | J67: 94 | K67: 85.75 | L67: 60 | M67: 81.95 | N67: 72.875 | P67: 71
A68: 61 | B68: =IF(SISWA!B68=0,"",SISWA!B68) -> 4357 | C68: =IF(SISWA!C68=0,"",SISWA!C68) -> 0078608527 | D68: =IF(SISWA!D68=0,"",SISWA!D68) -> 1-18-05-80-162-061-4 | E68: =IF(SISWA!E68=0,"",SISWA!E68) -> MUHAMMAD SUTRISNO ISMAIL | G68: 65 | H68: 79 | I68: 82 | J68: 82 | K68: 77 | L68: 82.5 | M68: 80.5 | N68: 79.75 | P68: 78
A69: 62 | B69: =IF(SISWA!B69=0,"",SISWA!B69) -> 4381 | C69: =IF(SISWA!C69=0,"",SISWA!C69) -> 0072209435 | D69: =IF(SISWA!D69=0,"",SISWA!D69) -> 1-18-05-80-162-062-3 | E69: =IF(SISWA!E69=0,"",SISWA!E69) -> NOVITA ERNIAWAN | G69: 79 | H69: 86 | I69: 85 | J69: 88 | K69: 84.5 | L69: 60 | M69: 80.7 | N69: 72.25 | P69: 71
A70: 63 | B70: =IF(SISWA!B70=0,"",SISWA!B70) -> 4383 | C70: =IF(SISWA!C70=0,"",SISWA!C70) -> 0077439834 | D70: =IF(SISWA!D70=0,"",SISWA!D70) -> 1-18-05-80-162-063-2 | E70: =IF(SISWA!E70=0,"",SISWA!E70) -> PUTRI AULIA DWI AGUSTIN | G70: 78 | H70: 88 | I70: 93 | J70: 87 | K70: 86.5 | L70: 60 | M70: 82.9 | N70: 73.25 | P70: 72.75
A71: 64 | B71: =IF(SISWA!B71=0,"",SISWA!B71) -> 4385 | C71: =IF(SISWA!C71=0,"",SISWA!C71) -> 0073137310 | D71: =IF(SISWA!D71=0,"",SISWA!D71) -> 1-18-05-80-162-064-9 | E71: =IF(SISWA!E71=0,"",SISWA!E71) -> STANY RAFIDAH RAHMANIA | G71: 76 | H71: 85 | I71: 84 | J71: 82 | K71: 81.75 | L71: 60 | M71: 78.55 | N71: 70.875 | P71: 70
A72: 65 | B72: =IF(SISWA!B72=0,"",SISWA!B72) -> 4387 | C72: =IF(SISWA!C72=0,"",SISWA!C72) -> 0077336427 | D72: =IF(SISWA!D72=0,"",SISWA!D72) -> 1-18-05-80-162-065-8 | E72: =IF(SISWA!E72=0,"",SISWA!E72) -> USWATUN KHASANAH | G72: 71 | H72: 84 | I72: 83 | J72: 91 | K72: 82.25 | L72: 60 | M72: 80.05 | N72: 71.125 | P72: 68.5
A73: 66 | B73: =IF(SISWA!B73=0,"",SISWA!B73) -> 4389 | C73: =IF(SISWA!C73=0,"",SISWA!C73) -> 0078407631 | D73: =IF(SISWA!D73=0,"",SISWA!D73) -> 1-18-05-80-162-066-7 | E73: =IF(SISWA!E73=0,"",SISWA!E73) -> VIKROUL KHAMILA | G73: 75 | H73: 60 | I73: 89 | J73: 91 | K73: =AVERAGE(F73:J73) -> 78.75 | L73: 60 | M73: 75.75 | N73: =AVERAGE(K73:L73) -> 69.375 | P73: 71
A74: 67 | B74: =IF(SISWA!B74=0,"",SISWA!B74) ->  | C74: =IF(SISWA!C74=0,"",SISWA!C74) ->  | D74: =IF(SISWA!D74=0,"",SISWA!D74) ->  | E74: =IF(SISWA!E74=0,"",SISWA!E74) -> 
A75: 68 | B75: =IF(SISWA!B75=0,"",SISWA!B75) ->  | C75: =IF(SISWA!C75=0,"",SISWA!C75) ->  | D75: =IF(SISWA!D75=0,"",SISWA!D75) ->  | E75: =IF(SISWA!E75=0,"",SISWA!E75) -> 
A76: 69 | B76: =IF(SISWA!B76=0,"",SISWA!B76) ->  | C76: =IF(SISWA!C76=0,"",SISWA!C76) ->  | D76: =IF(SISWA!D76=0,"",SISWA!D76) ->  | E76: =IF(SISWA!E76=0,"",SISWA!E76) -> 
A77: 70 | B77: =IF(SISWA!B77=0,"",SISWA!B77) ->  | C77: =IF(SISWA!C77=0,"",SISWA!C77) ->  | D77: =IF(SISWA!D77=0,"",SISWA!D77) ->  | E77: =IF(SISWA!E77=0,"",SISWA!E77) -> 
A78: 71 | B78: =IF(SISWA!B78=0,"",SISWA!B78) ->  | C78: =IF(SISWA!C78=0,"",SISWA!C78) ->  | D78: =IF(SISWA!D78=0,"",SISWA!D78) ->  | E78: =IF(SISWA!E78=0,"",SISWA!E78) -> 
A79: 72 | B79: =IF(SISWA!B79=0,"",SISWA!B79) ->  | C79: =IF(SISWA!C79=0,"",SISWA!C79) ->  | D79: =IF(SISWA!D79=0,"",SISWA!D79) ->  | E79: =IF(SISWA!E79=0,"",SISWA!E79) -> 
A80: 73 | B80: =IF(SISWA!B80=0,"",SISWA!B80) ->  | C80: =IF(SISWA!C80=0,"",SISWA!C80) ->  | D80: =IF(SISWA!D80=0,"",SISWA!D80) ->  | E80: =IF(SISWA!E80=0,"",SISWA!E80) -> 
A81: 74 | B81: =IF(SISWA!B81=0,"",SISWA!B81) ->  | C81: =IF(SISWA!C81=0,"",SISWA!C81) ->  | D81: =IF(SISWA!D81=0,"",SISWA!D81) ->  | E81: =IF(SISWA!E81=0,"",SISWA!E81) -> 
A82: 75 | B82: =IF(SISWA!B82=0,"",SISWA!B82) ->  | C82: =IF(SISWA!C82=0,"",SISWA!C82) ->  | D82: =IF(SISWA!D82=0,"",SISWA!D82) ->  | E82: =IF(SISWA!E82=0,"",SISWA!E82) -> 
A83: 76 | B83: =IF(SISWA!B83=0,"",SISWA!B83) ->  | C83: =IF(SISWA!C83=0,"",SISWA!C83) ->  | D83: =IF(SISWA!D83=0,"",SISWA!D83) ->  | E83: =IF(SISWA!E83=0,"",SISWA!E83) -> 
A84: 77 | B84: =IF(SISWA!B84=0,"",SISWA!B84) ->  | C84: =IF(SISWA!C84=0,"",SISWA!C84) ->  | D84: =IF(SISWA!D84=0,"",SISWA!D84) ->  | E84: =IF(SISWA!E84=0,"",SISWA!E84) -> 
A85: 78 | B85: =IF(SISWA!B85=0,"",SISWA!B85) ->  | C85: =IF(SISWA!C85=0,"",SISWA!C85) ->  | D85: =IF(SISWA!D85=0,"",SISWA!D85) ->  | E85: =IF(SISWA!E85=0,"",SISWA!E85) -> 
A86: 79 | B86: =IF(SISWA!B86=0,"",SISWA!B86) ->  | C86: =IF(SISWA!C86=0,"",SISWA!C86) ->  | D86: =IF(SISWA!D86=0,"",SISWA!D86) ->  | E86: =IF(SISWA!E86=0,"",SISWA!E86) -> 
A87: 80 | B87: =IF(SISWA!B87=0,"",SISWA!B87) ->  | C87: =IF(SISWA!C87=0,"",SISWA!C87) ->  | D87: =IF(SISWA!D87=0,"",SISWA!D87) ->  | E87: =IF(SISWA!E87=0,"",SISWA!E87) -> 
A88: 81 | B88: =IF(SISWA!B88=0,"",SISWA!B88) ->  | C88: =IF(SISWA!C88=0,"",SISWA!C88) ->  | D88: =IF(SISWA!D88=0,"",SISWA!D88) ->  | E88: =IF(SISWA!E88=0,"",SISWA!E88) -> 
A89: 82 | B89: =IF(SISWA!B89=0,"",SISWA!B89) ->  | C89: =IF(SISWA!C89=0,"",SISWA!C89) ->  | D89: =IF(SISWA!D89=0,"",SISWA!D89) ->  | E89: =IF(SISWA!E89=0,"",SISWA!E89) -> 
A90: 83 | B90: =IF(SISWA!B90=0,"",SISWA!B90) ->  | C90: =IF(SISWA!C90=0,"",SISWA!C90) ->  | D90: =IF(SISWA!D90=0,"",SISWA!D90) ->  | E90: =IF(SISWA!E90=0,"",SISWA!E90) -> 
A91: 84 | B91: =IF(SISWA!B91=0,"",SISWA!B91) ->  | C91: =IF(SISWA!C91=0,"",SISWA!C91) ->  | D91: =IF(SISWA!D91=0,"",SISWA!D91) ->  | E91: =IF(SISWA!E91=0,"",SISWA!E91) -> 
A92: 85 | B92: =IF(SISWA!B92=0,"",SISWA!B92) ->  | C92: =IF(SISWA!C92=0,"",SISWA!C92) ->  | D92: =IF(SISWA!D92=0,"",SISWA!D92) ->  | E92: =IF(SISWA!E92=0,"",SISWA!E92) -> 
A93: 86 | B93: =IF(SISWA!B93=0,"",SISWA!B93) ->  | C93: =IF(SISWA!C93=0,"",SISWA!C93) ->  | D93: =IF(SISWA!D93=0,"",SISWA!D93) ->  | E93: =IF(SISWA!E93=0,"",SISWA!E93) -> 
A94: 87 | B94: =IF(SISWA!B94=0,"",SISWA!B94) ->  | C94: =IF(SISWA!C94=0,"",SISWA!C94) ->  | D94: =IF(SISWA!D94=0,"",SISWA!D94) ->  | E94: =IF(SISWA!E94=0,"",SISWA!E94) -> 
A95: 88 | B95: =IF(SISWA!B95=0,"",SISWA!B95) ->  | C95: =IF(SISWA!C95=0,"",SISWA!C95) ->  | D95: =IF(SISWA!D95=0,"",SISWA!D95) ->  | E95: =IF(SISWA!E95=0,"",SISWA!E95) -> 
A96: 89 | B96: =IF(SISWA!B96=0,"",SISWA!B96) ->  | C96: =IF(SISWA!C96=0,"",SISWA!C96) ->  | D96: =IF(SISWA!D96=0,"",SISWA!D96) ->  | E96: =IF(SISWA!E96=0,"",SISWA!E96) -> 
A97: 90 | B97: =IF(SISWA!B97=0,"",SISWA!B97) ->  | C97: =IF(SISWA!C97=0,"",SISWA!C97) ->  | D97: =IF(SISWA!D97=0,"",SISWA!D97) ->  | E97: =IF(SISWA!E97=0,"",SISWA!E97) -> 
A98: 91 | B98: =IF(SISWA!B98=0,"",SISWA!B98) ->  | C98: =IF(SISWA!C98=0,"",SISWA!C98) ->  | D98: =IF(SISWA!D98=0,"",SISWA!D98) ->  | E98: =IF(SISWA!E98=0,"",SISWA!E98) -> 
A99: 92 | B99: =IF(SISWA!B99=0,"",SISWA!B99) ->  | C99: =IF(SISWA!C99=0,"",SISWA!C99) ->  | D99: =IF(SISWA!D99=0,"",SISWA!D99) ->  | E99: =IF(SISWA!E99=0,"",SISWA!E99) -> 
A100: 93 | B100: =IF(SISWA!B100=0,"",SISWA!B100) ->  | C100: =IF(SISWA!C100=0,"",SISWA!C100) ->  | D100: =IF(SISWA!D100=0,"",SISWA!D100) ->  | E100: =IF(SISWA!E100=0,"",SISWA!E100) -> 
A101: 94 | B101: =IF(SISWA!B101=0,"",SISWA!B101) ->  | C101: =IF(SISWA!C101=0,"",SISWA!C101) ->  | D101: =IF(SISWA!D101=0,"",SISWA!D101) ->  | E101: =IF(SISWA!E101=0,"",SISWA!E101) -> 
A102: 95 | B102: =IF(SISWA!B102=0,"",SISWA!B102) ->  | C102: =IF(SISWA!C102=0,"",SISWA!C102) ->  | D102: =IF(SISWA!D102=0,"",SISWA!D102) ->  | E102: =IF(SISWA!E102=0,"",SISWA!E102) -> 
A103: 96 | B103: =IF(SISWA!B103=0,"",SISWA!B103) ->  | C103: =IF(SISWA!C103=0,"",SISWA!C103) ->  | D103: =IF(SISWA!D103=0,"",SISWA!D103) ->  | E103: =IF(SISWA!E103=0,"",SISWA!E103) -> 
A104: 97 | B104: =IF(SISWA!B104=0,"",SISWA!B104) ->  | C104: =IF(SISWA!C104=0,"",SISWA!C104) ->  | D104: =IF(SISWA!D104=0,"",SISWA!D104) ->  | E104: =IF(SISWA!E104=0,"",SISWA!E104) -> 
A105: 98 | B105: =IF(SISWA!B105=0,"",SISWA!B105) ->  | C105: =IF(SISWA!C105=0,"",SISWA!C105) ->  | D105: =IF(SISWA!D105=0,"",SISWA!D105) ->  | E105: =IF(SISWA!E105=0,"",SISWA!E105) -> 
A106: 99 | B106: =IF(SISWA!B106=0,"",SISWA!B106) ->  | C106: =IF(SISWA!C106=0,"",SISWA!C106) ->  | D106: =IF(SISWA!D106=0,"",SISWA!D106) ->  | E106: =IF(SISWA!E106=0,"",SISWA!E106) -> 
A107: 100 | B107: =IF(SISWA!B107=0,"",SISWA!B107) ->  | C107: =IF(SISWA!C107=0,"",SISWA!C107) ->  | D107: =IF(SISWA!D107=0,"",SISWA!D107) ->  | E107: =IF(SISWA!E107=0,"",SISWA!E107) -> 
A108: 101 | B108: =IF(SISWA!B108=0,"",SISWA!B108) ->  | C108: =IF(SISWA!C108=0,"",SISWA!C108) ->  | D108: =IF(SISWA!D108=0,"",SISWA!D108) ->  | E108: =IF(SISWA!E108=0,"",SISWA!E108) -> 

Sheet SKI
A1: DAFTAR NILAI AKHIR SEKOLAH
A2: =AA!A2 -> MADRASAH IBTIDAIYAH NURUL ISLAM LABRUK KIDUL
A3: =AA!A3 -> TAHUN PELAJARAN 2019/2020
A5: NO | B5: No Induk | C5: NISN | D5: Nomor Peserta | E5: Nama Peserta | F5: SKI | O5: rata-rata UAM & PRAKTEK
F6: Nilai Semester | K6: Rata- 2 | L6: NILAI UAMBD | P6: UAMNU
F7: 7 | G7: 8 | H7: 9 | I7: 10 | J7: 11 | K7: Rapor | L7: TULIS | M7: PRAKTIK | P7: TULIS
A8: 1 | B8: =IF(SISWA!B8=0,"",SISWA!B8) -> 4331 | C8: =IF(SISWA!C8=0,"",SISWA!C8) -> 0078140536 | D8: =IF(SISWA!D8=0,"",SISWA!D8) -> 1-18-05-80-162-001-8 | E8: =IF(SISWA!E8=0,"",SISWA!E8) -> ACHMAD FATHIR IZUDDIN | G8: 63 | H8: 87 | I8: 88 | J8: 84 | K8: =AVERAGE(F8:J8) -> 80.5 | L8: 65 | M8: =AVERAGE(H8:L8) -> 80.9 | N8: =AVERAGE(L8:M8) -> 72.95 | O8: =AVERAGE(L8:M8) -> 72.95 | P8: 72.95
A9: 2 | B9: =IF(SISWA!B9=0,"",SISWA!B9) -> 4333 | C9: =IF(SISWA!C9=0,"",SISWA!C9) -> 0084691896 | D9: =IF(SISWA!D9=0,"",SISWA!D9) -> 1-18-05-80-162-002-7 | E9: =IF(SISWA!E9=0,"",SISWA!E9) -> AININ NAFISA FEBRIYANTI | G9: 68 | H9: 89 | I9: 86 | J9: 91 | K9: =AVERAGE(F9:J9) -> 83.5 | L9: 60 | M9: 81.9 | N9: =AVERAGE(L9:M9) -> 70.95 | O9: =AVERAGE(L9:M9) -> 70.95 | P9: 70.95
A10: 3 | B10: =IF(SISWA!B10=0,"",SISWA!B10) -> 4334 | C10: =IF(SISWA!C10=0,"",SISWA!C10) -> 0075488897 | D10: =IF(SISWA!D10=0,"",SISWA!D10) -> 1-18-05-80-162-003-6 | E10: =IF(SISWA!E10=0,"",SISWA!E10) -> AISYAH DWI ANDINI | G10: 72 | H10: 90 | I10: 88 | J10: 89 | K10: 84.75 | L10: 60 | M10: 82.35 | N10: 71.175 | O10: 71.175 | P10: 71.175
A11: 4 | B11: =IF(SISWA!B11=0,"",SISWA!B11) -> 4335 | C11: =IF(SISWA!C11=0,"",SISWA!C11) -> 0077554289 | D11: =IF(SISWA!D11=0,"",SISWA!D11) -> 1-18-05-80-162-004-5 | E11: =IF(SISWA!E11=0,"",SISWA!E11) -> AJENG AGUSTINA KIRANA PUTRI | G11: 63 | H11: 90 | I11: 88 | J11: 88 | K11: 82.25 | L11: 60 | M11: 81.65 | N11: 70.825 | O11: 70.825 | P11: 70.825
A12: 5 | B12: =IF(SISWA!B12=0,"",SISWA!B12) -> 4336 | C12: =IF(SISWA!C12=0,"",SISWA!C12) -> 0078831956 | D12: =IF(SISWA!D12=0,"",SISWA!D12) -> 1-18-05-80-162-005-4 | E12: =IF(SISWA!E12=0,"",SISWA!E12) -> ALVIAN FAIZULHAQQI | G12: 57 | H12: 87 | I12: 86 | J12: 82 | K12: 78 | L12: 60 | M12: 78.6 | N12: 69.3 | O12: 69.3 | P12: 69.3
A13: 6 | B13: =IF(SISWA!B13=0,"",SISWA!B13) -> 4337 | C13: =IF(SISWA!C13=0,"",SISWA!C13) -> 0073667130 | D13: =IF(SISWA!D13=0,"",SISWA!D13) -> 1-18-05-80-162-006-3 | E13: =IF(SISWA!E13=0,"",SISWA!E13) -> ANGGITA RIZKY YUGA MEISYA | G13: 64 | H13: 91 | I13: 88 | J13: 91 | K13: 83.5 | L13: 60 | M13: 82.7 | N13: 71.35 | O13: 71.35 | P13: 71.35
A14: 7 | B14: =IF(SISWA!B14=0,"",SISWA!B14) -> 4338 | C14: =IF(SISWA!C14=0,"",SISWA!C14) -> 0074492973 | D14: =IF(SISWA!D14=0,"",SISWA!D14) -> 1-18-05-80-162-007-2 | E14: =IF(SISWA!E14=0,"",SISWA!E14) -> AURA SALSABILA WULAN SARI | G14: 69 | H14: 87 | I14: 88 | J14: 88 | K14: 83 | L14: 60 | M14: 81.2 | N14: 70.6 | O14: 70.6 | P14: 70.6
A15: 8 | B15: =IF(SISWA!B15=0,"",SISWA!B15) -> 4366 | C15: =IF(SISWA!C15=0,"",SISWA!C15) -> 0078989673 | D15: =IF(SISWA!D15=0,"",SISWA!D15) -> 1-18-05-80-162-008-9 | E15: =IF(SISWA!E15=0,"",SISWA!E15) -> BALQIS NAILA AUDIA | G15: 84 | H15: 94 | I15: 90 | J15: 94 | K15: 90.5 | L15: 60 | M15: 85.7 | N15: 72.85 | O15: 72.85 | P15: 72.85
A16: 9 | B16: =IF(SISWA!B16=0,"",SISWA!B16) -> 4440 | C16: =IF(SISWA!C16=0,"",SISWA!C16) -> 0082763386 | D16: =IF(SISWA!D16=0,"",SISWA!D16) -> 1-18-05-80-162-009-8 | E16: =IF(SISWA!E16=0,"",SISWA!E16) -> BIMA ARYO SUSILO | G16: 80 | H16: 88 | I16: 88 | J16: 83 | K16: 84.75 | L16: 60 | M16: 80.75 | N16: 70.375 | O16: 70.375 | P16: 70.375
A17: 10 | B17: =IF(SISWA!B17=0,"",SISWA!B17) -> 4367 | C17: =IF(SISWA!C17=0,"",SISWA!C17) -> 0078400392 | D17: =IF(SISWA!D17=0,"",SISWA!D17) -> 1-18-05-80-162-010-7 | E17: =IF(SISWA!E17=0,"",SISWA!E17) -> BIMA SATRIA DIRGANTARA | G17: 60 | H17: 85 | I17: 88 | J17: 82 | K17: 78.75 | L17: 60 | M17: 78.75 | N17: 69.375 | O17: 69.375 | P17: 69.375
A18: 11 | B18: =IF(SISWA!B18=0,"",SISWA!B18) -> 4339 | C18: =IF(SISWA!C18=0,"",SISWA!C18) -> 0086652599 | D18: =IF(SISWA!D18=0,"",SISWA!D18) -> 1-18-05-80-162-011-6 | E18: =IF(SISWA!E18=0,"",SISWA!E18) -> DEVI KARUNIA RATNA PUTRI | G18: 67 | H18: 89 | I18: 90 | J18: 90 | K18: 84 | L18: 60 | M18: 82.6 | N18: 71.3 | O18: 71.3 | P18: 71.3
A19: 12 | B19: =IF(SISWA!B19=0,"",SISWA!B19) -> 4340 | C19: =IF(SISWA!C19=0,"",SISWA!C19) -> 0089906682 | D19: =IF(SISWA!D19=0,"",SISWA!D19) -> 1-18-05-80-162-012-5 | E19: =IF(SISWA!E19=0,"",SISWA!E19) -> DEVITA FEBRIANI PUTRI | G19: 67 | H19: 89 | I19: 90 | J19: 89 | K19: 83.75 | L19: 60 | M19: 82.35 | N19: 71.175 | O19: 71.175 | P19: 71.175
A20: 13 | B20: =IF(SISWA!B20=0,"",SISWA!B20) -> 4370 | C20: =IF(SISWA!C20=0,"",SISWA!C20) -> 0074514146 | D20: =IF(SISWA!D20=0,"",SISWA!D20) -> 1-18-05-80-162-013-4 | E20: =IF(SISWA!E20=0,"",SISWA!E20) -> FAKHIS GABRIL LIA | G20: 64 | H20: 87 | I20: 89 | J20: 87 | K20: 81.75 | L20: 60 | M20: 80.95 | N20: 70.475 | O20: 70.475 | P20: 70.475
A21: 14 | B21: =IF(SISWA!B21=0,"",SISWA!B21) -> 4342 | C21: =IF(SISWA!C21=0,"",SISWA!C21) -> 0081081672 | D21: =IF(SISWA!D21=0,"",SISWA!D21) -> 1-18-05-80-162-014-3 | E21: =IF(SISWA!E21=0,"",SISWA!E21) -> FARAH NAILATUL ALYAH | G21: 86 | H21: 87 | I21: 89 | J21: 84 | K21: 86.5 | L21: 60 | M21: 81.3 | N21: 70.65 | O21: 70.65 | P21: 70.65
A22: 15 | B22: =IF(SISWA!B22=0,"",SISWA!B22) -> 4345 | C22: =IF(SISWA!C22=0,"",SISWA!C22) -> 0073420487 | D22: =IF(SISWA!D22=0,"",SISWA!D22) -> 1-18-05-80-162-015-2 | E22: =IF(SISWA!E22=0,"",SISWA!E22) -> GALANG MARDHOTILLAH SATOTO | G22: 61 | H22: 85 | I22: 88 | J22: 81 | K22: 78.75 | L22: 60 | M22: 78.55 | N22: 69.275 | O22: 69.275 | P22: 69.275
A23: 16 | B23: =IF(SISWA!B23=0,"",SISWA!B23) -> 4371 | C23: =IF(SISWA!C23=0,"",SISWA!C23) -> 0079870082 | D23: =IF(SISWA!D23=0,"",SISWA!D23) -> 1-18-05-80-162-016-9 | E23: =IF(SISWA!E23=0,"",SISWA!E23) -> GALIH FAREL PRASTYO | G23: 63 | H23: 85 | I23: 89 | J23: 82 | K23: 79.75 | L23: 60 | M23: 79.15 | N23: 69.575 | O23: 69.575 | P23: 69.575
A24: 17 | B24: =IF(SISWA!B24=0,"",SISWA!B24) -> 4466 | C24: =IF(SISWA!C24=0,"",SISWA!C24) -> 0081629504 | D24: =IF(SISWA!D24=0,"",SISWA!D24) -> 1-18-05-80-162-017-8 | E24: =IF(SISWA!E24=0,"",SISWA!E24) -> HIBATULLAH MUSTAGHFIRY RUSLI | G24: 83 | H24: 85 | I24: 89 | J24: 81 | K24: 84.5 | L24: 60 | M24: 79.9 | N24: 69.95 | O24: 69.95 | P24: 69.95
A25: 18 | B25: =IF(SISWA!B25=0,"",SISWA!B25) -> 4346 | C25: =IF(SISWA!C25=0,"",SISWA!C25) -> 0073608418 | D25: =IF(SISWA!D25=0,"",SISWA!D25) -> 1-18-05-80-162-018-7 | E25: =IF(SISWA!E25=0,"",SISWA!E25) -> IKA KURNIA WATI AGUSTINA | G25: 66 | H25: 85 | I25: 88 | J25: 84 | K25: 80.75 | L25: 60 | M25: 79.55 | N25: 69.775 | O25: 69.775 | P25: 69.775
A26: 19 | B26: =IF(SISWA!B26=0,"",SISWA!B26) -> 4350 | C26: =IF(SISWA!C26=0,"",SISWA!C26) -> 0072658586 | D26: =IF(SISWA!D26=0,"",SISWA!D26) -> 1-18-05-80-162-019-6 | E26: =IF(SISWA!E26=0,"",SISWA!E26) -> MAYLUNA EKA PRATIWI | G26: 87 | H26: 90 | I26: 90 | J26: 89 | K26: 89 | L26: 72.5 | M26: 86.1 | N26: 79.3 | O26: 79.3 | P26: 79.3
A27: 20 | B27: =IF(SISWA!B27=0,"",SISWA!B27) -> 4353 | C27: =IF(SISWA!C27=0,"",SISWA!C27) -> 0075464137 | D27: =IF(SISWA!D27=0,"",SISWA!D27) -> 1-18-05-80-162-020-5 | E27: =IF(SISWA!E27=0,"",SISWA!E27) -> MOHAMAD DWIMAS FIRDAUS | G27: 77 | H27: 85 | I27: 89 | J27: 93 | K27: 86 | L27: 60 | M27: 82.6 | N27: 71.3 | O27: 71.3 | P27: 71.3
A28: 21 | B28: =IF(SISWA!B28=0,"",SISWA!B28) -> 4375 | C28: =IF(SISWA!C28=0,"",SISWA!C28) -> 0075096831 | D28: =IF(SISWA!D28=0,"",SISWA!D28) -> 1-18-05-80-162-021-4 | E28: =IF(SISWA!E28=0,"",SISWA!E28) -> MUHAMMAD AFFAN ABI SYAHPUTRA | G28: 77 | H28: 86 | I28: 88 | J28: 83 | K28: 83.5 | L28: 60 | M28: 80.1 | N28: 70.05 | O28: 70.05 | P28: 70.05
A29: 22 | B29: =IF(SISWA!B29=0,"",SISWA!B29) -> 4354 | C29: =IF(SISWA!C29=0,"",SISWA!C29) -> 0075055640 | D29: =IF(SISWA!D29=0,"",SISWA!D29) -> 1-18-05-80-162-022-3 | E29: =IF(SISWA!E29=0,"",SISWA!E29) -> MUHAMMAD ALVIN RIDHO | G29: 63 | H29: 85 | I29: 89 | J29: 82 | K29: 79.75 | L29: 77.5 | M29: 82.65 | N29: 80.075 | O29: 80.075 | P29: 80.075
A30: 23 | B30: =IF(SISWA!B30=0,"",SISWA!B30) -> 4378 | C30: =IF(SISWA!C30=0,"",SISWA!C30) -> 0074268893 | D30: =IF(SISWA!D30=0,"",SISWA!D30) -> 1-18-05-80-162-023-2 | E30: =IF(SISWA!E30=0,"",SISWA!E30) -> MUKHAMAD DAVID ARIF FIRDAUS | G30: 82 | H30: 89 | I30: 89 | J30: 89 | K30: 87.25 | L30: 60 | M30: 82.85 | N30: 71.425 | O30: 71.425 | P30: 71.425
A31: 24 | B31: =IF(SISWA!B31=0,"",SISWA!B31) -> 4379 | C31: =IF(SISWA!C31=0,"",SISWA!C31) -> 0072757203 | D31: =IF(SISWA!D31=0,"",SISWA!D31) -> 1-18-05-80-162-024-9 | E31: =IF(SISWA!E31=0,"",SISWA!E31) -> NAORA ISQI AINAYYA | G31: 97 | H31: 93 | I31: 89 | J31: 92 | K31: 92.75 | L31: 70 | M31: 87.35 | N31: 78.675 | O31: 78.675 | P31: 78.675
A32: 25 | B32: =IF(SISWA!B32=0,"",SISWA!B32) -> 4380 | C32: =IF(SISWA!C32=0,"",SISWA!C32) -> 0079026285 | D32: =IF(SISWA!D32=0,"",SISWA!D32) -> 1-18-05-80-162-025-8 | E32: =IF(SISWA!E32=0,"",SISWA!E32) -> NAZRA ISLAMAY PASHA | G32: 80 | H32: 87 | I32: 90 | J32: 85 | K32: 85.5 | L32: 72.5 | M32: 84 | N32: 78.25 | O32: 78.25 | P32: 78.25
A33: 26 | B33: =IF(SISWA!B33=0,"",SISWA!B33) -> 4382 | C33: =IF(SISWA!C33=0,"",SISWA!C33) -> 0079872151 | D33: =IF(SISWA!D33=0,"",SISWA!D33) -> 1-18-05-80-162-026-7 | E33: =IF(SISWA!E33=0,"",SISWA!E33) -> NUR ALYA NABILA | G33: 78 | H33: 87 | I33: 89 | J33: 85 | K33: 84.75 | L33: 75 | M33: 84.15 | N33: 79.575 | O33: 79.575 | P33: 79.575
A34: 27 | B34: =IF(SISWA!B34=0,"",SISWA!B34) -> 4358 | C34: =IF(SISWA!C34=0,"",SISWA!C34) -> 0087558837 | D34: =IF(SISWA!D34=0,"",SISWA!D34) -> 1-18-05-80-162-027-6 | E34: =IF(SISWA!E34=0,"",SISWA!E34) -> PUTRI SHOLIKHAH | G34: 78 | H34: 86 | I34: 89 | J34: 82 | K34: 83.75 | L34: 60 | M34: 80.15 | N34: 70.075 | O34: 70.075 | P34: 70.075
A35: 28 | B35: =IF(SISWA!B35=0,"",SISWA!B35) -> 4384 | C35: =IF(SISWA!C35=0,"",SISWA!C35) -> 0071234523 | D35: =IF(SISWA!D35=0,"",SISWA!D35) -> 1-18-05-80-162-028-5 | E35: =IF(SISWA!E35=0,"",SISWA!E35) -> RESTI FITRIANTI DWI OCTAVIANI | G35: 80 | H35: 86 | I35: 88 | J35: 88 | K35: 85.5 | L35: 67.5 | M35: 83 | N35: 75.25 | O35: 75.25 | P35: 75.25
A36: 29 | B36: =IF(SISWA!B36=0,"",SISWA!B36) -> 4359 | C36: =IF(SISWA!C36=0,"",SISWA!C36) -> 0073122181 | D36: =IF(SISWA!D36=0,"",SISWA!D36) -> 1-18-05-80-162-029-4 | E36: =IF(SISWA!E36=0,"",SISWA!E36) -> ROUDHOTUS SA'DIYAH | G36: 82 | H36: 87 | I36: 89 | J36: 85 | K36: 85.75 | L36: 72.5 | M36: 83.85 | N36: 78.175 | O36: 78.175 | P36: 78.175
A37: 30 | B37: =IF(SISWA!B37=0,"",SISWA!B37) -> 4386 | C37: =IF(SISWA!C37=0,"",SISWA!C37) -> 0075344352 | D37: =IF(SISWA!D37=0,"",SISWA!D37) -> 1-18-05-80-162-030-3 | E37: =IF(SISWA!E37=0,"",SISWA!E37) -> TIERSYA BETA RAMANUZAN | G37: 96 | H37: 90 | I37: 91 | J37: 89 | K37: 91.5 | L37: 80 | M37: 88.3 | N37: 84.15 | O37: 84.15 | P37: 84.15
A38: 31 | B38: =IF(SISWA!B38=0,"",SISWA!B38) -> 4388 | C38: =IF(SISWA!C38=0,"",SISWA!C38) -> 0077423646 | D38: =IF(SISWA!D38=0,"",SISWA!D38) -> 1-18-05-80-162-031-2 | E38: =IF(SISWA!E38=0,"",SISWA!E38) -> VERA MUSTIKA | G38: 82 | H38: 87 | I38: 89 | J38: 83 | K38: 85.25 | L38: 60 | M38: 80.85 | N38: 70.425 | O38: 70.425 | P38: 70.425
A39: 32 | B39: =IF(SISWA!B39=0,"",SISWA!B39) -> 4360 | C39: =IF(SISWA!C39=0,"",SISWA!C39) -> 0077290990 | D39: =IF(SISWA!D39=0,"",SISWA!D39) -> 1-18-05-80-162-032-9 | E39: =IF(SISWA!E39=0,"",SISWA!E39) -> ZIDNY ILMA NABILA | G39: 92 | H39: 89 | I39: 90 | J39: 86 | K39: 89.25 | L39: 82.5 | M39: 87.35 | N39: 84.925 | O39: 84.925 | P39: 84.925
A40: 33 | B40: =IF(SISWA!B40=0,"",SISWA!B40) -> 4390 | C40: =IF(SISWA!C40=0,"",SISWA!C40) -> 0077722307 | D40: =IF(SISWA!D40=0,"",SISWA!D40) -> 1-18-05-80-162-033-8 | E40: =IF(SISWA!E40=0,"",SISWA!E40) -> ZITNATUL AULIA ILLA | G40: 93 | H40: 90 | I40: 90 | J40: 87 | K40: 90 | L40: 85 | M40: 88.4 | N40: 86.7 | O40: 86.7 | P40: 86.7
A41: 34 | B41: =IF(SISWA!B41=0,"",SISWA!B41) -> 4330 | C41: =IF(SISWA!C41=0,"",SISWA!C41) -> 0084736422 | D41: =IF(SISWA!D41=0,"",SISWA!D41) -> 1-18-05-80-162-034-7 | E41: =IF(SISWA!E41=0,"",SISWA!E41) -> ACHID ATHIRIL ARDAN | G41: 67 | H41: 86 | I41: 85 | J41: 81 | K41: 79.75 | L41: 60 | M41: 78.35 | N41: 69.175 | O41: 69.175 | P41: 66.83333333
A42: 35 | B42: =IF(SISWA!B42=0,"",SISWA!B42) -> 4361 | C42: =IF(SISWA!C42=0,"",SISWA!C42) -> 0075656390 | D42: =IF(SISWA!D42=0,"",SISWA!D42) -> 1-18-05-80-162-035-6 | E42: =IF(SISWA!E42=0,"",SISWA!E42) -> ACHMAD SEPTIAN HAMDANI | G42: 61 | H42: 83 | I42: 85 | J42: 81 | K42: 77.5 | L42: 60 | M42: 77.3 | N42: 68.65 | O42: 68.65 | P42: 66.33333333
A43: 36 | B43: =IF(SISWA!B43=0,"",SISWA!B43) -> 4362 | C43: =IF(SISWA!C43=0,"",SISWA!C43) -> 0071796138 | D43: =IF(SISWA!D43=0,"",SISWA!D43) -> 1-18-05-80-162-036-5 | E43: =IF(SISWA!E43=0,"",SISWA!E43) -> ACHMAD SULAIMAN | G43: 60 | H43: 85 | I43: 85 | J43: 81 | K43: 77.75 | L43: 60 | M43: 77.75 | N43: 68.875 | O43: 68.875 | P43: 66.25
A44: 37 | B44: =IF(SISWA!B44=0,"",SISWA!B44) -> 4364 | C44: =IF(SISWA!C44=0,"",SISWA!C44) -> 0079667684 | D44: =IF(SISWA!D44=0,"",SISWA!D44) -> 1-18-05-80-162-037-4 | E44: =IF(SISWA!E44=0,"",SISWA!E44) -> AIRLANGGA DWIKA RIZQI | G44: 58 | H44: 84 | I44: 85 | J44: 81 | K44: 77 | L44: 60 | M44: 77.4 | N44: 68.7 | O44: 68.7 | P44: 66.08333333
A45: 38 | B45: =IF(SISWA!B45=0,"",SISWA!B45) -> 4365 | C45: =IF(SISWA!C45=0,"",SISWA!C45) -> 0089321127 | D45: =IF(SISWA!D45=0,"",SISWA!D45) -> 1-18-05-80-162-038-3 | E45: =IF(SISWA!E45=0,"",SISWA!E45) -> AUFAN AZKAL ABRORI | G45: 59 | H45: 84 | I45: 86 | J45: 82 | K45: 77.75 | L45: 60 | M45: 77.95 | N45: 68.975 | O45: 68.975 | P45: 66.41666667
A46: 39 | B46: =IF(SISWA!B46=0,"",SISWA!B46) -> 4465 | C46: =IF(SISWA!C46=0,"",SISWA!C46) -> 0071776593 | D46: =IF(SISWA!D46=0,"",SISWA!D46) -> 1-18-05-80-162-039-2 | E46: =IF(SISWA!E46=0,"",SISWA!E46) -> AZZA PRISHAL DWI PUTRA | G46: 61 | H46: 85 | I46: 85 | J46: 81 | K46: 78 | L46: 60 | M46: 77.8 | N46: 68.9 | O46: 68.9 | P46: 66.33333333
A47: 40 | B47: =IF(SISWA!B47=0,"",SISWA!B47) -> 4368 | C47: =IF(SISWA!C47=0,"",SISWA!C47) -> 0074569410 | D47: =IF(SISWA!D47=0,"",SISWA!D47) -> 1-18-05-80-162-040-9 | E47: =IF(SISWA!E47=0,"",SISWA!E47) -> EKA AULIYA` PUTRI | G47: 64 | H47: 88 | I47: 88 | J47: 86 | K47: 81.5 | L47: 60 | M47: 80.7 | N47: 70.35 | O47: 70.35 | P47: 67.33333333
A48: 41 | B48: =IF(SISWA!B48=0,"",SISWA!B48) -> 4341 | C48: =IF(SISWA!C48=0,"",SISWA!C48) -> 0083684457 | D48: =IF(SISWA!D48=0,"",SISWA!D48) -> 1-18-05-80-162-041-8 | E48: =IF(SISWA!E48=0,"",SISWA!E48) -> ERSA PUSPITA EKA ROSA LINDA | G48: 55 | H48: 87 | I48: 86 | J48: 83 | K48: 77.75 | L48: 60 | M48: 78.75 | N48: 69.375 | O48: 69.375 | P48: 66.08333333
A49: 42 | B49: =IF(SISWA!B49=0,"",SISWA!B49) -> 4369 | C49: =IF(SISWA!C49=0,"",SISWA!C49) -> 0078481731 | D49: =IF(SISWA!D49=0,"",SISWA!D49) -> 1-18-05-80-162-042-7 | E49: =IF(SISWA!E49=0,"",SISWA!E49) -> FABIYAN TRI BAKTI OKTAFIAN | G49: 62 | H49: 83 | I49: 85 | J49: 81 | K49: 77.75 | L49: 60 | M49: 77.35 | N49: 68.675 | O49: 68.675 | P49: 66.41666667
A50: 43 | B50: =IF(SISWA!B50=0,"",SISWA!B50) -> 4343 | C50: =IF(SISWA!C50=0,"",SISWA!C50) -> 3075965396 | D50: =IF(SISWA!D50=0,"",SISWA!D50) -> 1-18-05-80-162-043-6 | E50: =IF(SISWA!E50=0,"",SISWA!E50) -> FELISITA APRILIA NUR NIHAYA | G50: 63 | H50: 88 | I50: 86 | J50: 83 | K50: 80 | L50: 60 | M50: 79.4 | N50: 69.7 | O50: 69.7 | P50: 66.75
A51: 44 | B51: =IF(SISWA!B51=0,"",SISWA!B51) -> 4344 | C51: =IF(SISWA!C51=0,"",SISWA!C51) -> 3078948093 | D51: =IF(SISWA!D51=0,"",SISWA!D51) -> 1-18-05-80-162-044-5 | E51: =IF(SISWA!E51=0,"",SISWA!E51) -> FIRDA DWI ANDRIANI | G51: 51 | H51: 85 | I51: 85 | J51: 81 | K51: 75.5 | L51: 60 | M51: 77.3 | N51: 68.65 | O51: 68.65 | P51: 65.5
A52: 45 | B52: =IF(SISWA!B52=0,"",SISWA!B52) -> 4372 | C52: =IF(SISWA!C52=0,"",SISWA!C52) -> 0087636520 | D52: =IF(SISWA!D52=0,"",SISWA!D52) -> 1-18-05-80-162-045-4 | E52: =IF(SISWA!E52=0,"",SISWA!E52) -> GILANG AKBAR PRASETYO | G52: 53 | H52: 84 | I52: 85 | J52: 83 | K52: 76.25 | L52: 60 | M52: 77.65 | N52: 68.825 | O52: 68.825 | P52: 65.66666667
A53: 46 | B53: =IF(SISWA!B53=0,"",SISWA!B53) -> 4373 | C53: =IF(SISWA!C53=0,"",SISWA!C53) -> 0087373224 | D53: =IF(SISWA!D53=0,"",SISWA!D53) -> 1-18-05-80-162-046-3 | E53: =IF(SISWA!E53=0,"",SISWA!E53) -> IFTAH IZZAH EMILIA MAHMUD | G53: 64 | H53: 86 | I53: 87 | J53: 75 | K53: 78 | L53: 60 | M53: 77.2 | N53: 68.6 | O53: 68.6 | P53: 67.08333333
A54: 47 | B54: =IF(SISWA!B54=0,"",SISWA!B54) -> 4441 | C54: =IF(SISWA!C54=0,"",SISWA!C54) -> 0081758949 | D54: =IF(SISWA!D54=0,"",SISWA!D54) -> 1-18-05-80-162-047-2 | E54: =IF(SISWA!E54=0,"",SISWA!E54) -> INES ARIFANI MAULINA | G54: 57 | H54: 87 | I54: 86 | J54: 85 | K54: 78.75 | L54: 65 | M54: 80.35 | N54: 72.675 | O54: 72.675 | P54: 69.58333333
A55: 48 | B55: =IF(SISWA!B55=0,"",SISWA!B55) -> 4374 | C55: =IF(SISWA!C55=0,"",SISWA!C55) -> 0073409469 | D55: =IF(SISWA!D55=0,"",SISWA!D55) -> 1-18-05-80-162-048-9 | E55: =IF(SISWA!E55=0,"",SISWA!E55) -> IYAAD AFLAKHA RAMZII | G55: 61 | H55: 85 | I55: 86 | J55: 82 | K55: 78.5 | L55: 60 | M55: 78.3 | N55: 69.15 | O55: 69.15 | P55: 66.58333333
A56: 49 | B56: =IF(SISWA!B56=0,"",SISWA!B56) -> 4305 | C56: =IF(SISWA!C56=0,"",SISWA!C56) -> 0068258891 | D56: =IF(SISWA!D56=0,"",SISWA!D56) -> 1-18-05-80-162-049-8 | E56: =IF(SISWA!E56=0,"",SISWA!E56) -> JULI ANDRIYANTO | G56: 58 | H56: 85 | I56: 86 | J56: 82 | K56: 77.75 | L56: 60 | M56: 78.15 | N56: 69.075 | O56: 69.075 | P56: 66.33333333
A57: 50 | B57: =IF(SISWA!B57=0,"",SISWA!B57) -> 4347 | C57: =IF(SISWA!C57=0,"",SISWA!C57) -> 0076367763 | D57: =IF(SISWA!D57=0,"",SISWA!D57) -> 1-18-05-80-162-050-7 | E57: =IF(SISWA!E57=0,"",SISWA!E57) -> LIYA FEBRIYANI | G57: 75 | H57: 88 | I57: 87 | J57: 88 | K57: 84.5 | L57: 60 | M57: 81.5 | N57: 70.75 | O57: 70.75 | P57: 68
A58: 51 | B58: =IF(SISWA!B58=0,"",SISWA!B58) -> 4348 | C58: =IF(SISWA!C58=0,"",SISWA!C58) -> 0083034332 | D58: =IF(SISWA!D58=0,"",SISWA!D58) -> 1-18-05-80-162-051-6 | E58: =IF(SISWA!E58=0,"",SISWA!E58) -> LIZATUL CHAIYUNI | G58: 74 | H58: 86 | I58: 87 | J58: 84 | K58: 82.75 | L58: 60 | M58: 79.95 | N58: 69.975 | O58: 69.975 | P58: 67.91666667
A59: 52 | B59: =IF(SISWA!B59=0,"",SISWA!B59) -> 4531 | C59: =IF(SISWA!C59=0,"",SISWA!C59) -> 3099539154 | D59: =IF(SISWA!D59=0,"",SISWA!D59) -> 1-18-05-80-162-052-5 | E59: =IF(SISWA!E59=0,"",SISWA!E59) -> M. ALHAFIS | G59: 66 | H59: 85 | I59: 85 | J59: 81 | K59: 79.25 | L59: 60 | M59: 78.05 | N59: 69.025 | O59: 69.025 | P59: 66.75
A60: 53 | B60: =IF(SISWA!B60=0,"",SISWA!B60) -> 4530 | C60: =IF(SISWA!C60=0,"",SISWA!C60) -> 0077015789 | D60: =IF(SISWA!D60=0,"",SISWA!D60) -> 1-18-05-80-162-053-4 | E60: =IF(SISWA!E60=0,"",SISWA!E60) -> MUHAMMAD RIZKI RIDWAN | G60: 57 | H60: 84 | I60: 85 | J60: 81 | K60: 76.75 | L60: 60 | M60: 77.35 | N60: 68.675 | O60: 68.675 | P60: 66
A61: 54 | B61: =IF(SISWA!B61=0,"",SISWA!B61) -> 4351 | C61: =IF(SISWA!C61=0,"",SISWA!C61) -> 0076361559 | D61: =IF(SISWA!D61=0,"",SISWA!D61) -> 1-18-05-80-162-054-3 | E61: =IF(SISWA!E61=0,"",SISWA!E61) -> MOCHAMAD RAFLI DIAN SAPUTRA | G61: 56 | H61: 84 | I61: 85 | J61: 81 | K61: 76.5 | L61: 60 | M61: 77.3 | N61: 68.65 | O61: 68.65 | P61: 65.91666667
A62: 55 | B62: =IF(SISWA!B62=0,"",SISWA!B62) -> 4352 | C62: =IF(SISWA!C62=0,"",SISWA!C62) -> 0075591405 | D62: =IF(SISWA!D62=0,"",SISWA!D62) -> 1-18-05-80-162-055-2 | E62: =IF(SISWA!E62=0,"",SISWA!E62) -> MOCHAMMAD AFAREL PUTRA RAMDHANA | G62: 74 | H62: 85 | I62: 85 | J62: 82 | K62: 81.5 | L62: 60 | M62: 78.7 | N62: 69.35 | O62: 69.35 | P62: 67.41666667
A63: 56 | B63: =IF(SISWA!B63=0,"",SISWA!B63) -> 4355 | C63: =IF(SISWA!C63=0,"",SISWA!C63) -> 0075363258 | D63: =IF(SISWA!D63=0,"",SISWA!D63) -> 1-18-05-80-162-056-9 | E63: =IF(SISWA!E63=0,"",SISWA!E63) -> MUHAMAD JEFRI MAULANA | G63: 69 | H63: 86 | I63: 86 | J63: 82 | K63: 80.75 | L63: 60 | M63: 78.95 | N63: 69.475 | O63: 69.475 | P63: 67.25
A64: 57 | B64: =IF(SISWA!B64=0,"",SISWA!B64) -> 4376 | C64: =IF(SISWA!C64=0,"",SISWA!C64) -> 0072066741 | D64: =IF(SISWA!D64=0,"",SISWA!D64) -> 1-18-05-80-162-057-8 | E64: =IF(SISWA!E64=0,"",SISWA!E64) -> MUHAMMAD DWI WILDAN BAGUS KURNIAWAN | G64: 66 | H64: 84 | I64: 86 | J64: 81 | K64: 79.25 | L64: 60 | M64: 78.05 | N64: 69.025 | O64: 69.025 | P64: 67
A65: 58 | B65: =IF(SISWA!B65=0,"",SISWA!B65) -> 4377 | C65: =IF(SISWA!C65=0,"",SISWA!C65) -> 0071459044 | D65: =IF(SISWA!D65=0,"",SISWA!D65) -> 1-18-05-80-162-058-7 | E65: =IF(SISWA!E65=0,"",SISWA!E65) -> MUHAMMAD FARIL FIRMANSYA | G65: 63 | H65: 84 | I65: 85 | J65: 82 | K65: 78.5 | L65: 60 | M65: 77.9 | N65: 68.95 | O65: 68.95 | P65: 66.5
A66: 59 | B66: =IF(SISWA!B66=0,"",SISWA!B66) -> 4349 | C66: =IF(SISWA!C66=0,"",SISWA!C66) -> 0074206034 | D66: =IF(SISWA!D66=0,"",SISWA!D66) -> 1-18-05-80-162-059-6 | E66: =IF(SISWA!E66=0,"",SISWA!E66) -> MUHAMMAD FARIZ UBAIDILLA | G66: 75 | H66: 85 | I66: 85 | J66: 82 | K66: 81.75 | L66: 60 | M66: 78.75 | N66: 69.375 | O66: 69.375 | P66: 67.5
A67: 60 | B67: =IF(SISWA!B67=0,"",SISWA!B67) -> 4356 | C67: =IF(SISWA!C67=0,"",SISWA!C67) -> 0077937892 | D67: =IF(SISWA!D67=0,"",SISWA!D67) -> 1-18-05-80-162-060-5 | E67: =IF(SISWA!E67=0,"",SISWA!E67) -> MUHAMMAD MAULANA ZIDANIL ILMI | G67: 75 | H67: 85 | I67: 86 | J67: 83 | K67: 82.25 | L67: 60 | M67: 79.25 | N67: 69.625 | O67: 69.625 | P67: 67.75
A68: 61 | B68: =IF(SISWA!B68=0,"",SISWA!B68) -> 4357 | C68: =IF(SISWA!C68=0,"",SISWA!C68) -> 0078608527 | D68: =IF(SISWA!D68=0,"",SISWA!D68) -> 1-18-05-80-162-061-4 | E68: =IF(SISWA!E68=0,"",SISWA!E68) -> MUHAMMAD SUTRISNO ISMAIL | G68: 65 | H68: 84 | I68: 86 | J68: 81 | K68: 79 | L68: 60 | M68: 78 | N68: 69 | O68: 69 | P68: 66.91666667
A69: 62 | B69: =IF(SISWA!B69=0,"",SISWA!B69) -> 4381 | C69: =IF(SISWA!C69=0,"",SISWA!C69) -> 0072209435 | D69: =IF(SISWA!D69=0,"",SISWA!D69) -> 1-18-05-80-162-062-3 | E69: =IF(SISWA!E69=0,"",SISWA!E69) -> NOVITA ERNIAWAN | G69: 73 | H69: 87 | I69: 87 | J69: 84 | K69: 82.75 | L69: 60 | M69: 80.15 | N69: 70.075 | O69: 70.075 | P69: 67.83333333
A70: 63 | B70: =IF(SISWA!B70=0,"",SISWA!B70) -> 4383 | C70: =IF(SISWA!C70=0,"",SISWA!C70) -> 0077439834 | D70: =IF(SISWA!D70=0,"",SISWA!D70) -> 1-18-05-80-162-063-2 | E70: =IF(SISWA!E70=0,"",SISWA!E70) -> PUTRI AULIA DWI AGUSTIN | G70: 72 | H70: 86 | I70: 85 | J70: 83 | K70: 81.5 | L70: 60 | M70: 79.1 | N70: 69.55 | O70: 69.55 | P70: 67.25
A71: 64 | B71: =IF(SISWA!B71=0,"",SISWA!B71) -> 4385 | C71: =IF(SISWA!C71=0,"",SISWA!C71) -> 0073137310 | D71: =IF(SISWA!D71=0,"",SISWA!D71) -> 1-18-05-80-162-064-9 | E71: =IF(SISWA!E71=0,"",SISWA!E71) -> STANY RAFIDAH RAHMANIA | G71: 61 | H71: 85 | I71: 87 | J71: 81 | K71: 78.5 | L71: 60 | M71: 78.3 | N71: 69.15 | O71: 69.15 | P71: 66.83333333
A72: 65 | B72: =IF(SISWA!B72=0,"",SISWA!B72) -> 4387 | C72: =IF(SISWA!C72=0,"",SISWA!C72) -> 0077336427 | D72: =IF(SISWA!D72=0,"",SISWA!D72) -> 1-18-05-80-162-065-8 | E72: =IF(SISWA!E72=0,"",SISWA!E72) -> USWATUN KHASANAH | G72: 56 | H72: 84 | I72: 85 | J72: 81 | K72: 76.5 | L72: 60 | M72: 77.3 | N72: 68.65 | O72: 68.65 | P72: 65.91666667
A73: 66 | B73: =IF(SISWA!B73=0,"",SISWA!B73) -> 4389 | C73: =IF(SISWA!C73=0,"",SISWA!C73) -> 0078407631 | D73: =IF(SISWA!D73=0,"",SISWA!D73) -> 1-18-05-80-162-066-7 | E73: =IF(SISWA!E73=0,"",SISWA!E73) -> VIKROUL KHAMILA | G73: 74 | H73: 86 | I73: 86 | J73: 84 | K73: =AVERAGE(F73:J73) -> 82.5 | L73: 60 | M73: 79.7 | N73: =AVERAGE(L73:M73) -> 69.85 | O73: =AVERAGE(L73:M73) -> 69.85 | P73: 67.66666667
A74: 67 | B74: =IF(SISWA!B74=0,"",SISWA!B74) ->  | C74: =IF(SISWA!C74=0,"",SISWA!C74) ->  | D74: =IF(SISWA!D74=0,"",SISWA!D74) ->  | E74: =IF(SISWA!E74=0,"",SISWA!E74) -> 
A75: 68 | B75: =IF(SISWA!B75=0,"",SISWA!B75) ->  | C75: =IF(SISWA!C75=0,"",SISWA!C75) ->  | D75: =IF(SISWA!D75=0,"",SISWA!D75) ->  | E75: =IF(SISWA!E75=0,"",SISWA!E75) -> 
A76: 69 | B76: =IF(SISWA!B76=0,"",SISWA!B76) ->  | C76: =IF(SISWA!C76=0,"",SISWA!C76) ->  | D76: =IF(SISWA!D76=0,"",SISWA!D76) ->  | E76: =IF(SISWA!E76=0,"",SISWA!E76) -> 
A77: 70 | B77: =IF(SISWA!B77=0,"",SISWA!B77) ->  | C77: =IF(SISWA!C77=0,"",SISWA!C77) ->  | D77: =IF(SISWA!D77=0,"",SISWA!D77) ->  | E77: =IF(SISWA!E77=0,"",SISWA!E77) -> 
A78: 71 | B78: =IF(SISWA!B78=0,"",SISWA!B78) ->  | C78: =IF(SISWA!C78=0,"",SISWA!C78) ->  | D78: =IF(SISWA!D78=0,"",SISWA!D78) ->  | E78: =IF(SISWA!E78=0,"",SISWA!E78) -> 
A79: 72 | B79: =IF(SISWA!B79=0,"",SISWA!B79) ->  | C79: =IF(SISWA!C79=0,"",SISWA!C79) ->  | D79: =IF(SISWA!D79=0,"",SISWA!D79) ->  | E79: =IF(SISWA!E79=0,"",SISWA!E79) -> 
A80: 73 | B80: =IF(SISWA!B80=0,"",SISWA!B80) ->  | C80: =IF(SISWA!C80=0,"",SISWA!C80) ->  | D80: =IF(SISWA!D80=0,"",SISWA!D80) ->  | E80: =IF(SISWA!E80=0,"",SISWA!E80) -> 
A81: 74 | B81: =IF(SISWA!B81=0,"",SISWA!B81) ->  | C81: =IF(SISWA!C81=0,"",SISWA!C81) ->  | D81: =IF(SISWA!D81=0,"",SISWA!D81) ->  | E81: =IF(SISWA!E81=0,"",SISWA!E81) -> 
A82: 75 | B82: =IF(SISWA!B82=0,"",SISWA!B82) ->  | C82: =IF(SISWA!C82=0,"",SISWA!C82) ->  | D82: =IF(SISWA!D82=0,"",SISWA!D82) ->  | E82: =IF(SISWA!E82=0,"",SISWA!E82) -> 
A83: 76 | B83: =IF(SISWA!B83=0,"",SISWA!B83) ->  | C83: =IF(SISWA!C83=0,"",SISWA!C83) ->  | D83: =IF(SISWA!D83=0,"",SISWA!D83) ->  | E83: =IF(SISWA!E83=0,"",SISWA!E83) -> 
A84: 77 | B84: =IF(SISWA!B84=0,"",SISWA!B84) ->  | C84: =IF(SISWA!C84=0,"",SISWA!C84) ->  | D84: =IF(SISWA!D84=0,"",SISWA!D84) ->  | E84: =IF(SISWA!E84=0,"",SISWA!E84) -> 
A85: 78 | B85: =IF(SISWA!B85=0,"",SISWA!B85) ->  | C85: =IF(SISWA!C85=0,"",SISWA!C85) ->  | D85: =IF(SISWA!D85=0,"",SISWA!D85) ->  | E85: =IF(SISWA!E85=0,"",SISWA!E85) -> 
A86: 79 | B86: =IF(SISWA!B86=0,"",SISWA!B86) ->  | C86: =IF(SISWA!C86=0,"",SISWA!C86) ->  | D86: =IF(SISWA!D86=0,"",SISWA!D86) ->  | E86: =IF(SISWA!E86=0,"",SISWA!E86) -> 
A87: 80 | B87: =IF(SISWA!B87=0,"",SISWA!B87) ->  | C87: =IF(SISWA!C87=0,"",SISWA!C87) ->  | D87: =IF(SISWA!D87=0,"",SISWA!D87) ->  | E87: =IF(SISWA!E87=0,"",SISWA!E87) -> 
A88: 81 | B88: =IF(SISWA!B88=0,"",SISWA!B88) ->  | C88: =IF(SISWA!C88=0,"",SISWA!C88) ->  | D88: =IF(SISWA!D88=0,"",SISWA!D88) ->  | E88: =IF(SISWA!E88=0,"",SISWA!E88) -> 
A89: 82 | B89: =IF(SISWA!B89=0,"",SISWA!B89) ->  | C89: =IF(SISWA!C89=0,"",SISWA!C89) ->  | D89: =IF(SISWA!D89=0,"",SISWA!D89) ->  | E89: =IF(SISWA!E89=0,"",SISWA!E89) -> 
A90: 83 | B90: =IF(SISWA!B90=0,"",SISWA!B90) ->  | C90: =IF(SISWA!C90=0,"",SISWA!C90) ->  | D90: =IF(SISWA!D90=0,"",SISWA!D90) ->  | E90: =IF(SISWA!E90=0,"",SISWA!E90) -> 
A91: 84 | B91: =IF(SISWA!B91=0,"",SISWA!B91) ->  | C91: =IF(SISWA!C91=0,"",SISWA!C91) ->  | D91: =IF(SISWA!D91=0,"",SISWA!D91) ->  | E91: =IF(SISWA!E91=0,"",SISWA!E91) -> 
A92: 85 | B92: =IF(SISWA!B92=0,"",SISWA!B92) ->  | C92: =IF(SISWA!C92=0,"",SISWA!C92) ->  | D92: =IF(SISWA!D92=0,"",SISWA!D92) ->  | E92: =IF(SISWA!E92=0,"",SISWA!E92) -> 
A93: 86 | B93: =IF(SISWA!B93=0,"",SISWA!B93) ->  | C93: =IF(SISWA!C93=0,"",SISWA!C93) ->  | D93: =IF(SISWA!D93=0,"",SISWA!D93) ->  | E93: =IF(SISWA!E93=0,"",SISWA!E93) -> 
A94: 87 | B94: =IF(SISWA!B94=0,"",SISWA!B94) ->  | C94: =IF(SISWA!C94=0,"",SISWA!C94) ->  | D94: =IF(SISWA!D94=0,"",SISWA!D94) ->  | E94: =IF(SISWA!E94=0,"",SISWA!E94) -> 
A95: 88 | B95: =IF(SISWA!B95=0,"",SISWA!B95) ->  | C95: =IF(SISWA!C95=0,"",SISWA!C95) ->  | D95: =IF(SISWA!D95=0,"",SISWA!D95) ->  | E95: =IF(SISWA!E95=0,"",SISWA!E95) -> 
A96: 89 | B96: =IF(SISWA!B96=0,"",SISWA!B96) ->  | C96: =IF(SISWA!C96=0,"",SISWA!C96) ->  | D96: =IF(SISWA!D96=0,"",SISWA!D96) ->  | E96: =IF(SISWA!E96=0,"",SISWA!E96) -> 
A97: 90 | B97: =IF(SISWA!B97=0,"",SISWA!B97) ->  | C97: =IF(SISWA!C97=0,"",SISWA!C97) ->  | D97: =IF(SISWA!D97=0,"",SISWA!D97) ->  | E97: =IF(SISWA!E97=0,"",SISWA!E97) -> 
A98: 91 | B98: =IF(SISWA!B98=0,"",SISWA!B98) ->  | C98: =IF(SISWA!C98=0,"",SISWA!C98) ->  | D98: =IF(SISWA!D98=0,"",SISWA!D98) ->  | E98: =IF(SISWA!E98=0,"",SISWA!E98) -> 
A99: 92 | B99: =IF(SISWA!B99=0,"",SISWA!B99) ->  | C99: =IF(SISWA!C99=0,"",SISWA!C99) ->  | D99: =IF(SISWA!D99=0,"",SISWA!D99) ->  | E99: =IF(SISWA!E99=0,"",SISWA!E99) -> 
A100: 93 | B100: =IF(SISWA!B100=0,"",SISWA!B100) ->  | C100: =IF(SISWA!C100=0,"",SISWA!C100) ->  | D100: =IF(SISWA!D100=0,"",SISWA!D100) ->  | E100: =IF(SISWA!E100=0,"",SISWA!E100) -> 
A101: 94 | B101: =IF(SISWA!B101=0,"",SISWA!B101) ->  | C101: =IF(SISWA!C101=0,"",SISWA!C101) ->  | D101: =IF(SISWA!D101=0,"",SISWA!D101) ->  | E101: =IF(SISWA!E101=0,"",SISWA!E101) -> 
A102: 95 | B102: =IF(SISWA!B102=0,"",SISWA!B102) ->  | C102: =IF(SISWA!C102=0,"",SISWA!C102) ->  | D102: =IF(SISWA!D102=0,"",SISWA!D102) ->  | E102: =IF(SISWA!E102=0,"",SISWA!E102) -> 
A103: 96 | B103: =IF(SISWA!B103=0,"",SISWA!B103) ->  | C103: =IF(SISWA!C103=0,"",SISWA!C103) ->  | D103: =IF(SISWA!D103=0,"",SISWA!D103) ->  | E103: =IF(SISWA!E103=0,"",SISWA!E103) -> 
A104: 97 | B104: =IF(SISWA!B104=0,"",SISWA!B104) ->  | C104: =IF(SISWA!C104=0,"",SISWA!C104) ->  | D104: =IF(SISWA!D104=0,"",SISWA!D104) ->  | E104: =IF(SISWA!E104=0,"",SISWA!E104) -> 
A105: 98 | B105: =IF(SISWA!B105=0,"",SISWA!B105) ->  | C105: =IF(SISWA!C105=0,"",SISWA!C105) ->  | D105: =IF(SISWA!D105=0,"",SISWA!D105) ->  | E105: =IF(SISWA!E105=0,"",SISWA!E105) -> 
A106: 99 | B106: =IF(SISWA!B106=0,"",SISWA!B106) ->  | C106: =IF(SISWA!C106=0,"",SISWA!C106) ->  | D106: =IF(SISWA!D106=0,"",SISWA!D106) ->  | E106: =IF(SISWA!E106=0,"",SISWA!E106) -> 
A107: 100 | B107: =IF(SISWA!B107=0,"",SISWA!B107) ->  | C107: =IF(SISWA!C107=0,"",SISWA!C107) ->  | D107: =IF(SISWA!D107=0,"",SISWA!D107) ->  | E107: =IF(SISWA!E107=0,"",SISWA!E107) -> 
A108: 101 | B108: =IF(SISWA!B108=0,"",SISWA!B108) ->  | C108: =IF(SISWA!C108=0,"",SISWA!C108) ->  | D108: =IF(SISWA!D108=0,"",SISWA!D108) ->  | E108: =IF(SISWA!E108=0,"",SISWA!E108) -> 

Sheet IPS
A1: DAFTAR NILAI AKHIR SEKOLAH
A2: =AA!A2 -> MADRASAH IBTIDAIYAH NURUL ISLAM LABRUK KIDUL
A3: =AA!A3 -> TAHUN PELAJARAN 2019/2020
A5: NO | B5: No Induk | C5: NISN | D5: Nomor Peserta | E5: Nama Peserta | F5: IPS | N5: rata-rata UAM & PRAKTEK
F6: Nilai Semester | K6: Rata- 2 | L6: NILAI UAM | P6: UAMNU
F7: 7 | G7: 8 | H7: 9 | I7: 10 | J7: 11 | K7: Rapor | L7: TULIS | M7: PRAKTIK | P7: TULIS
A8: 1 | B8: =IF(SISWA!B8=0,"",SISWA!B8) -> 4331 | C8: =IF(SISWA!C8=0,"",SISWA!C8) -> 0078140536 | D8: =IF(SISWA!D8=0,"",SISWA!D8) -> 1-18-05-80-162-001-8 | E8: =IF(SISWA!E8=0,"",SISWA!E8) -> ACHMAD FATHIR IZUDDIN | G8: 67 | H8: 76 | I8: 80 | J8: 81 | K8: =AVERAGE(F8:J8) -> 76 | L8: 60 | N8: =AVERAGE(L8:M8) -> 60 | O8: =AVERAGE(N8,K8) -> 68 | P8: 68
A9: 2 | B9: =IF(SISWA!B9=0,"",SISWA!B9) -> 4333 | C9: =IF(SISWA!C9=0,"",SISWA!C9) -> 0084691896 | D9: =IF(SISWA!D9=0,"",SISWA!D9) -> 1-18-05-80-162-002-7 | E9: =IF(SISWA!E9=0,"",SISWA!E9) -> AININ NAFISA FEBRIYANTI | G9: 72 | H9: 76 | I9: 81 | J9: 85 | K9: =AVERAGE(F9:J9) -> 78.5 | L9: 60 | N9: =AVERAGE(L9:M9) -> 60 | O9: =AVERAGE(N9,K9) -> 69.25 | P9: 69.25
A10: 3 | B10: =IF(SISWA!B10=0,"",SISWA!B10) -> 4334 | C10: =IF(SISWA!C10=0,"",SISWA!C10) -> 0075488897 | D10: =IF(SISWA!D10=0,"",SISWA!D10) -> 1-18-05-80-162-003-6 | E10: =IF(SISWA!E10=0,"",SISWA!E10) -> AISYAH DWI ANDINI | G10: 75 | H10: 86 | I10: 80 | J10: 92 | K10: 83.25 | L10: 60 | N10: 60 | O10: 71.625 | P10: 71.625
A11: 4 | B11: =IF(SISWA!B11=0,"",SISWA!B11) -> 4335 | C11: =IF(SISWA!C11=0,"",SISWA!C11) -> 0077554289 | D11: =IF(SISWA!D11=0,"",SISWA!D11) -> 1-18-05-80-162-004-5 | E11: =IF(SISWA!E11=0,"",SISWA!E11) -> AJENG AGUSTINA KIRANA PUTRI | G11: 70 | H11: 86 | I11: 80 | J11: 84 | K11: 80 | L11: 60 | N11: 60 | O11: 70 | P11: 70
A12: 5 | B12: =IF(SISWA!B12=0,"",SISWA!B12) -> 4336 | C12: =IF(SISWA!C12=0,"",SISWA!C12) -> 0078831956 | D12: =IF(SISWA!D12=0,"",SISWA!D12) -> 1-18-05-80-162-005-4 | E12: =IF(SISWA!E12=0,"",SISWA!E12) -> ALVIAN FAIZULHAQQI | G12: 66 | H12: 74 | I12: 80 | J12: 84 | K12: 76 | L12: 60 | N12: 60 | O12: 68 | P12: 68
A13: 6 | B13: =IF(SISWA!B13=0,"",SISWA!B13) -> 4337 | C13: =IF(SISWA!C13=0,"",SISWA!C13) -> 0073667130 | D13: =IF(SISWA!D13=0,"",SISWA!D13) -> 1-18-05-80-162-006-3 | E13: =IF(SISWA!E13=0,"",SISWA!E13) -> ANGGITA RIZKY YUGA MEISYA | G13: 70 | H13: 91 | I13: 80 | J13: 88 | K13: 82.25 | L13: 60 | N13: 60 | O13: 71.125 | P13: 71.125
A14: 7 | B14: =IF(SISWA!B14=0,"",SISWA!B14) -> 4338 | C14: =IF(SISWA!C14=0,"",SISWA!C14) -> 0074492973 | D14: =IF(SISWA!D14=0,"",SISWA!D14) -> 1-18-05-80-162-007-2 | E14: =IF(SISWA!E14=0,"",SISWA!E14) -> AURA SALSABILA WULAN SARI | G14: 71 | H14: 80 | I14: 80 | J14: 96 | K14: 81.75 | L14: 60 | N14: 60 | O14: 70.875 | P14: 70.875
A15: 8 | B15: =IF(SISWA!B15=0,"",SISWA!B15) -> 4366 | C15: =IF(SISWA!C15=0,"",SISWA!C15) -> 0078989673 | D15: =IF(SISWA!D15=0,"",SISWA!D15) -> 1-18-05-80-162-008-9 | E15: =IF(SISWA!E15=0,"",SISWA!E15) -> BALQIS NAILA AUDIA | G15: 80 | H15: 85 | I15: 88 | J15: 88 | K15: 85.25 | L15: 60 | N15: 60 | O15: 72.625 | P15: 72.625
A16: 9 | B16: =IF(SISWA!B16=0,"",SISWA!B16) -> 4440 | C16: =IF(SISWA!C16=0,"",SISWA!C16) -> 0082763386 | D16: =IF(SISWA!D16=0,"",SISWA!D16) -> 1-18-05-80-162-009-8 | E16: =IF(SISWA!E16=0,"",SISWA!E16) -> BIMA ARYO SUSILO | G16: 80 | H16: 82 | I16: 87 | J16: 87 | K16: 84 | L16: 60 | N16: 60 | O16: 72 | P16: 72
A17: 10 | B17: =IF(SISWA!B17=0,"",SISWA!B17) -> 4367 | C17: =IF(SISWA!C17=0,"",SISWA!C17) -> 0078400392 | D17: =IF(SISWA!D17=0,"",SISWA!D17) -> 1-18-05-80-162-010-7 | E17: =IF(SISWA!E17=0,"",SISWA!E17) -> BIMA SATRIA DIRGANTARA | G17: 66 | H17: 73 | I17: 80 | J17: 93 | K17: 78 | L17: 60 | N17: 60 | O17: 69 | P17: 69
A18: 11 | B18: =IF(SISWA!B18=0,"",SISWA!B18) -> 4339 | C18: =IF(SISWA!C18=0,"",SISWA!C18) -> 0086652599 | D18: =IF(SISWA!D18=0,"",SISWA!D18) -> 1-18-05-80-162-011-6 | E18: =IF(SISWA!E18=0,"",SISWA!E18) -> DEVI KARUNIA RATNA PUTRI | G18: 74 | H18: 90 | I18: 81 | J18: 88 | K18: 83.25 | L18: 60 | N18: 60 | O18: 71.625 | P18: 71.625
A19: 12 | B19: =IF(SISWA!B19=0,"",SISWA!B19) -> 4340 | C19: =IF(SISWA!C19=0,"",SISWA!C19) -> 0089906682 | D19: =IF(SISWA!D19=0,"",SISWA!D19) -> 1-18-05-80-162-012-5 | E19: =IF(SISWA!E19=0,"",SISWA!E19) -> DEVITA FEBRIANI PUTRI | G19: 76 | H19: 80 | I19: 83 | J19: 86 | K19: 81.25 | L19: 60 | N19: 60 | O19: 70.625 | P19: 70.625
A20: 13 | B20: =IF(SISWA!B20=0,"",SISWA!B20) -> 4370 | C20: =IF(SISWA!C20=0,"",SISWA!C20) -> 0074514146 | D20: =IF(SISWA!D20=0,"",SISWA!D20) -> 1-18-05-80-162-013-4 | E20: =IF(SISWA!E20=0,"",SISWA!E20) -> FAKHIS GABRIL LIA | G20: 66 | H20: 81 | I20: 83 | J20: 88 | K20: 79.5 | L20: 60 | N20: 60 | O20: 69.75 | P20: 69.75
A21: 14 | B21: =IF(SISWA!B21=0,"",SISWA!B21) -> 4342 | C21: =IF(SISWA!C21=0,"",SISWA!C21) -> 0081081672 | D21: =IF(SISWA!D21=0,"",SISWA!D21) -> 1-18-05-80-162-014-3 | E21: =IF(SISWA!E21=0,"",SISWA!E21) -> FARAH NAILATUL ALYAH | G21: 91 | H21: 78 | I21: 84 | J21: 85 | K21: 84.5 | L21: 60 | N21: 60 | O21: 72.25 | P21: 72.25
A22: 15 | B22: =IF(SISWA!B22=0,"",SISWA!B22) -> 4345 | C22: =IF(SISWA!C22=0,"",SISWA!C22) -> 0073420487 | D22: =IF(SISWA!D22=0,"",SISWA!D22) -> 1-18-05-80-162-015-2 | E22: =IF(SISWA!E22=0,"",SISWA!E22) -> GALANG MARDHOTILLAH SATOTO | G22: 70 | H22: 76 | I22: 82 | J22: 87 | K22: 78.75 | L22: 60 | N22: 60 | O22: 69.375 | P22: 69.375
A23: 16 | B23: =IF(SISWA!B23=0,"",SISWA!B23) -> 4371 | C23: =IF(SISWA!C23=0,"",SISWA!C23) -> 0079870082 | D23: =IF(SISWA!D23=0,"",SISWA!D23) -> 1-18-05-80-162-016-9 | E23: =IF(SISWA!E23=0,"",SISWA!E23) -> GALIH FAREL PRASTYO | G23: 65 | H23: 77 | I23: 83 | J23: 83 | K23: 77 | L23: 60 | N23: 60 | O23: 68.5 | P23: 68.5
A24: 17 | B24: =IF(SISWA!B24=0,"",SISWA!B24) -> 4466 | C24: =IF(SISWA!C24=0,"",SISWA!C24) -> 0081629504 | D24: =IF(SISWA!D24=0,"",SISWA!D24) -> 1-18-05-80-162-017-8 | E24: =IF(SISWA!E24=0,"",SISWA!E24) -> HIBATULLAH MUSTAGHFIRY RUSLI | G24: 83 | H24: 83 | I24: 80 | J24: 86 | K24: 83 | L24: 60 | N24: 60 | O24: 71.5 | P24: 71.5
A25: 18 | B25: =IF(SISWA!B25=0,"",SISWA!B25) -> 4346 | C25: =IF(SISWA!C25=0,"",SISWA!C25) -> 0073608418 | D25: =IF(SISWA!D25=0,"",SISWA!D25) -> 1-18-05-80-162-018-7 | E25: =IF(SISWA!E25=0,"",SISWA!E25) -> IKA KURNIA WATI AGUSTINA | G25: 67 | H25: 80 | I25: 80 | J25: 87 | K25: 78.5 | L25: 60 | N25: 60 | O25: 69.25 | P25: 69.25
A26: 19 | B26: =IF(SISWA!B26=0,"",SISWA!B26) -> 4350 | C26: =IF(SISWA!C26=0,"",SISWA!C26) -> 0072658586 | D26: =IF(SISWA!D26=0,"",SISWA!D26) -> 1-18-05-80-162-019-6 | E26: =IF(SISWA!E26=0,"",SISWA!E26) -> MAYLUNA EKA PRATIWI | G26: 92 | H26: 85 | I26: 84 | J26: 94 | K26: 88.75 | L26: 60 | N26: 60 | O26: 74.375 | P26: 74.375
A27: 20 | B27: =IF(SISWA!B27=0,"",SISWA!B27) -> 4353 | C27: =IF(SISWA!C27=0,"",SISWA!C27) -> 0075464137 | D27: =IF(SISWA!D27=0,"",SISWA!D27) -> 1-18-05-80-162-020-5 | E27: =IF(SISWA!E27=0,"",SISWA!E27) -> MOHAMAD DWIMAS FIRDAUS | G27: 84 | H27: 78 | I27: 81 | J27: 93 | K27: 84 | L27: 67.5 | N27: 67.5 | O27: 75.75 | P27: 75.75
A28: 21 | B28: =IF(SISWA!B28=0,"",SISWA!B28) -> 4375 | C28: =IF(SISWA!C28=0,"",SISWA!C28) -> 0075096831 | D28: =IF(SISWA!D28=0,"",SISWA!D28) -> 1-18-05-80-162-021-4 | E28: =IF(SISWA!E28=0,"",SISWA!E28) -> MUHAMMAD AFFAN ABI SYAHPUTRA | G28: 89 | H28: 79 | I28: 84 | J28: 78 | K28: 82.5 | L28: 60 | N28: 60 | O28: 71.25 | P28: 71.25
A29: 22 | B29: =IF(SISWA!B29=0,"",SISWA!B29) -> 4354 | C29: =IF(SISWA!C29=0,"",SISWA!C29) -> 0075055640 | D29: =IF(SISWA!D29=0,"",SISWA!D29) -> 1-18-05-80-162-022-3 | E29: =IF(SISWA!E29=0,"",SISWA!E29) -> MUHAMMAD ALVIN RIDHO | G29: 67 | H29: 74 | I29: 81 | J29: 84 | K29: 76.5 | L29: 75 | N29: 75 | O29: 75.75 | P29: 75.75
A30: 23 | B30: =IF(SISWA!B30=0,"",SISWA!B30) -> 4378 | C30: =IF(SISWA!C30=0,"",SISWA!C30) -> 0074268893 | D30: =IF(SISWA!D30=0,"",SISWA!D30) -> 1-18-05-80-162-023-2 | E30: =IF(SISWA!E30=0,"",SISWA!E30) -> MUKHAMAD DAVID ARIF FIRDAUS | G30: 88 | H30: 81 | I30: 82 | J30: 88 | K30: 84.75 | L30: 60 | N30: 60 | O30: 72.375 | P30: 72.375
A31: 24 | B31: =IF(SISWA!B31=0,"",SISWA!B31) -> 4379 | C31: =IF(SISWA!C31=0,"",SISWA!C31) -> 0072757203 | D31: =IF(SISWA!D31=0,"",SISWA!D31) -> 1-18-05-80-162-024-9 | E31: =IF(SISWA!E31=0,"",SISWA!E31) -> NAORA ISQI AINAYYA | G31: 97 | H31: 90 | I31: 88 | J31: 93 | K31: 92 | L31: 60 | N31: 60 | O31: 76 | P31: 76
A32: 25 | B32: =IF(SISWA!B32=0,"",SISWA!B32) -> 4380 | C32: =IF(SISWA!C32=0,"",SISWA!C32) -> 0079026285 | D32: =IF(SISWA!D32=0,"",SISWA!D32) -> 1-18-05-80-162-025-8 | E32: =IF(SISWA!E32=0,"",SISWA!E32) -> NAZRA ISLAMAY PASHA | G32: 80 | H32: 87 | I32: 86 | J32: 92 | K32: 86.25 | L32: 60 | N32: 60 | O32: 73.125 | P32: 73.125
A33: 26 | B33: =IF(SISWA!B33=0,"",SISWA!B33) -> 4382 | C33: =IF(SISWA!C33=0,"",SISWA!C33) -> 0079872151 | D33: =IF(SISWA!D33=0,"",SISWA!D33) -> 1-18-05-80-162-026-7 | E33: =IF(SISWA!E33=0,"",SISWA!E33) -> NUR ALYA NABILA | G33: 86 | H33: 79 | I33: 81 | J33: 90 | K33: 84 | L33: 65 | N33: 65 | O33: 74.5 | P33: 74.5
A34: 27 | B34: =IF(SISWA!B34=0,"",SISWA!B34) -> 4358 | C34: =IF(SISWA!C34=0,"",SISWA!C34) -> 0087558837 | D34: =IF(SISWA!D34=0,"",SISWA!D34) -> 1-18-05-80-162-027-6 | E34: =IF(SISWA!E34=0,"",SISWA!E34) -> PUTRI SHOLIKHAH | G34: 84 | H34: 76 | I34: 81 | J34: 83 | K34: 81 | L34: 60 | N34: 60 | O34: 70.5 | P34: 70.5
A35: 28 | B35: =IF(SISWA!B35=0,"",SISWA!B35) -> 4384 | C35: =IF(SISWA!C35=0,"",SISWA!C35) -> 0071234523 | D35: =IF(SISWA!D35=0,"",SISWA!D35) -> 1-18-05-80-162-028-5 | E35: =IF(SISWA!E35=0,"",SISWA!E35) -> RESTI FITRIANTI DWI OCTAVIANI | G35: 76 | H35: 82 | I35: 80 | J35: 89 | K35: 81.75 | L35: 60 | N35: 60 | O35: 70.875 | P35: 70.875
A36: 29 | B36: =IF(SISWA!B36=0,"",SISWA!B36) -> 4359 | C36: =IF(SISWA!C36=0,"",SISWA!C36) -> 0073122181 | D36: =IF(SISWA!D36=0,"",SISWA!D36) -> 1-18-05-80-162-029-4 | E36: =IF(SISWA!E36=0,"",SISWA!E36) -> ROUDHOTUS SA'DIYAH | G36: 87 | H36: 80 | I36: 82 | J36: 85 | K36: 83.5 | L36: 60 | N36: 60 | O36: 71.75 | P36: 71.75
A37: 30 | B37: =IF(SISWA!B37=0,"",SISWA!B37) -> 4386 | C37: =IF(SISWA!C37=0,"",SISWA!C37) -> 0075344352 | D37: =IF(SISWA!D37=0,"",SISWA!D37) -> 1-18-05-80-162-030-3 | E37: =IF(SISWA!E37=0,"",SISWA!E37) -> TIERSYA BETA RAMANUZAN | G37: 93 | H37: 88 | I37: 85 | J37: 90 | K37: 89 | L37: 72.5 | N37: 72.5 | O37: 80.75 | P37: 80.75
A38: 31 | B38: =IF(SISWA!B38=0,"",SISWA!B38) -> 4388 | C38: =IF(SISWA!C38=0,"",SISWA!C38) -> 0077423646 | D38: =IF(SISWA!D38=0,"",SISWA!D38) -> 1-18-05-80-162-031-2 | E38: =IF(SISWA!E38=0,"",SISWA!E38) -> VERA MUSTIKA | G38: 86 | H38: 79 | I38: 82 | J38: 90 | K38: 84.25 | L38: 60 | N38: 60 | O38: 72.125 | P38: 72.125
A39: 32 | B39: =IF(SISWA!B39=0,"",SISWA!B39) -> 4360 | C39: =IF(SISWA!C39=0,"",SISWA!C39) -> 0077290990 | D39: =IF(SISWA!D39=0,"",SISWA!D39) -> 1-18-05-80-162-032-9 | E39: =IF(SISWA!E39=0,"",SISWA!E39) -> ZIDNY ILMA NABILA | G39: 94 | H39: 81 | I39: 86 | J39: 95 | K39: 89 | L39: 60 | N39: 60 | O39: 74.5 | P39: 74.5
A40: 33 | B40: =IF(SISWA!B40=0,"",SISWA!B40) -> 4390 | C40: =IF(SISWA!C40=0,"",SISWA!C40) -> 0077722307 | D40: =IF(SISWA!D40=0,"",SISWA!D40) -> 1-18-05-80-162-033-8 | E40: =IF(SISWA!E40=0,"",SISWA!E40) -> ZITNATUL AULIA ILLA | G40: 95 | H40: 85 | I40: 89 | J40: 93 | K40: 90.5 | L40: 60 | N40: 60 | O40: 75.25 | P40: 75.25
A41: 34 | B41: =IF(SISWA!B41=0,"",SISWA!B41) -> 4330 | C41: =IF(SISWA!C41=0,"",SISWA!C41) -> 0084736422 | D41: =IF(SISWA!D41=0,"",SISWA!D41) -> 1-18-05-80-162-034-7 | E41: =IF(SISWA!E41=0,"",SISWA!E41) -> ACHID ATHIRIL ARDAN | G41: 68 | H41: 76 | I41: 82 | J41: 81 | K41: 76.75 | L41: 60 | N41: 60 | O41: 68.375 | P41: 67.5
A42: 35 | B42: =IF(SISWA!B42=0,"",SISWA!B42) -> 4361 | C42: =IF(SISWA!C42=0,"",SISWA!C42) -> 0075656390 | D42: =IF(SISWA!D42=0,"",SISWA!D42) -> 1-18-05-80-162-035-6 | E42: =IF(SISWA!E42=0,"",SISWA!E42) -> ACHMAD SEPTIAN HAMDANI | G42: 62 | H42: 79 | I42: 81 | J42: 81 | K42: 75.75 | L42: 60 | N42: 60 | O42: 67.875 | P42: 65.75
A43: 36 | B43: =IF(SISWA!B43=0,"",SISWA!B43) -> 4362 | C43: =IF(SISWA!C43=0,"",SISWA!C43) -> 0071796138 | D43: =IF(SISWA!D43=0,"",SISWA!D43) -> 1-18-05-80-162-036-5 | E43: =IF(SISWA!E43=0,"",SISWA!E43) -> ACHMAD SULAIMAN | G43: 60 | H43: 73 | I43: 81 | J43: 81 | K43: 73.75 | L43: 60 | N43: 60 | O43: 66.875 | P43: 65.25
A44: 37 | B44: =IF(SISWA!B44=0,"",SISWA!B44) -> 4364 | C44: =IF(SISWA!C44=0,"",SISWA!C44) -> 0079667684 | D44: =IF(SISWA!D44=0,"",SISWA!D44) -> 1-18-05-80-162-037-4 | E44: =IF(SISWA!E44=0,"",SISWA!E44) -> AIRLANGGA DWIKA RIZQI | G44: 60 | H44: 73 | I44: 82 | J44: 81 | K44: 74 | L44: 60 | N44: 60 | O44: 67 | P44: 65.5
A45: 38 | B45: =IF(SISWA!B45=0,"",SISWA!B45) -> 4365 | C45: =IF(SISWA!C45=0,"",SISWA!C45) -> 0089321127 | D45: =IF(SISWA!D45=0,"",SISWA!D45) -> 1-18-05-80-162-038-3 | E45: =IF(SISWA!E45=0,"",SISWA!E45) -> AUFAN AZKAL ABRORI | G45: 66 | H45: 76 | I45: 83 | J45: 81 | K45: 76.5 | L45: 60 | N45: 60 | O45: 68.25 | P45: 67.25
A46: 39 | B46: =IF(SISWA!B46=0,"",SISWA!B46) -> 4465 | C46: =IF(SISWA!C46=0,"",SISWA!C46) -> 0071776593 | D46: =IF(SISWA!D46=0,"",SISWA!D46) -> 1-18-05-80-162-039-2 | E46: =IF(SISWA!E46=0,"",SISWA!E46) -> AZZA PRISHAL DWI PUTRA | G46: 66 | H46: 74 | I46: 83 | J46: 81 | K46: 76 | L46: 60 | N46: 60 | O46: 68 | P46: 67.25
A47: 40 | B47: =IF(SISWA!B47=0,"",SISWA!B47) -> 4368 | C47: =IF(SISWA!C47=0,"",SISWA!C47) -> 0074569410 | D47: =IF(SISWA!D47=0,"",SISWA!D47) -> 1-18-05-80-162-040-9 | E47: =IF(SISWA!E47=0,"",SISWA!E47) -> EKA AULIYA` PUTRI | G47: 66 | H47: 76 | I47: 84 | J47: 83 | K47: 77.25 | L47: 60 | N47: 60 | O47: 68.625 | P47: 67.5
A48: 41 | B48: =IF(SISWA!B48=0,"",SISWA!B48) -> 4341 | C48: =IF(SISWA!C48=0,"",SISWA!C48) -> 0083684457 | D48: =IF(SISWA!D48=0,"",SISWA!D48) -> 1-18-05-80-162-041-8 | E48: =IF(SISWA!E48=0,"",SISWA!E48) -> ERSA PUSPITA EKA ROSA LINDA | G48: 65 | H48: 75 | I48: 85 | J48: 83 | K48: 77 | L48: 60 | N48: 60 | O48: 68.5 | P48: 67.5
A49: 42 | B49: =IF(SISWA!B49=0,"",SISWA!B49) -> 4369 | C49: =IF(SISWA!C49=0,"",SISWA!C49) -> 0078481731 | D49: =IF(SISWA!D49=0,"",SISWA!D49) -> 1-18-05-80-162-042-7 | E49: =IF(SISWA!E49=0,"",SISWA!E49) -> FABIYAN TRI BAKTI OKTAFIAN | G49: 65 | H49: 74 | I49: 84 | J49: 82 | K49: 76.25 | L49: 60 | N49: 60 | O49: 68.125 | P49: 67.25
A50: 43 | B50: =IF(SISWA!B50=0,"",SISWA!B50) -> 4343 | C50: =IF(SISWA!C50=0,"",SISWA!C50) -> 3075965396 | D50: =IF(SISWA!D50=0,"",SISWA!D50) -> 1-18-05-80-162-043-6 | E50: =IF(SISWA!E50=0,"",SISWA!E50) -> FELISITA APRILIA NUR NIHAYA | G50: 66 | H50: 77 | I50: 84 | J50: 82 | K50: 77.25 | L50: 60 | N50: 60 | O50: 68.625 | P50: 67.5
A51: 44 | B51: =IF(SISWA!B51=0,"",SISWA!B51) -> 4344 | C51: =IF(SISWA!C51=0,"",SISWA!C51) -> 3078948093 | D51: =IF(SISWA!D51=0,"",SISWA!D51) -> 1-18-05-80-162-044-5 | E51: =IF(SISWA!E51=0,"",SISWA!E51) -> FIRDA DWI ANDRIANI | G51: 66 | H51: 75 | I51: 83 | J51: 82 | K51: 76.5 | L51: 60 | N51: 60 | O51: 68.25 | P51: 67.25
A52: 45 | B52: =IF(SISWA!B52=0,"",SISWA!B52) -> 4372 | C52: =IF(SISWA!C52=0,"",SISWA!C52) -> 0087636520 | D52: =IF(SISWA!D52=0,"",SISWA!D52) -> 1-18-05-80-162-045-4 | E52: =IF(SISWA!E52=0,"",SISWA!E52) -> GILANG AKBAR PRASETYO | G52: 65 | H52: 74 | I52: 82 | J52: 81 | K52: 75.5 | L52: 60 | N52: 60 | O52: 67.75 | P52: 66.75
A53: 46 | B53: =IF(SISWA!B53=0,"",SISWA!B53) -> 4373 | C53: =IF(SISWA!C53=0,"",SISWA!C53) -> 0087373224 | D53: =IF(SISWA!D53=0,"",SISWA!D53) -> 1-18-05-80-162-046-3 | E53: =IF(SISWA!E53=0,"",SISWA!E53) -> IFTAH IZZAH EMILIA MAHMUD | G53: 61 | H53: 75 | I53: 85 | J53: 81 | K53: 75.5 | L53: 60 | N53: 60 | O53: 67.75 | P53: 66.5
A54: 47 | B54: =IF(SISWA!B54=0,"",SISWA!B54) -> 4441 | C54: =IF(SISWA!C54=0,"",SISWA!C54) -> 0081758949 | D54: =IF(SISWA!D54=0,"",SISWA!D54) -> 1-18-05-80-162-047-2 | E54: =IF(SISWA!E54=0,"",SISWA!E54) -> INES ARIFANI MAULINA | G54: 68 | H54: 77 | I54: 85 | J54: 83 | K54: 78.25 | L54: 60 | N54: 60 | O54: 69.125 | P54: 68.25
A55: 48 | B55: =IF(SISWA!B55=0,"",SISWA!B55) -> 4374 | C55: =IF(SISWA!C55=0,"",SISWA!C55) -> 0073409469 | D55: =IF(SISWA!D55=0,"",SISWA!D55) -> 1-18-05-80-162-048-9 | E55: =IF(SISWA!E55=0,"",SISWA!E55) -> IYAAD AFLAKHA RAMZII | G55: 66 | H55: 81 | I55: 84 | J55: 82 | K55: 78.25 | L55: 60 | N55: 60 | O55: 69.125 | P55: 67.5
A56: 49 | B56: =IF(SISWA!B56=0,"",SISWA!B56) -> 4305 | C56: =IF(SISWA!C56=0,"",SISWA!C56) -> 0068258891 | D56: =IF(SISWA!D56=0,"",SISWA!D56) -> 1-18-05-80-162-049-8 | E56: =IF(SISWA!E56=0,"",SISWA!E56) -> JULI ANDRIYANTO | G56: 65 | H56: 76 | I56: 84 | J56: 82 | K56: 76.75 | L56: 60 | N56: 60 | O56: 68.375 | P56: 67.25
A57: 50 | B57: =IF(SISWA!B57=0,"",SISWA!B57) -> 4347 | C57: =IF(SISWA!C57=0,"",SISWA!C57) -> 0076367763 | D57: =IF(SISWA!D57=0,"",SISWA!D57) -> 1-18-05-80-162-050-7 | E57: =IF(SISWA!E57=0,"",SISWA!E57) -> LIYA FEBRIYANI | G57: 78 | H57: 83 | I57: 90 | J57: 86 | K57: 84.25 | L57: 60 | N57: 60 | O57: 72.125 | P57: 72
A58: 51 | B58: =IF(SISWA!B58=0,"",SISWA!B58) -> 4348 | C58: =IF(SISWA!C58=0,"",SISWA!C58) -> 0083034332 | D58: =IF(SISWA!D58=0,"",SISWA!D58) -> 1-18-05-80-162-051-6 | E58: =IF(SISWA!E58=0,"",SISWA!E58) -> LIZATUL CHAIYUNI | G58: 76 | H58: 80 | I58: 89 | J58: 84 | K58: 82.25 | L58: 60 | N58: 60 | O58: 71.125 | P58: 71.25
A59: 52 | B59: =IF(SISWA!B59=0,"",SISWA!B59) -> 4531 | C59: =IF(SISWA!C59=0,"",SISWA!C59) -> 3099539154 | D59: =IF(SISWA!D59=0,"",SISWA!D59) -> 1-18-05-80-162-052-5 | E59: =IF(SISWA!E59=0,"",SISWA!E59) -> M. ALHAFIS | G59: 70 | H59: 76 | I59: 83 | J59: 83 | K59: 78 | L59: 60 | N59: 60 | O59: 69 | P59: 68.25
A60: 53 | B60: =IF(SISWA!B60=0,"",SISWA!B60) -> 4530 | C60: =IF(SISWA!C60=0,"",SISWA!C60) -> 0077015789 | D60: =IF(SISWA!D60=0,"",SISWA!D60) -> 1-18-05-80-162-053-4 | E60: =IF(SISWA!E60=0,"",SISWA!E60) -> MUHAMMAD RIZKI RIDWAN | G60: 62 | H60: 73 | I60: 82 | J60: 81 | K60: 74.5 | L60: 60 | N60: 60 | O60: 67.25 | P60: 66
A61: 54 | B61: =IF(SISWA!B61=0,"",SISWA!B61) -> 4351 | C61: =IF(SISWA!C61=0,"",SISWA!C61) -> 0076361559 | D61: =IF(SISWA!D61=0,"",SISWA!D61) -> 1-18-05-80-162-054-3 | E61: =IF(SISWA!E61=0,"",SISWA!E61) -> MOCHAMAD RAFLI DIAN SAPUTRA | G61: 64 | H61: 74 | I61: 81 | J61: 82 | K61: 75.25 | L61: 60 | N61: 60 | O61: 67.625 | P61: 66.25
A62: 55 | B62: =IF(SISWA!B62=0,"",SISWA!B62) -> 4352 | C62: =IF(SISWA!C62=0,"",SISWA!C62) -> 0075591405 | D62: =IF(SISWA!D62=0,"",SISWA!D62) -> 1-18-05-80-162-055-2 | E62: =IF(SISWA!E62=0,"",SISWA!E62) -> MOCHAMMAD AFAREL PUTRA RAMDHANA | G62: 79 | H62: 78 | I62: 84 | J62: 82 | K62: 80.75 | L62: 60 | N62: 60 | O62: 70.375 | P62: 70.75
A63: 56 | B63: =IF(SISWA!B63=0,"",SISWA!B63) -> 4355 | C63: =IF(SISWA!C63=0,"",SISWA!C63) -> 0075363258 | D63: =IF(SISWA!D63=0,"",SISWA!D63) -> 1-18-05-80-162-056-9 | E63: =IF(SISWA!E63=0,"",SISWA!E63) -> MUHAMAD JEFRI MAULANA | G63: 70 | H63: 77 | I63: 82 | J63: 82 | K63: 77.75 | L63: 60 | N63: 60 | O63: 68.875 | P63: 68
A64: 57 | B64: =IF(SISWA!B64=0,"",SISWA!B64) -> 4376 | C64: =IF(SISWA!C64=0,"",SISWA!C64) -> 0072066741 | D64: =IF(SISWA!D64=0,"",SISWA!D64) -> 1-18-05-80-162-057-8 | E64: =IF(SISWA!E64=0,"",SISWA!E64) -> MUHAMMAD DWI WILDAN BAGUS KURNIAWAN | G64: 62 | H64: 74 | I64: 82 | J64: 81 | K64: 74.75 | L64: 60 | N64: 60 | O64: 67.375 | P64: 66
A65: 58 | B65: =IF(SISWA!B65=0,"",SISWA!B65) -> 4377 | C65: =IF(SISWA!C65=0,"",SISWA!C65) -> 0071459044 | D65: =IF(SISWA!D65=0,"",SISWA!D65) -> 1-18-05-80-162-058-7 | E65: =IF(SISWA!E65=0,"",SISWA!E65) -> MUHAMMAD FARIL FIRMANSYA | G65: 65 | H65: 76 | I65: 82 | J65: 81 | K65: 76 | L65: 60 | N65: 60 | O65: 68 | P65: 66.75
A66: 59 | B66: =IF(SISWA!B66=0,"",SISWA!B66) -> 4349 | C66: =IF(SISWA!C66=0,"",SISWA!C66) -> 0074206034 | D66: =IF(SISWA!D66=0,"",SISWA!D66) -> 1-18-05-80-162-059-6 | E66: =IF(SISWA!E66=0,"",SISWA!E66) -> MUHAMMAD FARIZ UBAIDILLA | G66: 76 | H66: 79 | I66: 82 | J66: 84 | K66: 80.25 | L66: 60 | N66: 60 | O66: 70.125 | P66: 69.5
A67: 60 | B67: =IF(SISWA!B67=0,"",SISWA!B67) -> 4356 | C67: =IF(SISWA!C67=0,"",SISWA!C67) -> 0077937892 | D67: =IF(SISWA!D67=0,"",SISWA!D67) -> 1-18-05-80-162-060-5 | E67: =IF(SISWA!E67=0,"",SISWA!E67) -> MUHAMMAD MAULANA ZIDANIL ILMI | G67: 77 | H67: 79 | I67: 85 | J67: 86 | K67: 81.75 | L67: 60 | N67: 60 | O67: 70.875 | P67: 70.5
A68: 61 | B68: =IF(SISWA!B68=0,"",SISWA!B68) -> 4357 | C68: =IF(SISWA!C68=0,"",SISWA!C68) -> 0078608527 | D68: =IF(SISWA!D68=0,"",SISWA!D68) -> 1-18-05-80-162-061-4 | E68: =IF(SISWA!E68=0,"",SISWA!E68) -> MUHAMMAD SUTRISNO ISMAIL | G68: 61 | H68: 73 | I68: 81 | J68: 81 | K68: =AVERAGE(F68:J68) -> 74 | L68: 60 | N68: 60 | O68: 67 | P68: 65.5
A69: 62 | B69: =IF(SISWA!B69=0,"",SISWA!B69) -> 4381 | C69: =IF(SISWA!C69=0,"",SISWA!C69) -> 0072209435 | D69: =IF(SISWA!D69=0,"",SISWA!D69) -> 1-18-05-80-162-062-3 | E69: =IF(SISWA!E69=0,"",SISWA!E69) -> NOVITA ERNIAWAN | G69: 77 | H69: 82 | I69: 84 | J69: 82 | K69: 81.25 | L69: 60 | N69: 60 | O69: 70.625 | P69: 70.25
A70: 63 | B70: =IF(SISWA!B70=0,"",SISWA!B70) -> 4383 | C70: =IF(SISWA!C70=0,"",SISWA!C70) -> 0077439834 | D70: =IF(SISWA!D70=0,"",SISWA!D70) -> 1-18-05-80-162-063-2 | E70: =IF(SISWA!E70=0,"",SISWA!E70) -> PUTRI AULIA DWI AGUSTIN | G70: 76 | H70: 82 | I70: 86 | J70: 83 | K70: 81.75 | L70: 60 | N70: 60 | O70: 70.875 | P70: 70.5
A71: 64 | B71: =IF(SISWA!B71=0,"",SISWA!B71) -> 4385 | C71: =IF(SISWA!C71=0,"",SISWA!C71) -> 0073137310 | D71: =IF(SISWA!D71=0,"",SISWA!D71) -> 1-18-05-80-162-064-9 | E71: =IF(SISWA!E71=0,"",SISWA!E71) -> STANY RAFIDAH RAHMANIA | G71: 65 | H71: 74 | I71: 83 | J71: 81 | K71: 75.75 | L71: 60 | N71: 60 | O71: 67.875 | P71: 67
A72: 65 | B72: =IF(SISWA!B72=0,"",SISWA!B72) -> 4387 | C72: =IF(SISWA!C72=0,"",SISWA!C72) -> 0077336427 | D72: =IF(SISWA!D72=0,"",SISWA!D72) -> 1-18-05-80-162-065-8 | E72: =IF(SISWA!E72=0,"",SISWA!E72) -> USWATUN KHASANAH | G72: 63 | H72: 74 | I72: 84 | J72: 82 | K72: 75.75 | L72: 60 | N72: 60 | O72: 67.875 | P72: 66.75
A73: 66 | B73: =IF(SISWA!B73=0,"",SISWA!B73) -> 4389 | C73: =IF(SISWA!C73=0,"",SISWA!C73) -> 0078407631 | D73: =IF(SISWA!D73=0,"",SISWA!D73) -> 1-18-05-80-162-066-7 | E73: =IF(SISWA!E73=0,"",SISWA!E73) -> VIKROUL KHAMILA | G73: 78 | H73: 76 | I73: 85 | J73: 84 | K73: 80.75 | L73: 60 | N73: =AVERAGE(L73:M73) -> 60 | O73: =AVERAGE(N73,K73) -> 70.375 | P73: 70.75
A74: 67 | B74: =IF(SISWA!B74=0,"",SISWA!B74) ->  | C74: =IF(SISWA!C74=0,"",SISWA!C74) ->  | D74: =IF(SISWA!D74=0,"",SISWA!D74) ->  | E74: =IF(SISWA!E74=0,"",SISWA!E74) -> 
A75: 68 | B75: =IF(SISWA!B75=0,"",SISWA!B75) ->  | C75: =IF(SISWA!C75=0,"",SISWA!C75) ->  | D75: =IF(SISWA!D75=0,"",SISWA!D75) ->  | E75: =IF(SISWA!E75=0,"",SISWA!E75) -> 
A76: 69 | B76: =IF(SISWA!B76=0,"",SISWA!B76) ->  | C76: =IF(SISWA!C76=0,"",SISWA!C76) ->  | D76: =IF(SISWA!D76=0,"",SISWA!D76) ->  | E76: =IF(SISWA!E76=0,"",SISWA!E76) -> 
A77: 70 | B77: =IF(SISWA!B77=0,"",SISWA!B77) ->  | C77: =IF(SISWA!C77=0,"",SISWA!C77) ->  | D77: =IF(SISWA!D77=0,"",SISWA!D77) ->  | E77: =IF(SISWA!E77=0,"",SISWA!E77) -> 
A78: 71 | B78: =IF(SISWA!B78=0,"",SISWA!B78) ->  | C78: =IF(SISWA!C78=0,"",SISWA!C78) ->  | D78: =IF(SISWA!D78=0,"",SISWA!D78) ->  | E78: =IF(SISWA!E78=0,"",SISWA!E78) -> 
A79: 72 | B79: =IF(SISWA!B79=0,"",SISWA!B79) ->  | C79: =IF(SISWA!C79=0,"",SISWA!C79) ->  | D79: =IF(SISWA!D79=0,"",SISWA!D79) ->  | E79: =IF(SISWA!E79=0,"",SISWA!E79) -> 
A80: 73 | B80: =IF(SISWA!B80=0,"",SISWA!B80) ->  | C80: =IF(SISWA!C80=0,"",SISWA!C80) ->  | D80: =IF(SISWA!D80=0,"",SISWA!D80) ->  | E80: =IF(SISWA!E80=0,"",SISWA!E80) -> 
A81: 74 | B81: =IF(SISWA!B81=0,"",SISWA!B81) ->  | C81: =IF(SISWA!C81=0,"",SISWA!C81) ->  | D81: =IF(SISWA!D81=0,"",SISWA!D81) ->  | E81: =IF(SISWA!E81=0,"",SISWA!E81) -> 
A82: 75 | B82: =IF(SISWA!B82=0,"",SISWA!B82) ->  | C82: =IF(SISWA!C82=0,"",SISWA!C82) ->  | D82: =IF(SISWA!D82=0,"",SISWA!D82) ->  | E82: =IF(SISWA!E82=0,"",SISWA!E82) -> 
A83: 76 | B83: =IF(SISWA!B83=0,"",SISWA!B83) ->  | C83: =IF(SISWA!C83=0,"",SISWA!C83) ->  | D83: =IF(SISWA!D83=0,"",SISWA!D83) ->  | E83: =IF(SISWA!E83=0,"",SISWA!E83) -> 
A84: 77 | B84: =IF(SISWA!B84=0,"",SISWA!B84) ->  | C84: =IF(SISWA!C84=0,"",SISWA!C84) ->  | D84: =IF(SISWA!D84=0,"",SISWA!D84) ->  | E84: =IF(SISWA!E84=0,"",SISWA!E84) -> 
A85: 78 | B85: =IF(SISWA!B85=0,"",SISWA!B85) ->  | C85: =IF(SISWA!C85=0,"",SISWA!C85) ->  | D85: =IF(SISWA!D85=0,"",SISWA!D85) ->  | E85: =IF(SISWA!E85=0,"",SISWA!E85) -> 
A86: 79 | B86: =IF(SISWA!B86=0,"",SISWA!B86) ->  | C86: =IF(SISWA!C86=0,"",SISWA!C86) ->  | D86: =IF(SISWA!D86=0,"",SISWA!D86) ->  | E86: =IF(SISWA!E86=0,"",SISWA!E86) -> 
A87: 80 | B87: =IF(SISWA!B87=0,"",SISWA!B87) ->  | C87: =IF(SISWA!C87=0,"",SISWA!C87) ->  | D87: =IF(SISWA!D87=0,"",SISWA!D87) ->  | E87: =IF(SISWA!E87=0,"",SISWA!E87) -> 
A88: 81 | B88: =IF(SISWA!B88=0,"",SISWA!B88) ->  | C88: =IF(SISWA!C88=0,"",SISWA!C88) ->  | D88: =IF(SISWA!D88=0,"",SISWA!D88) ->  | E88: =IF(SISWA!E88=0,"",SISWA!E88) -> 
A89: 82 | B89: =IF(SISWA!B89=0,"",SISWA!B89) ->  | C89: =IF(SISWA!C89=0,"",SISWA!C89) ->  | D89: =IF(SISWA!D89=0,"",SISWA!D89) ->  | E89: =IF(SISWA!E89=0,"",SISWA!E89) -> 
A90: 83 | B90: =IF(SISWA!B90=0,"",SISWA!B90) ->  | C90: =IF(SISWA!C90=0,"",SISWA!C90) ->  | D90: =IF(SISWA!D90=0,"",SISWA!D90) ->  | E90: =IF(SISWA!E90=0,"",SISWA!E90) -> 
A91: 84 | B91: =IF(SISWA!B91=0,"",SISWA!B91) ->  | C91: =IF(SISWA!C91=0,"",SISWA!C91) ->  | D91: =IF(SISWA!D91=0,"",SISWA!D91) ->  | E91: =IF(SISWA!E91=0,"",SISWA!E91) -> 
A92: 85 | B92: =IF(SISWA!B92=0,"",SISWA!B92) ->  | C92: =IF(SISWA!C92=0,"",SISWA!C92) ->  | D92: =IF(SISWA!D92=0,"",SISWA!D92) ->  | E92: =IF(SISWA!E92=0,"",SISWA!E92) -> 
A93: 86 | B93: =IF(SISWA!B93=0,"",SISWA!B93) ->  | C93: =IF(SISWA!C93=0,"",SISWA!C93) ->  | D93: =IF(SISWA!D93=0,"",SISWA!D93) ->  | E93: =IF(SISWA!E93=0,"",SISWA!E93) -> 
A94: 87 | B94: =IF(SISWA!B94=0,"",SISWA!B94) ->  | C94: =IF(SISWA!C94=0,"",SISWA!C94) ->  | D94: =IF(SISWA!D94=0,"",SISWA!D94) ->  | E94: =IF(SISWA!E94=0,"",SISWA!E94) -> 
A95: 88 | B95: =IF(SISWA!B95=0,"",SISWA!B95) ->  | C95: =IF(SISWA!C95=0,"",SISWA!C95) ->  | D95: =IF(SISWA!D95=0,"",SISWA!D95) ->  | E95: =IF(SISWA!E95=0,"",SISWA!E95) -> 
A96: 89 | B96: =IF(SISWA!B96=0,"",SISWA!B96) ->  | C96: =IF(SISWA!C96=0,"",SISWA!C96) ->  | D96: =IF(SISWA!D96=0,"",SISWA!D96) ->  | E96: =IF(SISWA!E96=0,"",SISWA!E96) -> 
A97: 90 | B97: =IF(SISWA!B97=0,"",SISWA!B97) ->  | C97: =IF(SISWA!C97=0,"",SISWA!C97) ->  | D97: =IF(SISWA!D97=0,"",SISWA!D97) ->  | E97: =IF(SISWA!E97=0,"",SISWA!E97) -> 
A98: 91 | B98: =IF(SISWA!B98=0,"",SISWA!B98) ->  | C98: =IF(SISWA!C98=0,"",SISWA!C98) ->  | D98: =IF(SISWA!D98=0,"",SISWA!D98) ->  | E98: =IF(SISWA!E98=0,"",SISWA!E98) -> 
A99: 92 | B99: =IF(SISWA!B99=0,"",SISWA!B99) ->  | C99: =IF(SISWA!C99=0,"",SISWA!C99) ->  | D99: =IF(SISWA!D99=0,"",SISWA!D99) ->  | E99: =IF(SISWA!E99=0,"",SISWA!E99) -> 
A100: 93 | B100: =IF(SISWA!B100=0,"",SISWA!B100) ->  | C100: =IF(SISWA!C100=0,"",SISWA!C100) ->  | D100: =IF(SISWA!D100=0,"",SISWA!D100) ->  | E100: =IF(SISWA!E100=0,"",SISWA!E100) -> 
A101: 94 | B101: =IF(SISWA!B101=0,"",SISWA!B101) ->  | C101: =IF(SISWA!C101=0,"",SISWA!C101) ->  | D101: =IF(SISWA!D101=0,"",SISWA!D101) ->  | E101: =IF(SISWA!E101=0,"",SISWA!E101) -> 

Sheet PKn
A1: DAFTAR NILAI AKHIR SEKOLAH
A2: =AA!A2 -> MADRASAH IBTIDAIYAH NURUL ISLAM LABRUK KIDUL
A3: =AA!A3 -> TAHUN PELAJARAN 2019/2020
A5: NO | B5: No Induk | C5: NISN | D5: Nomor Peserta | E5: Nama Peserta | F5: PKn | N5: rata-rata UAM & PRAKTEK
F6: Nilai Semester | K6: Rata- 2 | L6: NILAI UAM | P6: UAMNU
F7: 7 | G7: 8 | H7: 9 | I7: 10 | J7: 11 | K7: Rapor | L7: TULIS | M7: PRAKTIK | P7: TULIS
A8: 1 | B8: =IF(SISWA!B8=0,"",SISWA!B8) -> 4331 | C8: =IF(SISWA!C8=0,"",SISWA!C8) -> 0078140536 | D8: =IF(SISWA!D8=0,"",SISWA!D8) -> 1-18-05-80-162-001-8 | E8: =IF(SISWA!E8=0,"",SISWA!E8) -> ACHMAD FATHIR IZUDDIN | G8: 67 | H8: 74 | I8: 85 | J8: 84 | K8: =AVERAGE(F8:J8) -> 77.5 | L8: 70 | N8: =AVERAGE(L8:M8) -> 70 | P8: 70
A9: 2 | B9: =IF(SISWA!B9=0,"",SISWA!B9) -> 4333 | C9: =IF(SISWA!C9=0,"",SISWA!C9) -> 0084691896 | D9: =IF(SISWA!D9=0,"",SISWA!D9) -> 1-18-05-80-162-002-7 | E9: =IF(SISWA!E9=0,"",SISWA!E9) -> AININ NAFISA FEBRIYANTI | G9: 67 | H9: 75 | I9: 85 | J9: 88 | K9: =AVERAGE(F9:J9) -> 78.75 | L9: 67.5 | N9: =AVERAGE(L9:M9) -> 67.5 | P9: 67.5
A10: 3 | B10: =IF(SISWA!B10=0,"",SISWA!B10) -> 4334 | C10: =IF(SISWA!C10=0,"",SISWA!C10) -> 0075488897 | D10: =IF(SISWA!D10=0,"",SISWA!D10) -> 1-18-05-80-162-003-6 | E10: =IF(SISWA!E10=0,"",SISWA!E10) -> AISYAH DWI ANDINI | G10: 70 | H10: 88 | I10: 91 | J10: 92 | K10: 85.25 | L10: 72.5 | N10: 72.5 | P10: 72.5
A11: 4 | B11: =IF(SISWA!B11=0,"",SISWA!B11) -> 4335 | C11: =IF(SISWA!C11=0,"",SISWA!C11) -> 0077554289 | D11: =IF(SISWA!D11=0,"",SISWA!D11) -> 1-18-05-80-162-004-5 | E11: =IF(SISWA!E11=0,"",SISWA!E11) -> AJENG AGUSTINA KIRANA PUTRI | G11: 66 | H11: 80 | I11: 83 | J11: 86 | K11: 78.75 | L11: 60 | N11: 60 | P11: 65
A12: 5 | B12: =IF(SISWA!B12=0,"",SISWA!B12) -> 4336 | C12: =IF(SISWA!C12=0,"",SISWA!C12) -> 0078831956 | D12: =IF(SISWA!D12=0,"",SISWA!D12) -> 1-18-05-80-162-005-4 | E12: =IF(SISWA!E12=0,"",SISWA!E12) -> ALVIAN FAIZULHAQQI | G12: 66 | H12: 74 | I12: 83 | J12: 81 | K12: 76 | L12: 60 | N12: 60 | P12: 65
A13: 6 | B13: =IF(SISWA!B13=0,"",SISWA!B13) -> 4337 | C13: =IF(SISWA!C13=0,"",SISWA!C13) -> 0073667130 | D13: =IF(SISWA!D13=0,"",SISWA!D13) -> 1-18-05-80-162-006-3 | E13: =IF(SISWA!E13=0,"",SISWA!E13) -> ANGGITA RIZKY YUGA MEISYA | G13: 70 | H13: 79 | I13: 91 | J13: 92 | K13: 83 | L13: 65 | N13: 65 | P13: 65
A14: 7 | B14: =IF(SISWA!B14=0,"",SISWA!B14) -> 4338 | C14: =IF(SISWA!C14=0,"",SISWA!C14) -> 0074492973 | D14: =IF(SISWA!D14=0,"",SISWA!D14) -> 1-18-05-80-162-007-2 | E14: =IF(SISWA!E14=0,"",SISWA!E14) -> AURA SALSABILA WULAN SARI | G14: 70 | H14: 76 | I14: 84 | J14: 95 | K14: 81.25 | L14: 70 | N14: 70 | P14: 70
A15: 8 | B15: =IF(SISWA!B15=0,"",SISWA!B15) -> 4366 | C15: =IF(SISWA!C15=0,"",SISWA!C15) -> 0078989673 | D15: =IF(SISWA!D15=0,"",SISWA!D15) -> 1-18-05-80-162-008-9 | E15: =IF(SISWA!E15=0,"",SISWA!E15) -> BALQIS NAILA AUDIA | G15: 69 | H15: 83 | I15: 93 | J15: 91 | K15: 84 | L15: 67.5 | N15: 67.5 | P15: 67.5
A16: 9 | B16: =IF(SISWA!B16=0,"",SISWA!B16) -> 4440 | C16: =IF(SISWA!C16=0,"",SISWA!C16) -> 0082763386 | D16: =IF(SISWA!D16=0,"",SISWA!D16) -> 1-18-05-80-162-009-8 | E16: =IF(SISWA!E16=0,"",SISWA!E16) -> BIMA ARYO SUSILO | G16: 80 | H16: 77 | I16: 86 | J16: 91 | K16: 83.5 | L16: 67.5 | N16: 67.5 | P16: 67.5
A17: 10 | B17: =IF(SISWA!B17=0,"",SISWA!B17) -> 4367 | C17: =IF(SISWA!C17=0,"",SISWA!C17) -> 0078400392 | D17: =IF(SISWA!D17=0,"",SISWA!D17) -> 1-18-05-80-162-010-7 | E17: =IF(SISWA!E17=0,"",SISWA!E17) -> BIMA SATRIA DIRGANTARA | G17: 67 | H17: 74 | I17: 83 | J17: 81 | K17: 76.25 | L17: 60 | N17: 60 | P17: 65
A18: 11 | B18: =IF(SISWA!B18=0,"",SISWA!B18) -> 4339 | C18: =IF(SISWA!C18=0,"",SISWA!C18) -> 0086652599 | D18: =IF(SISWA!D18=0,"",SISWA!D18) -> 1-18-05-80-162-011-6 | E18: =IF(SISWA!E18=0,"",SISWA!E18) -> DEVI KARUNIA RATNA PUTRI | G18: 67 | H18: 86 | I18: 82 | J18: 87 | K18: 80.5 | L18: 60 | N18: 60 | P18: 65
A19: 12 | B19: =IF(SISWA!B19=0,"",SISWA!B19) -> 4340 | C19: =IF(SISWA!C19=0,"",SISWA!C19) -> 0089906682 | D19: =IF(SISWA!D19=0,"",SISWA!D19) -> 1-18-05-80-162-012-5 | E19: =IF(SISWA!E19=0,"",SISWA!E19) -> DEVITA FEBRIANI PUTRI | G19: 68 | H19: 82 | I19: 83 | J19: 87 | K19: 80 | L19: 70 | N19: 70 | P19: 70
A20: 13 | B20: =IF(SISWA!B20=0,"",SISWA!B20) -> 4370 | C20: =IF(SISWA!C20=0,"",SISWA!C20) -> 0074514146 | D20: =IF(SISWA!D20=0,"",SISWA!D20) -> 1-18-05-80-162-013-4 | E20: =IF(SISWA!E20=0,"",SISWA!E20) -> FAKHIS GABRIL LIA | G20: 65 | H20: 78 | I20: 92 | J20: 92 | K20: 81.75 | L20: 67.5 | N20: 67.5 | P20: 67.5
A21: 14 | B21: =IF(SISWA!B21=0,"",SISWA!B21) -> 4342 | C21: =IF(SISWA!C21=0,"",SISWA!C21) -> 0081081672 | D21: =IF(SISWA!D21=0,"",SISWA!D21) -> 1-18-05-80-162-014-3 | E21: =IF(SISWA!E21=0,"",SISWA!E21) -> FARAH NAILATUL ALYAH | G21: 90 | H21: 83 | I21: 85 | J21: 88 | K21: 86.5 | L21: 70 | N21: 70 | P21: 70
A22: 15 | B22: =IF(SISWA!B22=0,"",SISWA!B22) -> 4345 | C22: =IF(SISWA!C22=0,"",SISWA!C22) -> 0073420487 | D22: =IF(SISWA!D22=0,"",SISWA!D22) -> 1-18-05-80-162-015-2 | E22: =IF(SISWA!E22=0,"",SISWA!E22) -> GALANG MARDHOTILLAH SATOTO | G22: 67 | H22: 78 | I22: 87 | J22: 90 | K22: 80.5 | L22: 60 | N22: 60 | P22: 65
A23: 16 | B23: =IF(SISWA!B23=0,"",SISWA!B23) -> 4371 | C23: =IF(SISWA!C23=0,"",SISWA!C23) -> 0079870082 | D23: =IF(SISWA!D23=0,"",SISWA!D23) -> 1-18-05-80-162-016-9 | E23: =IF(SISWA!E23=0,"",SISWA!E23) -> GALIH FAREL PRASTYO | G23: 69 | H23: 74 | I23: 82 | J23: 88 | K23: 78.25 | L23: 60 | N23: 60 | P23: 65
A24: 17 | B24: =IF(SISWA!B24=0,"",SISWA!B24) -> 4466 | C24: =IF(SISWA!C24=0,"",SISWA!C24) -> 0081629504 | D24: =IF(SISWA!D24=0,"",SISWA!D24) -> 1-18-05-80-162-017-8 | E24: =IF(SISWA!E24=0,"",SISWA!E24) -> HIBATULLAH MUSTAGHFIRY RUSLI | G24: 85 | H24: 77 | I24: 85 | J24: 82 | K24: 82.25 | L24: 60 | N24: 60 | P24: 65
A25: 18 | B25: =IF(SISWA!B25=0,"",SISWA!B25) -> 4346 | C25: =IF(SISWA!C25=0,"",SISWA!C25) -> 0073608418 | D25: =IF(SISWA!D25=0,"",SISWA!D25) -> 1-18-05-80-162-018-7 | E25: =IF(SISWA!E25=0,"",SISWA!E25) -> IKA KURNIA WATI AGUSTINA | G25: 66 | H25: 74 | I25: 83 | J25: 83 | K25: 76.5 | L25: 60 | N25: 60 | P25: 65
A26: 19 | B26: =IF(SISWA!B26=0,"",SISWA!B26) -> 4350 | C26: =IF(SISWA!C26=0,"",SISWA!C26) -> 0072658586 | D26: =IF(SISWA!D26=0,"",SISWA!D26) -> 1-18-05-80-162-019-6 | E26: =IF(SISWA!E26=0,"",SISWA!E26) -> MAYLUNA EKA PRATIWI | G26: 90 | H26: 84 | I26: 87 | J26: 96 | K26: 89.25 | L26: 60 | N26: 60 | P26: 65
A27: 20 | B27: =IF(SISWA!B27=0,"",SISWA!B27) -> 4353 | C27: =IF(SISWA!C27=0,"",SISWA!C27) -> 0075464137 | D27: =IF(SISWA!D27=0,"",SISWA!D27) -> 1-18-05-80-162-020-5 | E27: =IF(SISWA!E27=0,"",SISWA!E27) -> MOHAMAD DWIMAS FIRDAUS | G27: 82 | H27: 79 | I27: 85 | J27: 92 | K27: 84.5 | L27: 60 | N27: 60 | P27: 65
A28: 21 | B28: =IF(SISWA!B28=0,"",SISWA!B28) -> 4375 | C28: =IF(SISWA!C28=0,"",SISWA!C28) -> 0075096831 | D28: =IF(SISWA!D28=0,"",SISWA!D28) -> 1-18-05-80-162-021-4 | E28: =IF(SISWA!E28=0,"",SISWA!E28) -> MUHAMMAD AFFAN ABI SYAHPUTRA | G28: 76 | H28: 84 | I28: 85 | J28: 81 | K28: 81.5 | L28: 60 | N28: 60 | P28: 65
A29: 22 | B29: =IF(SISWA!B29=0,"",SISWA!B29) -> 4354 | C29: =IF(SISWA!C29=0,"",SISWA!C29) -> 0075055640 | D29: =IF(SISWA!D29=0,"",SISWA!D29) -> 1-18-05-80-162-022-3 | E29: =IF(SISWA!E29=0,"",SISWA!E29) -> MUHAMMAD ALVIN RIDHO | G29: 69 | H29: 78 | I29: 84 | J29: 85 | K29: 79 | L29: 77.5 | N29: 77.5 | P29: 77.5
A30: 23 | B30: =IF(SISWA!B30=0,"",SISWA!B30) -> 4378 | C30: =IF(SISWA!C30=0,"",SISWA!C30) -> 0074268893 | D30: =IF(SISWA!D30=0,"",SISWA!D30) -> 1-18-05-80-162-023-2 | E30: =IF(SISWA!E30=0,"",SISWA!E30) -> MUKHAMAD DAVID ARIF FIRDAUS | G30: 86 | H30: 76 | I30: 87 | J30: 94 | K30: 85.75 | L30: 60 | N30: 60 | P30: 65
A31: 24 | B31: =IF(SISWA!B31=0,"",SISWA!B31) -> 4379 | C31: =IF(SISWA!C31=0,"",SISWA!C31) -> 0072757203 | D31: =IF(SISWA!D31=0,"",SISWA!D31) -> 1-18-05-80-162-024-9 | E31: =IF(SISWA!E31=0,"",SISWA!E31) -> NAORA ISQI AINAYYA | G31: 97 | H31: 85 | I31: 95 | J31: 95 | K31: 93 | L31: 77.5 | N31: 77.5 | P31: 77.5
A32: 25 | B32: =IF(SISWA!B32=0,"",SISWA!B32) -> 4380 | C32: =IF(SISWA!C32=0,"",SISWA!C32) -> 0079026285 | D32: =IF(SISWA!D32=0,"",SISWA!D32) -> 1-18-05-80-162-025-8 | E32: =IF(SISWA!E32=0,"",SISWA!E32) -> NAZRA ISLAMAY PASHA | G32: 79 | H32: 78 | I32: 84 | J32: 93 | K32: 83.5 | L32: 60 | N32: 60 | P32: 65
A33: 26 | B33: =IF(SISWA!B33=0,"",SISWA!B33) -> 4382 | C33: =IF(SISWA!C33=0,"",SISWA!C33) -> 0079872151 | D33: =IF(SISWA!D33=0,"",SISWA!D33) -> 1-18-05-80-162-026-7 | E33: =IF(SISWA!E33=0,"",SISWA!E33) -> NUR ALYA NABILA | G33: 82 | H33: 80 | I33: 85 | J33: 91 | K33: 84.5 | L33: 72.5 | N33: 72.5 | P33: 72.5
A34: 27 | B34: =IF(SISWA!B34=0,"",SISWA!B34) -> 4358 | C34: =IF(SISWA!C34=0,"",SISWA!C34) -> 0087558837 | D34: =IF(SISWA!D34=0,"",SISWA!D34) -> 1-18-05-80-162-027-6 | E34: =IF(SISWA!E34=0,"",SISWA!E34) -> PUTRI SHOLIKHAH | G34: 78 | H34: 76 | I34: 83 | J34: 87 | K34: 81 | L34: 67.5 | N34: 67.5 | P34: 67.5
A35: 28 | B35: =IF(SISWA!B35=0,"",SISWA!B35) -> 4384 | C35: =IF(SISWA!C35=0,"",SISWA!C35) -> 0071234523 | D35: =IF(SISWA!D35=0,"",SISWA!D35) -> 1-18-05-80-162-028-5 | E35: =IF(SISWA!E35=0,"",SISWA!E35) -> RESTI FITRIANTI DWI OCTAVIANI | G35: 86 | H35: 74 | I35: 86 | J35: 86 | K35: 83 | L35: 60 | N35: 60 | P35: 65
A36: 29 | B36: =IF(SISWA!B36=0,"",SISWA!B36) -> 4359 | C36: =IF(SISWA!C36=0,"",SISWA!C36) -> 0073122181 | D36: =IF(SISWA!D36=0,"",SISWA!D36) -> 1-18-05-80-162-029-4 | E36: =IF(SISWA!E36=0,"",SISWA!E36) -> ROUDHOTUS SA'DIYAH | G36: 84 | H36: 79 | I36: 85 | J36: 92 | K36: 85 | L36: 67.5 | N36: 67.5 | P36: 67.5
A37: 30 | B37: =IF(SISWA!B37=0,"",SISWA!B37) -> 4386 | C37: =IF(SISWA!C37=0,"",SISWA!C37) -> 0075344352 | D37: =IF(SISWA!D37=0,"",SISWA!D37) -> 1-18-05-80-162-030-3 | E37: =IF(SISWA!E37=0,"",SISWA!E37) -> TIERSYA BETA RAMANUZAN | G37: 89 | H37: 81 | I37: 92 | J37: 90 | K37: 88 | L37: 67.5 | N37: 67.5 | P37: 67.5
A38: 31 | B38: =IF(SISWA!B38=0,"",SISWA!B38) -> 4388 | C38: =IF(SISWA!C38=0,"",SISWA!C38) -> 0077423646 | D38: =IF(SISWA!D38=0,"",SISWA!D38) -> 1-18-05-80-162-031-2 | E38: =IF(SISWA!E38=0,"",SISWA!E38) -> VERA MUSTIKA | G38: 79 | H38: 79 | I38: 85 | J38: 83 | K38: 81.5 | L38: 60 | N38: 60 | P38: 65
A39: 32 | B39: =IF(SISWA!B39=0,"",SISWA!B39) -> 4360 | C39: =IF(SISWA!C39=0,"",SISWA!C39) -> 0077290990 | D39: =IF(SISWA!D39=0,"",SISWA!D39) -> 1-18-05-80-162-032-9 | E39: =IF(SISWA!E39=0,"",SISWA!E39) -> ZIDNY ILMA NABILA | G39: 91 | H39: 86 | I39: 92 | J39: 95 | K39: 91 | L39: 65 | N39: 65 | P39: 65
A40: 33 | B40: =IF(SISWA!B40=0,"",SISWA!B40) -> 4390 | C40: =IF(SISWA!C40=0,"",SISWA!C40) -> 0077722307 | D40: =IF(SISWA!D40=0,"",SISWA!D40) -> 1-18-05-80-162-033-8 | E40: =IF(SISWA!E40=0,"",SISWA!E40) -> ZITNATUL AULIA ILLA | G40: 89 | H40: 79 | I40: 89 | J40: 95 | K40: 88 | L40: 80 | N40: 80 | P40: 80
A41: 34 | B41: =IF(SISWA!B41=0,"",SISWA!B41) -> 4330 | C41: =IF(SISWA!C41=0,"",SISWA!C41) -> 0084736422 | D41: =IF(SISWA!D41=0,"",SISWA!D41) -> 1-18-05-80-162-034-7 | E41: =IF(SISWA!E41=0,"",SISWA!E41) -> ACHID ATHIRIL ARDAN | G41: 67 | H41: 76 | I41: 82 | J41: 98 | K41: 80.75 | L41: 60 | N41: 60 | P41: 65
A42: 35 | B42: =IF(SISWA!B42=0,"",SISWA!B42) -> 4361 | C42: =IF(SISWA!C42=0,"",SISWA!C42) -> 0075656390 | D42: =IF(SISWA!D42=0,"",SISWA!D42) -> 1-18-05-80-162-035-6 | E42: =IF(SISWA!E42=0,"",SISWA!E42) -> ACHMAD SEPTIAN HAMDANI | G42: 66 | H42: 78 | I42: 81 | J42: 82 | K42: 76.75 | L42: 65 | N42: 65 | P42: 65
A43: 36 | B43: =IF(SISWA!B43=0,"",SISWA!B43) -> 4362 | C43: =IF(SISWA!C43=0,"",SISWA!C43) -> 0071796138 | D43: =IF(SISWA!D43=0,"",SISWA!D43) -> 1-18-05-80-162-036-5 | E43: =IF(SISWA!E43=0,"",SISWA!E43) -> ACHMAD SULAIMAN | G43: 65 | H43: 75 | I43: 81 | J43: 81 | K43: 75.5 | L43: 60 | N43: 60 | P43: 65
A44: 37 | B44: =IF(SISWA!B44=0,"",SISWA!B44) -> 4364 | C44: =IF(SISWA!C44=0,"",SISWA!C44) -> 0079667684 | D44: =IF(SISWA!D44=0,"",SISWA!D44) -> 1-18-05-80-162-037-4 | E44: =IF(SISWA!E44=0,"",SISWA!E44) -> AIRLANGGA DWIKA RIZQI | G44: 61 | H44: 84 | I44: 82 | J44: 89 | K44: 79 | L44: 60 | N44: 60 | P44: 65
A45: 38 | B45: =IF(SISWA!B45=0,"",SISWA!B45) -> 4365 | C45: =IF(SISWA!C45=0,"",SISWA!C45) -> 0089321127 | D45: =IF(SISWA!D45=0,"",SISWA!D45) -> 1-18-05-80-162-038-3 | E45: =IF(SISWA!E45=0,"",SISWA!E45) -> AUFAN AZKAL ABRORI | G45: 66 | H45: 77 | I45: 82 | J45: 86 | K45: 77.75 | L45: 60 | N45: 60 | P45: 65
A46: 39 | B46: =IF(SISWA!B46=0,"",SISWA!B46) -> 4465 | C46: =IF(SISWA!C46=0,"",SISWA!C46) -> 0071776593 | D46: =IF(SISWA!D46=0,"",SISWA!D46) -> 1-18-05-80-162-039-2 | E46: =IF(SISWA!E46=0,"",SISWA!E46) -> AZZA PRISHAL DWI PUTRA | G46: 66 | H46: 76 | I46: 83 | J46: 82 | K46: 76.75 | L46: 60 | N46: 60 | P46: 65
A47: 40 | B47: =IF(SISWA!B47=0,"",SISWA!B47) -> 4368 | C47: =IF(SISWA!C47=0,"",SISWA!C47) -> 0074569410 | D47: =IF(SISWA!D47=0,"",SISWA!D47) -> 1-18-05-80-162-040-9 | E47: =IF(SISWA!E47=0,"",SISWA!E47) -> EKA AULIYA` PUTRI | G47: 67 | H47: 78 | I47: 83 | J47: 99 | K47: 81.75 | L47: 60 | N47: 60 | P47: 65
A48: 41 | B48: =IF(SISWA!B48=0,"",SISWA!B48) -> 4341 | C48: =IF(SISWA!C48=0,"",SISWA!C48) -> 0083684457 | D48: =IF(SISWA!D48=0,"",SISWA!D48) -> 1-18-05-80-162-041-8 | E48: =IF(SISWA!E48=0,"",SISWA!E48) -> ERSA PUSPITA EKA ROSA LINDA | G48: 66 | H48: 78 | I48: 85 | J48: 92 | K48: 80.25 | L48: 60 | N48: 60 | P48: 65
A49: 42 | B49: =IF(SISWA!B49=0,"",SISWA!B49) -> 4369 | C49: =IF(SISWA!C49=0,"",SISWA!C49) -> 0078481731 | D49: =IF(SISWA!D49=0,"",SISWA!D49) -> 1-18-05-80-162-042-7 | E49: =IF(SISWA!E49=0,"",SISWA!E49) -> FABIYAN TRI BAKTI OKTAFIAN | G49: 65 | H49: 80 | I49: 84 | J49: 83 | K49: 78 | L49: 60 | N49: 60 | P49: 65
A50: 43 | B50: =IF(SISWA!B50=0,"",SISWA!B50) -> 4343 | C50: =IF(SISWA!C50=0,"",SISWA!C50) -> 3075965396 | D50: =IF(SISWA!D50=0,"",SISWA!D50) -> 1-18-05-80-162-043-6 | E50: =IF(SISWA!E50=0,"",SISWA!E50) -> FELISITA APRILIA NUR NIHAYA | G50: 67 | H50: 80 | I50: 83 | J50: 92 | K50: 80.5 | L50: 60 | N50: 60 | P50: 65
A51: 44 | B51: =IF(SISWA!B51=0,"",SISWA!B51) -> 4344 | C51: =IF(SISWA!C51=0,"",SISWA!C51) -> 3078948093 | D51: =IF(SISWA!D51=0,"",SISWA!D51) -> 1-18-05-80-162-044-5 | E51: =IF(SISWA!E51=0,"",SISWA!E51) -> FIRDA DWI ANDRIANI | G51: 66 | H51: 76 | I51: 83 | J51: 82 | K51: 76.75 | L51: 60 | N51: 60 | P51: 65
A52: 45 | B52: =IF(SISWA!B52=0,"",SISWA!B52) -> 4372 | C52: =IF(SISWA!C52=0,"",SISWA!C52) -> 0087636520 | D52: =IF(SISWA!D52=0,"",SISWA!D52) -> 1-18-05-80-162-045-4 | E52: =IF(SISWA!E52=0,"",SISWA!E52) -> GILANG AKBAR PRASETYO | G52: 65 | H52: 75 | I52: 82 | J52: 83 | K52: 76.25 | L52: 60 | N52: 60 | P52: 65
A53: 46 | B53: =IF(SISWA!B53=0,"",SISWA!B53) -> 4373 | C53: =IF(SISWA!C53=0,"",SISWA!C53) -> 0087373224 | D53: =IF(SISWA!D53=0,"",SISWA!D53) -> 1-18-05-80-162-046-3 | E53: =IF(SISWA!E53=0,"",SISWA!E53) -> IFTAH IZZAH EMILIA MAHMUD | G53: 68 | H53: 77 | I53: 85 | J53: 81 | K53: 77.75 | L53: 60 | N53: 60 | P53: 65
A54: 47 | B54: =IF(SISWA!B54=0,"",SISWA!B54) -> 4441 | C54: =IF(SISWA!C54=0,"",SISWA!C54) -> 0081758949 | D54: =IF(SISWA!D54=0,"",SISWA!D54) -> 1-18-05-80-162-047-2 | E54: =IF(SISWA!E54=0,"",SISWA!E54) -> INES ARIFANI MAULINA | G54: 65 | H54: 80 | I54: 85 | J54: 89 | K54: 79.75 | L54: 65 | N54: 65 | P54: 65
A55: 48 | B55: =IF(SISWA!B55=0,"",SISWA!B55) -> 4374 | C55: =IF(SISWA!C55=0,"",SISWA!C55) -> 0073409469 | D55: =IF(SISWA!D55=0,"",SISWA!D55) -> 1-18-05-80-162-048-9 | E55: =IF(SISWA!E55=0,"",SISWA!E55) -> IYAAD AFLAKHA RAMZII | G55: 66 | H55: 84 | I55: 84 | J55: 86 | K55: 80 | L55: 60 | N55: 60 | P55: 65
A56: 49 | B56: =IF(SISWA!B56=0,"",SISWA!B56) -> 4305 | C56: =IF(SISWA!C56=0,"",SISWA!C56) -> 0068258891 | D56: =IF(SISWA!D56=0,"",SISWA!D56) -> 1-18-05-80-162-049-8 | E56: =IF(SISWA!E56=0,"",SISWA!E56) -> JULI ANDRIYANTO | G56: 65 | H56: 76 | I56: 84 | J56: 86 | K56: 77.75 | L56: 60 | N56: 60 | P56: 65
A57: 50 | B57: =IF(SISWA!B57=0,"",SISWA!B57) -> 4347 | C57: =IF(SISWA!C57=0,"",SISWA!C57) -> 0076367763 | D57: =IF(SISWA!D57=0,"",SISWA!D57) -> 1-18-05-80-162-050-7 | E57: =IF(SISWA!E57=0,"",SISWA!E57) -> LIYA FEBRIYANI | G57: 79 | H57: 86 | I57: 90 | J57: 99 | K57: 88.5 | L57: 60 | N57: 60 | P57: 65
A58: 51 | B58: =IF(SISWA!B58=0,"",SISWA!B58) -> 4348 | C58: =IF(SISWA!C58=0,"",SISWA!C58) -> 0083034332 | D58: =IF(SISWA!D58=0,"",SISWA!D58) -> 1-18-05-80-162-051-6 | E58: =IF(SISWA!E58=0,"",SISWA!E58) -> LIZATUL CHAIYUNI | G58: 75 | H58: 82 | I58: 89 | J58: 93 | K58: 84.75 | L58: 60 | N58: 60 | P58: 65
A59: 52 | B59: =IF(SISWA!B59=0,"",SISWA!B59) -> 4531 | C59: =IF(SISWA!C59=0,"",SISWA!C59) -> 3099539154 | D59: =IF(SISWA!D59=0,"",SISWA!D59) -> 1-18-05-80-162-052-5 | E59: =IF(SISWA!E59=0,"",SISWA!E59) -> M. ALHAFIS | G59: 74 | H59: 80 | I59: 83 | J59: 96 | K59: 83.25 | L59: 60 | N59: 60 | P59: 65
A60: 53 | B60: =IF(SISWA!B60=0,"",SISWA!B60) -> 4530 | C60: =IF(SISWA!C60=0,"",SISWA!C60) -> 0077015789 | D60: =IF(SISWA!D60=0,"",SISWA!D60) -> 1-18-05-80-162-053-4 | E60: =IF(SISWA!E60=0,"",SISWA!E60) -> MUHAMMAD RIZKI RIDWAN | G60: 65 | H60: 75 | I60: 82 | J60: 81 | K60: 75.75 | L60: 60 | N60: 60 | P60: 65
A61: 54 | B61: =IF(SISWA!B61=0,"",SISWA!B61) -> 4351 | C61: =IF(SISWA!C61=0,"",SISWA!C61) -> 0076361559 | D61: =IF(SISWA!D61=0,"",SISWA!D61) -> 1-18-05-80-162-054-3 | E61: =IF(SISWA!E61=0,"",SISWA!E61) -> MOCHAMAD RAFLI DIAN SAPUTRA | G61: 66 | H61: 75 | I61: 81 | J61: 82 | K61: 76 | L61: 60 | N61: 60 | P61: 65
A62: 55 | B62: =IF(SISWA!B62=0,"",SISWA!B62) -> 4352 | C62: =IF(SISWA!C62=0,"",SISWA!C62) -> 0075591405 | D62: =IF(SISWA!D62=0,"",SISWA!D62) -> 1-18-05-80-162-055-2 | E62: =IF(SISWA!E62=0,"",SISWA!E62) -> MOCHAMMAD AFAREL PUTRA RAMDHANA | G62: 74 | H62: 76 | I62: 83 | J62: 92 | K62: 81.25 | L62: 60 | N62: 60 | P62: 65
A63: 56 | B63: =IF(SISWA!B63=0,"",SISWA!B63) -> 4355 | C63: =IF(SISWA!C63=0,"",SISWA!C63) -> 0075363258 | D63: =IF(SISWA!D63=0,"",SISWA!D63) -> 1-18-05-80-162-056-9 | E63: =IF(SISWA!E63=0,"",SISWA!E63) -> MUHAMAD JEFRI MAULANA | G63: 77 | H63: 76 | I63: 82 | J63: 88 | K63: 80.75 | L63: 60 | N63: 60 | P63: 67.75
A64: 57 | B64: =IF(SISWA!B64=0,"",SISWA!B64) -> 4376 | C64: =IF(SISWA!C64=0,"",SISWA!C64) -> 0072066741 | D64: =IF(SISWA!D64=0,"",SISWA!D64) -> 1-18-05-80-162-057-8 | E64: =IF(SISWA!E64=0,"",SISWA!E64) -> MUHAMMAD DWI WILDAN BAGUS KURNIAWAN | G64: 62 | H64: 75 | I64: 82 | J64: 86 | K64: 76.25 | L64: 60 | N64: 60 | P64: 67
A65: 58 | B65: =IF(SISWA!B65=0,"",SISWA!B65) -> 4377 | C65: =IF(SISWA!C65=0,"",SISWA!C65) -> 0071459044 | D65: =IF(SISWA!D65=0,"",SISWA!D65) -> 1-18-05-80-162-058-7 | E65: =IF(SISWA!E65=0,"",SISWA!E65) -> MUHAMMAD FARIL FIRMANSYA | G65: 63 | H65: 77 | I65: 82 | J65: 82 | K65: 76 | L65: 60 | N65: 60 | P65: 67.16666667
A66: 59 | B66: =IF(SISWA!B66=0,"",SISWA!B66) -> 4349 | C66: =IF(SISWA!C66=0,"",SISWA!C66) -> 0074206034 | D66: =IF(SISWA!D66=0,"",SISWA!D66) -> 1-18-05-80-162-059-6 | E66: =IF(SISWA!E66=0,"",SISWA!E66) -> MUHAMMAD FARIZ UBAIDILLA | G66: 74 | H66: 79 | I66: 82 | J66: 87 | K66: 80.5 | L66: 60 | N66: 60 | P66: 67.16666667
A67: 60 | B67: =IF(SISWA!B67=0,"",SISWA!B67) -> 4356 | C67: =IF(SISWA!C67=0,"",SISWA!C67) -> 0077937892 | D67: =IF(SISWA!D67=0,"",SISWA!D67) -> 1-18-05-80-162-060-5 | E67: =IF(SISWA!E67=0,"",SISWA!E67) -> MUHAMMAD MAULANA ZIDANIL ILMI | G67: 74 | H67: 87 | I67: 85 | J67: 99 | K67: 86.25 | L67: 60 | N67: 60 | P67: 67.91666667
A68: 61 | B68: =IF(SISWA!B68=0,"",SISWA!B68) -> 4357 | C68: =IF(SISWA!C68=0,"",SISWA!C68) -> 0078608527 | D68: =IF(SISWA!D68=0,"",SISWA!D68) -> 1-18-05-80-162-061-4 | E68: =IF(SISWA!E68=0,"",SISWA!E68) -> MUHAMMAD SUTRISNO ISMAIL | G68: 65 | H68: 75 | I68: 81 | J68: 81 | K68: 75.5 | L68: 60 | N68: 60 | P68: 67.08333333
A69: 62 | B69: =IF(SISWA!B69=0,"",SISWA!B69) -> 4381 | C69: =IF(SISWA!C69=0,"",SISWA!C69) -> 0072209435 | D69: =IF(SISWA!D69=0,"",SISWA!D69) -> 1-18-05-80-162-062-3 | E69: =IF(SISWA!E69=0,"",SISWA!E69) -> NOVITA ERNIAWAN | G69: 76 | H69: 82 | I69: 84 | J69: 98 | K69: 85 | L69: 60 | N69: 60 | P69: 67.41666667
A70: 63 | B70: =IF(SISWA!B70=0,"",SISWA!B70) -> 4383 | C70: =IF(SISWA!C70=0,"",SISWA!C70) -> 0077439834 | D70: =IF(SISWA!D70=0,"",SISWA!D70) -> 1-18-05-80-162-063-2 | E70: =IF(SISWA!E70=0,"",SISWA!E70) -> PUTRI AULIA DWI AGUSTIN | G70: 80 | H70: 83 | I70: 86 | J70: 98 | K70: 86.75 | L70: 60 | N70: 60 | P70: 68.5
A71: 64 | B71: =IF(SISWA!B71=0,"",SISWA!B71) -> 4385 | C71: =IF(SISWA!C71=0,"",SISWA!C71) -> 0073137310 | D71: =IF(SISWA!D71=0,"",SISWA!D71) -> 1-18-05-80-162-064-9 | E71: =IF(SISWA!E71=0,"",SISWA!E71) -> STANY RAFIDAH RAHMANIA | G71: 66 | H71: 79 | I71: 83 | J71: 82 | K71: 77.5 | L71: 60 | N71: 60 | P71: 67.33333333
A72: 65 | B72: =IF(SISWA!B72=0,"",SISWA!B72) -> 4387 | C72: =IF(SISWA!C72=0,"",SISWA!C72) -> 0077336427 | D72: =IF(SISWA!D72=0,"",SISWA!D72) -> 1-18-05-80-162-065-8 | E72: =IF(SISWA!E72=0,"",SISWA!E72) -> USWATUN KHASANAH | G72: 65 | H72: 78 | I72: 84 | J72: 98 | K72: 81.25 | L72: 60 | N72: 60 | P72: 67.41666667
A73: 66 | B73: =IF(SISWA!B73=0,"",SISWA!B73) -> 4389 | C73: =IF(SISWA!C73=0,"",SISWA!C73) -> 0078407631 | D73: =IF(SISWA!D73=0,"",SISWA!D73) -> 1-18-05-80-162-066-7 | E73: =IF(SISWA!E73=0,"",SISWA!E73) -> VIKROUL KHAMILA | G73: 81 | H73: 77 | I73: 85 | J73: 94 | K73: =AVERAGE(F73:J73) -> 84.25 | L73: 60 | N73: =AVERAGE(L73:M73) -> 60 | P73: 67.41666667
A74: 67 | B74: =IF(SISWA!B74=0,"",SISWA!B74) ->  | C74: =IF(SISWA!C74=0,"",SISWA!C74) ->  | D74: =IF(SISWA!D74=0,"",SISWA!D74) ->  | E74: =IF(SISWA!E74=0,"",SISWA!E74) -> 
A75: 68 | B75: =IF(SISWA!B75=0,"",SISWA!B75) ->  | C75: =IF(SISWA!C75=0,"",SISWA!C75) ->  | D75: =IF(SISWA!D75=0,"",SISWA!D75) ->  | E75: =IF(SISWA!E75=0,"",SISWA!E75) -> 
A76: 69 | B76: =IF(SISWA!B76=0,"",SISWA!B76) ->  | C76: =IF(SISWA!C76=0,"",SISWA!C76) ->  | D76: =IF(SISWA!D76=0,"",SISWA!D76) ->  | E76: =IF(SISWA!E76=0,"",SISWA!E76) -> 
A77: 70 | B77: =IF(SISWA!B77=0,"",SISWA!B77) ->  | C77: =IF(SISWA!C77=0,"",SISWA!C77) ->  | D77: =IF(SISWA!D77=0,"",SISWA!D77) ->  | E77: =IF(SISWA!E77=0,"",SISWA!E77) -> 
A78: 71 | B78: =IF(SISWA!B78=0,"",SISWA!B78) ->  | C78: =IF(SISWA!C78=0,"",SISWA!C78) ->  | D78: =IF(SISWA!D78=0,"",SISWA!D78) ->  | E78: =IF(SISWA!E78=0,"",SISWA!E78) -> 
A79: 72 | B79: =IF(SISWA!B79=0,"",SISWA!B79) ->  | C79: =IF(SISWA!C79=0,"",SISWA!C79) ->  | D79: =IF(SISWA!D79=0,"",SISWA!D79) ->  | E79: =IF(SISWA!E79=0,"",SISWA!E79) -> 
A80: 73 | B80: =IF(SISWA!B80=0,"",SISWA!B80) ->  | C80: =IF(SISWA!C80=0,"",SISWA!C80) ->  | D80: =IF(SISWA!D80=0,"",SISWA!D80) ->  | E80: =IF(SISWA!E80=0,"",SISWA!E80) -> 
A81: 74 | B81: =IF(SISWA!B81=0,"",SISWA!B81) ->  | C81: =IF(SISWA!C81=0,"",SISWA!C81) ->  | D81: =IF(SISWA!D81=0,"",SISWA!D81) ->  | E81: =IF(SISWA!E81=0,"",SISWA!E81) -> 
A82: 75 | B82: =IF(SISWA!B82=0,"",SISWA!B82) ->  | C82: =IF(SISWA!C82=0,"",SISWA!C82) ->  | D82: =IF(SISWA!D82=0,"",SISWA!D82) ->  | E82: =IF(SISWA!E82=0,"",SISWA!E82) -> 
A83: 76 | B83: =IF(SISWA!B83=0,"",SISWA!B83) ->  | C83: =IF(SISWA!C83=0,"",SISWA!C83) ->  | D83: =IF(SISWA!D83=0,"",SISWA!D83) ->  | E83: =IF(SISWA!E83=0,"",SISWA!E83) -> 
A84: 77 | B84: =IF(SISWA!B84=0,"",SISWA!B84) ->  | C84: =IF(SISWA!C84=0,"",SISWA!C84) ->  | D84: =IF(SISWA!D84=0,"",SISWA!D84) ->  | E84: =IF(SISWA!E84=0,"",SISWA!E84) -> 
A85: 78 | B85: =IF(SISWA!B85=0,"",SISWA!B85) ->  | C85: =IF(SISWA!C85=0,"",SISWA!C85) ->  | D85: =IF(SISWA!D85=0,"",SISWA!D85) ->  | E85: =IF(SISWA!E85=0,"",SISWA!E85) -> 
A86: 79 | B86: =IF(SISWA!B86=0,"",SISWA!B86) ->  | C86: =IF(SISWA!C86=0,"",SISWA!C86) ->  | D86: =IF(SISWA!D86=0,"",SISWA!D86) ->  | E86: =IF(SISWA!E86=0,"",SISWA!E86) -> 
A87: 80 | B87: =IF(SISWA!B87=0,"",SISWA!B87) ->  | C87: =IF(SISWA!C87=0,"",SISWA!C87) ->  | D87: =IF(SISWA!D87=0,"",SISWA!D87) ->  | E87: =IF(SISWA!E87=0,"",SISWA!E87) -> 
A88: 81 | B88: =IF(SISWA!B88=0,"",SISWA!B88) ->  | C88: =IF(SISWA!C88=0,"",SISWA!C88) ->  | D88: =IF(SISWA!D88=0,"",SISWA!D88) ->  | E88: =IF(SISWA!E88=0,"",SISWA!E88) -> 
A89: 82 | B89: =IF(SISWA!B89=0,"",SISWA!B89) ->  | C89: =IF(SISWA!C89=0,"",SISWA!C89) ->  | D89: =IF(SISWA!D89=0,"",SISWA!D89) ->  | E89: =IF(SISWA!E89=0,"",SISWA!E89) -> 
A90: 83 | B90: =IF(SISWA!B90=0,"",SISWA!B90) ->  | C90: =IF(SISWA!C90=0,"",SISWA!C90) ->  | D90: =IF(SISWA!D90=0,"",SISWA!D90) ->  | E90: =IF(SISWA!E90=0,"",SISWA!E90) -> 
A91: 84 | B91: =IF(SISWA!B91=0,"",SISWA!B91) ->  | C91: =IF(SISWA!C91=0,"",SISWA!C91) ->  | D91: =IF(SISWA!D91=0,"",SISWA!D91) ->  | E91: =IF(SISWA!E91=0,"",SISWA!E91) -> 
A92: 85 | B92: =IF(SISWA!B92=0,"",SISWA!B92) ->  | C92: =IF(SISWA!C92=0,"",SISWA!C92) ->  | D92: =IF(SISWA!D92=0,"",SISWA!D92) ->  | E92: =IF(SISWA!E92=0,"",SISWA!E92) -> 
A93: 86 | B93: =IF(SISWA!B93=0,"",SISWA!B93) ->  | C93: =IF(SISWA!C93=0,"",SISWA!C93) ->  | D93: =IF(SISWA!D93=0,"",SISWA!D93) ->  | E93: =IF(SISWA!E93=0,"",SISWA!E93) -> 
A94: 87 | B94: =IF(SISWA!B94=0,"",SISWA!B94) ->  | C94: =IF(SISWA!C94=0,"",SISWA!C94) ->  | D94: =IF(SISWA!D94=0,"",SISWA!D94) ->  | E94: =IF(SISWA!E94=0,"",SISWA!E94) -> 
A95: 88 | B95: =IF(SISWA!B95=0,"",SISWA!B95) ->  | C95: =IF(SISWA!C95=0,"",SISWA!C95) ->  | D95: =IF(SISWA!D95=0,"",SISWA!D95) ->  | E95: =IF(SISWA!E95=0,"",SISWA!E95) -> 
A96: 89 | B96: =IF(SISWA!B96=0,"",SISWA!B96) ->  | C96: =IF(SISWA!C96=0,"",SISWA!C96) ->  | D96: =IF(SISWA!D96=0,"",SISWA!D96) ->  | E96: =IF(SISWA!E96=0,"",SISWA!E96) -> 
A97: 90 | B97: =IF(SISWA!B97=0,"",SISWA!B97) ->  | C97: =IF(SISWA!C97=0,"",SISWA!C97) ->  | D97: =IF(SISWA!D97=0,"",SISWA!D97) ->  | E97: =IF(SISWA!E97=0,"",SISWA!E97) -> 
A98: 91 | B98: =IF(SISWA!B98=0,"",SISWA!B98) ->  | C98: =IF(SISWA!C98=0,"",SISWA!C98) ->  | D98: =IF(SISWA!D98=0,"",SISWA!D98) ->  | E98: =IF(SISWA!E98=0,"",SISWA!E98) -> 
A99: 92 | B99: =IF(SISWA!B99=0,"",SISWA!B99) ->  | C99: =IF(SISWA!C99=0,"",SISWA!C99) ->  | D99: =IF(SISWA!D99=0,"",SISWA!D99) ->  | E99: =IF(SISWA!E99=0,"",SISWA!E99) -> 
A100: 93 | B100: =IF(SISWA!B100=0,"",SISWA!B100) ->  | C100: =IF(SISWA!C100=0,"",SISWA!C100) ->  | D100: =IF(SISWA!D100=0,"",SISWA!D100) ->  | E100: =IF(SISWA!E100=0,"",SISWA!E100) -> 
A101: 94 | B101: =IF(SISWA!B101=0,"",SISWA!B101) ->  | C101: =IF(SISWA!C101=0,"",SISWA!C101) ->  | D101: =IF(SISWA!D101=0,"",SISWA!D101) ->  | E101: =IF(SISWA!E101=0,"",SISWA!E101) -> 
A102: 95 | B102: =IF(SISWA!B102=0,"",SISWA!B102) ->  | C102: =IF(SISWA!C102=0,"",SISWA!C102) ->  | D102: =IF(SISWA!D102=0,"",SISWA!D102) ->  | E102: =IF(SISWA!E102=0,"",SISWA!E102) -> 
A103: 96 | B103: =IF(SISWA!B103=0,"",SISWA!B103) ->  | C103: =IF(SISWA!C103=0,"",SISWA!C103) ->  | D103: =IF(SISWA!D103=0,"",SISWA!D103) ->  | E103: =IF(SISWA!E103=0,"",SISWA!E103) -> 
A104: 97 | B104: =IF(SISWA!B104=0,"",SISWA!B104) ->  | C104: =IF(SISWA!C104=0,"",SISWA!C104) ->  | D104: =IF(SISWA!D104=0,"",SISWA!D104) ->  | E104: =IF(SISWA!E104=0,"",SISWA!E104) -> 
A105: 98 | B105: =IF(SISWA!B105=0,"",SISWA!B105) ->  | C105: =IF(SISWA!C105=0,"",SISWA!C105) ->  | D105: =IF(SISWA!D105=0,"",SISWA!D105) ->  | E105: =IF(SISWA!E105=0,"",SISWA!E105) -> 
A106: 99 | B106: =IF(SISWA!B106=0,"",SISWA!B106) ->  | C106: =IF(SISWA!C106=0,"",SISWA!C106) ->  | D106: =IF(SISWA!D106=0,"",SISWA!D106) ->  | E106: =IF(SISWA!E106=0,"",SISWA!E106) -> 
A107: 100 | B107: =IF(SISWA!B107=0,"",SISWA!B107) ->  | C107: =IF(SISWA!C107=0,"",SISWA!C107) ->  | D107: =IF(SISWA!D107=0,"",SISWA!D107) ->  | E107: =IF(SISWA!E107=0,"",SISWA!E107) -> 
A108: 101 | B108: =IF(SISWA!B108=0,"",SISWA!B108) ->  | C108: =IF(SISWA!C108=0,"",SISWA!C108) ->  | D108: =IF(SISWA!D108=0,"",SISWA!D108) ->  | E108: =IF(SISWA!E108=0,"",SISWA!E108) -> 

Sheet BA
A1: DAFTAR NILAI AKHIR SEKOLAH
A2: =AA!A2 -> MADRASAH IBTIDAIYAH NURUL ISLAM LABRUK KIDUL
A3: =AA!A3 -> TAHUN PELAJARAN 2019/2020
A5: NO | B5: No Induk | C5: NISN | D5: Nomor Peserta | E5: Nama Peserta | F5: BAHASA ARAB | O5: rata-rata UAM & PRAKTEK
F6: Nilai Semester | K6: Rata- 2 | L6: NILAI UAMBD | P6: UAMNU
F7: 7 | G7: 8 | H7: 9 | I7: 10 | J7: 11 | K7: Rapor | L7: TULIS | M7: PRAKTIK | P7: TULIS
A8: 1 | B8: =IF(SISWA!B8=0,"",SISWA!B8) -> 4331 | C8: =IF(SISWA!C8=0,"",SISWA!C8) -> 0078140536 | D8: =IF(SISWA!D8=0,"",SISWA!D8) -> 1-18-05-80-162-001-8 | E8: =IF(SISWA!E8=0,"",SISWA!E8) -> ACHMAD FATHIR IZUDDIN | G8: 66 | H8: 83 | I8: 87 | J8: 86 | K8: =AVERAGE(F8:J8) -> 80.5 | L8: 70 | M8: =AVERAGE(H8:L8) -> 81.3 | N8: =AVERAGE(L8:M8) -> 75.65 | O8: =AVERAGE(L8:M8) -> 75.65 | P8: 75.65
A9: 2 | B9: =IF(SISWA!B9=0,"",SISWA!B9) -> 4333 | C9: =IF(SISWA!C9=0,"",SISWA!C9) -> 0084691896 | D9: =IF(SISWA!D9=0,"",SISWA!D9) -> 1-18-05-80-162-002-7 | E9: =IF(SISWA!E9=0,"",SISWA!E9) -> AININ NAFISA FEBRIYANTI | G9: 70 | H9: 85 | I9: 90 | J9: 93 | K9: =AVERAGE(F9:J9) -> 84.5 | L9: 60 | M9: 82.5 | N9: =AVERAGE(L9:M9) -> 71.25 | O9: =AVERAGE(L9:M9) -> 71.25 | P9: 71.25
A10: 3 | B10: =IF(SISWA!B10=0,"",SISWA!B10) -> 4334 | C10: =IF(SISWA!C10=0,"",SISWA!C10) -> 0075488897 | D10: =IF(SISWA!D10=0,"",SISWA!D10) -> 1-18-05-80-162-003-6 | E10: =IF(SISWA!E10=0,"",SISWA!E10) -> AISYAH DWI ANDINI | G10: 70 | H10: 89 | I10: 90 | J10: 98 | K10: 86.75 | L10: 60 | M10: 84.75 | N10: 72.375 | O10: 72.375 | P10: 72.375
A11: 4 | B11: =IF(SISWA!B11=0,"",SISWA!B11) -> 4335 | C11: =IF(SISWA!C11=0,"",SISWA!C11) -> 0077554289 | D11: =IF(SISWA!D11=0,"",SISWA!D11) -> 1-18-05-80-162-004-5 | E11: =IF(SISWA!E11=0,"",SISWA!E11) -> AJENG AGUSTINA KIRANA PUTRI | G11: 70 | H11: 87 | I11: 89 | J11: 93 | K11: 84.75 | L11: 60 | M11: 82.75 | N11: 71.375 | O11: 71.375 | P11: 71.375
A12: 5 | B12: =IF(SISWA!B12=0,"",SISWA!B12) -> 4336 | C12: =IF(SISWA!C12=0,"",SISWA!C12) -> 0078831956 | D12: =IF(SISWA!D12=0,"",SISWA!D12) -> 1-18-05-80-162-005-4 | E12: =IF(SISWA!E12=0,"",SISWA!E12) -> ALVIAN FAIZULHAQQI | G12: 68 | H12: 83 | I12: 89 | J12: 83 | K12: 80.75 | L12: 60 | M12: 79.15 | N12: 69.575 | O12: 69.575 | P12: 69.575
A13: 6 | B13: =IF(SISWA!B13=0,"",SISWA!B13) -> 4337 | C13: =IF(SISWA!C13=0,"",SISWA!C13) -> 0073667130 | D13: =IF(SISWA!D13=0,"",SISWA!D13) -> 1-18-05-80-162-006-3 | E13: =IF(SISWA!E13=0,"",SISWA!E13) -> ANGGITA RIZKY YUGA MEISYA | G13: 74 | H13: 84 | I13: 88 | J13: 97 | K13: 85.75 | L13: 60 | M13: 82.95 | N13: 71.475 | O13: 71.475 | P13: 71.475
A14: 7 | B14: =IF(SISWA!B14=0,"",SISWA!B14) -> 4338 | C14: =IF(SISWA!C14=0,"",SISWA!C14) -> 0074492973 | D14: =IF(SISWA!D14=0,"",SISWA!D14) -> 1-18-05-80-162-007-2 | E14: =IF(SISWA!E14=0,"",SISWA!E14) -> AURA SALSABILA WULAN SARI | G14: 71 | H14: 84 | I14: 89 | J14: 88 | K14: 83 | L14: 60 | M14: 80.8 | N14: 70.4 | O14: 70.4 | P14: 70.4
A15: 8 | B15: =IF(SISWA!B15=0,"",SISWA!B15) -> 4366 | C15: =IF(SISWA!C15=0,"",SISWA!C15) -> 0078989673 | D15: =IF(SISWA!D15=0,"",SISWA!D15) -> 1-18-05-80-162-008-9 | E15: =IF(SISWA!E15=0,"",SISWA!E15) -> BALQIS NAILA AUDIA | G15: 81 | H15: 89 | I15: 93 | J15: 97 | K15: 90 | L15: 70 | M15: 87.8 | N15: 78.9 | O15: 78.9 | P15: 78.9
A16: 9 | B16: =IF(SISWA!B16=0,"",SISWA!B16) -> 4440 | C16: =IF(SISWA!C16=0,"",SISWA!C16) -> 0082763386 | D16: =IF(SISWA!D16=0,"",SISWA!D16) -> 1-18-05-80-162-009-8 | E16: =IF(SISWA!E16=0,"",SISWA!E16) -> BIMA ARYO SUSILO | G16: 70 | H16: 83 | I16: 89 | J16: 88 | K16: 82.5 | L16: 60 | M16: 80.5 | N16: 70.25 | O16: 70.25 | P16: 70.25
A17: 10 | B17: =IF(SISWA!B17=0,"",SISWA!B17) -> 4367 | C17: =IF(SISWA!C17=0,"",SISWA!C17) -> 0078400392 | D17: =IF(SISWA!D17=0,"",SISWA!D17) -> 1-18-05-80-162-010-7 | E17: =IF(SISWA!E17=0,"",SISWA!E17) -> BIMA SATRIA DIRGANTARA | G17: 72 | H17: 83 | I17: 89 | J17: 93 | K17: 84.25 | L17: 60 | M17: 81.85 | N17: 70.925 | O17: 70.925 | P17: 70.925
A18: 11 | B18: =IF(SISWA!B18=0,"",SISWA!B18) -> 4339 | C18: =IF(SISWA!C18=0,"",SISWA!C18) -> 0086652599 | D18: =IF(SISWA!D18=0,"",SISWA!D18) -> 1-18-05-80-162-011-6 | E18: =IF(SISWA!E18=0,"",SISWA!E18) -> DEVI KARUNIA RATNA PUTRI | G18: 70 | H18: 87 | I18: 89 | J18: 93 | K18: 84.75 | L18: 60 | M18: 82.75 | N18: 71.375 | O18: 71.375 | P18: 71.375
A19: 12 | B19: =IF(SISWA!B19=0,"",SISWA!B19) -> 4340 | C19: =IF(SISWA!C19=0,"",SISWA!C19) -> 0089906682 | D19: =IF(SISWA!D19=0,"",SISWA!D19) -> 1-18-05-80-162-012-5 | E19: =IF(SISWA!E19=0,"",SISWA!E19) -> DEVITA FEBRIANI PUTRI | G19: 70 | H19: 84 | I19: 89 | J19: 88 | K19: 82.75 | L19: 60 | M19: 80.75 | N19: 70.375 | O19: 70.375 | P19: 70.375
A20: 13 | B20: =IF(SISWA!B20=0,"",SISWA!B20) -> 4370 | C20: =IF(SISWA!C20=0,"",SISWA!C20) -> 0074514146 | D20: =IF(SISWA!D20=0,"",SISWA!D20) -> 1-18-05-80-162-013-4 | E20: =IF(SISWA!E20=0,"",SISWA!E20) -> FAKHIS GABRIL LIA | G20: 74 | H20: 87 | I20: 89 | J20: 98 | K20: 87 | L20: 60 | M20: 84.2 | N20: 72.1 | O20: 72.1 | P20: 72.1
A21: 14 | B21: =IF(SISWA!B21=0,"",SISWA!B21) -> 4342 | C21: =IF(SISWA!C21=0,"",SISWA!C21) -> 0081081672 | D21: =IF(SISWA!D21=0,"",SISWA!D21) -> 1-18-05-80-162-014-3 | E21: =IF(SISWA!E21=0,"",SISWA!E21) -> FARAH NAILATUL ALYAH | G21: 78 | H21: 84 | I21: 89 | J21: 93 | K21: 86 | L21: 60 | M21: 82.4 | N21: 71.2 | O21: 71.2 | P21: 71.2
A22: 15 | B22: =IF(SISWA!B22=0,"",SISWA!B22) -> 4345 | C22: =IF(SISWA!C22=0,"",SISWA!C22) -> 0073420487 | D22: =IF(SISWA!D22=0,"",SISWA!D22) -> 1-18-05-80-162-015-2 | E22: =IF(SISWA!E22=0,"",SISWA!E22) -> GALANG MARDHOTILLAH SATOTO | G22: 69 | H22: 83 | I22: 89 | J22: 88 | K22: 82.25 | L22: 60 | M22: 80.45 | N22: 70.225 | O22: 70.225 | P22: 70.225
A23: 16 | B23: =IF(SISWA!B23=0,"",SISWA!B23) -> 4371 | C23: =IF(SISWA!C23=0,"",SISWA!C23) -> 0079870082 | D23: =IF(SISWA!D23=0,"",SISWA!D23) -> 1-18-05-80-162-016-9 | E23: =IF(SISWA!E23=0,"",SISWA!E23) -> GALIH FAREL PRASTYO | G23: 73 | H23: 86 | I23: 89 | J23: 88 | K23: 84 | L23: 60 | M23: 81.4 | N23: 70.7 | O23: 70.7 | P23: 70.7
A24: 17 | B24: =IF(SISWA!B24=0,"",SISWA!B24) -> 4466 | C24: =IF(SISWA!C24=0,"",SISWA!C24) -> 0081629504 | D24: =IF(SISWA!D24=0,"",SISWA!D24) -> 1-18-05-80-162-017-8 | E24: =IF(SISWA!E24=0,"",SISWA!E24) -> HIBATULLAH MUSTAGHFIRY RUSLI | G24: 78 | H24: 83 | I24: 89 | J24: 83 | K24: 83.25 | L24: 60 | M24: 79.65 | N24: 69.825 | O24: 69.825 | P24: 69.825
A25: 18 | B25: =IF(SISWA!B25=0,"",SISWA!B25) -> 4346 | C25: =IF(SISWA!C25=0,"",SISWA!C25) -> 0073608418 | D25: =IF(SISWA!D25=0,"",SISWA!D25) -> 1-18-05-80-162-018-7 | E25: =IF(SISWA!E25=0,"",SISWA!E25) -> IKA KURNIA WATI AGUSTINA | G25: 70 | H25: 82 | I25: 89 | J25: 88 | K25: 82.25 | L25: 60 | M25: 80.25 | N25: 70.125 | O25: 70.125 | P25: 70.125
A26: 19 | B26: =IF(SISWA!B26=0,"",SISWA!B26) -> 4350 | C26: =IF(SISWA!C26=0,"",SISWA!C26) -> 0072658586 | D26: =IF(SISWA!D26=0,"",SISWA!D26) -> 1-18-05-80-162-019-6 | E26: =IF(SISWA!E26=0,"",SISWA!E26) -> MAYLUNA EKA PRATIWI | G26: 80 | H26: 84 | I26: 89 | J26: 98 | K26: 87.75 | L26: 60 | M26: 83.75 | N26: 71.875 | O26: 71.875 | P26: 71.875
A27: 20 | B27: =IF(SISWA!B27=0,"",SISWA!B27) -> 4353 | C27: =IF(SISWA!C27=0,"",SISWA!C27) -> 0075464137 | D27: =IF(SISWA!D27=0,"",SISWA!D27) -> 1-18-05-80-162-020-5 | E27: =IF(SISWA!E27=0,"",SISWA!E27) -> MOHAMAD DWIMAS FIRDAUS | G27: 68 | H27: 81 | I27: 88 | J27: 83 | K27: 80 | L27: 60 | M27: 78.4 | N27: 69.2 | O27: 69.2 | P27: 69.2
A28: 21 | B28: =IF(SISWA!B28=0,"",SISWA!B28) -> 4375 | C28: =IF(SISWA!C28=0,"",SISWA!C28) -> 0075096831 | D28: =IF(SISWA!D28=0,"",SISWA!D28) -> 1-18-05-80-162-021-4 | E28: =IF(SISWA!E28=0,"",SISWA!E28) -> MUHAMMAD AFFAN ABI SYAHPUTRA | G28: 73 | H28: 83 | I28: 89 | J28: 83 | K28: 82 | L28: 60 | M28: 79.4 | N28: 69.7 | O28: 69.7 | P28: 69.7
A29: 22 | B29: =IF(SISWA!B29=0,"",SISWA!B29) -> 4354 | C29: =IF(SISWA!C29=0,"",SISWA!C29) -> 0075055640 | D29: =IF(SISWA!D29=0,"",SISWA!D29) -> 1-18-05-80-162-022-3 | E29: =IF(SISWA!E29=0,"",SISWA!E29) -> MUHAMMAD ALVIN RIDHO | G29: 66 | H29: 81 | I29: 88 | J29: 83 | K29: 79.5 | L29: 60 | M29: 78.3 | N29: 69.15 | O29: 69.15 | P29: 69.15
A30: 23 | B30: =IF(SISWA!B30=0,"",SISWA!B30) -> 4378 | C30: =IF(SISWA!C30=0,"",SISWA!C30) -> 0074268893 | D30: =IF(SISWA!D30=0,"",SISWA!D30) -> 1-18-05-80-162-023-2 | E30: =IF(SISWA!E30=0,"",SISWA!E30) -> MUKHAMAD DAVID ARIF FIRDAUS | G30: 81 | H30: 89 | I30: 92 | J30: 93 | K30: 88.75 | L30: 60 | M30: 84.55 | N30: 72.275 | O30: 72.275 | P30: 72.275
A31: 24 | B31: =IF(SISWA!B31=0,"",SISWA!B31) -> 4379 | C31: =IF(SISWA!C31=0,"",SISWA!C31) -> 0072757203 | D31: =IF(SISWA!D31=0,"",SISWA!D31) -> 1-18-05-80-162-024-9 | E31: =IF(SISWA!E31=0,"",SISWA!E31) -> NAORA ISQI AINAYYA | G31: 87 | H31: 93 | I31: 93 | J31: 98 | K31: 92.75 | L31: 75 | M31: 90.35 | N31: 82.675 | O31: 82.675 | P31: 82.675
A32: 25 | B32: =IF(SISWA!B32=0,"",SISWA!B32) -> 4380 | C32: =IF(SISWA!C32=0,"",SISWA!C32) -> 0079026285 | D32: =IF(SISWA!D32=0,"",SISWA!D32) -> 1-18-05-80-162-025-8 | E32: =IF(SISWA!E32=0,"",SISWA!E32) -> NAZRA ISLAMAY PASHA | G32: 82 | H32: 89 | I32: 94 | J32: 98 | K32: 90.75 | L32: 70 | M32: 88.35 | N32: 79.175 | O32: 79.175 | P32: 79.175
A33: 26 | B33: =IF(SISWA!B33=0,"",SISWA!B33) -> 4382 | C33: =IF(SISWA!C33=0,"",SISWA!C33) -> 0079872151 | D33: =IF(SISWA!D33=0,"",SISWA!D33) -> 1-18-05-80-162-026-7 | E33: =IF(SISWA!E33=0,"",SISWA!E33) -> NUR ALYA NABILA | G33: 75 | H33: 87 | I33: 91 | J33: 98 | K33: 87.75 | L33: 60 | M33: 84.75 | N33: 72.375 | O33: 72.375 | P33: 72.375
A34: 27 | B34: =IF(SISWA!B34=0,"",SISWA!B34) -> 4358 | C34: =IF(SISWA!C34=0,"",SISWA!C34) -> 0087558837 | D34: =IF(SISWA!D34=0,"",SISWA!D34) -> 1-18-05-80-162-027-6 | E34: =IF(SISWA!E34=0,"",SISWA!E34) -> PUTRI SHOLIKHAH | G34: 71 | H34: 83 | I34: 90 | J34: 93 | K34: 84.25 | L34: 60 | M34: 82.05 | N34: 71.025 | O34: 71.025 | P34: 71.025
A35: 28 | B35: =IF(SISWA!B35=0,"",SISWA!B35) -> 4384 | C35: =IF(SISWA!C35=0,"",SISWA!C35) -> 0071234523 | D35: =IF(SISWA!D35=0,"",SISWA!D35) -> 1-18-05-80-162-028-5 | E35: =IF(SISWA!E35=0,"",SISWA!E35) -> RESTI FITRIANTI DWI OCTAVIANI | G35: 74 | H35: 83 | I35: 90 | J35: 93 | K35: 85 | L35: 60 | M35: 82.2 | N35: 71.1 | O35: 71.1 | P35: 71.1
A36: 29 | B36: =IF(SISWA!B36=0,"",SISWA!B36) -> 4359 | C36: =IF(SISWA!C36=0,"",SISWA!C36) -> 0073122181 | D36: =IF(SISWA!D36=0,"",SISWA!D36) -> 1-18-05-80-162-029-4 | E36: =IF(SISWA!E36=0,"",SISWA!E36) -> ROUDHOTUS SA'DIYAH | G36: 76 | H36: 81 | I36: 89 | J36: 93 | K36: 84.75 | L36: 60 | M36: 81.55 | N36: 70.775 | O36: 70.775 | P36: 70.775
A37: 30 | B37: =IF(SISWA!B37=0,"",SISWA!B37) -> 4386 | C37: =IF(SISWA!C37=0,"",SISWA!C37) -> 0075344352 | D37: =IF(SISWA!D37=0,"",SISWA!D37) -> 1-18-05-80-162-030-3 | E37: =IF(SISWA!E37=0,"",SISWA!E37) -> TIERSYA BETA RAMANUZAN | G37: 87 | H37: 88 | I37: 90 | J37: 93 | K37: 89.5 | L37: 60 | M37: 84.1 | N37: 72.05 | O37: 72.05 | P37: 72.05
A38: 31 | B38: =IF(SISWA!B38=0,"",SISWA!B38) -> 4388 | C38: =IF(SISWA!C38=0,"",SISWA!C38) -> 0077423646 | D38: =IF(SISWA!D38=0,"",SISWA!D38) -> 1-18-05-80-162-031-2 | E38: =IF(SISWA!E38=0,"",SISWA!E38) -> VERA MUSTIKA | G38: 75 | H38: 85 | I38: 92 | J38: 90 | K38: 85.5 | L38: 60 | M38: 82.5 | N38: 71.25 | O38: 71.25 | P38: 71.25
A39: 32 | B39: =IF(SISWA!B39=0,"",SISWA!B39) -> 4360 | C39: =IF(SISWA!C39=0,"",SISWA!C39) -> 0077290990 | D39: =IF(SISWA!D39=0,"",SISWA!D39) -> 1-18-05-80-162-032-9 | E39: =IF(SISWA!E39=0,"",SISWA!E39) -> ZIDNY ILMA NABILA | G39: 91 | H39: 94 | I39: 94 | J39: 98 | K39: 94.25 | L39: 60 | M39: 88.05 | N39: 74.025 | O39: 74.025 | P39: 74.025
A40: 33 | B40: =IF(SISWA!B40=0,"",SISWA!B40) -> 4390 | C40: =IF(SISWA!C40=0,"",SISWA!C40) -> 0077722307 | D40: =IF(SISWA!D40=0,"",SISWA!D40) -> 1-18-05-80-162-033-8 | E40: =IF(SISWA!E40=0,"",SISWA!E40) -> ZITNATUL AULIA ILLA | G40: 92 | H40: 95 | I40: 94 | J40: 98 | K40: 94.75 | L40: 85 | M40: 93.35 | N40: 89.175 | O40: 89.175 | P40: 89.175
A41: 34 | B41: =IF(SISWA!B41=0,"",SISWA!B41) -> 4330 | C41: =IF(SISWA!C41=0,"",SISWA!C41) -> 0084736422 | D41: =IF(SISWA!D41=0,"",SISWA!D41) -> 1-18-05-80-162-034-7 | E41: =IF(SISWA!E41=0,"",SISWA!E41) -> ACHID ATHIRIL ARDAN | G41: 68 | H41: 80 | I41: 86 | J41: 85 | K41: 79.75 | L41: 60 | M41: 78.15 | N41: 69.075 | O41: 69.075 | P41: 67.16666667
A42: 35 | B42: =IF(SISWA!B42=0,"",SISWA!B42) -> 4361 | C42: =IF(SISWA!C42=0,"",SISWA!C42) -> 0075656390 | D42: =IF(SISWA!D42=0,"",SISWA!D42) -> 1-18-05-80-162-035-6 | E42: =IF(SISWA!E42=0,"",SISWA!E42) -> ACHMAD SEPTIAN HAMDANI | G42: 68 | H42: 80 | I42: 86 | J42: 88 | K42: 80.5 | L42: 60 | M42: 78.9 | N42: 69.45 | O42: 69.45 | P42: 67.16666667
A43: 36 | B43: =IF(SISWA!B43=0,"",SISWA!B43) -> 4362 | C43: =IF(SISWA!C43=0,"",SISWA!C43) -> 0071796138 | D43: =IF(SISWA!D43=0,"",SISWA!D43) -> 1-18-05-80-162-036-5 | E43: =IF(SISWA!E43=0,"",SISWA!E43) -> ACHMAD SULAIMAN | G43: 67 | H43: 80 | I43: 86 | J43: 88 | K43: 80.25 | L43: 60 | M43: 78.85 | N43: 69.425 | O43: 69.425 | P43: 67.08333333
A44: 37 | B44: =IF(SISWA!B44=0,"",SISWA!B44) -> 4364 | C44: =IF(SISWA!C44=0,"",SISWA!C44) -> 0079667684 | D44: =IF(SISWA!D44=0,"",SISWA!D44) -> 1-18-05-80-162-037-4 | E44: =IF(SISWA!E44=0,"",SISWA!E44) -> AIRLANGGA DWIKA RIZQI | G44: 69 | H44: 80 | I44: 86 | J44: 85 | K44: 80 | L44: 60 | M44: 78.2 | N44: 69.1 | O44: 69.1 | P44: 67.25
A45: 38 | B45: =IF(SISWA!B45=0,"",SISWA!B45) -> 4365 | C45: =IF(SISWA!C45=0,"",SISWA!C45) -> 0089321127 | D45: =IF(SISWA!D45=0,"",SISWA!D45) -> 1-18-05-80-162-038-3 | E45: =IF(SISWA!E45=0,"",SISWA!E45) -> AUFAN AZKAL ABRORI | G45: 71 | H45: 82 | I45: 87 | J45: 88 | K45: 82 | L45: 60 | M45: 79.8 | N45: 69.9 | O45: 69.9 | P45: 67.66666667
A46: 39 | B46: =IF(SISWA!B46=0,"",SISWA!B46) -> 4465 | C46: =IF(SISWA!C46=0,"",SISWA!C46) -> 0071776593 | D46: =IF(SISWA!D46=0,"",SISWA!D46) -> 1-18-05-80-162-039-2 | E46: =IF(SISWA!E46=0,"",SISWA!E46) -> AZZA PRISHAL DWI PUTRA | G46: 72 | H46: 81 | I46: 86 | J46: 88 | K46: 81.75 | L46: 60 | M46: 79.35 | N46: 69.675 | O46: 69.675 | P46: 67.5
A47: 40 | B47: =IF(SISWA!B47=0,"",SISWA!B47) -> 4368 | C47: =IF(SISWA!C47=0,"",SISWA!C47) -> 0074569410 | D47: =IF(SISWA!D47=0,"",SISWA!D47) -> 1-18-05-80-162-040-9 | E47: =IF(SISWA!E47=0,"",SISWA!E47) -> EKA AULIYA` PUTRI | G47: 73 | H47: 84 | I47: 89 | J47: 88 | K47: 83.5 | L47: 60 | M47: 80.9 | N47: 70.45 | O47: 70.45 | P47: 68.33333333
A48: 41 | B48: =IF(SISWA!B48=0,"",SISWA!B48) -> 4341 | C48: =IF(SISWA!C48=0,"",SISWA!C48) -> 0083684457 | D48: =IF(SISWA!D48=0,"",SISWA!D48) -> 1-18-05-80-162-041-8 | E48: =IF(SISWA!E48=0,"",SISWA!E48) -> ERSA PUSPITA EKA ROSA LINDA | G48: 68 | H48: 87 | I48: 87 | J48: 88 | K48: 82.5 | L48: 60 | M48: 80.9 | N48: 70.45 | O48: 70.45 | P48: 67.41666667
A49: 42 | B49: =IF(SISWA!B49=0,"",SISWA!B49) -> 4369 | C49: =IF(SISWA!C49=0,"",SISWA!C49) -> 0078481731 | D49: =IF(SISWA!D49=0,"",SISWA!D49) -> 1-18-05-80-162-042-7 | E49: =IF(SISWA!E49=0,"",SISWA!E49) -> FABIYAN TRI BAKTI OKTAFIAN | G49: 68 | H49: 85 | I49: 89 | J49: 88 | K49: 82.5 | L49: 60 | M49: 80.9 | N49: 70.45 | O49: 70.45 | P49: 67.91666667
A50: 43 | B50: =IF(SISWA!B50=0,"",SISWA!B50) -> 4343 | C50: =IF(SISWA!C50=0,"",SISWA!C50) -> 3075965396 | D50: =IF(SISWA!D50=0,"",SISWA!D50) -> 1-18-05-80-162-043-6 | E50: =IF(SISWA!E50=0,"",SISWA!E50) -> FELISITA APRILIA NUR NIHAYA | G50: 71 | H50: 83 | I50: 87 | J50: 88 | K50: 82.25 | L50: 60 | M50: 80.05 | N50: 70.025 | O50: 70.025 | P50: 67.66666667
A51: 44 | B51: =IF(SISWA!B51=0,"",SISWA!B51) -> 4344 | C51: =IF(SISWA!C51=0,"",SISWA!C51) -> 3078948093 | D51: =IF(SISWA!D51=0,"",SISWA!D51) -> 1-18-05-80-162-044-5 | E51: =IF(SISWA!E51=0,"",SISWA!E51) -> FIRDA DWI ANDRIANI | G51: 67 | H51: 80 | I51: 86 | J51: 88 | K51: 80.25 | L51: 60 | M51: 78.85 | N51: 69.425 | O51: 69.425 | P51: 67.08333333
A52: 45 | B52: =IF(SISWA!B52=0,"",SISWA!B52) -> 4372 | C52: =IF(SISWA!C52=0,"",SISWA!C52) -> 0087636520 | D52: =IF(SISWA!D52=0,"",SISWA!D52) -> 1-18-05-80-162-045-4 | E52: =IF(SISWA!E52=0,"",SISWA!E52) -> GILANG AKBAR PRASETYO | G52: 65 | H52: 80 | I52: 86 | J52: 85 | K52: 79 | L52: 60 | M52: 78 | N52: 69 | O52: 69 | P52: 66.91666667
A53: 46 | B53: =IF(SISWA!B53=0,"",SISWA!B53) -> 4373 | C53: =IF(SISWA!C53=0,"",SISWA!C53) -> 0087373224 | D53: =IF(SISWA!D53=0,"",SISWA!D53) -> 1-18-05-80-162-046-3 | E53: =IF(SISWA!E53=0,"",SISWA!E53) -> IFTAH IZZAH EMILIA MAHMUD | G53: 77 | H53: 81 | I53: 86 | J53: 85 | K53: 82.25 | L53: 60 | M53: 78.85 | N53: 69.425 | O53: 69.425 | P53: 67.91666667
A54: 47 | B54: =IF(SISWA!B54=0,"",SISWA!B54) -> 4441 | C54: =IF(SISWA!C54=0,"",SISWA!C54) -> 0081758949 | D54: =IF(SISWA!D54=0,"",SISWA!D54) -> 1-18-05-80-162-047-2 | E54: =IF(SISWA!E54=0,"",SISWA!E54) -> INES ARIFANI MAULINA | G54: 68 | H54: 80 | I54: 86 | J54: 86 | K54: 80 | L54: 60 | M54: 78.4 | N54: 69.2 | O54: 69.2 | P54: 67.16666667
A55: 48 | B55: =IF(SISWA!B55=0,"",SISWA!B55) -> 4374 | C55: =IF(SISWA!C55=0,"",SISWA!C55) -> 0073409469 | D55: =IF(SISWA!D55=0,"",SISWA!D55) -> 1-18-05-80-162-048-9 | E55: =IF(SISWA!E55=0,"",SISWA!E55) -> IYAAD AFLAKHA RAMZII | G55: 71 | H55: 82 | I55: 87 | J55: 87 | K55: 81.75 | L55: 60 | M55: 79.55 | N55: 69.775 | O55: 69.775 | P55: 67.66666667
A56: 49 | B56: =IF(SISWA!B56=0,"",SISWA!B56) -> 4305 | C56: =IF(SISWA!C56=0,"",SISWA!C56) -> 0068258891 | D56: =IF(SISWA!D56=0,"",SISWA!D56) -> 1-18-05-80-162-049-8 | E56: =IF(SISWA!E56=0,"",SISWA!E56) -> JULI ANDRIYANTO | G56: 66 | H56: 80 | I56: 86 | J56: 86 | K56: 79.5 | L56: 60 | M56: 78.3 | N56: 69.15 | O56: 69.15 | P56: 67
A57: 50 | B57: =IF(SISWA!B57=0,"",SISWA!B57) -> 4347 | C57: =IF(SISWA!C57=0,"",SISWA!C57) -> 0076367763 | D57: =IF(SISWA!D57=0,"",SISWA!D57) -> 1-18-05-80-162-050-7 | E57: =IF(SISWA!E57=0,"",SISWA!E57) -> LIYA FEBRIYANI | G57: 75 | H57: 86 | I57: 89 | J57: 91 | K57: 85.25 | L57: 60 | M57: 82.25 | N57: 71.125 | O57: 71.125 | P57: 68.5
A58: 51 | B58: =IF(SISWA!B58=0,"",SISWA!B58) -> 4348 | C58: =IF(SISWA!C58=0,"",SISWA!C58) -> 0083034332 | D58: =IF(SISWA!D58=0,"",SISWA!D58) -> 1-18-05-80-162-051-6 | E58: =IF(SISWA!E58=0,"",SISWA!E58) -> LIZATUL CHAIYUNI | G58: 75 | H58: 85 | I58: 86 | J58: 91 | K58: 84.25 | L58: 60 | M58: 81.25 | N58: 70.625 | O58: 70.625 | P58: 67.75
A59: 52 | B59: =IF(SISWA!B59=0,"",SISWA!B59) -> 4531 | C59: =IF(SISWA!C59=0,"",SISWA!C59) -> 3099539154 | D59: =IF(SISWA!D59=0,"",SISWA!D59) -> 1-18-05-80-162-052-5 | E59: =IF(SISWA!E59=0,"",SISWA!E59) -> M. ALHAFIS | G59: 68 | H59: 80 | I59: 86 | J59: 88 | K59: 80.5 | L59: 60 | M59: 78.9 | N59: 69.45 | O59: 69.45 | P59: 67.16666667
A60: 53 | B60: =IF(SISWA!B60=0,"",SISWA!B60) -> 4530 | C60: =IF(SISWA!C60=0,"",SISWA!C60) -> 0077015789 | D60: =IF(SISWA!D60=0,"",SISWA!D60) -> 1-18-05-80-162-053-4 | E60: =IF(SISWA!E60=0,"",SISWA!E60) -> MUHAMMAD RIZKI RIDWAN | G60: 71 | H60: 82 | I60: 87 | J60: 91 | K60: 82.75 | L60: 60 | M60: 80.55 | N60: 70.275 | O60: 70.275 | P60: 67.66666667
A61: 54 | B61: =IF(SISWA!B61=0,"",SISWA!B61) -> 4351 | C61: =IF(SISWA!C61=0,"",SISWA!C61) -> 0076361559 | D61: =IF(SISWA!D61=0,"",SISWA!D61) -> 1-18-05-80-162-054-3 | E61: =IF(SISWA!E61=0,"",SISWA!E61) -> MOCHAMAD RAFLI DIAN SAPUTRA | G61: 65 | H61: 80 | I61: 86 | J61: 88 | K61: 79.75 | L61: 60 | M61: 78.75 | N61: 69.375 | O61: 69.375 | P61: 66.91666667
A62: 55 | B62: =IF(SISWA!B62=0,"",SISWA!B62) -> 4352 | C62: =IF(SISWA!C62=0,"",SISWA!C62) -> 0075591405 | D62: =IF(SISWA!D62=0,"",SISWA!D62) -> 1-18-05-80-162-055-2 | E62: =IF(SISWA!E62=0,"",SISWA!E62) -> MOCHAMMAD AFAREL PUTRA RAMDHANA | G62: 69 | H62: 80 | I62: 86 | J62: 85 | K62: 80 | L62: 60 | M62: 78.2 | N62: 69.1 | O62: 69.1 | P62: 67.25
A63: 56 | B63: =IF(SISWA!B63=0,"",SISWA!B63) -> 4355 | C63: =IF(SISWA!C63=0,"",SISWA!C63) -> 0075363258 | D63: =IF(SISWA!D63=0,"",SISWA!D63) -> 1-18-05-80-162-056-9 | E63: =IF(SISWA!E63=0,"",SISWA!E63) -> MUHAMAD JEFRI MAULANA | G63: 72 | H63: 83 | I63: 87 | J63: 85 | K63: 81.75 | L63: 60 | M63: 79.35 | N63: 69.675 | O63: 69.675 | P63: 67.75
A64: 57 | B64: =IF(SISWA!B64=0,"",SISWA!B64) -> 4376 | C64: =IF(SISWA!C64=0,"",SISWA!C64) -> 0072066741 | D64: =IF(SISWA!D64=0,"",SISWA!D64) -> 1-18-05-80-162-057-8 | E64: =IF(SISWA!E64=0,"",SISWA!E64) -> MUHAMMAD DWI WILDAN BAGUS KURNIAWAN | G64: 66 | H64: 80 | I64: 86 | J64: 88 | K64: 80 | L64: 60 | M64: 78.8 | N64: 69.4 | O64: 69.4 | P64: 67
A65: 58 | B65: =IF(SISWA!B65=0,"",SISWA!B65) -> 4377 | C65: =IF(SISWA!C65=0,"",SISWA!C65) -> 0071459044 | D65: =IF(SISWA!D65=0,"",SISWA!D65) -> 1-18-05-80-162-058-7 | E65: =IF(SISWA!E65=0,"",SISWA!E65) -> MUHAMMAD FARIL FIRMANSYA | G65: 68 | H65: 80 | I65: 86 | J65: 85 | K65: 79.75 | L65: 60 | M65: 78.15 | N65: 69.075 | O65: 69.075 | P65: 67.16666667
A66: 59 | B66: =IF(SISWA!B66=0,"",SISWA!B66) -> 4349 | C66: =IF(SISWA!C66=0,"",SISWA!C66) -> 0074206034 | D66: =IF(SISWA!D66=0,"",SISWA!D66) -> 1-18-05-80-162-059-6 | E66: =IF(SISWA!E66=0,"",SISWA!E66) -> MUHAMMAD FARIZ UBAIDILLA | G66: 68 | H66: 80 | I66: 86 | J66: 88 | K66: 80.5 | L66: 60 | M66: 78.9 | N66: 69.45 | O66: 69.45 | P66: 67.16666667
A67: 60 | B67: =IF(SISWA!B67=0,"",SISWA!B67) -> 4356 | C67: =IF(SISWA!C67=0,"",SISWA!C67) -> 0077937892 | D67: =IF(SISWA!D67=0,"",SISWA!D67) -> 1-18-05-80-162-060-5 | E67: =IF(SISWA!E67=0,"",SISWA!E67) -> MUHAMMAD MAULANA ZIDANIL ILMI | G67: 74 | H67: 83 | I67: 87 | J67: 85 | K67: 82.25 | L67: 60 | M67: 79.45 | N67: 69.725 | O67: 69.725 | P67: 67.91666667
A68: 61 | B68: =IF(SISWA!B68=0,"",SISWA!B68) -> 4357 | C68: =IF(SISWA!C68=0,"",SISWA!C68) -> 0078608527 | D68: =IF(SISWA!D68=0,"",SISWA!D68) -> 1-18-05-80-162-061-4 | E68: =IF(SISWA!E68=0,"",SISWA!E68) -> MUHAMMAD SUTRISNO ISMAIL | G68: 67 | H68: 81 | I68: 86 | J68: 88 | K68: 80.5 | L68: 60 | M68: 79.1 | N68: 69.55 | O68: 69.55 | P68: 67.08333333
A69: 62 | B69: =IF(SISWA!B69=0,"",SISWA!B69) -> 4381 | C69: =IF(SISWA!C69=0,"",SISWA!C69) -> 0072209435 | D69: =IF(SISWA!D69=0,"",SISWA!D69) -> 1-18-05-80-162-062-3 | E69: =IF(SISWA!E69=0,"",SISWA!E69) -> NOVITA ERNIAWAN | G69: 71 | H69: 83 | I69: 86 | J69: 88 | K69: 82 | L69: 60 | M69: 79.8 | N69: 69.9 | O69: 69.9 | P69: 67.41666667
A70: 63 | B70: =IF(SISWA!B70=0,"",SISWA!B70) -> 4383 | C70: =IF(SISWA!C70=0,"",SISWA!C70) -> 0077439834 | D70: =IF(SISWA!D70=0,"",SISWA!D70) -> 1-18-05-80-162-063-2 | E70: =IF(SISWA!E70=0,"",SISWA!E70) -> PUTRI AULIA DWI AGUSTIN | G70: 75 | H70: 87 | I70: 89 | J70: 91 | K70: 85.5 | L70: 60 | M70: 82.5 | N70: 71.25 | O70: 71.25 | P70: 68.5
A71: 64 | B71: =IF(SISWA!B71=0,"",SISWA!B71) -> 4385 | C71: =IF(SISWA!C71=0,"",SISWA!C71) -> 0073137310 | D71: =IF(SISWA!D71=0,"",SISWA!D71) -> 1-18-05-80-162-064-9 | E71: =IF(SISWA!E71=0,"",SISWA!E71) -> STANY RAFIDAH RAHMANIA | G71: 67 | H71: 82 | I71: 87 | J71: 88 | K71: 81 | L71: 60 | M71: 79.6 | N71: 69.8 | O71: 69.8 | P71: 67.33333333
A72: 65 | B72: =IF(SISWA!B72=0,"",SISWA!B72) -> 4387 | C72: =IF(SISWA!C72=0,"",SISWA!C72) -> 0077336427 | D72: =IF(SISWA!D72=0,"",SISWA!D72) -> 1-18-05-80-162-065-8 | E72: =IF(SISWA!E72=0,"",SISWA!E72) -> USWATUN KHASANAH | G72: 68 | H72: 82 | I72: 87 | J72: 88 | K72: 81.25 | L72: 60 | M72: 79.65 | N72: 69.825 | O72: 69.825 | P72: 67.41666667
A73: 66 | B73: =IF(SISWA!B73=0,"",SISWA!B73) -> 4389 | C73: =IF(SISWA!C73=0,"",SISWA!C73) -> 0078407631 | D73: =IF(SISWA!D73=0,"",SISWA!D73) -> 1-18-05-80-162-066-7 | E73: =IF(SISWA!E73=0,"",SISWA!E73) -> VIKROUL KHAMILA | G73: 71 | H73: 80 | I73: 86 | J73: 88 | K73: =AVERAGE(F73:J73) -> 81.25 | L73: 60 | M73: 79.05 | N73: =AVERAGE(L73:M73) -> 69.525 | O73: =AVERAGE(L73:M73) -> 69.525 | P73: 67.41666667
A74: 67 | B74: =IF(SISWA!B74=0,"",SISWA!B74) ->  | C74: =IF(SISWA!C74=0,"",SISWA!C74) ->  | D74: =IF(SISWA!D74=0,"",SISWA!D74) ->  | E74: =IF(SISWA!E74=0,"",SISWA!E74) -> 
A75: 68 | B75: =IF(SISWA!B75=0,"",SISWA!B75) ->  | C75: =IF(SISWA!C75=0,"",SISWA!C75) ->  | D75: =IF(SISWA!D75=0,"",SISWA!D75) ->  | E75: =IF(SISWA!E75=0,"",SISWA!E75) -> 
A76: 69 | B76: =IF(SISWA!B76=0,"",SISWA!B76) ->  | C76: =IF(SISWA!C76=0,"",SISWA!C76) ->  | D76: =IF(SISWA!D76=0,"",SISWA!D76) ->  | E76: =IF(SISWA!E76=0,"",SISWA!E76) -> 
A77: 70 | B77: =IF(SISWA!B77=0,"",SISWA!B77) ->  | C77: =IF(SISWA!C77=0,"",SISWA!C77) ->  | D77: =IF(SISWA!D77=0,"",SISWA!D77) ->  | E77: =IF(SISWA!E77=0,"",SISWA!E77) -> 
A78: 71 | B78: =IF(SISWA!B78=0,"",SISWA!B78) ->  | C78: =IF(SISWA!C78=0,"",SISWA!C78) ->  | D78: =IF(SISWA!D78=0,"",SISWA!D78) ->  | E78: =IF(SISWA!E78=0,"",SISWA!E78) -> 
A79: 72 | B79: =IF(SISWA!B79=0,"",SISWA!B79) ->  | C79: =IF(SISWA!C79=0,"",SISWA!C79) ->  | D79: =IF(SISWA!D79=0,"",SISWA!D79) ->  | E79: =IF(SISWA!E79=0,"",SISWA!E79) -> 
A80: 73 | B80: =IF(SISWA!B80=0,"",SISWA!B80) ->  | C80: =IF(SISWA!C80=0,"",SISWA!C80) ->  | D80: =IF(SISWA!D80=0,"",SISWA!D80) ->  | E80: =IF(SISWA!E80=0,"",SISWA!E80) -> 
A81: 74 | B81: =IF(SISWA!B81=0,"",SISWA!B81) ->  | C81: =IF(SISWA!C81=0,"",SISWA!C81) ->  | D81: =IF(SISWA!D81=0,"",SISWA!D81) ->  | E81: =IF(SISWA!E81=0,"",SISWA!E81) -> 
A82: 75 | B82: =IF(SISWA!B82=0,"",SISWA!B82) ->  | C82: =IF(SISWA!C82=0,"",SISWA!C82) ->  | D82: =IF(SISWA!D82=0,"",SISWA!D82) ->  | E82: =IF(SISWA!E82=0,"",SISWA!E82) -> 
A83: 76 | B83: =IF(SISWA!B83=0,"",SISWA!B83) ->  | C83: =IF(SISWA!C83=0,"",SISWA!C83) ->  | D83: =IF(SISWA!D83=0,"",SISWA!D83) ->  | E83: =IF(SISWA!E83=0,"",SISWA!E83) -> 
A84: 77 | B84: =IF(SISWA!B84=0,"",SISWA!B84) ->  | C84: =IF(SISWA!C84=0,"",SISWA!C84) ->  | D84: =IF(SISWA!D84=0,"",SISWA!D84) ->  | E84: =IF(SISWA!E84=0,"",SISWA!E84) -> 
A85: 78 | B85: =IF(SISWA!B85=0,"",SISWA!B85) ->  | C85: =IF(SISWA!C85=0,"",SISWA!C85) ->  | D85: =IF(SISWA!D85=0,"",SISWA!D85) ->  | E85: =IF(SISWA!E85=0,"",SISWA!E85) -> 
A86: 79 | B86: =IF(SISWA!B86=0,"",SISWA!B86) ->  | C86: =IF(SISWA!C86=0,"",SISWA!C86) ->  | D86: =IF(SISWA!D86=0,"",SISWA!D86) ->  | E86: =IF(SISWA!E86=0,"",SISWA!E86) -> 
A87: 80 | B87: =IF(SISWA!B87=0,"",SISWA!B87) ->  | C87: =IF(SISWA!C87=0,"",SISWA!C87) ->  | D87: =IF(SISWA!D87=0,"",SISWA!D87) ->  | E87: =IF(SISWA!E87=0,"",SISWA!E87) -> 
A88: 81 | B88: =IF(SISWA!B88=0,"",SISWA!B88) ->  | C88: =IF(SISWA!C88=0,"",SISWA!C88) ->  | D88: =IF(SISWA!D88=0,"",SISWA!D88) ->  | E88: =IF(SISWA!E88=0,"",SISWA!E88) -> 
A89: 82 | B89: =IF(SISWA!B89=0,"",SISWA!B89) ->  | C89: =IF(SISWA!C89=0,"",SISWA!C89) ->  | D89: =IF(SISWA!D89=0,"",SISWA!D89) ->  | E89: =IF(SISWA!E89=0,"",SISWA!E89) -> 
A90: 83 | B90: =IF(SISWA!B90=0,"",SISWA!B90) ->  | C90: =IF(SISWA!C90=0,"",SISWA!C90) ->  | D90: =IF(SISWA!D90=0,"",SISWA!D90) ->  | E90: =IF(SISWA!E90=0,"",SISWA!E90) -> 
A91: 84 | B91: =IF(SISWA!B91=0,"",SISWA!B91) ->  | C91: =IF(SISWA!C91=0,"",SISWA!C91) ->  | D91: =IF(SISWA!D91=0,"",SISWA!D91) ->  | E91: =IF(SISWA!E91=0,"",SISWA!E91) -> 
A92: 85 | B92: =IF(SISWA!B92=0,"",SISWA!B92) ->  | C92: =IF(SISWA!C92=0,"",SISWA!C92) ->  | D92: =IF(SISWA!D92=0,"",SISWA!D92) ->  | E92: =IF(SISWA!E92=0,"",SISWA!E92) -> 
A93: 86 | B93: =IF(SISWA!B93=0,"",SISWA!B93) ->  | C93: =IF(SISWA!C93=0,"",SISWA!C93) ->  | D93: =IF(SISWA!D93=0,"",SISWA!D93) ->  | E93: =IF(SISWA!E93=0,"",SISWA!E93) -> 
A94: 87 | B94: =IF(SISWA!B94=0,"",SISWA!B94) ->  | C94: =IF(SISWA!C94=0,"",SISWA!C94) ->  | D94: =IF(SISWA!D94=0,"",SISWA!D94) ->  | E94: =IF(SISWA!E94=0,"",SISWA!E94) -> 
A95: 88 | B95: =IF(SISWA!B95=0,"",SISWA!B95) ->  | C95: =IF(SISWA!C95=0,"",SISWA!C95) ->  | D95: =IF(SISWA!D95=0,"",SISWA!D95) ->  | E95: =IF(SISWA!E95=0,"",SISWA!E95) -> 
A96: 89 | B96: =IF(SISWA!B96=0,"",SISWA!B96) ->  | C96: =IF(SISWA!C96=0,"",SISWA!C96) ->  | D96: =IF(SISWA!D96=0,"",SISWA!D96) ->  | E96: =IF(SISWA!E96=0,"",SISWA!E96) -> 
A97: 90 | B97: =IF(SISWA!B97=0,"",SISWA!B97) ->  | C97: =IF(SISWA!C97=0,"",SISWA!C97) ->  | D97: =IF(SISWA!D97=0,"",SISWA!D97) ->  | E97: =IF(SISWA!E97=0,"",SISWA!E97) -> 
A98: 91 | B98: =IF(SISWA!B98=0,"",SISWA!B98) ->  | C98: =IF(SISWA!C98=0,"",SISWA!C98) ->  | D98: =IF(SISWA!D98=0,"",SISWA!D98) ->  | E98: =IF(SISWA!E98=0,"",SISWA!E98) -> 
A99: 92 | B99: =IF(SISWA!B99=0,"",SISWA!B99) ->  | C99: =IF(SISWA!C99=0,"",SISWA!C99) ->  | D99: =IF(SISWA!D99=0,"",SISWA!D99) ->  | E99: =IF(SISWA!E99=0,"",SISWA!E99) -> 
A100: 93 | B100: =IF(SISWA!B100=0,"",SISWA!B100) ->  | C100: =IF(SISWA!C100=0,"",SISWA!C100) ->  | D100: =IF(SISWA!D100=0,"",SISWA!D100) ->  | E100: =IF(SISWA!E100=0,"",SISWA!E100) -> 
A101: 94 | B101: =IF(SISWA!B101=0,"",SISWA!B101) ->  | C101: =IF(SISWA!C101=0,"",SISWA!C101) ->  | D101: =IF(SISWA!D101=0,"",SISWA!D101) ->  | E101: =IF(SISWA!E101=0,"",SISWA!E101) -> 
A102: 95 | B102: =IF(SISWA!B102=0,"",SISWA!B102) ->  | C102: =IF(SISWA!C102=0,"",SISWA!C102) ->  | D102: =IF(SISWA!D102=0,"",SISWA!D102) ->  | E102: =IF(SISWA!E102=0,"",SISWA!E102) -> 
A103: 96 | B103: =IF(SISWA!B103=0,"",SISWA!B103) ->  | C103: =IF(SISWA!C103=0,"",SISWA!C103) ->  | D103: =IF(SISWA!D103=0,"",SISWA!D103) ->  | E103: =IF(SISWA!E103=0,"",SISWA!E103) -> 
A104: 97 | B104: =IF(SISWA!B104=0,"",SISWA!B104) ->  | C104: =IF(SISWA!C104=0,"",SISWA!C104) ->  | D104: =IF(SISWA!D104=0,"",SISWA!D104) ->  | E104: =IF(SISWA!E104=0,"",SISWA!E104) -> 
A105: 98 | B105: =IF(SISWA!B105=0,"",SISWA!B105) ->  | C105: =IF(SISWA!C105=0,"",SISWA!C105) ->  | D105: =IF(SISWA!D105=0,"",SISWA!D105) ->  | E105: =IF(SISWA!E105=0,"",SISWA!E105) -> 
A106: 99 | B106: =IF(SISWA!B106=0,"",SISWA!B106) ->  | C106: =IF(SISWA!C106=0,"",SISWA!C106) ->  | D106: =IF(SISWA!D106=0,"",SISWA!D106) ->  | E106: =IF(SISWA!E106=0,"",SISWA!E106) -> 
A107: 100 | B107: =IF(SISWA!B107=0,"",SISWA!B107) ->  | C107: =IF(SISWA!C107=0,"",SISWA!C107) ->  | D107: =IF(SISWA!D107=0,"",SISWA!D107) ->  | E107: =IF(SISWA!E107=0,"",SISWA!E107) -> 
A108: 101 | B108: =IF(SISWA!B108=0,"",SISWA!B108) ->  | C108: =IF(SISWA!C108=0,"",SISWA!C108) ->  | D108: =IF(SISWA!D108=0,"",SISWA!D108) ->  | E108: =IF(SISWA!E108=0,"",SISWA!E108) -> 

Sheet BID
A1: DAFTAR NILAI AKHIR SEKOLAH
A2: =AA!A2 -> MADRASAH IBTIDAIYAH NURUL ISLAM LABRUK KIDUL
A3: =AA!A3 -> TAHUN PELAJARAN 2019/2020
A5: NO | B5: No Induk | C5: NISN | D5: Nomor Peserta | E5: Nama Peserta | F5: BAHASA INDONESIA
F6: Nilai Semester | K6: Rata- 2 | L6: NILAI US | P6: UAMNU
F7: 7 | G7: 8 | H7: 9 | I7: 10 | J7: 11 | K7: Rapor | L7: TULIS | M7: PRAKTIK | P7: TULIS
A8: 1 | B8: =IF(SISWA!B8=0,"",SISWA!B8) -> 4331 | C8: =IF(SISWA!C8=0,"",SISWA!C8) -> 0078140536 | D8: =IF(SISWA!D8=0,"",SISWA!D8) -> 1-18-05-80-162-001-8 | E8: =IF(SISWA!E8=0,"",SISWA!E8) -> ACHMAD FATHIR IZUDDIN | G8: 70 | H8: 75 | I8: 80 | K8: =AVERAGE(F8:J8) -> 75 | L8: 65 | M8: 73.75 | N8: =AVERAGE(K8:L8) -> 70 | O8: =IF(M8>95,"GANTI","") ->  | P8: 70
A9: 2 | B9: =IF(SISWA!B9=0,"",SISWA!B9) -> 4333 | C9: =IF(SISWA!C9=0,"",SISWA!C9) -> 0084691896 | D9: =IF(SISWA!D9=0,"",SISWA!D9) -> 1-18-05-80-162-002-7 | E9: =IF(SISWA!E9=0,"",SISWA!E9) -> AININ NAFISA FEBRIYANTI | G9: 72 | H9: 75 | I9: 83 | K9: 76.66666667 | L9: 65 | M9: 74.91666667 | N9: 70.83333333 | O9: =IF(M9>95,"GANTI","") ->  | P9: 70.83333333
A10: 3 | B10: =IF(SISWA!B10=0,"",SISWA!B10) -> 4334 | C10: =IF(SISWA!C10=0,"",SISWA!C10) -> 0075488897 | D10: =IF(SISWA!D10=0,"",SISWA!D10) -> 1-18-05-80-162-003-6 | E10: =IF(SISWA!E10=0,"",SISWA!E10) -> AISYAH DWI ANDINI | G10: 74 | H10: 84 | I10: 86 | K10: 81.33333333 | L10: 69.44444444 | M10: 80.19444444 | N10: 75.38888889 | P10: 75.38888889
A11: 4 | B11: =IF(SISWA!B11=0,"",SISWA!B11) -> 4335 | C11: =IF(SISWA!C11=0,"",SISWA!C11) -> 0077554289 | D11: =IF(SISWA!D11=0,"",SISWA!D11) -> 1-18-05-80-162-004-5 | E11: =IF(SISWA!E11=0,"",SISWA!E11) -> AJENG AGUSTINA KIRANA PUTRI | G11: 72 | H11: 75 | I11: 80 | K11: 75.66666667 | L11: 60 | M11: 72.66666667 | N11: 67.83333333 | P11: 67.83333333
A12: 5 | B12: =IF(SISWA!B12=0,"",SISWA!B12) -> 4336 | C12: =IF(SISWA!C12=0,"",SISWA!C12) -> 0078831956 | D12: =IF(SISWA!D12=0,"",SISWA!D12) -> 1-18-05-80-162-005-4 | E12: =IF(SISWA!E12=0,"",SISWA!E12) -> ALVIAN FAIZULHAQQI | G12: 70 | H12: 77 | I12: 86 | K12: 77.66666667 | L12: 60 | M12: 75.16666667 | N12: 68.83333333 | P12: 68.83333333
A13: 6 | B13: =IF(SISWA!B13=0,"",SISWA!B13) -> 4337 | C13: =IF(SISWA!C13=0,"",SISWA!C13) -> 0073667130 | D13: =IF(SISWA!D13=0,"",SISWA!D13) -> 1-18-05-80-162-006-3 | E13: =IF(SISWA!E13=0,"",SISWA!E13) -> ANGGITA RIZKY YUGA MEISYA | G13: 72 | H13: 78 | I13: 89 | K13: 79.66666667 | L13: 60 | M13: 76.66666667 | N13: 69.83333333 | P13: 69.83333333
A14: 7 | B14: =IF(SISWA!B14=0,"",SISWA!B14) -> 4338 | C14: =IF(SISWA!C14=0,"",SISWA!C14) -> 0074492973 | D14: =IF(SISWA!D14=0,"",SISWA!D14) -> 1-18-05-80-162-007-2 | E14: =IF(SISWA!E14=0,"",SISWA!E14) -> AURA SALSABILA WULAN SARI | G14: 68 | H14: 78 | I14: 82 | K14: 76 | L14: 67.22222222 | M14: 75.80555556 | N14: 71.61111111 | P14: 71.61111111
A15: 8 | B15: =IF(SISWA!B15=0,"",SISWA!B15) -> 4366 | C15: =IF(SISWA!C15=0,"",SISWA!C15) -> 0078989673 | D15: =IF(SISWA!D15=0,"",SISWA!D15) -> 1-18-05-80-162-008-9 | E15: =IF(SISWA!E15=0,"",SISWA!E15) -> BALQIS NAILA AUDIA | G15: 81 | H15: 80 | I15: 92 | K15: 84.33333333 | L15: 60 | M15: 79.08333333 | N15: 72.16666667 | P15: 72.16666667
A16: 9 | B16: =IF(SISWA!B16=0,"",SISWA!B16) -> 4440 | C16: =IF(SISWA!C16=0,"",SISWA!C16) -> 0082763386 | D16: =IF(SISWA!D16=0,"",SISWA!D16) -> 1-18-05-80-162-009-8 | E16: =IF(SISWA!E16=0,"",SISWA!E16) -> BIMA ARYO SUSILO | G16: 80 | H16: 82 | I16: 82 | K16: 81.33333333 | L16: 60 | M16: 76.33333333 | N16: 70.66666667 | P16: 70.66666667
A17: 10 | B17: =IF(SISWA!B17=0,"",SISWA!B17) -> 4367 | C17: =IF(SISWA!C17=0,"",SISWA!C17) -> 0078400392 | D17: =IF(SISWA!D17=0,"",SISWA!D17) -> 1-18-05-80-162-010-7 | E17: =IF(SISWA!E17=0,"",SISWA!E17) -> BIMA SATRIA DIRGANTARA | G17: 67 | H17: 76 | I17: 80 | K17: 74.33333333 | L17: 60 | M17: 72.58333333 | N17: 67.16666667 | P17: 67.16666667
A18: 11 | B18: =IF(SISWA!B18=0,"",SISWA!B18) -> 4339 | C18: =IF(SISWA!C18=0,"",SISWA!C18) -> 0086652599 | D18: =IF(SISWA!D18=0,"",SISWA!D18) -> 1-18-05-80-162-011-6 | E18: =IF(SISWA!E18=0,"",SISWA!E18) -> DEVI KARUNIA RATNA PUTRI | G18: 72 | H18: 86 | I18: 82 | K18: 80 | L18: 60 | M18: 77 | N18: 70 | P18: 70
A19: 12 | B19: =IF(SISWA!B19=0,"",SISWA!B19) -> 4340 | C19: =IF(SISWA!C19=0,"",SISWA!C19) -> 0089906682 | D19: =IF(SISWA!D19=0,"",SISWA!D19) -> 1-18-05-80-162-012-5 | E19: =IF(SISWA!E19=0,"",SISWA!E19) -> DEVITA FEBRIANI PUTRI | G19: 72 | H19: 78 | I19: 80 | K19: 76.66666667 | L19: 60 | M19: 73.66666667 | N19: 68.33333333 | P19: 68.33333333
A20: 13 | B20: =IF(SISWA!B20=0,"",SISWA!B20) -> 4370 | C20: =IF(SISWA!C20=0,"",SISWA!C20) -> 0074514146 | D20: =IF(SISWA!D20=0,"",SISWA!D20) -> 1-18-05-80-162-013-4 | E20: =IF(SISWA!E20=0,"",SISWA!E20) -> FAKHIS GABRIL LIA | G20: 68 | H20: 80 | I20: 86 | K20: 78 | L20: 60 | M20: 76 | N20: 69 | P20: 69
A21: 14 | B21: =IF(SISWA!B21=0,"",SISWA!B21) -> 4342 | C21: =IF(SISWA!C21=0,"",SISWA!C21) -> 0081081672 | D21: =IF(SISWA!D21=0,"",SISWA!D21) -> 1-18-05-80-162-014-3 | E21: =IF(SISWA!E21=0,"",SISWA!E21) -> FARAH NAILATUL ALYAH | G21: 83 | H21: 78 | I21: 85 | K21: 82 | L21: 69.44444444 | M21: 78.61111111 | N21: 75.72222222 | P21: 75.72222222
A22: 15 | B22: =IF(SISWA!B22=0,"",SISWA!B22) -> 4345 | C22: =IF(SISWA!C22=0,"",SISWA!C22) -> 0073420487 | D22: =IF(SISWA!D22=0,"",SISWA!D22) -> 1-18-05-80-162-015-2 | E22: =IF(SISWA!E22=0,"",SISWA!E22) -> GALANG MARDHOTILLAH SATOTO | G22: 67 | H22: 78 | I22: 82 | K22: 75.66666667 | L22: 60 | M22: 73.91666667 | N22: 67.83333333 | P22: 67.83333333
A23: 16 | B23: =IF(SISWA!B23=0,"",SISWA!B23) -> 4371 | C23: =IF(SISWA!C23=0,"",SISWA!C23) -> 0079870082 | D23: =IF(SISWA!D23=0,"",SISWA!D23) -> 1-18-05-80-162-016-9 | E23: =IF(SISWA!E23=0,"",SISWA!E23) -> GALIH FAREL PRASTYO | G23: 70 | H23: 77 | I23: 80 | K23: 75.66666667 | L23: 60 | M23: 73.16666667 | N23: 67.83333333 | P23: 67.83333333
A24: 17 | B24: =IF(SISWA!B24=0,"",SISWA!B24) -> 4466 | C24: =IF(SISWA!C24=0,"",SISWA!C24) -> 0081629504 | D24: =IF(SISWA!D24=0,"",SISWA!D24) -> 1-18-05-80-162-017-8 | E24: =IF(SISWA!E24=0,"",SISWA!E24) -> HIBATULLAH MUSTAGHFIRY RUSLI | G24: 76 | H24: 84 | I24: 80 | K24: 80 | L24: 60 | M24: 76 | N24: 70 | P24: 70
A25: 18 | B25: =IF(SISWA!B25=0,"",SISWA!B25) -> 4346 | C25: =IF(SISWA!C25=0,"",SISWA!C25) -> 0073608418 | D25: =IF(SISWA!D25=0,"",SISWA!D25) -> 1-18-05-80-162-018-7 | E25: =IF(SISWA!E25=0,"",SISWA!E25) -> IKA KURNIA WATI AGUSTINA | G25: 70 | H25: 78 | I25: 80 | K25: 76 | L25: 60 | M25: 73.5 | N25: 68 | P25: 68
A26: 19 | B26: =IF(SISWA!B26=0,"",SISWA!B26) -> 4350 | C26: =IF(SISWA!C26=0,"",SISWA!C26) -> 0072658586 | D26: =IF(SISWA!D26=0,"",SISWA!D26) -> 1-18-05-80-162-019-6 | E26: =IF(SISWA!E26=0,"",SISWA!E26) -> MAYLUNA EKA PRATIWI | G26: 87 | H26: 86 | I26: 88 | K26: 87 | L26: 60 | M26: 80.25 | N26: 73.5 | P26: 73.5
A27: 20 | B27: =IF(SISWA!B27=0,"",SISWA!B27) -> 4353 | C27: =IF(SISWA!C27=0,"",SISWA!C27) -> 0075464137 | D27: =IF(SISWA!D27=0,"",SISWA!D27) -> 1-18-05-80-162-020-5 | E27: =IF(SISWA!E27=0,"",SISWA!E27) -> MOHAMAD DWIMAS FIRDAUS | G27: 85 | H27: 78 | I27: 82 | K27: 81.66666667 | L27: 60 | M27: 75.41666667 | N27: 70.83333333 | P27: 70.83333333
A28: 21 | B28: =IF(SISWA!B28=0,"",SISWA!B28) -> 4375 | C28: =IF(SISWA!C28=0,"",SISWA!C28) -> 0075096831 | D28: =IF(SISWA!D28=0,"",SISWA!D28) -> 1-18-05-80-162-021-4 | E28: =IF(SISWA!E28=0,"",SISWA!E28) -> MUHAMMAD AFFAN ABI SYAHPUTRA | G28: 80 | H28: 80 | I28: 85 | K28: 81.66666667 | L28: 60 | M28: 76.66666667 | N28: 70.83333333 | P28: 70.83333333
A29: 22 | B29: =IF(SISWA!B29=0,"",SISWA!B29) -> 4354 | C29: =IF(SISWA!C29=0,"",SISWA!C29) -> 0075055640 | D29: =IF(SISWA!D29=0,"",SISWA!D29) -> 1-18-05-80-162-022-3 | E29: =IF(SISWA!E29=0,"",SISWA!E29) -> MUHAMMAD ALVIN RIDHO | G29: 67 | H29: 75 | I29: 86 | K29: 76 | L29: 69.44444444 | M29: 76.61111111 | N29: 72.72222222 | P29: 72.72222222
A30: 23 | B30: =IF(SISWA!B30=0,"",SISWA!B30) -> 4378 | C30: =IF(SISWA!C30=0,"",SISWA!C30) -> 0074268893 | D30: =IF(SISWA!D30=0,"",SISWA!D30) -> 1-18-05-80-162-023-2 | E30: =IF(SISWA!E30=0,"",SISWA!E30) -> MUKHAMAD DAVID ARIF FIRDAUS | G30: 88 | H30: 83 | I30: 89 | K30: 86.66666667 | L30: 60 | M30: 79.66666667 | N30: 73.33333333 | P30: 73.33333333
A31: 24 | B31: =IF(SISWA!B31=0,"",SISWA!B31) -> 4379 | C31: =IF(SISWA!C31=0,"",SISWA!C31) -> 0072757203 | D31: =IF(SISWA!D31=0,"",SISWA!D31) -> 1-18-05-80-162-024-9 | E31: =IF(SISWA!E31=0,"",SISWA!E31) -> NAORA ISQI AINAYYA | G31: 98 | H31: 85 | I31: 94 | K31: 92.33333333 | L31: 67.22222222 | M31: 84.63888889 | N31: 79.77777778 | P31: 79.77777778
A32: 25 | B32: =IF(SISWA!B32=0,"",SISWA!B32) -> 4380 | C32: =IF(SISWA!C32=0,"",SISWA!C32) -> 0079026285 | D32: =IF(SISWA!D32=0,"",SISWA!D32) -> 1-18-05-80-162-025-8 | E32: =IF(SISWA!E32=0,"",SISWA!E32) -> NAZRA ISLAMAY PASHA | G32: 80 | H32: 81 | I32: 89 | K32: 83.33333333 | L32: 60 | M32: 78.33333333 | N32: 71.66666667 | P32: 71.66666667
A33: 26 | B33: =IF(SISWA!B33=0,"",SISWA!B33) -> 4382 | C33: =IF(SISWA!C33=0,"",SISWA!C33) -> 0079872151 | D33: =IF(SISWA!D33=0,"",SISWA!D33) -> 1-18-05-80-162-026-7 | E33: =IF(SISWA!E33=0,"",SISWA!E33) -> NUR ALYA NABILA | G33: 79 | H33: 77 | I33: 84 | K33: 80 | L33: 67.22222222 | M33: 77.05555556 | N33: 73.61111111 | P33: 73.61111111
A34: 27 | B34: =IF(SISWA!B34=0,"",SISWA!B34) -> 4358 | C34: =IF(SISWA!C34=0,"",SISWA!C34) -> 0087558837 | D34: =IF(SISWA!D34=0,"",SISWA!D34) -> 1-18-05-80-162-027-6 | E34: =IF(SISWA!E34=0,"",SISWA!E34) -> PUTRI SHOLIKHAH | G34: 80 | H34: 77 | I34: 79 | K34: 78.66666667 | L34: 60 | M34: 73.66666667 | N34: 69.33333333 | P34: 69.33333333
A35: 28 | B35: =IF(SISWA!B35=0,"",SISWA!B35) -> 4384 | C35: =IF(SISWA!C35=0,"",SISWA!C35) -> 0071234523 | D35: =IF(SISWA!D35=0,"",SISWA!D35) -> 1-18-05-80-162-028-5 | E35: =IF(SISWA!E35=0,"",SISWA!E35) -> RESTI FITRIANTI DWI OCTAVIANI | G35: 77 | H35: 80 | I35: 82 | K35: 79.66666667 | L35: 60 | M35: 75.41666667 | N35: 69.83333333 | P35: 69.83333333
A36: 29 | B36: =IF(SISWA!B36=0,"",SISWA!B36) -> 4359 | C36: =IF(SISWA!C36=0,"",SISWA!C36) -> 0073122181 | D36: =IF(SISWA!D36=0,"",SISWA!D36) -> 1-18-05-80-162-029-4 | E36: =IF(SISWA!E36=0,"",SISWA!E36) -> ROUDHOTUS SA'DIYAH | G36: 81 | H36: 78 | I36: 84 | K36: 81 | L36: 60 | M36: 75.75 | N36: 70.5 | P36: 70.5
A37: 30 | B37: =IF(SISWA!B37=0,"",SISWA!B37) -> 4386 | C37: =IF(SISWA!C37=0,"",SISWA!C37) -> 0075344352 | D37: =IF(SISWA!D37=0,"",SISWA!D37) -> 1-18-05-80-162-030-3 | E37: =IF(SISWA!E37=0,"",SISWA!E37) -> TIERSYA BETA RAMANUZAN | G37: 87 | H37: 84 | I37: 89 | K37: 86.66666667 | L37: 67.22222222 | M37: 81.72222222 | N37: 76.94444444 | P37: 76.94444444
A38: 31 | B38: =IF(SISWA!B38=0,"",SISWA!B38) -> 4388 | C38: =IF(SISWA!C38=0,"",SISWA!C38) -> 0077423646 | D38: =IF(SISWA!D38=0,"",SISWA!D38) -> 1-18-05-80-162-031-2 | E38: =IF(SISWA!E38=0,"",SISWA!E38) -> VERA MUSTIKA | G38: 78 | H38: 79 | I38: 81 | K38: 79.33333333 | L38: 60 | M38: 74.83333333 | N38: 69.66666667 | P38: 69.66666667
A39: 32 | B39: =IF(SISWA!B39=0,"",SISWA!B39) -> 4360 | C39: =IF(SISWA!C39=0,"",SISWA!C39) -> 0077290990 | D39: =IF(SISWA!D39=0,"",SISWA!D39) -> 1-18-05-80-162-032-9 | E39: =IF(SISWA!E39=0,"",SISWA!E39) -> ZIDNY ILMA NABILA | G39: 93 | H39: 83 | I39: 89 | K39: 88.33333333 | L39: 60 | M39: 80.08333333 | N39: 74.16666667 | P39: 74.16666667
A40: 33 | B40: =IF(SISWA!B40=0,"",SISWA!B40) -> 4390 | C40: =IF(SISWA!C40=0,"",SISWA!C40) -> 0077722307 | D40: =IF(SISWA!D40=0,"",SISWA!D40) -> 1-18-05-80-162-033-8 | E40: =IF(SISWA!E40=0,"",SISWA!E40) -> ZITNATUL AULIA ILLA | G40: 92 | H40: 85 | I40: 92 | K40: 89.66666667 | L40: 76.11111111 | M40: 85.69444444 | N40: 82.88888889 | P40: 82.88888889
A41: 34 | B41: =IF(SISWA!B41=0,"",SISWA!B41) -> 4330 | C41: =IF(SISWA!C41=0,"",SISWA!C41) -> 0084736422 | D41: =IF(SISWA!D41=0,"",SISWA!D41) -> 1-18-05-80-162-034-7 | E41: =IF(SISWA!E41=0,"",SISWA!E41) -> ACHID ATHIRIL ARDAN | G41: 69 | H41: 78 | I41: 82 | J41: 98 | K41: 81.75 | L41: 60 | M41: 79.95 | N41: 70.875 | P41: 67.75
A42: 35 | B42: =IF(SISWA!B42=0,"",SISWA!B42) -> 4361 | C42: =IF(SISWA!C42=0,"",SISWA!C42) -> 0075656390 | D42: =IF(SISWA!D42=0,"",SISWA!D42) -> 1-18-05-80-162-035-6 | E42: =IF(SISWA!E42=0,"",SISWA!E42) -> ACHMAD SEPTIAN HAMDANI | G42: 63 | H42: 78 | I42: 81 | J42: 92 | K42: 78.5 | L42: 60 | M42: 77.9 | N42: 69.25 | P42: 66
A43: 36 | B43: =IF(SISWA!B43=0,"",SISWA!B43) -> 4362 | C43: =IF(SISWA!C43=0,"",SISWA!C43) -> 0071796138 | D43: =IF(SISWA!D43=0,"",SISWA!D43) -> 1-18-05-80-162-036-5 | E43: =IF(SISWA!E43=0,"",SISWA!E43) -> ACHMAD SULAIMAN | G43: 60 | H43: 75 | I43: 81 | J43: 86 | K43: 75.5 | L43: 60 | M43: 75.5 | N43: 67.75 | P43: 65.25
A44: 37 | B44: =IF(SISWA!B44=0,"",SISWA!B44) -> 4364 | C44: =IF(SISWA!C44=0,"",SISWA!C44) -> 0079667684 | D44: =IF(SISWA!D44=0,"",SISWA!D44) -> 1-18-05-80-162-037-4 | E44: =IF(SISWA!E44=0,"",SISWA!E44) -> AIRLANGGA DWIKA RIZQI | G44: 60 | H44: 75 | I44: 82 | J44: 86 | K44: 75.75 | L44: 60 | M44: 75.75 | N44: 67.875 | P44: 65.5
A45: 38 | B45: =IF(SISWA!B45=0,"",SISWA!B45) -> 4365 | C45: =IF(SISWA!C45=0,"",SISWA!C45) -> 0089321127 | D45: =IF(SISWA!D45=0,"",SISWA!D45) -> 1-18-05-80-162-038-3 | E45: =IF(SISWA!E45=0,"",SISWA!E45) -> AUFAN AZKAL ABRORI | G45: 68 | H45: 77 | I45: 82 | J45: 92 | K45: 79.75 | L45: 60 | M45: 78.15 | N45: 69.875 | P45: 67.5
A46: 39 | B46: =IF(SISWA!B46=0,"",SISWA!B46) -> 4465 | C46: =IF(SISWA!C46=0,"",SISWA!C46) -> 0071776593 | D46: =IF(SISWA!D46=0,"",SISWA!D46) -> 1-18-05-80-162-039-2 | E46: =IF(SISWA!E46=0,"",SISWA!E46) -> AZZA PRISHAL DWI PUTRA | G46: 67 | H46: 76 | I46: 8 | J46: 86 | K46: 59.25 | L46: 60 | M46: 57.85 | N46: 59.625 | P46: 65
A47: 40 | B47: =IF(SISWA!B47=0,"",SISWA!B47) -> 4368 | C47: =IF(SISWA!C47=0,"",SISWA!C47) -> 0074569410 | D47: =IF(SISWA!D47=0,"",SISWA!D47) -> 1-18-05-80-162-040-9 | E47: =IF(SISWA!E47=0,"",SISWA!E47) -> EKA AULIYA` PUTRI | G47: 64 | H47: 77 | I47: 83 | J47: 90 | K47: 78.5 | L47: 60 | M47: 77.7 | N47: 69.25 | P47: 66.75
A48: 41 | B48: =IF(SISWA!B48=0,"",SISWA!B48) -> 4341 | C48: =IF(SISWA!C48=0,"",SISWA!C48) -> 0083684457 | D48: =IF(SISWA!D48=0,"",SISWA!D48) -> 1-18-05-80-162-041-8 | E48: =IF(SISWA!E48=0,"",SISWA!E48) -> ERSA PUSPITA EKA ROSA LINDA | G48: 68 | H48: 77 | I48: 84 | J48: 98 | K48: 81.75 | L48: 60 | M48: 80.15 | N48: 70.875 | P48: 68
A49: 42 | B49: =IF(SISWA!B49=0,"",SISWA!B49) -> 4369 | C49: =IF(SISWA!C49=0,"",SISWA!C49) -> 0078481731 | D49: =IF(SISWA!D49=0,"",SISWA!D49) -> 1-18-05-80-162-042-7 | E49: =IF(SISWA!E49=0,"",SISWA!E49) -> FABIYAN TRI BAKTI OKTAFIAN | G49: 67 | H49: 76 | I49: 84 | J49: 92 | K49: 79.75 | L49: 60 | M49: 78.35 | N49: 69.875 | P49: 67.75
A50: 43 | B50: =IF(SISWA!B50=0,"",SISWA!B50) -> 4343 | C50: =IF(SISWA!C50=0,"",SISWA!C50) -> 3075965396 | D50: =IF(SISWA!D50=0,"",SISWA!D50) -> 1-18-05-80-162-043-6 | E50: =IF(SISWA!E50=0,"",SISWA!E50) -> FELISITA APRILIA NUR NIHAYA | G50: 68 | H50: 75 | I50: 83 | J50: 92 | K50: 79.5 | L50: 60 | M50: 77.9 | N50: 69.75 | P50: 67.75
A51: 44 | B51: =IF(SISWA!B51=0,"",SISWA!B51) -> 4344 | C51: =IF(SISWA!C51=0,"",SISWA!C51) -> 3078948093 | D51: =IF(SISWA!D51=0,"",SISWA!D51) -> 1-18-05-80-162-044-5 | E51: =IF(SISWA!E51=0,"",SISWA!E51) -> FIRDA DWI ANDRIANI | G51: 68 | H51: 75 | I51: 82 | J51: 92 | K51: 79.25 | L51: 60 | M51: 77.65 | N51: 69.625 | P51: 67.5
A52: 45 | B52: =IF(SISWA!B52=0,"",SISWA!B52) -> 4372 | C52: =IF(SISWA!C52=0,"",SISWA!C52) -> 0087636520 | D52: =IF(SISWA!D52=0,"",SISWA!D52) -> 1-18-05-80-162-045-4 | E52: =IF(SISWA!E52=0,"",SISWA!E52) -> GILANG AKBAR PRASETYO | G52: 65 | H52: 75 | I52: 82 | J52: 92 | K52: 78.5 | L52: 60 | M52: 77.5 | N52: 69.25 | P52: 66.75
A53: 46 | B53: =IF(SISWA!B53=0,"",SISWA!B53) -> 4373 | C53: =IF(SISWA!C53=0,"",SISWA!C53) -> 0087373224 | D53: =IF(SISWA!D53=0,"",SISWA!D53) -> 1-18-05-80-162-046-3 | E53: =IF(SISWA!E53=0,"",SISWA!E53) -> IFTAH IZZAH EMILIA MAHMUD | G53: 61 | H53: 78 | I53: 84 | J53: 82 | K53: 76.25 | L53: 60 | M53: 76.05 | N53: 68.125 | P53: 66.25
A54: 47 | B54: =IF(SISWA!B54=0,"",SISWA!B54) -> 4441 | C54: =IF(SISWA!C54=0,"",SISWA!C54) -> 0081758949 | D54: =IF(SISWA!D54=0,"",SISWA!D54) -> 1-18-05-80-162-047-2 | E54: =IF(SISWA!E54=0,"",SISWA!E54) -> INES ARIFANI MAULINA | G54: 67 | H54: 77 | I54: 84 | J54: 98 | K54: 81.5 | L54: 60 | M54: 80.1 | N54: 70.75 | P54: 67.75
A55: 48 | B55: =IF(SISWA!B55=0,"",SISWA!B55) -> 4374 | C55: =IF(SISWA!C55=0,"",SISWA!C55) -> 0073409469 | D55: =IF(SISWA!D55=0,"",SISWA!D55) -> 1-18-05-80-162-048-9 | E55: =IF(SISWA!E55=0,"",SISWA!E55) -> IYAAD AFLAKHA RAMZII | G55: 67 | H55: 82 | I55: 83 | J55: 92 | K55: 81 | L55: 73.88888889 | M55: 82.37777778 | N55: 77.44444444 | P55: 74.44444444
A56: 49 | B56: =IF(SISWA!B56=0,"",SISWA!B56) -> 4305 | C56: =IF(SISWA!C56=0,"",SISWA!C56) -> 0068258891 | D56: =IF(SISWA!D56=0,"",SISWA!D56) -> 1-18-05-80-162-049-8 | E56: =IF(SISWA!E56=0,"",SISWA!E56) -> JULI ANDRIYANTO | G56: 70 | H56: 76 | I56: 83 | J56: 86 | K56: 78.75 | L56: 60 | M56: 76.75 | N56: 69.375 | P56: 68.25
A57: 50 | B57: =IF(SISWA!B57=0,"",SISWA!B57) -> 4347 | C57: =IF(SISWA!C57=0,"",SISWA!C57) -> 0076367763 | D57: =IF(SISWA!D57=0,"",SISWA!D57) -> 1-18-05-80-162-050-7 | E57: =IF(SISWA!E57=0,"",SISWA!E57) -> LIYA FEBRIYANI | G57: 71 | H57: 79 | I57: 90 | J57: 99 | K57: 84.75 | L57: 60 | M57: 82.55 | N57: 72.375 | P57: 70.25
A58: 51 | B58: =IF(SISWA!B58=0,"",SISWA!B58) -> 4348 | C58: =IF(SISWA!C58=0,"",SISWA!C58) -> 0083034332 | D58: =IF(SISWA!D58=0,"",SISWA!D58) -> 1-18-05-80-162-051-6 | E58: =IF(SISWA!E58=0,"",SISWA!E58) -> LIZATUL CHAIYUNI | G58: 72 | H58: 77 | I58: 88 | J58: 96 | K58: =AVERAGE(F58:J58) -> 83.25 | L58: 60 | M58: 80.85 | N58: 71.625 | P58: 70
A59: 52 | B59: =IF(SISWA!B59=0,"",SISWA!B59) -> 4531 | C59: =IF(SISWA!C59=0,"",SISWA!C59) -> 3099539154 | D59: =IF(SISWA!D59=0,"",SISWA!D59) -> 1-18-05-80-162-052-5 | E59: =IF(SISWA!E59=0,"",SISWA!E59) -> M. ALHAFIS | G59: 61 | H59: 75 | I59: 82 | J59: 90 | K59: 77 | L59: 60 | M59: 76.8 | N59: 68.5 | P59: 65.75
A60: 53 | B60: =IF(SISWA!B60=0,"",SISWA!B60) -> 4530 | C60: =IF(SISWA!C60=0,"",SISWA!C60) -> 0077015789 | D60: =IF(SISWA!D60=0,"",SISWA!D60) -> 1-18-05-80-162-053-4 | E60: =IF(SISWA!E60=0,"",SISWA!E60) -> MUHAMMAD RIZKI RIDWAN | G60: 65 | H60: 76 | I60: 81 | J60: 92 | K60: 78.5 | L60: 60 | M60: 77.5 | N60: 69.25 | P60: 66.5
A61: 54 | B61: =IF(SISWA!B61=0,"",SISWA!B61) -> 4351 | C61: =IF(SISWA!C61=0,"",SISWA!C61) -> 0076361559 | D61: =IF(SISWA!D61=0,"",SISWA!D61) -> 1-18-05-80-162-054-3 | E61: =IF(SISWA!E61=0,"",SISWA!E61) -> MOCHAMAD RAFLI DIAN SAPUTRA | G61: 66 | H61: 75 | I61: 81 | J61: 88 | K61: 77.5 | L61: 60 | M61: 76.3 | N61: 68.75 | P61: 66.75
A62: 55 | B62: =IF(SISWA!B62=0,"",SISWA!B62) -> 4352 | C62: =IF(SISWA!C62=0,"",SISWA!C62) -> 0075591405 | D62: =IF(SISWA!D62=0,"",SISWA!D62) -> 1-18-05-80-162-055-2 | E62: =IF(SISWA!E62=0,"",SISWA!E62) -> MOCHAMMAD AFAREL PUTRA RAMDHANA | G62: 79 | H62: 76 | I62: 83 | J62: 92 | K62: 82.5 | L62: 60 | M62: 78.7 | N62: 71.25 | P62: 70.5
A63: 56 | B63: =IF(SISWA!B63=0,"",SISWA!B63) -> 4355 | C63: =IF(SISWA!C63=0,"",SISWA!C63) -> 0075363258 | D63: =IF(SISWA!D63=0,"",SISWA!D63) -> 1-18-05-80-162-056-9 | E63: =IF(SISWA!E63=0,"",SISWA!E63) -> MUHAMAD JEFRI MAULANA | G63: 68 | H63: 75 | I63: 82 | J63: 82 | K63: 76.75 | L63: 60 | M63: 75.15 | N63: 68.375 | P63: 67.5
A64: 57 | B64: =IF(SISWA!B64=0,"",SISWA!B64) -> 4376 | C64: =IF(SISWA!C64=0,"",SISWA!C64) -> 0072066741 | D64: =IF(SISWA!D64=0,"",SISWA!D64) -> 1-18-05-80-162-057-8 | E64: =IF(SISWA!E64=0,"",SISWA!E64) -> MUHAMMAD DWI WILDAN BAGUS KURNIAWAN | G64: 60 | H64: 76 | I64: 81 | J64: 92 | K64: 77.25 | L64: 60 | M64: 77.25 | N64: 68.625 | P64: 65.25
A65: 58 | B65: =IF(SISWA!B65=0,"",SISWA!B65) -> 4377 | C65: =IF(SISWA!C65=0,"",SISWA!C65) -> 0071459044 | D65: =IF(SISWA!D65=0,"",SISWA!D65) -> 1-18-05-80-162-058-7 | E65: =IF(SISWA!E65=0,"",SISWA!E65) -> MUHAMMAD FARIL FIRMANSYA | G65: 63 | H65: 78 | I65: 82 | J65: 94 | K65: 79.25 | L65: 60 | M65: 78.65 | N65: 69.625 | P65: 66.25
A66: 59 | B66: =IF(SISWA!B66=0,"",SISWA!B66) -> 4349 | C66: =IF(SISWA!C66=0,"",SISWA!C66) -> 0074206034 | D66: =IF(SISWA!D66=0,"",SISWA!D66) -> 1-18-05-80-162-059-6 | E66: =IF(SISWA!E66=0,"",SISWA!E66) -> MUHAMMAD FARIZ UBAIDILLA | G66: 66 | H66: 75 | I66: 82 | J66: 90 | K66: 78.25 | L66: 60 | M66: 77.05 | N66: 69.125 | P66: 67
A67: 60 | B67: =IF(SISWA!B67=0,"",SISWA!B67) -> 4356 | C67: =IF(SISWA!C67=0,"",SISWA!C67) -> 0077937892 | D67: =IF(SISWA!D67=0,"",SISWA!D67) -> 1-18-05-80-162-060-5 | E67: =IF(SISWA!E67=0,"",SISWA!E67) -> MUHAMMAD MAULANA ZIDANIL ILMI | G67: 73 | H67: 76 | I67: 85 | J67: 99 | K67: 83.25 | L67: 60 | M67: 80.65 | N67: 71.625 | P67: 69.5
A68: 61 | B68: =IF(SISWA!B68=0,"",SISWA!B68) -> 4357 | C68: =IF(SISWA!C68=0,"",SISWA!C68) -> 0078608527 | D68: =IF(SISWA!D68=0,"",SISWA!D68) -> 1-18-05-80-162-061-4 | E68: =IF(SISWA!E68=0,"",SISWA!E68) -> MUHAMMAD SUTRISNO ISMAIL | G68: 60 | H68: 75 | I68: 81 | J68: 92 | K68: =AVERAGE(F68:J68) -> 77 | L68: 60 | M68: 77 | N68: 68.5 | P68: 65.25
A69: 62 | B69: =IF(SISWA!B69=0,"",SISWA!B69) -> 4381 | C69: =IF(SISWA!C69=0,"",SISWA!C69) -> 0072209435 | D69: =IF(SISWA!D69=0,"",SISWA!D69) -> 1-18-05-80-162-062-3 | E69: =IF(SISWA!E69=0,"",SISWA!E69) -> NOVITA ERNIAWAN | G69: 69 | H69: 75 | I69: 84 | J69: 98 | K69: 81.5 | L69: 60 | M69: 79.7 | N69: 70.75 | P69: 68.25
A70: 63 | B70: =IF(SISWA!B70=0,"",SISWA!B70) -> 4383 | C70: =IF(SISWA!C70=0,"",SISWA!C70) -> 0077439834 | D70: =IF(SISWA!D70=0,"",SISWA!D70) -> 1-18-05-80-162-063-2 | E70: =IF(SISWA!E70=0,"",SISWA!E70) -> PUTRI AULIA DWI AGUSTIN | G70: 75 | H70: 79 | I70: 86 | J70: 98 | K70: 84.5 | L70: 60 | M70: 81.5 | N70: 72.25 | P70: 70.25
A71: 64 | B71: =IF(SISWA!B71=0,"",SISWA!B71) -> 4385 | C71: =IF(SISWA!C71=0,"",SISWA!C71) -> 0073137310 | D71: =IF(SISWA!D71=0,"",SISWA!D71) -> 1-18-05-80-162-064-9 | E71: =IF(SISWA!E71=0,"",SISWA!E71) -> STANY RAFIDAH RAHMANIA | G71: 68 | H71: 76 | I71: 82 | J71: 92 | K71: 79.5 | L71: 60 | M71: 77.9 | N71: 69.75 | P71: 67.5
A72: 65 | B72: =IF(SISWA!B72=0,"",SISWA!B72) -> 4387 | C72: =IF(SISWA!C72=0,"",SISWA!C72) -> 0077336427 | D72: =IF(SISWA!D72=0,"",SISWA!D72) -> 1-18-05-80-162-065-8 | E72: =IF(SISWA!E72=0,"",SISWA!E72) -> USWATUN KHASANAH | G72: 65 | H72: 78 | I72: 84 | J72: 98 | K72: 81.25 | L72: 60 | M72: 80.25 | N72: 70.625 | P72: 67.25
A73: 66 | B73: =IF(SISWA!B73=0,"",SISWA!B73) -> 4389 | C73: =IF(SISWA!C73=0,"",SISWA!C73) -> 0078407631 | D73: =IF(SISWA!D73=0,"",SISWA!D73) -> 1-18-05-80-162-066-7 | E73: =IF(SISWA!E73=0,"",SISWA!E73) -> VIKROUL KHAMILA | G73: 73 | H73: 76 | I73: 84 | J73: 94 | K73: 81.75 | L73: 60 | M73: 79.15 | N73: =AVERAGE(K73:L73) -> 70.875 | P73: 69.25
A74: 67 | B74: =IF(SISWA!B74=0,"",SISWA!B74) ->  | C74: =IF(SISWA!C74=0,"",SISWA!C74) ->  | D74: =IF(SISWA!D74=0,"",SISWA!D74) ->  | E74: =IF(SISWA!E74=0,"",SISWA!E74) -> 
A75: 68 | B75: =IF(SISWA!B75=0,"",SISWA!B75) ->  | C75: =IF(SISWA!C75=0,"",SISWA!C75) ->  | D75: =IF(SISWA!D75=0,"",SISWA!D75) ->  | E75: =IF(SISWA!E75=0,"",SISWA!E75) -> 
A76: 69 | B76: =IF(SISWA!B76=0,"",SISWA!B76) ->  | C76: =IF(SISWA!C76=0,"",SISWA!C76) ->  | D76: =IF(SISWA!D76=0,"",SISWA!D76) ->  | E76: =IF(SISWA!E76=0,"",SISWA!E76) -> 
A77: 70 | B77: =IF(SISWA!B77=0,"",SISWA!B77) ->  | C77: =IF(SISWA!C77=0,"",SISWA!C77) ->  | D77: =IF(SISWA!D77=0,"",SISWA!D77) ->  | E77: =IF(SISWA!E77=0,"",SISWA!E77) -> 
A78: 71 | B78: =IF(SISWA!B78=0,"",SISWA!B78) ->  | C78: =IF(SISWA!C78=0,"",SISWA!C78) ->  | D78: =IF(SISWA!D78=0,"",SISWA!D78) ->  | E78: =IF(SISWA!E78=0,"",SISWA!E78) -> 
A79: 72 | B79: =IF(SISWA!B79=0,"",SISWA!B79) ->  | C79: =IF(SISWA!C79=0,"",SISWA!C79) ->  | D79: =IF(SISWA!D79=0,"",SISWA!D79) ->  | E79: =IF(SISWA!E79=0,"",SISWA!E79) -> 
A80: 73 | B80: =IF(SISWA!B80=0,"",SISWA!B80) ->  | C80: =IF(SISWA!C80=0,"",SISWA!C80) ->  | D80: =IF(SISWA!D80=0,"",SISWA!D80) ->  | E80: =IF(SISWA!E80=0,"",SISWA!E80) -> 
A81: 74 | B81: =IF(SISWA!B81=0,"",SISWA!B81) ->  | C81: =IF(SISWA!C81=0,"",SISWA!C81) ->  | D81: =IF(SISWA!D81=0,"",SISWA!D81) ->  | E81: =IF(SISWA!E81=0,"",SISWA!E81) -> 
A82: 75 | B82: =IF(SISWA!B82=0,"",SISWA!B82) ->  | C82: =IF(SISWA!C82=0,"",SISWA!C82) ->  | D82: =IF(SISWA!D82=0,"",SISWA!D82) ->  | E82: =IF(SISWA!E82=0,"",SISWA!E82) -> 
A83: 76 | B83: =IF(SISWA!B83=0,"",SISWA!B83) ->  | C83: =IF(SISWA!C83=0,"",SISWA!C83) ->  | D83: =IF(SISWA!D83=0,"",SISWA!D83) ->  | E83: =IF(SISWA!E83=0,"",SISWA!E83) -> 
A84: 77 | B84: =IF(SISWA!B84=0,"",SISWA!B84) ->  | C84: =IF(SISWA!C84=0,"",SISWA!C84) ->  | D84: =IF(SISWA!D84=0,"",SISWA!D84) ->  | E84: =IF(SISWA!E84=0,"",SISWA!E84) -> 
A85: 78 | B85: =IF(SISWA!B85=0,"",SISWA!B85) ->  | C85: =IF(SISWA!C85=0,"",SISWA!C85) ->  | D85: =IF(SISWA!D85=0,"",SISWA!D85) ->  | E85: =IF(SISWA!E85=0,"",SISWA!E85) -> 
A86: 79 | B86: =IF(SISWA!B86=0,"",SISWA!B86) ->  | C86: =IF(SISWA!C86=0,"",SISWA!C86) ->  | D86: =IF(SISWA!D86=0,"",SISWA!D86) ->  | E86: =IF(SISWA!E86=0,"",SISWA!E86) -> 
A87: 80 | B87: =IF(SISWA!B87=0,"",SISWA!B87) ->  | C87: =IF(SISWA!C87=0,"",SISWA!C87) ->  | D87: =IF(SISWA!D87=0,"",SISWA!D87) ->  | E87: =IF(SISWA!E87=0,"",SISWA!E87) -> 
A88: 81 | B88: =IF(SISWA!B88=0,"",SISWA!B88) ->  | C88: =IF(SISWA!C88=0,"",SISWA!C88) ->  | D88: =IF(SISWA!D88=0,"",SISWA!D88) ->  | E88: =IF(SISWA!E88=0,"",SISWA!E88) -> 
A89: 82 | B89: =IF(SISWA!B89=0,"",SISWA!B89) ->  | C89: =IF(SISWA!C89=0,"",SISWA!C89) ->  | D89: =IF(SISWA!D89=0,"",SISWA!D89) ->  | E89: =IF(SISWA!E89=0,"",SISWA!E89) -> 
A90: 83 | B90: =IF(SISWA!B90=0,"",SISWA!B90) ->  | C90: =IF(SISWA!C90=0,"",SISWA!C90) ->  | D90: =IF(SISWA!D90=0,"",SISWA!D90) ->  | E90: =IF(SISWA!E90=0,"",SISWA!E90) -> 
A91: 84 | B91: =IF(SISWA!B91=0,"",SISWA!B91) ->  | C91: =IF(SISWA!C91=0,"",SISWA!C91) ->  | D91: =IF(SISWA!D91=0,"",SISWA!D91) ->  | E91: =IF(SISWA!E91=0,"",SISWA!E91) -> 
A92: 85 | B92: =IF(SISWA!B92=0,"",SISWA!B92) ->  | C92: =IF(SISWA!C92=0,"",SISWA!C92) ->  | D92: =IF(SISWA!D92=0,"",SISWA!D92) ->  | E92: =IF(SISWA!E92=0,"",SISWA!E92) -> 
A93: 86 | B93: =IF(SISWA!B93=0,"",SISWA!B93) ->  | C93: =IF(SISWA!C93=0,"",SISWA!C93) ->  | D93: =IF(SISWA!D93=0,"",SISWA!D93) ->  | E93: =IF(SISWA!E93=0,"",SISWA!E93) -> 
A94: 87 | B94: =IF(SISWA!B94=0,"",SISWA!B94) ->  | C94: =IF(SISWA!C94=0,"",SISWA!C94) ->  | D94: =IF(SISWA!D94=0,"",SISWA!D94) ->  | E94: =IF(SISWA!E94=0,"",SISWA!E94) -> 
A95: 88 | B95: =IF(SISWA!B95=0,"",SISWA!B95) ->  | C95: =IF(SISWA!C95=0,"",SISWA!C95) ->  | D95: =IF(SISWA!D95=0,"",SISWA!D95) ->  | E95: =IF(SISWA!E95=0,"",SISWA!E95) -> 
A96: 89 | B96: =IF(SISWA!B96=0,"",SISWA!B96) ->  | C96: =IF(SISWA!C96=0,"",SISWA!C96) ->  | D96: =IF(SISWA!D96=0,"",SISWA!D96) ->  | E96: =IF(SISWA!E96=0,"",SISWA!E96) -> 
A97: 90 | B97: =IF(SISWA!B97=0,"",SISWA!B97) ->  | C97: =IF(SISWA!C97=0,"",SISWA!C97) ->  | D97: =IF(SISWA!D97=0,"",SISWA!D97) ->  | E97: =IF(SISWA!E97=0,"",SISWA!E97) -> 
A98: 91 | B98: =IF(SISWA!B98=0,"",SISWA!B98) ->  | C98: =IF(SISWA!C98=0,"",SISWA!C98) ->  | D98: =IF(SISWA!D98=0,"",SISWA!D98) ->  | E98: =IF(SISWA!E98=0,"",SISWA!E98) -> 
A99: 92 | B99: =IF(SISWA!B99=0,"",SISWA!B99) ->  | C99: =IF(SISWA!C99=0,"",SISWA!C99) ->  | D99: =IF(SISWA!D99=0,"",SISWA!D99) ->  | E99: =IF(SISWA!E99=0,"",SISWA!E99) -> 
A100: 93 | B100: =IF(SISWA!B100=0,"",SISWA!B100) ->  | C100: =IF(SISWA!C100=0,"",SISWA!C100) ->  | D100: =IF(SISWA!D100=0,"",SISWA!D100) ->  | E100: =IF(SISWA!E100=0,"",SISWA!E100) -> 
A101: 94 | B101: =IF(SISWA!B101=0,"",SISWA!B101) ->  | C101: =IF(SISWA!C101=0,"",SISWA!C101) ->  | D101: =IF(SISWA!D101=0,"",SISWA!D101) ->  | E101: =IF(SISWA!E101=0,"",SISWA!E101) -> 
A102: 95 | B102: =IF(SISWA!B102=0,"",SISWA!B102) ->  | C102: =IF(SISWA!C102=0,"",SISWA!C102) ->  | D102: =IF(SISWA!D102=0,"",SISWA!D102) ->  | E102: =IF(SISWA!E102=0,"",SISWA!E102) -> 
A103: 96 | B103: =IF(SISWA!B103=0,"",SISWA!B103) ->  | C103: =IF(SISWA!C103=0,"",SISWA!C103) ->  | D103: =IF(SISWA!D103=0,"",SISWA!D103) ->  | E103: =IF(SISWA!E103=0,"",SISWA!E103) -> 
A104: 97 | B104: =IF(SISWA!B104=0,"",SISWA!B104) ->  | C104: =IF(SISWA!C104=0,"",SISWA!C104) ->  | D104: =IF(SISWA!D104=0,"",SISWA!D104) ->  | E104: =IF(SISWA!E104=0,"",SISWA!E104) -> 
A105: 98 | B105: =IF(SISWA!B105=0,"",SISWA!B105) ->  | C105: =IF(SISWA!C105=0,"",SISWA!C105) ->  | D105: =IF(SISWA!D105=0,"",SISWA!D105) ->  | E105: =IF(SISWA!E105=0,"",SISWA!E105) -> 
A106: 99 | B106: =IF(SISWA!B106=0,"",SISWA!B106) ->  | C106: =IF(SISWA!C106=0,"",SISWA!C106) ->  | D106: =IF(SISWA!D106=0,"",SISWA!D106) ->  | E106: =IF(SISWA!E106=0,"",SISWA!E106) -> 
A107: 100 | B107: =IF(SISWA!B107=0,"",SISWA!B107) ->  | C107: =IF(SISWA!C107=0,"",SISWA!C107) ->  | D107: =IF(SISWA!D107=0,"",SISWA!D107) ->  | E107: =IF(SISWA!E107=0,"",SISWA!E107) -> 
A108: 101 | B108: =IF(SISWA!B108=0,"",SISWA!B108) ->  | C108: =IF(SISWA!C108=0,"",SISWA!C108) ->  | D108: =IF(SISWA!D108=0,"",SISWA!D108) ->  | E108: =IF(SISWA!E108=0,"",SISWA!E108) -> 

Sheet MTK
A1: DAFTAR NILAI AKHIR SEKOLAH
A2: =AA!A2 -> MADRASAH IBTIDAIYAH NURUL ISLAM LABRUK KIDUL
A3: =AA!A3 -> TAHUN PELAJARAN 2019/2020
A5: NO | B5: No Induk | C5: NISN | D5: Nomor Peserta | E5: Nama Peserta | F5: MATEMATIKA
F6: Nilai Semester | K6: Rata- 2 | L6: NILAI US | P6: UAMNU
F7: 7 | G7: 8 | H7: 9 | I7: 10 | J7: 11 | K7: Rapor | L7: TULIS | M7: PRAKTIK | P7: TULIS
A8: 1 | B8: =IF(SISWA!B8=0,"",SISWA!B8) -> 4331 | C8: =IF(SISWA!C8=0,"",SISWA!C8) -> 0078140536 | D8: =IF(SISWA!D8=0,"",SISWA!D8) -> 1-18-05-80-162-001-8 | E8: =IF(SISWA!E8=0,"",SISWA!E8) -> ACHMAD FATHIR IZUDDIN | G8: 80 | H8: 79 | I8: 82 | J8: 83 | K8: =AVERAGE(F8:J8) -> 81 | L8: 67.85714286 | N8: =IF(L8>95,"GANTI","") ->  | P8: 67.85714286
A9: 2 | B9: =IF(SISWA!B9=0,"",SISWA!B9) -> 4333 | C9: =IF(SISWA!C9=0,"",SISWA!C9) -> 0084691896 | D9: =IF(SISWA!D9=0,"",SISWA!D9) -> 1-18-05-80-162-002-7 | E9: =IF(SISWA!E9=0,"",SISWA!E9) -> AININ NAFISA FEBRIYANTI | G9: 87 | H9: 75 | I9: 83 | J9: 84 | K9: =AVERAGE(F9:J9) -> 82.25 | L9: 60 | N9: =IF(L9>95,"GANTI","") ->  | P9: 65
A10: 3 | B10: =IF(SISWA!B10=0,"",SISWA!B10) -> 4334 | C10: =IF(SISWA!C10=0,"",SISWA!C10) -> 0075488897 | D10: =IF(SISWA!D10=0,"",SISWA!D10) -> 1-18-05-80-162-003-6 | E10: =IF(SISWA!E10=0,"",SISWA!E10) -> AISYAH DWI ANDINI | G10: 83 | H10: 79 | I10: 88 | J10: 90 | K10: 85 | L10: 60 | P10: 65
A11: 4 | B11: =IF(SISWA!B11=0,"",SISWA!B11) -> 4335 | C11: =IF(SISWA!C11=0,"",SISWA!C11) -> 0077554289 | D11: =IF(SISWA!D11=0,"",SISWA!D11) -> 1-18-05-80-162-004-5 | E11: =IF(SISWA!E11=0,"",SISWA!E11) -> AJENG AGUSTINA KIRANA PUTRI | G11: 83 | H11: 86 | I11: 82 | J11: 94 | K11: 86.25 | L11: 60 | P11: 65
A12: 5 | B12: =IF(SISWA!B12=0,"",SISWA!B12) -> 4336 | C12: =IF(SISWA!C12=0,"",SISWA!C12) -> 0078831956 | D12: =IF(SISWA!D12=0,"",SISWA!D12) -> 1-18-05-80-162-005-4 | E12: =IF(SISWA!E12=0,"",SISWA!E12) -> ALVIAN FAIZULHAQQI | G12: 82 | H12: 78 | I12: 83 | J12: 82 | K12: 81.25 | L12: 60 | P12: 65
A13: 6 | B13: =IF(SISWA!B13=0,"",SISWA!B13) -> 4337 | C13: =IF(SISWA!C13=0,"",SISWA!C13) -> 0073667130 | D13: =IF(SISWA!D13=0,"",SISWA!D13) -> 1-18-05-80-162-006-3 | E13: =IF(SISWA!E13=0,"",SISWA!E13) -> ANGGITA RIZKY YUGA MEISYA | G13: 80 | H13: 77 | I13: 91 | J13: 92 | K13: 85 | L13: 60 | P13: 65
A14: 7 | B14: =IF(SISWA!B14=0,"",SISWA!B14) -> 4338 | C14: =IF(SISWA!C14=0,"",SISWA!C14) -> 0074492973 | D14: =IF(SISWA!D14=0,"",SISWA!D14) -> 1-18-05-80-162-007-2 | E14: =IF(SISWA!E14=0,"",SISWA!E14) -> AURA SALSABILA WULAN SARI | G14: 80 | H14: 81 | I14: 83 | J14: 91 | K14: 83.75 | L14: 60 | P14: 65
A15: 8 | B15: =IF(SISWA!B15=0,"",SISWA!B15) -> 4366 | C15: =IF(SISWA!C15=0,"",SISWA!C15) -> 0078989673 | D15: =IF(SISWA!D15=0,"",SISWA!D15) -> 1-18-05-80-162-008-9 | E15: =IF(SISWA!E15=0,"",SISWA!E15) -> BALQIS NAILA AUDIA | G15: 90 | H15: 81 | I15: 94 | J15: 84 | K15: 87.25 | L15: 60 | P15: 65
A16: 9 | B16: =IF(SISWA!B16=0,"",SISWA!B16) -> 4440 | C16: =IF(SISWA!C16=0,"",SISWA!C16) -> 0082763386 | D16: =IF(SISWA!D16=0,"",SISWA!D16) -> 1-18-05-80-162-009-8 | E16: =IF(SISWA!E16=0,"",SISWA!E16) -> BIMA ARYO SUSILO | G16: 80 | H16: 85 | I16: 90 | J16: 94 | K16: 87.25 | L16: 60 | P16: 65
A17: 10 | B17: =IF(SISWA!B17=0,"",SISWA!B17) -> 4367 | C17: =IF(SISWA!C17=0,"",SISWA!C17) -> 0078400392 | D17: =IF(SISWA!D17=0,"",SISWA!D17) -> 1-18-05-80-162-010-7 | E17: =IF(SISWA!E17=0,"",SISWA!E17) -> BIMA SATRIA DIRGANTARA | G17: 82 | H17: 78 | I17: 82 | J17: 84 | K17: 81.5 | L17: 60 | P17: 65
A18: 11 | B18: =IF(SISWA!B18=0,"",SISWA!B18) -> 4339 | C18: =IF(SISWA!C18=0,"",SISWA!C18) -> 0086652599 | D18: =IF(SISWA!D18=0,"",SISWA!D18) -> 1-18-05-80-162-011-6 | E18: =IF(SISWA!E18=0,"",SISWA!E18) -> DEVI KARUNIA RATNA PUTRI | G18: 80 | H18: 83 | I18: 89 | J18: 85 | K18: 84.25 | L18: 65 | P18: 65
A19: 12 | B19: =IF(SISWA!B19=0,"",SISWA!B19) -> 4340 | C19: =IF(SISWA!C19=0,"",SISWA!C19) -> 0089906682 | D19: =IF(SISWA!D19=0,"",SISWA!D19) -> 1-18-05-80-162-012-5 | E19: =IF(SISWA!E19=0,"",SISWA!E19) -> DEVITA FEBRIANI PUTRI | G19: 87 | H19: 79 | I19: 83 | J19: 85 | K19: 83.5 | L19: 60 | P19: 65
A20: 13 | B20: =IF(SISWA!B20=0,"",SISWA!B20) -> 4370 | C20: =IF(SISWA!C20=0,"",SISWA!C20) -> 0074514146 | D20: =IF(SISWA!D20=0,"",SISWA!D20) -> 1-18-05-80-162-013-4 | E20: =IF(SISWA!E20=0,"",SISWA!E20) -> FAKHIS GABRIL LIA | G20: 90 | H20: 79 | I20: 82 | J20: 87 | K20: 84.5 | L20: 60 | P20: 65
A21: 14 | B21: =IF(SISWA!B21=0,"",SISWA!B21) -> 4342 | C21: =IF(SISWA!C21=0,"",SISWA!C21) -> 0081081672 | D21: =IF(SISWA!D21=0,"",SISWA!D21) -> 1-18-05-80-162-014-3 | E21: =IF(SISWA!E21=0,"",SISWA!E21) -> FARAH NAILATUL ALYAH | G21: 85 | H21: 79 | I21: 92 | J21: 87 | K21: 85.75 | L21: 60 | P21: 65
A22: 15 | B22: =IF(SISWA!B22=0,"",SISWA!B22) -> 4345 | C22: =IF(SISWA!C22=0,"",SISWA!C22) -> 0073420487 | D22: =IF(SISWA!D22=0,"",SISWA!D22) -> 1-18-05-80-162-015-2 | E22: =IF(SISWA!E22=0,"",SISWA!E22) -> GALANG MARDHOTILLAH SATOTO | G22: 80 | H22: 78 | I22: 85 | J22: 83 | K22: 81.5 | L22: 60 | P22: 65
A23: 16 | B23: =IF(SISWA!B23=0,"",SISWA!B23) -> 4371 | C23: =IF(SISWA!C23=0,"",SISWA!C23) -> 0079870082 | D23: =IF(SISWA!D23=0,"",SISWA!D23) -> 1-18-05-80-162-016-9 | E23: =IF(SISWA!E23=0,"",SISWA!E23) -> GALIH FAREL PRASTYO | G23: 80 | H23: 79 | I23: 82 | J23: 81 | K23: 80.5 | L23: 60 | P23: 65
A24: 17 | B24: =IF(SISWA!B24=0,"",SISWA!B24) -> 4466 | C24: =IF(SISWA!C24=0,"",SISWA!C24) -> 0081629504 | D24: =IF(SISWA!D24=0,"",SISWA!D24) -> 1-18-05-80-162-017-8 | E24: =IF(SISWA!E24=0,"",SISWA!E24) -> HIBATULLAH MUSTAGHFIRY RUSLI | G24: 75 | H24: 81 | I24: 83 | J24: 81 | K24: 80 | L24: 60 | P24: 65
A25: 18 | B25: =IF(SISWA!B25=0,"",SISWA!B25) -> 4346 | C25: =IF(SISWA!C25=0,"",SISWA!C25) -> 0073608418 | D25: =IF(SISWA!D25=0,"",SISWA!D25) -> 1-18-05-80-162-018-7 | E25: =IF(SISWA!E25=0,"",SISWA!E25) -> IKA KURNIA WATI AGUSTINA | G25: 77 | H25: 74 | I25: 82 | J25: 86 | K25: 79.75 | L25: 60 | P25: 65
A26: 19 | B26: =IF(SISWA!B26=0,"",SISWA!B26) -> 4350 | C26: =IF(SISWA!C26=0,"",SISWA!C26) -> 0072658586 | D26: =IF(SISWA!D26=0,"",SISWA!D26) -> 1-18-05-80-162-019-6 | E26: =IF(SISWA!E26=0,"",SISWA!E26) -> MAYLUNA EKA PRATIWI | G26: 86 | H26: 81 | I26: 83 | J26: 96 | K26: 86.5 | L26: 60 | P26: 65
A27: 20 | B27: =IF(SISWA!B27=0,"",SISWA!B27) -> 4353 | C27: =IF(SISWA!C27=0,"",SISWA!C27) -> 0075464137 | D27: =IF(SISWA!D27=0,"",SISWA!D27) -> 1-18-05-80-162-020-5 | E27: =IF(SISWA!E27=0,"",SISWA!E27) -> MOHAMAD DWIMAS FIRDAUS | G27: 73 | H27: 80 | I27: 83 | J27: 81 | K27: 79.25 | L27: 60 | P27: 65
A28: 21 | B28: =IF(SISWA!B28=0,"",SISWA!B28) -> 4375 | C28: =IF(SISWA!C28=0,"",SISWA!C28) -> 0075096831 | D28: =IF(SISWA!D28=0,"",SISWA!D28) -> 1-18-05-80-162-021-4 | E28: =IF(SISWA!E28=0,"",SISWA!E28) -> MUHAMMAD AFFAN ABI SYAHPUTRA | G28: 77 | H28: 80 | I28: 85 | J28: 84 | K28: 81.5 | L28: 60 | P28: 65
A29: 22 | B29: =IF(SISWA!B29=0,"",SISWA!B29) -> 4354 | C29: =IF(SISWA!C29=0,"",SISWA!C29) -> 0075055640 | D29: =IF(SISWA!D29=0,"",SISWA!D29) -> 1-18-05-80-162-022-3 | E29: =IF(SISWA!E29=0,"",SISWA!E29) -> MUHAMMAD ALVIN RIDHO | G29: 83 | H29: 80 | I29: 84 | J29: 81 | K29: 82 | L29: 60 | P29: 65
A30: 23 | B30: =IF(SISWA!B30=0,"",SISWA!B30) -> 4378 | C30: =IF(SISWA!C30=0,"",SISWA!C30) -> 0074268893 | D30: =IF(SISWA!D30=0,"",SISWA!D30) -> 1-18-05-80-162-023-2 | E30: =IF(SISWA!E30=0,"",SISWA!E30) -> MUKHAMAD DAVID ARIF FIRDAUS | G30: 82 | H30: 83 | I30: 90 | J30: 95 | K30: 87.5 | L30: 60 | P30: 65
A31: 24 | B31: =IF(SISWA!B31=0,"",SISWA!B31) -> 4379 | C31: =IF(SISWA!C31=0,"",SISWA!C31) -> 0072757203 | D31: =IF(SISWA!D31=0,"",SISWA!D31) -> 1-18-05-80-162-024-9 | E31: =IF(SISWA!E31=0,"",SISWA!E31) -> NAORA ISQI AINAYYA | G31: 89 | H31: 85 | I31: 92 | J31: 92 | K31: 89.5 | L31: 60 | P31: 65
A32: 25 | B32: =IF(SISWA!B32=0,"",SISWA!B32) -> 4380 | C32: =IF(SISWA!C32=0,"",SISWA!C32) -> 0079026285 | D32: =IF(SISWA!D32=0,"",SISWA!D32) -> 1-18-05-80-162-025-8 | E32: =IF(SISWA!E32=0,"",SISWA!E32) -> NAZRA ISLAMAY PASHA | G32: 74 | H32: 83 | I32: 89 | J32: 81 | K32: 81.75 | L32: 60 | P32: 65
A33: 26 | B33: =IF(SISWA!B33=0,"",SISWA!B33) -> 4382 | C33: =IF(SISWA!C33=0,"",SISWA!C33) -> 0079872151 | D33: =IF(SISWA!D33=0,"",SISWA!D33) -> 1-18-05-80-162-026-7 | E33: =IF(SISWA!E33=0,"",SISWA!E33) -> NUR ALYA NABILA | G33: 75 | H33: 82 | I33: 83 | J33: 81 | K33: 80.25 | L33: 60 | P33: 65
A34: 27 | B34: =IF(SISWA!B34=0,"",SISWA!B34) -> 4358 | C34: =IF(SISWA!C34=0,"",SISWA!C34) -> 0087558837 | D34: =IF(SISWA!D34=0,"",SISWA!D34) -> 1-18-05-80-162-027-6 | E34: =IF(SISWA!E34=0,"",SISWA!E34) -> PUTRI SHOLIKHAH | G34: 73 | H34: 76 | I34: 82 | J34: 88 | K34: 79.75 | L34: 60 | P34: 65
A35: 28 | B35: =IF(SISWA!B35=0,"",SISWA!B35) -> 4384 | C35: =IF(SISWA!C35=0,"",SISWA!C35) -> 0071234523 | D35: =IF(SISWA!D35=0,"",SISWA!D35) -> 1-18-05-80-162-028-5 | E35: =IF(SISWA!E35=0,"",SISWA!E35) -> RESTI FITRIANTI DWI OCTAVIANI | G35: 79 | H35: 80 | I35: 92 | J35: 82 | K35: 83.25 | L35: 60 | P35: 65
A36: 29 | B36: =IF(SISWA!B36=0,"",SISWA!B36) -> 4359 | C36: =IF(SISWA!C36=0,"",SISWA!C36) -> 0073122181 | D36: =IF(SISWA!D36=0,"",SISWA!D36) -> 1-18-05-80-162-029-4 | E36: =IF(SISWA!E36=0,"",SISWA!E36) -> ROUDHOTUS SA'DIYAH | G36: 81 | H36: 81 | I36: 83 | J36: 84 | K36: 82.25 | L36: 60 | P36: 65
A37: 30 | B37: =IF(SISWA!B37=0,"",SISWA!B37) -> 4386 | C37: =IF(SISWA!C37=0,"",SISWA!C37) -> 0075344352 | D37: =IF(SISWA!D37=0,"",SISWA!D37) -> 1-18-05-80-162-030-3 | E37: =IF(SISWA!E37=0,"",SISWA!E37) -> TIERSYA BETA RAMANUZAN | G37: 87 | H37: 83 | I37: 94 | J37: 94 | K37: 89.5 | L37: 60 | P37: 65
A38: 31 | B38: =IF(SISWA!B38=0,"",SISWA!B38) -> 4388 | C38: =IF(SISWA!C38=0,"",SISWA!C38) -> 0077423646 | D38: =IF(SISWA!D38=0,"",SISWA!D38) -> 1-18-05-80-162-031-2 | E38: =IF(SISWA!E38=0,"",SISWA!E38) -> VERA MUSTIKA | G38: 72 | H38: 76 | I38: 82 | J38: 87 | K38: 79.25 | L38: 60 | P38: 65
A39: 32 | B39: =IF(SISWA!B39=0,"",SISWA!B39) -> 4360 | C39: =IF(SISWA!C39=0,"",SISWA!C39) -> 0077290990 | D39: =IF(SISWA!D39=0,"",SISWA!D39) -> 1-18-05-80-162-032-9 | E39: =IF(SISWA!E39=0,"",SISWA!E39) -> ZIDNY ILMA NABILA | G39: 88 | H39: 78 | I39: 92 | J39: 94 | K39: 88 | L39: 65 | P39: 65
A40: 33 | B40: =IF(SISWA!B40=0,"",SISWA!B40) -> 4390 | C40: =IF(SISWA!C40=0,"",SISWA!C40) -> 0077722307 | D40: =IF(SISWA!D40=0,"",SISWA!D40) -> 1-18-05-80-162-033-8 | E40: =IF(SISWA!E40=0,"",SISWA!E40) -> ZITNATUL AULIA ILLA | G40: 84 | H40: 86 | I40: 91 | J40: 89 | K40: 87.5 | L40: 60 | P40: 65
A41: 34 | B41: =IF(SISWA!B41=0,"",SISWA!B41) -> 4330 | C41: =IF(SISWA!C41=0,"",SISWA!C41) -> 0084736422 | D41: =IF(SISWA!D41=0,"",SISWA!D41) -> 1-18-05-80-162-034-7 | E41: =IF(SISWA!E41=0,"",SISWA!E41) -> ACHID ATHIRIL ARDAN | G41: 61 | H41: 80 | I41: 87 | J41: 85 | K41: 78.25 | L41: 60 | P41: 65
A42: 35 | B42: =IF(SISWA!B42=0,"",SISWA!B42) -> 4361 | C42: =IF(SISWA!C42=0,"",SISWA!C42) -> 0075656390 | D42: =IF(SISWA!D42=0,"",SISWA!D42) -> 1-18-05-80-162-035-6 | E42: =IF(SISWA!E42=0,"",SISWA!E42) -> ACHMAD SEPTIAN HAMDANI | G42: 60 | H42: 78 | I42: 88 | J42: 83 | K42: 77.25 | L42: 60 | P42: 65
A43: 36 | B43: =IF(SISWA!B43=0,"",SISWA!B43) -> 4362 | C43: =IF(SISWA!C43=0,"",SISWA!C43) -> 0071796138 | D43: =IF(SISWA!D43=0,"",SISWA!D43) -> 1-18-05-80-162-036-5 | E43: =IF(SISWA!E43=0,"",SISWA!E43) -> ACHMAD SULAIMAN | G43: 60 | H43: 77 | I43: 72 | J43: 84 | K43: 73.25 | L43: 60 | P43: 65
A44: 37 | B44: =IF(SISWA!B44=0,"",SISWA!B44) -> 4364 | C44: =IF(SISWA!C44=0,"",SISWA!C44) -> 0079667684 | D44: =IF(SISWA!D44=0,"",SISWA!D44) -> 1-18-05-80-162-037-4 | E44: =IF(SISWA!E44=0,"",SISWA!E44) -> AIRLANGGA DWIKA RIZQI | G44: 60 | H44: 76 | I44: 79 | J44: 84 | K44: 74.75 | L44: 60 | P44: 65
A45: 38 | B45: =IF(SISWA!B45=0,"",SISWA!B45) -> 4365 | C45: =IF(SISWA!C45=0,"",SISWA!C45) -> 0089321127 | D45: =IF(SISWA!D45=0,"",SISWA!D45) -> 1-18-05-80-162-038-3 | E45: =IF(SISWA!E45=0,"",SISWA!E45) -> AUFAN AZKAL ABRORI | G45: 82 | H45: 75 | I45: 78 | J45: 84 | K45: 79.75 | L45: 60 | P45: 65
A46: 39 | B46: =IF(SISWA!B46=0,"",SISWA!B46) -> 4465 | C46: =IF(SISWA!C46=0,"",SISWA!C46) -> 0071776593 | D46: =IF(SISWA!D46=0,"",SISWA!D46) -> 1-18-05-80-162-039-2 | E46: =IF(SISWA!E46=0,"",SISWA!E46) -> AZZA PRISHAL DWI PUTRA | G46: 73 | H46: 82 | I46: 81 | J46: 85 | K46: 80.25 | L46: 60 | P46: 65
A47: 40 | B47: =IF(SISWA!B47=0,"",SISWA!B47) -> 4368 | C47: =IF(SISWA!C47=0,"",SISWA!C47) -> 0074569410 | D47: =IF(SISWA!D47=0,"",SISWA!D47) -> 1-18-05-80-162-040-9 | E47: =IF(SISWA!E47=0,"",SISWA!E47) -> EKA AULIYA` PUTRI | G47: 65 | H47: 78 | I47: 79 | J47: 82 | K47: 76 | L47: 60 | P47: 65
A48: 41 | B48: =IF(SISWA!B48=0,"",SISWA!B48) -> 4341 | C48: =IF(SISWA!C48=0,"",SISWA!C48) -> 0083684457 | D48: =IF(SISWA!D48=0,"",SISWA!D48) -> 1-18-05-80-162-041-8 | E48: =IF(SISWA!E48=0,"",SISWA!E48) -> ERSA PUSPITA EKA ROSA LINDA | G48: 80 | H48: 76 | I48: 85 | J48: 85 | K48: 81.5 | L48: 60 | P48: 65
A49: 42 | B49: =IF(SISWA!B49=0,"",SISWA!B49) -> 4369 | C49: =IF(SISWA!C49=0,"",SISWA!C49) -> 0078481731 | D49: =IF(SISWA!D49=0,"",SISWA!D49) -> 1-18-05-80-162-042-7 | E49: =IF(SISWA!E49=0,"",SISWA!E49) -> FABIYAN TRI BAKTI OKTAFIAN | G49: 63 | H49: 73 | I49: 85 | J49: 84 | K49: 76.25 | L49: 60 | P49: 65
A50: 43 | B50: =IF(SISWA!B50=0,"",SISWA!B50) -> 4343 | C50: =IF(SISWA!C50=0,"",SISWA!C50) -> 3075965396 | D50: =IF(SISWA!D50=0,"",SISWA!D50) -> 1-18-05-80-162-043-6 | E50: =IF(SISWA!E50=0,"",SISWA!E50) -> FELISITA APRILIA NUR NIHAYA | G50: 83 | H50: 77 | I50: 74 | J50: 82 | K50: 79 | L50: 60 | P50: 65
A51: 44 | B51: =IF(SISWA!B51=0,"",SISWA!B51) -> 4344 | C51: =IF(SISWA!C51=0,"",SISWA!C51) -> 3078948093 | D51: =IF(SISWA!D51=0,"",SISWA!D51) -> 1-18-05-80-162-044-5 | E51: =IF(SISWA!E51=0,"",SISWA!E51) -> FIRDA DWI ANDRIANI | G51: 60 | H51: 78 | I51: 77 | J51: 84 | K51: 74.75 | L51: 60 | P51: 65
A52: 45 | B52: =IF(SISWA!B52=0,"",SISWA!B52) -> 4372 | C52: =IF(SISWA!C52=0,"",SISWA!C52) -> 0087636520 | D52: =IF(SISWA!D52=0,"",SISWA!D52) -> 1-18-05-80-162-045-4 | E52: =IF(SISWA!E52=0,"",SISWA!E52) -> GILANG AKBAR PRASETYO | G52: 70 | H52: 78 | I52: 77 | J52: 83 | K52: 77 | L52: 60 | P52: 65
A53: 46 | B53: =IF(SISWA!B53=0,"",SISWA!B53) -> 4373 | C53: =IF(SISWA!C53=0,"",SISWA!C53) -> 0087373224 | D53: =IF(SISWA!D53=0,"",SISWA!D53) -> 1-18-05-80-162-046-3 | E53: =IF(SISWA!E53=0,"",SISWA!E53) -> IFTAH IZZAH EMILIA MAHMUD | G53: 63 | H53: 75 | I53: 85 | J53: 82 | K53: 76.25 | L53: 60 | P53: 65
A54: 47 | B54: =IF(SISWA!B54=0,"",SISWA!B54) -> 4441 | C54: =IF(SISWA!C54=0,"",SISWA!C54) -> 0081758949 | D54: =IF(SISWA!D54=0,"",SISWA!D54) -> 1-18-05-80-162-047-2 | E54: =IF(SISWA!E54=0,"",SISWA!E54) -> INES ARIFANI MAULINA | G54: 85 | H54: 81 | I54: 80 | J54: 85 | K54: 82.75 | L54: 73.57142857 | P54: 73.57142857
A55: 48 | B55: =IF(SISWA!B55=0,"",SISWA!B55) -> 4374 | C55: =IF(SISWA!C55=0,"",SISWA!C55) -> 0073409469 | D55: =IF(SISWA!D55=0,"",SISWA!D55) -> 1-18-05-80-162-048-9 | E55: =IF(SISWA!E55=0,"",SISWA!E55) -> IYAAD AFLAKHA RAMZII | G55: 60 | H55: 74 | I55: 89 | J55: 86 | K55: 77.25 | L55: 60 | P55: 65
A56: 49 | B56: =IF(SISWA!B56=0,"",SISWA!B56) -> 4305 | C56: =IF(SISWA!C56=0,"",SISWA!C56) -> 0068258891 | D56: =IF(SISWA!D56=0,"",SISWA!D56) -> 1-18-05-80-162-049-8 | E56: =IF(SISWA!E56=0,"",SISWA!E56) -> JULI ANDRIYANTO | G56: 70 | H56: 72 | I56: 78 | J56: 84 | K56: 76 | L56: 60 | P56: 65
A57: 50 | B57: =IF(SISWA!B57=0,"",SISWA!B57) -> 4347 | C57: =IF(SISWA!C57=0,"",SISWA!C57) -> 0076367763 | D57: =IF(SISWA!D57=0,"",SISWA!D57) -> 1-18-05-80-162-050-7 | E57: =IF(SISWA!E57=0,"",SISWA!E57) -> LIYA FEBRIYANI | G57: 75 | H57: 76 | I57: 85 | J57: 83 | K57: 79.75 | L57: 60 | P57: 65
A58: 51 | B58: =IF(SISWA!B58=0,"",SISWA!B58) -> 4348 | C58: =IF(SISWA!C58=0,"",SISWA!C58) -> 0083034332 | D58: =IF(SISWA!D58=0,"",SISWA!D58) -> 1-18-05-80-162-051-6 | E58: =IF(SISWA!E58=0,"",SISWA!E58) -> LIZATUL CHAIYUNI | G58: 70 | H58: 80 | I58: 81 | J58: 83 | K58: =AVERAGE(F58:J58) -> 78.5 | L58: 60 | P58: 65
A59: 52 | B59: =IF(SISWA!B59=0,"",SISWA!B59) -> 4531 | C59: =IF(SISWA!C59=0,"",SISWA!C59) -> 3099539154 | D59: =IF(SISWA!D59=0,"",SISWA!D59) -> 1-18-05-80-162-052-5 | E59: =IF(SISWA!E59=0,"",SISWA!E59) -> M. ALHAFIS | G59: 62 | H59: 74 | I59: 82 | J59: 85 | K59: 75.75 | L59: 60 | P59: 65
A60: 53 | B60: =IF(SISWA!B60=0,"",SISWA!B60) -> 4530 | C60: =IF(SISWA!C60=0,"",SISWA!C60) -> 0077015789 | D60: =IF(SISWA!D60=0,"",SISWA!D60) -> 1-18-05-80-162-053-4 | E60: =IF(SISWA!E60=0,"",SISWA!E60) -> MUHAMMAD RIZKI RIDWAN | G60: 60 | H60: 73 | I60: 80 | J60: 82 | K60: 73.75 | L60: 60 | P60: 65
A61: 54 | B61: =IF(SISWA!B61=0,"",SISWA!B61) -> 4351 | C61: =IF(SISWA!C61=0,"",SISWA!C61) -> 0076361559 | D61: =IF(SISWA!D61=0,"",SISWA!D61) -> 1-18-05-80-162-054-3 | E61: =IF(SISWA!E61=0,"",SISWA!E61) -> MOCHAMAD RAFLI DIAN SAPUTRA | G61: 68 | H61: 74 | I61: 85 | J61: 83 | K61: 77.5 | L61: 60 | P61: 65
A62: 55 | B62: =IF(SISWA!B62=0,"",SISWA!B62) -> 4352 | C62: =IF(SISWA!C62=0,"",SISWA!C62) -> 0075591405 | D62: =IF(SISWA!D62=0,"",SISWA!D62) -> 1-18-05-80-162-055-2 | E62: =IF(SISWA!E62=0,"",SISWA!E62) -> MOCHAMMAD AFAREL PUTRA RAMDHANA | G62: 76 | H62: 76 | I62: 91 | J62: 85 | K62: 82 | L62: 60 | P62: 65
A63: 56 | B63: =IF(SISWA!B63=0,"",SISWA!B63) -> 4355 | C63: =IF(SISWA!C63=0,"",SISWA!C63) -> 0075363258 | D63: =IF(SISWA!D63=0,"",SISWA!D63) -> 1-18-05-80-162-056-9 | E63: =IF(SISWA!E63=0,"",SISWA!E63) -> MUHAMAD JEFRI MAULANA | G63: 69 | H63: 76 | I63: 79 | J63: 84 | K63: 77 | L63: 60 | P63: 65
A64: 57 | B64: =IF(SISWA!B64=0,"",SISWA!B64) -> 4376 | C64: =IF(SISWA!C64=0,"",SISWA!C64) -> 0072066741 | D64: =IF(SISWA!D64=0,"",SISWA!D64) -> 1-18-05-80-162-057-8 | E64: =IF(SISWA!E64=0,"",SISWA!E64) -> MUHAMMAD DWI WILDAN BAGUS KURNIAWAN | G64: 61 | H64: 75 | I64: 79 | J64: 82 | K64: 74.25 | L64: 60 | P64: 65
A65: 58 | B65: =IF(SISWA!B65=0,"",SISWA!B65) -> 4377 | C65: =IF(SISWA!C65=0,"",SISWA!C65) -> 0071459044 | D65: =IF(SISWA!D65=0,"",SISWA!D65) -> 1-18-05-80-162-058-7 | E65: =IF(SISWA!E65=0,"",SISWA!E65) -> MUHAMMAD FARIL FIRMANSYA | G65: 65 | H65: 75 | I65: 79 | J65: 84 | K65: 75.75 | L65: 60 | P65: 65
A66: 59 | B66: =IF(SISWA!B66=0,"",SISWA!B66) -> 4349 | C66: =IF(SISWA!C66=0,"",SISWA!C66) -> 0074206034 | D66: =IF(SISWA!D66=0,"",SISWA!D66) -> 1-18-05-80-162-059-6 | E66: =IF(SISWA!E66=0,"",SISWA!E66) -> MUHAMMAD FARIZ UBAIDILLA | G66: 73 | H66: 76 | I66: 83 | J66: 85 | K66: 79.25 | L66: 60 | P66: 65
A67: 60 | B67: =IF(SISWA!B67=0,"",SISWA!B67) -> 4356 | C67: =IF(SISWA!C67=0,"",SISWA!C67) -> 0077937892 | D67: =IF(SISWA!D67=0,"",SISWA!D67) -> 1-18-05-80-162-060-5 | E67: =IF(SISWA!E67=0,"",SISWA!E67) -> MUHAMMAD MAULANA ZIDANIL ILMI | G67: 69 | H67: 77 | I67: 82 | J67: 86 | K67: 78.5 | L67: 60 | P67: 65
A68: 61 | B68: =IF(SISWA!B68=0,"",SISWA!B68) -> 4357 | C68: =IF(SISWA!C68=0,"",SISWA!C68) -> 0078608527 | D68: =IF(SISWA!D68=0,"",SISWA!D68) -> 1-18-05-80-162-061-4 | E68: =IF(SISWA!E68=0,"",SISWA!E68) -> MUHAMMAD SUTRISNO ISMAIL | G68: 61 | H68: 77 | I68: 87 | J68: 84 | K68: =AVERAGE(F68:J68) -> 77.25 | L68: 79.28571429 | P68: 79.28571429
A69: 62 | B69: =IF(SISWA!B69=0,"",SISWA!B69) -> 4381 | C69: =IF(SISWA!C69=0,"",SISWA!C69) -> 0072209435 | D69: =IF(SISWA!D69=0,"",SISWA!D69) -> 1-18-05-80-162-062-3 | E69: =IF(SISWA!E69=0,"",SISWA!E69) -> NOVITA ERNIAWAN | G69: 72 | H69: 82 | I69: 81 | J69: 83 | K69: 79.5 | L69: 60 | P69: 65
A70: 63 | B70: =IF(SISWA!B70=0,"",SISWA!B70) -> 4383 | C70: =IF(SISWA!C70=0,"",SISWA!C70) -> 0077439834 | D70: =IF(SISWA!D70=0,"",SISWA!D70) -> 1-18-05-80-162-063-2 | E70: =IF(SISWA!E70=0,"",SISWA!E70) -> PUTRI AULIA DWI AGUSTIN | G70: 70 | H70: 87 | I70: 84 | J70: 86 | K70: 81.75 | L70: 60 | P70: 65
A71: 64 | B71: =IF(SISWA!B71=0,"",SISWA!B71) -> 4385 | C71: =IF(SISWA!C71=0,"",SISWA!C71) -> 0073137310 | D71: =IF(SISWA!D71=0,"",SISWA!D71) -> 1-18-05-80-162-064-9 | E71: =IF(SISWA!E71=0,"",SISWA!E71) -> STANY RAFIDAH RAHMANIA | G71: 60 | H71: 80 | I71: 86 | J71: 82 | K71: 77 | L71: 60 | P71: 65
A72: 65 | B72: =IF(SISWA!B72=0,"",SISWA!B72) -> 4387 | C72: =IF(SISWA!C72=0,"",SISWA!C72) -> 0077336427 | D72: =IF(SISWA!D72=0,"",SISWA!D72) -> 1-18-05-80-162-065-8 | E72: =IF(SISWA!E72=0,"",SISWA!E72) -> USWATUN KHASANAH | G72: 60 | H72: 78 | I72: 86 | J72: 82 | K72: 76.5 | L72: 60 | P72: 65
A73: 66 | B73: =IF(SISWA!B73=0,"",SISWA!B73) -> 4389 | C73: =IF(SISWA!C73=0,"",SISWA!C73) -> 0078407631 | D73: =IF(SISWA!D73=0,"",SISWA!D73) -> 1-18-05-80-162-066-7 | E73: =IF(SISWA!E73=0,"",SISWA!E73) -> VIKROUL KHAMILA | G73: 72 | H73: 79 | I73: 85 | J73: 85 | K73: 80.25 | L73: 60 | P73: 65
A74: 67 | B74: =IF(SISWA!B74=0,"",SISWA!B74) ->  | C74: =IF(SISWA!C74=0,"",SISWA!C74) ->  | D74: =IF(SISWA!D74=0,"",SISWA!D74) ->  | E74: =IF(SISWA!E74=0,"",SISWA!E74) -> 
A75: 68 | B75: =IF(SISWA!B75=0,"",SISWA!B75) ->  | C75: =IF(SISWA!C75=0,"",SISWA!C75) ->  | D75: =IF(SISWA!D75=0,"",SISWA!D75) ->  | E75: =IF(SISWA!E75=0,"",SISWA!E75) -> 
A76: 69 | B76: =IF(SISWA!B76=0,"",SISWA!B76) ->  | C76: =IF(SISWA!C76=0,"",SISWA!C76) ->  | D76: =IF(SISWA!D76=0,"",SISWA!D76) ->  | E76: =IF(SISWA!E76=0,"",SISWA!E76) -> 
A77: 70 | B77: =IF(SISWA!B77=0,"",SISWA!B77) ->  | C77: =IF(SISWA!C77=0,"",SISWA!C77) ->  | D77: =IF(SISWA!D77=0,"",SISWA!D77) ->  | E77: =IF(SISWA!E77=0,"",SISWA!E77) -> 
A78: 71 | B78: =IF(SISWA!B78=0,"",SISWA!B78) ->  | C78: =IF(SISWA!C78=0,"",SISWA!C78) ->  | D78: =IF(SISWA!D78=0,"",SISWA!D78) ->  | E78: =IF(SISWA!E78=0,"",SISWA!E78) -> 
A79: 72 | B79: =IF(SISWA!B79=0,"",SISWA!B79) ->  | C79: =IF(SISWA!C79=0,"",SISWA!C79) ->  | D79: =IF(SISWA!D79=0,"",SISWA!D79) ->  | E79: =IF(SISWA!E79=0,"",SISWA!E79) -> 
A80: 73 | B80: =IF(SISWA!B80=0,"",SISWA!B80) ->  | C80: =IF(SISWA!C80=0,"",SISWA!C80) ->  | D80: =IF(SISWA!D80=0,"",SISWA!D80) ->  | E80: =IF(SISWA!E80=0,"",SISWA!E80) -> 
A81: 74 | B81: =IF(SISWA!B81=0,"",SISWA!B81) ->  | C81: =IF(SISWA!C81=0,"",SISWA!C81) ->  | D81: =IF(SISWA!D81=0,"",SISWA!D81) ->  | E81: =IF(SISWA!E81=0,"",SISWA!E81) -> 
A82: 75 | B82: =IF(SISWA!B82=0,"",SISWA!B82) ->  | C82: =IF(SISWA!C82=0,"",SISWA!C82) ->  | D82: =IF(SISWA!D82=0,"",SISWA!D82) ->  | E82: =IF(SISWA!E82=0,"",SISWA!E82) -> 
A83: 76 | B83: =IF(SISWA!B83=0,"",SISWA!B83) ->  | C83: =IF(SISWA!C83=0,"",SISWA!C83) ->  | D83: =IF(SISWA!D83=0,"",SISWA!D83) ->  | E83: =IF(SISWA!E83=0,"",SISWA!E83) -> 
A84: 77 | B84: =IF(SISWA!B84=0,"",SISWA!B84) ->  | C84: =IF(SISWA!C84=0,"",SISWA!C84) ->  | D84: =IF(SISWA!D84=0,"",SISWA!D84) ->  | E84: =IF(SISWA!E84=0,"",SISWA!E84) -> 
A85: 78 | B85: =IF(SISWA!B85=0,"",SISWA!B85) ->  | C85: =IF(SISWA!C85=0,"",SISWA!C85) ->  | D85: =IF(SISWA!D85=0,"",SISWA!D85) ->  | E85: =IF(SISWA!E85=0,"",SISWA!E85) -> 
A86: 79 | B86: =IF(SISWA!B86=0,"",SISWA!B86) ->  | C86: =IF(SISWA!C86=0,"",SISWA!C86) ->  | D86: =IF(SISWA!D86=0,"",SISWA!D86) ->  | E86: =IF(SISWA!E86=0,"",SISWA!E86) -> 
A87: 80 | B87: =IF(SISWA!B87=0,"",SISWA!B87) ->  | C87: =IF(SISWA!C87=0,"",SISWA!C87) ->  | D87: =IF(SISWA!D87=0,"",SISWA!D87) ->  | E87: =IF(SISWA!E87=0,"",SISWA!E87) -> 
A88: 81 | B88: =IF(SISWA!B88=0,"",SISWA!B88) ->  | C88: =IF(SISWA!C88=0,"",SISWA!C88) ->  | D88: =IF(SISWA!D88=0,"",SISWA!D88) ->  | E88: =IF(SISWA!E88=0,"",SISWA!E88) -> 
A89: 82 | B89: =IF(SISWA!B89=0,"",SISWA!B89) ->  | C89: =IF(SISWA!C89=0,"",SISWA!C89) ->  | D89: =IF(SISWA!D89=0,"",SISWA!D89) ->  | E89: =IF(SISWA!E89=0,"",SISWA!E89) -> 
A90: 83 | B90: =IF(SISWA!B90=0,"",SISWA!B90) ->  | C90: =IF(SISWA!C90=0,"",SISWA!C90) ->  | D90: =IF(SISWA!D90=0,"",SISWA!D90) ->  | E90: =IF(SISWA!E90=0,"",SISWA!E90) -> 
A91: 84 | B91: =IF(SISWA!B91=0,"",SISWA!B91) ->  | C91: =IF(SISWA!C91=0,"",SISWA!C91) ->  | D91: =IF(SISWA!D91=0,"",SISWA!D91) ->  | E91: =IF(SISWA!E91=0,"",SISWA!E91) -> 
A92: 85 | B92: =IF(SISWA!B92=0,"",SISWA!B92) ->  | C92: =IF(SISWA!C92=0,"",SISWA!C92) ->  | D92: =IF(SISWA!D92=0,"",SISWA!D92) ->  | E92: =IF(SISWA!E92=0,"",SISWA!E92) -> 
A93: 86 | B93: =IF(SISWA!B93=0,"",SISWA!B93) ->  | C93: =IF(SISWA!C93=0,"",SISWA!C93) ->  | D93: =IF(SISWA!D93=0,"",SISWA!D93) ->  | E93: =IF(SISWA!E93=0,"",SISWA!E93) -> 
A94: 87 | B94: =IF(SISWA!B94=0,"",SISWA!B94) ->  | C94: =IF(SISWA!C94=0,"",SISWA!C94) ->  | D94: =IF(SISWA!D94=0,"",SISWA!D94) ->  | E94: =IF(SISWA!E94=0,"",SISWA!E94) -> 
A95: 88 | B95: =IF(SISWA!B95=0,"",SISWA!B95) ->  | C95: =IF(SISWA!C95=0,"",SISWA!C95) ->  | D95: =IF(SISWA!D95=0,"",SISWA!D95) ->  | E95: =IF(SISWA!E95=0,"",SISWA!E95) -> 
A96: 89 | B96: =IF(SISWA!B96=0,"",SISWA!B96) ->  | C96: =IF(SISWA!C96=0,"",SISWA!C96) ->  | D96: =IF(SISWA!D96=0,"",SISWA!D96) ->  | E96: =IF(SISWA!E96=0,"",SISWA!E96) -> 
A97: 90 | B97: =IF(SISWA!B97=0,"",SISWA!B97) ->  | C97: =IF(SISWA!C97=0,"",SISWA!C97) ->  | D97: =IF(SISWA!D97=0,"",SISWA!D97) ->  | E97: =IF(SISWA!E97=0,"",SISWA!E97) -> 
A98: 91 | B98: =IF(SISWA!B98=0,"",SISWA!B98) ->  | C98: =IF(SISWA!C98=0,"",SISWA!C98) ->  | D98: =IF(SISWA!D98=0,"",SISWA!D98) ->  | E98: =IF(SISWA!E98=0,"",SISWA!E98) -> 
A99: 92 | B99: =IF(SISWA!B99=0,"",SISWA!B99) ->  | C99: =IF(SISWA!C99=0,"",SISWA!C99) ->  | D99: =IF(SISWA!D99=0,"",SISWA!D99) ->  | E99: =IF(SISWA!E99=0,"",SISWA!E99) -> 
A100: 93 | B100: =IF(SISWA!B100=0,"",SISWA!B100) ->  | C100: =IF(SISWA!C100=0,"",SISWA!C100) ->  | D100: =IF(SISWA!D100=0,"",SISWA!D100) ->  | E100: =IF(SISWA!E100=0,"",SISWA!E100) -> 
A101: 94 | B101: =IF(SISWA!B101=0,"",SISWA!B101) ->  | C101: =IF(SISWA!C101=0,"",SISWA!C101) ->  | D101: =IF(SISWA!D101=0,"",SISWA!D101) ->  | E101: =IF(SISWA!E101=0,"",SISWA!E101) -> 
A102: 95 | B102: =IF(SISWA!B102=0,"",SISWA!B102) ->  | C102: =IF(SISWA!C102=0,"",SISWA!C102) ->  | D102: =IF(SISWA!D102=0,"",SISWA!D102) ->  | E102: =IF(SISWA!E102=0,"",SISWA!E102) -> 
A103: 96 | B103: =IF(SISWA!B103=0,"",SISWA!B103) ->  | C103: =IF(SISWA!C103=0,"",SISWA!C103) ->  | D103: =IF(SISWA!D103=0,"",SISWA!D103) ->  | E103: =IF(SISWA!E103=0,"",SISWA!E103) -> 
A104: 97 | B104: =IF(SISWA!B104=0,"",SISWA!B104) ->  | C104: =IF(SISWA!C104=0,"",SISWA!C104) ->  | D104: =IF(SISWA!D104=0,"",SISWA!D104) ->  | E104: =IF(SISWA!E104=0,"",SISWA!E104) -> 
A105: 98 | B105: =IF(SISWA!B105=0,"",SISWA!B105) ->  | C105: =IF(SISWA!C105=0,"",SISWA!C105) ->  | D105: =IF(SISWA!D105=0,"",SISWA!D105) ->  | E105: =IF(SISWA!E105=0,"",SISWA!E105) -> 
A106: 99 | B106: =IF(SISWA!B106=0,"",SISWA!B106) ->  | C106: =IF(SISWA!C106=0,"",SISWA!C106) ->  | D106: =IF(SISWA!D106=0,"",SISWA!D106) ->  | E106: =IF(SISWA!E106=0,"",SISWA!E106) -> 
A107: 100 | B107: =IF(SISWA!B107=0,"",SISWA!B107) ->  | C107: =IF(SISWA!C107=0,"",SISWA!C107) ->  | D107: =IF(SISWA!D107=0,"",SISWA!D107) ->  | E107: =IF(SISWA!E107=0,"",SISWA!E107) -> 
A108: 101 | B108: =IF(SISWA!B108=0,"",SISWA!B108) ->  | C108: =IF(SISWA!C108=0,"",SISWA!C108) ->  | D108: =IF(SISWA!D108=0,"",SISWA!D108) ->  | E108: =IF(SISWA!E108=0,"",SISWA!E108) -> 

Sheet IPA
A1: DAFTAR NILAI AKHIR SEKOLAH
A2: =AA!A2 -> MADRASAH IBTIDAIYAH NURUL ISLAM LABRUK KIDUL
A3: =AA!A3 -> TAHUN PELAJARAN 2019/2020
A5: NO | B5: No Induk | C5: NISN | D5: Nomor Peserta | E5: Nama Peserta | F5: IPA
F6: Nilai Semester | K6: Rata- 2 | L6: NILAI US | P6: UAMNU
F7: 7 | G7: 8 | H7: 9 | I7: 10 | J7: 11 | K7: Rapor | L7: TULIS | M7: PRAKTIK | P7: TULIS
A8: 1 | B8: =IF(SISWA!B8=0,"",SISWA!B8) -> 4331 | C8: =IF(SISWA!C8=0,"",SISWA!C8) -> 0078140536 | D8: =IF(SISWA!D8=0,"",SISWA!D8) -> 1-18-05-80-162-001-8 | E8: =IF(SISWA!E8=0,"",SISWA!E8) -> ACHMAD FATHIR IZUDDIN | G8: 68 | H8: 74 | I8: 80 | J8: 81 | K8: =AVERAGE(F8:J8) -> 75.75 | L8: 75 | N8: =AVERAGE(L8:M8) -> 75 | O8: =AVERAGE(L8:M8) -> 75 | P8: 75
A9: 2 | B9: =IF(SISWA!B9=0,"",SISWA!B9) -> 4333 | C9: =IF(SISWA!C9=0,"",SISWA!C9) -> 0084691896 | D9: =IF(SISWA!D9=0,"",SISWA!D9) -> 1-18-05-80-162-002-7 | E9: =IF(SISWA!E9=0,"",SISWA!E9) -> AININ NAFISA FEBRIYANTI | G9: 70 | H9: 74 | I9: 80 | J9: 85 | K9: =AVERAGE(F9:J9) -> 77.25 | L9: 60 | N9: =AVERAGE(L9:M9) -> 60 | O9: =AVERAGE(L9:M9) -> 60 | P9: 65
A10: 3 | B10: =IF(SISWA!B10=0,"",SISWA!B10) -> 4334 | C10: =IF(SISWA!C10=0,"",SISWA!C10) -> 0075488897 | D10: =IF(SISWA!D10=0,"",SISWA!D10) -> 1-18-05-80-162-003-6 | E10: =IF(SISWA!E10=0,"",SISWA!E10) -> AISYAH DWI ANDINI | G10: 70 | H10: 80 | I10: 85 | J10: 92 | K10: 81.75 | L10: 60 | N10: 60 | O10: 60 | P10: 65
A11: 4 | B11: =IF(SISWA!B11=0,"",SISWA!B11) -> 4335 | C11: =IF(SISWA!C11=0,"",SISWA!C11) -> 0077554289 | D11: =IF(SISWA!D11=0,"",SISWA!D11) -> 1-18-05-80-162-004-5 | E11: =IF(SISWA!E11=0,"",SISWA!E11) -> AJENG AGUSTINA KIRANA PUTRI | G11: 70 | H11: 79 | I11: 80 | J11: 84 | K11: 78.25 | L11: 60 | N11: 60 | O11: 60 | P11: 65
A12: 5 | B12: =IF(SISWA!B12=0,"",SISWA!B12) -> 4336 | C12: =IF(SISWA!C12=0,"",SISWA!C12) -> 0078831956 | D12: =IF(SISWA!D12=0,"",SISWA!D12) -> 1-18-05-80-162-005-4 | E12: =IF(SISWA!E12=0,"",SISWA!E12) -> ALVIAN FAIZULHAQQI | G12: 68 | H12: 78 | I12: 80 | J12: 84 | K12: 77.5 | L12: 60 | N12: 60 | O12: 60 | P12: 65
A13: 6 | B13: =IF(SISWA!B13=0,"",SISWA!B13) -> 4337 | C13: =IF(SISWA!C13=0,"",SISWA!C13) -> 0073667130 | D13: =IF(SISWA!D13=0,"",SISWA!D13) -> 1-18-05-80-162-006-3 | E13: =IF(SISWA!E13=0,"",SISWA!E13) -> ANGGITA RIZKY YUGA MEISYA | G13: 73 | H13: 80 | I13: 87 | J13: 88 | K13: 82 | L13: 60 | N13: 60 | O13: 60 | P13: 65
A14: 7 | B14: =IF(SISWA!B14=0,"",SISWA!B14) -> 4338 | C14: =IF(SISWA!C14=0,"",SISWA!C14) -> 0074492973 | D14: =IF(SISWA!D14=0,"",SISWA!D14) -> 1-18-05-80-162-007-2 | E14: =IF(SISWA!E14=0,"",SISWA!E14) -> AURA SALSABILA WULAN SARI | G14: 74 | H14: 77 | I14: 80 | J14: 96 | K14: 81.75 | L14: 65 | N14: 65 | O14: 65 | P14: 65
A15: 8 | B15: =IF(SISWA!B15=0,"",SISWA!B15) -> 4366 | C15: =IF(SISWA!C15=0,"",SISWA!C15) -> 0078989673 | D15: =IF(SISWA!D15=0,"",SISWA!D15) -> 1-18-05-80-162-008-9 | E15: =IF(SISWA!E15=0,"",SISWA!E15) -> BALQIS NAILA AUDIA | G15: 75 | H15: 77 | I15: 92 | J15: 88 | K15: 83 | L15: 72.5 | N15: 72.5 | O15: 72.5 | P15: 72.5
A16: 9 | B16: =IF(SISWA!B16=0,"",SISWA!B16) -> 4440 | C16: =IF(SISWA!C16=0,"",SISWA!C16) -> 0082763386 | D16: =IF(SISWA!D16=0,"",SISWA!D16) -> 1-18-05-80-162-009-8 | E16: =IF(SISWA!E16=0,"",SISWA!E16) -> BIMA ARYO SUSILO | G16: 75 | H16: 78 | I16: 87 | J16: 87 | K16: 81.75 | L16: 65 | N16: 65 | O16: 65 | P16: 65
A17: 10 | B17: =IF(SISWA!B17=0,"",SISWA!B17) -> 4367 | C17: =IF(SISWA!C17=0,"",SISWA!C17) -> 0078400392 | D17: =IF(SISWA!D17=0,"",SISWA!D17) -> 1-18-05-80-162-010-7 | E17: =IF(SISWA!E17=0,"",SISWA!E17) -> BIMA SATRIA DIRGANTARA | G17: 67 | H17: 74 | I17: 80 | J17: 93 | K17: 78.5 | L17: 60 | N17: 60 | O17: 60 | P17: 65
A18: 11 | B18: =IF(SISWA!B18=0,"",SISWA!B18) -> 4339 | C18: =IF(SISWA!C18=0,"",SISWA!C18) -> 0086652599 | D18: =IF(SISWA!D18=0,"",SISWA!D18) -> 1-18-05-80-162-011-6 | E18: =IF(SISWA!E18=0,"",SISWA!E18) -> DEVI KARUNIA RATNA PUTRI | G18: 70 | H18: 81 | I18: 87 | J18: 88 | K18: 81.5 | L18: 60 | N18: 60 | O18: 60 | P18: 65
A19: 12 | B19: =IF(SISWA!B19=0,"",SISWA!B19) -> 4340 | C19: =IF(SISWA!C19=0,"",SISWA!C19) -> 0089906682 | D19: =IF(SISWA!D19=0,"",SISWA!D19) -> 1-18-05-80-162-012-5 | E19: =IF(SISWA!E19=0,"",SISWA!E19) -> DEVITA FEBRIANI PUTRI | G19: 70 | H19: 81 | I19: 80 | J19: 86 | K19: 79.25 | L19: 60 | N19: 60 | O19: 60 | P19: 65
A20: 13 | B20: =IF(SISWA!B20=0,"",SISWA!B20) -> 4370 | C20: =IF(SISWA!C20=0,"",SISWA!C20) -> 0074514146 | D20: =IF(SISWA!D20=0,"",SISWA!D20) -> 1-18-05-80-162-013-4 | E20: =IF(SISWA!E20=0,"",SISWA!E20) -> FAKHIS GABRIL LIA | G20: 67 | H20: 76 | I20: 80 | J20: 88 | K20: 77.75 | L20: 70 | N20: 70 | O20: 70 | P20: 70
A21: 14 | B21: =IF(SISWA!B21=0,"",SISWA!B21) -> 4342 | C21: =IF(SISWA!C21=0,"",SISWA!C21) -> 0081081672 | D21: =IF(SISWA!D21=0,"",SISWA!D21) -> 1-18-05-80-162-014-3 | E21: =IF(SISWA!E21=0,"",SISWA!E21) -> FARAH NAILATUL ALYAH | G21: 88 | H21: 75 | I21: 89 | J21: 85 | K21: 84.25 | L21: 60 | N21: 60 | O21: 60 | P21: 65
A22: 15 | B22: =IF(SISWA!B22=0,"",SISWA!B22) -> 4345 | C22: =IF(SISWA!C22=0,"",SISWA!C22) -> 0073420487 | D22: =IF(SISWA!D22=0,"",SISWA!D22) -> 1-18-05-80-162-015-2 | E22: =IF(SISWA!E22=0,"",SISWA!E22) -> GALANG MARDHOTILLAH SATOTO | G22: 67 | H22: 76 | I22: 82 | J22: 87 | K22: 78 | L22: 60 | N22: 60 | O22: 60 | P22: 65
A23: 16 | B23: =IF(SISWA!B23=0,"",SISWA!B23) -> 4371 | C23: =IF(SISWA!C23=0,"",SISWA!C23) -> 0079870082 | D23: =IF(SISWA!D23=0,"",SISWA!D23) -> 1-18-05-80-162-016-9 | E23: =IF(SISWA!E23=0,"",SISWA!E23) -> GALIH FAREL PRASTYO | G23: 67 | H23: 75 | I23: 80 | J23: 93 | K23: 78.75 | L23: 60 | N23: 60 | O23: 60 | P23: 65
A24: 17 | B24: =IF(SISWA!B24=0,"",SISWA!B24) -> 4466 | C24: =IF(SISWA!C24=0,"",SISWA!C24) -> 0081629504 | D24: =IF(SISWA!D24=0,"",SISWA!D24) -> 1-18-05-80-162-017-8 | E24: =IF(SISWA!E24=0,"",SISWA!E24) -> HIBATULLAH MUSTAGHFIRY RUSLI | G24: 78 | H24: 76 | I24: 80 | J24: 86 | K24: 80 | L24: 60 | N24: 60 | O24: 60 | P24: 65
A25: 18 | B25: =IF(SISWA!B25=0,"",SISWA!B25) -> 4346 | C25: =IF(SISWA!C25=0,"",SISWA!C25) -> 0073608418 | D25: =IF(SISWA!D25=0,"",SISWA!D25) -> 1-18-05-80-162-018-7 | E25: =IF(SISWA!E25=0,"",SISWA!E25) -> IKA KURNIA WATI AGUSTINA | G25: 68 | H25: 76 | I25: 80 | J25: 87 | K25: 77.75 | L25: 60 | N25: 60 | O25: 60 | P25: 65
A26: 19 | B26: =IF(SISWA!B26=0,"",SISWA!B26) -> 4350 | C26: =IF(SISWA!C26=0,"",SISWA!C26) -> 0072658586 | D26: =IF(SISWA!D26=0,"",SISWA!D26) -> 1-18-05-80-162-019-6 | E26: =IF(SISWA!E26=0,"",SISWA!E26) -> MAYLUNA EKA PRATIWI | G26: 89 | H26: 79 | I26: 80 | J26: 94 | K26: 85.5 | L26: 60 | N26: 60 | O26: 60 | P26: 65
A27: 20 | B27: =IF(SISWA!B27=0,"",SISWA!B27) -> 4353 | C27: =IF(SISWA!C27=0,"",SISWA!C27) -> 0075464137 | D27: =IF(SISWA!D27=0,"",SISWA!D27) -> 1-18-05-80-162-020-5 | E27: =IF(SISWA!E27=0,"",SISWA!E27) -> MOHAMAD DWIMAS FIRDAUS | G27: 87 | H27: 77 | I27: 80 | J27: 93 | K27: 84.25 | L27: 60 | N27: 60 | O27: 60 | P27: 65
A28: 21 | B28: =IF(SISWA!B28=0,"",SISWA!B28) -> 4375 | C28: =IF(SISWA!C28=0,"",SISWA!C28) -> 0075096831 | D28: =IF(SISWA!D28=0,"",SISWA!D28) -> 1-18-05-80-162-021-4 | E28: =IF(SISWA!E28=0,"",SISWA!E28) -> MUHAMMAD AFFAN ABI SYAHPUTRA | G28: 85 | H28: 81 | I28: 82 | J28: 78 | K28: 81.5 | L28: 60 | N28: 60 | O28: 60 | P28: 65
A29: 22 | B29: =IF(SISWA!B29=0,"",SISWA!B29) -> 4354 | C29: =IF(SISWA!C29=0,"",SISWA!C29) -> 0075055640 | D29: =IF(SISWA!D29=0,"",SISWA!D29) -> 1-18-05-80-162-022-3 | E29: =IF(SISWA!E29=0,"",SISWA!E29) -> MUHAMMAD ALVIN RIDHO | G29: 68 | H29: 76 | I29: 80 | J29: 84 | K29: 77 | L29: 65 | N29: 65 | O29: =AVERAGE(L29:M29) -> 65 | P29: 65
A30: 23 | B30: =IF(SISWA!B30=0,"",SISWA!B30) -> 4378 | C30: =IF(SISWA!C30=0,"",SISWA!C30) -> 0074268893 | D30: =IF(SISWA!D30=0,"",SISWA!D30) -> 1-18-05-80-162-023-2 | E30: =IF(SISWA!E30=0,"",SISWA!E30) -> MUKHAMAD DAVID ARIF FIRDAUS | G30: 84 | H30: 79 | I30: 87 | J30: 88 | K30: 84.5 | L30: 60 | N30: 60 | O30: 60 | P30: 65
A31: 24 | B31: =IF(SISWA!B31=0,"",SISWA!B31) -> 4379 | C31: =IF(SISWA!C31=0,"",SISWA!C31) -> 0072757203 | D31: =IF(SISWA!D31=0,"",SISWA!D31) -> 1-18-05-80-162-024-9 | E31: =IF(SISWA!E31=0,"",SISWA!E31) -> NAORA ISQI AINAYYA | G31: 94 | H31: 81 | I31: 91 | J31: 93 | K31: 89.75 | L31: 77.5 | N31: 77.5 | O31: 77.5 | P31: 77.5
A32: 25 | B32: =IF(SISWA!B32=0,"",SISWA!B32) -> 4380 | C32: =IF(SISWA!C32=0,"",SISWA!C32) -> 0079026285 | D32: =IF(SISWA!D32=0,"",SISWA!D32) -> 1-18-05-80-162-025-8 | E32: =IF(SISWA!E32=0,"",SISWA!E32) -> NAZRA ISLAMAY PASHA | G32: 75 | H32: 76 | I32: 87 | J32: 92 | K32: 82.5 | L32: 60 | N32: 60 | O32: 60 | P32: 65
A33: 26 | B33: =IF(SISWA!B33=0,"",SISWA!B33) -> 4382 | C33: =IF(SISWA!C33=0,"",SISWA!C33) -> 0079872151 | D33: =IF(SISWA!D33=0,"",SISWA!D33) -> 1-18-05-80-162-026-7 | E33: =IF(SISWA!E33=0,"",SISWA!E33) -> NUR ALYA NABILA | G33: 78 | H33: 73 | I33: 80 | J33: 90 | K33: 80.25 | L33: 60 | N33: 60 | O33: 60 | P33: 65
A34: 27 | B34: =IF(SISWA!B34=0,"",SISWA!B34) -> 4358 | C34: =IF(SISWA!C34=0,"",SISWA!C34) -> 0087558837 | D34: =IF(SISWA!D34=0,"",SISWA!D34) -> 1-18-05-80-162-027-6 | E34: =IF(SISWA!E34=0,"",SISWA!E34) -> PUTRI SHOLIKHAH | G34: 82 | H34: 74 | I34: 79 | J34: 83 | K34: 79.5 | L34: 60 | N34: 60 | O34: 60 | P34: 65
A35: 28 | B35: =IF(SISWA!B35=0,"",SISWA!B35) -> 4384 | C35: =IF(SISWA!C35=0,"",SISWA!C35) -> 0071234523 | D35: =IF(SISWA!D35=0,"",SISWA!D35) -> 1-18-05-80-162-028-5 | E35: =IF(SISWA!E35=0,"",SISWA!E35) -> RESTI FITRIANTI DWI OCTAVIANI | G35: 76 | H35: 77 | I35: 89 | J35: 89 | K35: 82.75 | L35: 60 | N35: 60 | O35: 60 | P35: 65
A36: 29 | B36: =IF(SISWA!B36=0,"",SISWA!B36) -> 4359 | C36: =IF(SISWA!C36=0,"",SISWA!C36) -> 0073122181 | D36: =IF(SISWA!D36=0,"",SISWA!D36) -> 1-18-05-80-162-029-4 | E36: =IF(SISWA!E36=0,"",SISWA!E36) -> ROUDHOTUS SA'DIYAH | G36: 82 | H36: 77 | I36: 80 | J36: 85 | K36: 81 | L36: 60 | N36: 60 | O36: 60 | P36: 65
A37: 30 | B37: =IF(SISWA!B37=0,"",SISWA!B37) -> 4386 | C37: =IF(SISWA!C37=0,"",SISWA!C37) -> 0075344352 | D37: =IF(SISWA!D37=0,"",SISWA!D37) -> 1-18-05-80-162-030-3 | E37: =IF(SISWA!E37=0,"",SISWA!E37) -> TIERSYA BETA RAMANUZAN | G37: 89 | H37: 80 | I37: 92 | J37: 90 | K37: 87.75 | L37: 65 | N37: 65 | O37: 65 | P37: 65
A38: 31 | B38: =IF(SISWA!B38=0,"",SISWA!B38) -> 4388 | C38: =IF(SISWA!C38=0,"",SISWA!C38) -> 0077423646 | D38: =IF(SISWA!D38=0,"",SISWA!D38) -> 1-18-05-80-162-031-2 | E38: =IF(SISWA!E38=0,"",SISWA!E38) -> VERA MUSTIKA | G38: 82 | H38: 79 | I38: 80 | J38: 90 | K38: 82.75 | L38: 60 | N38: 60 | O38: 60 | P38: 65
A39: 32 | B39: =IF(SISWA!B39=0,"",SISWA!B39) -> 4360 | C39: =IF(SISWA!C39=0,"",SISWA!C39) -> 0077290990 | D39: =IF(SISWA!D39=0,"",SISWA!D39) -> 1-18-05-80-162-032-9 | E39: =IF(SISWA!E39=0,"",SISWA!E39) -> ZIDNY ILMA NABILA | G39: 89 | H39: 82 | I39: 91 | J39: 95 | K39: 89.25 | L39: 72.5 | N39: 72.5 | O39: 72.5 | P39: 72.5
A40: 33 | B40: =IF(SISWA!B40=0,"",SISWA!B40) -> 4390 | C40: =IF(SISWA!C40=0,"",SISWA!C40) -> 0077722307 | D40: =IF(SISWA!D40=0,"",SISWA!D40) -> 1-18-05-80-162-033-8 | E40: =IF(SISWA!E40=0,"",SISWA!E40) -> ZITNATUL AULIA ILLA | G40: 87 | H40: 79 | I40: 87 | J40: 93 | K40: 86.5 | L40: 67.5 | N40: 67.5 | O40: 67.5 | P40: 67.5
A41: 34 | B41: =IF(SISWA!B41=0,"",SISWA!B41) -> 4330 | C41: =IF(SISWA!C41=0,"",SISWA!C41) -> 0084736422 | D41: =IF(SISWA!D41=0,"",SISWA!D41) -> 1-18-05-80-162-034-7 | E41: =IF(SISWA!E41=0,"",SISWA!E41) -> ACHID ATHIRIL ARDAN | G41: 72 | H41: 74 | I41: 81 | J41: 90 | K41: 79.25 | L41: 60 | N41: 60 | O41: 60 | P41: 65
A42: 35 | B42: =IF(SISWA!B42=0,"",SISWA!B42) -> 4361 | C42: =IF(SISWA!C42=0,"",SISWA!C42) -> 0075656390 | D42: =IF(SISWA!D42=0,"",SISWA!D42) -> 1-18-05-80-162-035-6 | E42: =IF(SISWA!E42=0,"",SISWA!E42) -> ACHMAD SEPTIAN HAMDANI | G42: 64 | H42: 75 | I42: 81 | J42: 98 | K42: 79.5 | L42: 60 | N42: 60 | O42: 60 | P42: 65
A43: 36 | B43: =IF(SISWA!B43=0,"",SISWA!B43) -> 4362 | C43: =IF(SISWA!C43=0,"",SISWA!C43) -> 0071796138 | D43: =IF(SISWA!D43=0,"",SISWA!D43) -> 1-18-05-80-162-036-5 | E43: =IF(SISWA!E43=0,"",SISWA!E43) -> ACHMAD SULAIMAN | G43: 70 | H43: 73 | I43: 82 | J43: 81 | K43: 76.5 | L43: 60 | N43: 60 | O43: 60 | P43: 65
A44: 37 | B44: =IF(SISWA!B44=0,"",SISWA!B44) -> 4364 | C44: =IF(SISWA!C44=0,"",SISWA!C44) -> 0079667684 | D44: =IF(SISWA!D44=0,"",SISWA!D44) -> 1-18-05-80-162-037-4 | E44: =IF(SISWA!E44=0,"",SISWA!E44) -> AIRLANGGA DWIKA RIZQI | G44: 60 | H44: 74 | I44: 82 | J44: 83 | K44: 74.75 | L44: 60 | N44: 60 | O44: 60 | P44: 65
A45: 38 | B45: =IF(SISWA!B45=0,"",SISWA!B45) -> 4365 | C45: =IF(SISWA!C45=0,"",SISWA!C45) -> 0089321127 | D45: =IF(SISWA!D45=0,"",SISWA!D45) -> 1-18-05-80-162-038-3 | E45: =IF(SISWA!E45=0,"",SISWA!E45) -> AUFAN AZKAL ABRORI | G45: 67 | H45: 75 | I45: 84 | J45: 96 | K45: 80.5 | L45: 60 | N45: 60 | O45: 60 | P45: 65
A46: 39 | B46: =IF(SISWA!B46=0,"",SISWA!B46) -> 4465 | C46: =IF(SISWA!C46=0,"",SISWA!C46) -> 0071776593 | D46: =IF(SISWA!D46=0,"",SISWA!D46) -> 1-18-05-80-162-039-2 | E46: =IF(SISWA!E46=0,"",SISWA!E46) -> AZZA PRISHAL DWI PUTRA | G46: 67 | H46: 74 | I46: 82 | J46: 84 | K46: 76.75 | L46: 60 | N46: 60 | O46: 60 | P46: 65
A47: 40 | B47: =IF(SISWA!B47=0,"",SISWA!B47) -> 4368 | C47: =IF(SISWA!C47=0,"",SISWA!C47) -> 0074569410 | D47: =IF(SISWA!D47=0,"",SISWA!D47) -> 1-18-05-80-162-040-9 | E47: =IF(SISWA!E47=0,"",SISWA!E47) -> EKA AULIYA` PUTRI | G47: 67 | H47: 80 | I47: 84 | J47: 98 | K47: 82.25 | L47: 60 | N47: 60 | O47: 60 | P47: 65
A48: 41 | B48: =IF(SISWA!B48=0,"",SISWA!B48) -> 4341 | C48: =IF(SISWA!C48=0,"",SISWA!C48) -> 0083684457 | D48: =IF(SISWA!D48=0,"",SISWA!D48) -> 1-18-05-80-162-041-8 | E48: =IF(SISWA!E48=0,"",SISWA!E48) -> ERSA PUSPITA EKA ROSA LINDA | G48: 69 | H48: 76 | I48: 85 | J48: 96 | K48: 81.5 | L48: 60 | N48: 60 | O48: 60 | P48: 65
A49: 42 | B49: =IF(SISWA!B49=0,"",SISWA!B49) -> 4369 | C49: =IF(SISWA!C49=0,"",SISWA!C49) -> 0078481731 | D49: =IF(SISWA!D49=0,"",SISWA!D49) -> 1-18-05-80-162-042-7 | E49: =IF(SISWA!E49=0,"",SISWA!E49) -> FABIYAN TRI BAKTI OKTAFIAN | G49: 67 | H49: 74 | I49: 82 | J49: 92 | K49: 78.75 | L49: 60 | N49: 60 | O49: 60 | P49: 65
A50: 43 | B50: =IF(SISWA!B50=0,"",SISWA!B50) -> 4343 | C50: =IF(SISWA!C50=0,"",SISWA!C50) -> 3075965396 | D50: =IF(SISWA!D50=0,"",SISWA!D50) -> 1-18-05-80-162-043-6 | E50: =IF(SISWA!E50=0,"",SISWA!E50) -> FELISITA APRILIA NUR NIHAYA | G50: 67 | H50: 79 | I50: 83 | J50: 86 | K50: 78.75 | L50: 60 | N50: 60 | O50: 60 | P50: 65
A51: 44 | B51: =IF(SISWA!B51=0,"",SISWA!B51) -> 4344 | C51: =IF(SISWA!C51=0,"",SISWA!C51) -> 3078948093 | D51: =IF(SISWA!D51=0,"",SISWA!D51) -> 1-18-05-80-162-044-5 | E51: =IF(SISWA!E51=0,"",SISWA!E51) -> FIRDA DWI ANDRIANI | G51: 67 | H51: 75 | I51: 82 | J51: 92 | K51: 79 | L51: 60 | N51: 60 | O51: 60 | P51: 65
A52: 45 | B52: =IF(SISWA!B52=0,"",SISWA!B52) -> 4372 | C52: =IF(SISWA!C52=0,"",SISWA!C52) -> 0087636520 | D52: =IF(SISWA!D52=0,"",SISWA!D52) -> 1-18-05-80-162-045-4 | E52: =IF(SISWA!E52=0,"",SISWA!E52) -> GILANG AKBAR PRASETYO | G52: 66 | H52: 75 | I52: 84 | J52: 86 | K52: 77.75 | L52: 60 | N52: 60 | O52: 60 | P52: 65
A53: 46 | B53: =IF(SISWA!B53=0,"",SISWA!B53) -> 4373 | C53: =IF(SISWA!C53=0,"",SISWA!C53) -> 0087373224 | D53: =IF(SISWA!D53=0,"",SISWA!D53) -> 1-18-05-80-162-046-3 | E53: =IF(SISWA!E53=0,"",SISWA!E53) -> IFTAH IZZAH EMILIA MAHMUD | G53: 67 | H53: 75 | I53: 82 | J53: 81 | K53: 76.25 | L53: 60 | N53: 60 | O53: 60 | P53: 65
A54: 47 | B54: =IF(SISWA!B54=0,"",SISWA!B54) -> 4441 | C54: =IF(SISWA!C54=0,"",SISWA!C54) -> 0081758949 | D54: =IF(SISWA!D54=0,"",SISWA!D54) -> 1-18-05-80-162-047-2 | E54: =IF(SISWA!E54=0,"",SISWA!E54) -> INES ARIFANI MAULINA | G54: 68 | H54: 81 | I54: 83 | J54: 90 | K54: 80.5 | L54: 60 | N54: 60 | O54: 60 | P54: 65
A55: 48 | B55: =IF(SISWA!B55=0,"",SISWA!B55) -> 4374 | C55: =IF(SISWA!C55=0,"",SISWA!C55) -> 0073409469 | D55: =IF(SISWA!D55=0,"",SISWA!D55) -> 1-18-05-80-162-048-9 | E55: =IF(SISWA!E55=0,"",SISWA!E55) -> IYAAD AFLAKHA RAMZII | G55: 68 | H55: 79 | I55: 84 | J55: 96 | K55: 81.75 | L55: 60 | N55: 60 | O55: 60 | P55: 65
A56: 49 | B56: =IF(SISWA!B56=0,"",SISWA!B56) -> 4305 | C56: =IF(SISWA!C56=0,"",SISWA!C56) -> 0068258891 | D56: =IF(SISWA!D56=0,"",SISWA!D56) -> 1-18-05-80-162-049-8 | E56: =IF(SISWA!E56=0,"",SISWA!E56) -> JULI ANDRIYANTO | G56: 68 | H56: 77 | I56: 82 | J56: 82 | K56: 77.25 | L56: 60 | N56: 60 | O56: 60 | P56: 65
A57: 50 | B57: =IF(SISWA!B57=0,"",SISWA!B57) -> 4347 | C57: =IF(SISWA!C57=0,"",SISWA!C57) -> 0076367763 | D57: =IF(SISWA!D57=0,"",SISWA!D57) -> 1-18-05-80-162-050-7 | E57: =IF(SISWA!E57=0,"",SISWA!E57) -> LIYA FEBRIYANI | G57: 73 | H57: 84 | I57: 89 | J57: 96 | K57: 85.5 | L57: 60 | N57: 60 | O57: 60 | P57: 65
A58: 51 | B58: =IF(SISWA!B58=0,"",SISWA!B58) -> 4348 | C58: =IF(SISWA!C58=0,"",SISWA!C58) -> 0083034332 | D58: =IF(SISWA!D58=0,"",SISWA!D58) -> 1-18-05-80-162-051-6 | E58: =IF(SISWA!E58=0,"",SISWA!E58) -> LIZATUL CHAIYUNI | G58: 70 | H58: 81 | I58: 86 | J58: 96 | K58: 83.25 | L58: 60 | N58: =AVERAGE(L58:M58) -> 60 | O58: 60 | P58: 65
A59: 52 | B59: =IF(SISWA!B59=0,"",SISWA!B59) -> 4531 | C59: =IF(SISWA!C59=0,"",SISWA!C59) -> 3099539154 | D59: =IF(SISWA!D59=0,"",SISWA!D59) -> 1-18-05-80-162-052-5 | E59: =IF(SISWA!E59=0,"",SISWA!E59) -> M. ALHAFIS | G59: 71 | H59: 75 | I59: 82 | J59: 81 | K59: 77.25 | L59: 60 | N59: 60 | O59: 60 | P59: 65
A60: 53 | B60: =IF(SISWA!B60=0,"",SISWA!B60) -> 4530 | C60: =IF(SISWA!C60=0,"",SISWA!C60) -> 0077015789 | D60: =IF(SISWA!D60=0,"",SISWA!D60) -> 1-18-05-80-162-053-4 | E60: =IF(SISWA!E60=0,"",SISWA!E60) -> MUHAMMAD RIZKI RIDWAN | G60: 63 | H60: 75 | I60: 81 | J60: 81 | K60: 75 | L60: 60 | N60: 60 | O60: 60 | P60: 65
A61: 54 | B61: =IF(SISWA!B61=0,"",SISWA!B61) -> 4351 | C61: =IF(SISWA!C61=0,"",SISWA!C61) -> 0076361559 | D61: =IF(SISWA!D61=0,"",SISWA!D61) -> 1-18-05-80-162-054-3 | E61: =IF(SISWA!E61=0,"",SISWA!E61) -> MOCHAMAD RAFLI DIAN SAPUTRA | G61: 64 | H61: 74 | I61: 81 | J61: 86 | K61: 76.25 | L61: 60 | N61: 60 | O61: 60 | P61: 65
A62: 55 | B62: =IF(SISWA!B62=0,"",SISWA!B62) -> 4352 | C62: =IF(SISWA!C62=0,"",SISWA!C62) -> 0075591405 | D62: =IF(SISWA!D62=0,"",SISWA!D62) -> 1-18-05-80-162-055-2 | E62: =IF(SISWA!E62=0,"",SISWA!E62) -> MOCHAMMAD AFAREL PUTRA RAMDHANA | G62: 76 | H62: 78 | I62: 83 | J62: 86 | K62: 80.75 | L62: 60 | N62: 60 | O62: 60 | P62: 65
A63: 56 | B63: =IF(SISWA!B63=0,"",SISWA!B63) -> 4355 | C63: =IF(SISWA!C63=0,"",SISWA!C63) -> 0075363258 | D63: =IF(SISWA!D63=0,"",SISWA!D63) -> 1-18-05-80-162-056-9 | E63: =IF(SISWA!E63=0,"",SISWA!E63) -> MUHAMAD JEFRI MAULANA | G63: 70 | H63: 75 | I63: 83 | J63: 92 | K63: 80 | L63: 60 | N63: 60 | O63: 60 | P63: 65
A64: 57 | B64: =IF(SISWA!B64=0,"",SISWA!B64) -> 4376 | C64: =IF(SISWA!C64=0,"",SISWA!C64) -> 0072066741 | D64: =IF(SISWA!D64=0,"",SISWA!D64) -> 1-18-05-80-162-057-8 | E64: =IF(SISWA!E64=0,"",SISWA!E64) -> MUHAMMAD DWI WILDAN BAGUS KURNIAWAN | G64: 60 | H64: 75 | I64: 84 | J64: 84 | K64: 75.75 | L64: 60 | N64: 60 | O64: 60 | P64: 65
A65: 58 | B65: =IF(SISWA!B65=0,"",SISWA!B65) -> 4377 | C65: =IF(SISWA!C65=0,"",SISWA!C65) -> 0071459044 | D65: =IF(SISWA!D65=0,"",SISWA!D65) -> 1-18-05-80-162-058-7 | E65: =IF(SISWA!E65=0,"",SISWA!E65) -> MUHAMMAD FARIL FIRMANSYA | G65: 61 | H65: 76 | I65: 84 | J65: 90 | K65: 77.75 | L65: 60 | N65: 60 | O65: 60 | P65: 65
A66: 59 | B66: =IF(SISWA!B66=0,"",SISWA!B66) -> 4349 | C66: =IF(SISWA!C66=0,"",SISWA!C66) -> 0074206034 | D66: =IF(SISWA!D66=0,"",SISWA!D66) -> 1-18-05-80-162-059-6 | E66: =IF(SISWA!E66=0,"",SISWA!E66) -> MUHAMMAD FARIZ UBAIDILLA | G66: 72 | H66: 76 | I66: 83 | J66: 90 | K66: 80.25 | L66: 60 | N66: 60 | O66: 60 | P66: 65
A67: 60 | B67: =IF(SISWA!B67=0,"",SISWA!B67) -> 4356 | C67: =IF(SISWA!C67=0,"",SISWA!C67) -> 0077937892 | D67: =IF(SISWA!D67=0,"",SISWA!D67) -> 1-18-05-80-162-060-5 | E67: =IF(SISWA!E67=0,"",SISWA!E67) -> MUHAMMAD MAULANA ZIDANIL ILMI | G67: 73 | H67: 79 | I67: 85 | J67: 98 | K67: 83.75 | L67: 60 | N67: 60 | O67: 60 | P67: 65
A68: 61 | B68: =IF(SISWA!B68=0,"",SISWA!B68) -> 4357 | C68: =IF(SISWA!C68=0,"",SISWA!C68) -> 0078608527 | D68: =IF(SISWA!D68=0,"",SISWA!D68) -> 1-18-05-80-162-061-4 | E68: =IF(SISWA!E68=0,"",SISWA!E68) -> MUHAMMAD SUTRISNO ISMAIL | G68: 61 | H68: 74 | I68: 82 | J68: 83 | K68: =AVERAGE(F68:J68) -> 75 | L68: 60 | N68: 60 | O68: 60 | P68: 65
